Workbook

Sheet Inscription
A1: INFO | B1: Lieu | E1: Distance (en M)
B2: Housse | E2: 10000
A3: Dossard | B3: Nom | C3: Prénom | D3: Cat.
A4: 200 | B4: Colle | C4: Jean-François | D4: H10
A5: 201 | B5: Engelbel | C5: France | D5: D10
A6: 202 | B6: Stas | C6: Luc | D6: H10
A7: 203 | B7: Pregardien | C7: Aline | D7: D10
A8: 204 | B8: Bourdouxhe-Nelissen | C8: Xavier | D8: H10
A9: 205 | B9: Keydener | C9: Christian | D9: H10
A10: 207 | B10: Muller | C10: Françoise | D10: D10 | J10: Catégorie : à remplir manuellement
A11: 208 | B11: Heusschen | C11: Dominique | D11: H10 | J11: H10 | K11: Homme 10km
A12: 210 | B12: Bertrand | C12: Sylvia | D12: D10 | J12: H5 | K12: Homme 5km
A13: 211 | B13: Somja | C13: Bénédicte | D13: D10 | J13: D5 | K13: Dame 5km
A14: 212 | B14: Bonhomme | C14: Evelyne | D14: D10
A15: 213 | B15: Culot | C15: Gregory | D15: H10
A16: 214 | B16: Gomboso | C16: Michael | D16: H10
A17: 215 | B17: Salerno | C17: Michael | D17: H10
A18: 216 | B18: Donne | C18: Kevin | D18: H10
A19: 217 | B19: Gillon | C19: Patrick | D19: H10
A20: 218 | B20: Ioriatti | C20: Veronique | D20: D10
A21: 219 | B21: Dewandre | C21: Patrick | D21: H10
A22: 220 | B22: Leclercq | C22: Sabrina | D22: D10
A23: 221 | B23: Kricfalusi | C23: Michael | D23: H10
A24: 222 | B24: Servam | C24: Pascal | D24: H10
A25: 223 | B25: Sabel | C25: Ingrid | D25: D10
A26: 224 | B26: Josse | C26: Noel | D26: H10
A27: 225 | B27: Lesoinne | C27: Philippe | D27: H10
A28: 226 | B28: Fawe | C28: Jocelyne | D28: D10
A29: 227 | B29: Nossent | C29: Françoise | D29: D10
A30: 228 | B30: Bruwer | C30: Françoise | D30: H10
A31: 229 | B31: Presardien | C31: Christian | D31: H10
A32: 230 | B32: Lieutenant | C32: Jerome | D32: H10
A33: 231 | B33: Demonceau | C33: Isabelle | D33: D10
A34: 232 | B34: Deprez | C34: Françoise | D34: D10
A35: 233 | B35: Schyns | C35: Fanny | D35: D10
A36: 235 | B36: Hoeters | C36: Nicolas | D36: H10
A37: 236 | B37: Vanoirbeck | C37: Dominique | D37: D10
A38: 238
A39: 239
A40: 240
A41: 241
A42: 242
A43: 243
A44: 244
A45: 245
A46: 246
A47: 247
A48: 248
A49: 249
A50: 250
A51: 251
A52: 252
A53: 253
A54: 254
A55: 255
A56: 256
A57: 257
A58: 258
A59: 259
C102: n

Sheet Résultats
G1: kjijkj | H1: Curseur | K1: km/h | AA1: H | AB1: M | AC1: S | AG1: temps total en secondes | AL1: m/km | AM1: s/km | AP1: H8 | AQ1: H4 | AR1: D8 | AS1: D4
A2: Place | B2: Nom | C2: Prénom | D2: Dos | E2: pla. / cat. | H2: =NOW() -> 42533.51128 | I2: 2016-06-12T10:33:18.650 | J2: 40839.40661 | AZ2: Eg | BB2: H8 | BD2: H4 | BF2: D8 | BH2: D4 | BJ2: Ef | BL2: Dist 8km | BN2: Dist 4km | BP2: A2 | BR2: A3
E3: =LOOKUP(D4,Inscription!$A$4:$A$493,Inscription!$D$4:$D$493) -> H10 | F3: =IF(E3="H8",AP3,IF(E3="D8",AR3,IF(E3="H4",AQ3,AS3))) ->  | H3: 42533.51128 | I3: 2016-06-12T10:33:19.050 | J3: =IF((I3-I$2)<0,"",IF((I3-I$2=0),"",I3-I$2)) -> 00:00:00.400 | K3: =W3/AG3*3.6 ->  | L3: =IF(E3="H8",AN3,IF(E3="D8",AN3,"")) ->  | M3: =IF(E3="H4",AO3,IF(E3="D4",AO3,"")) ->  | W3: =IF(E3="H10",10000,IF(E3="D10",10000,5000)) -> 10000 | AA3: =HOUR(J3) -> 0 | AB3: =MINUTE(J3) -> 0 | AC3: =SECOND(J3) -> 0 | AD3: =AA3 -> 0 | AE3: =AB3 -> 0 | AF3: =AC3 -> 0 | AG3: =((((AD3*60)+AE3)*60)+AF3) -> 0 | AH3: =((AG3/Inscription!$E$2)*1000) -> 0 | AI3: =AH3/3600 -> 0 | AJ3: =AH3/60 -> 0 | AK3: =AH3 -> 0 | AL3: =ROUNDDOWN(AJ3,0) -> 0 | AM3: =ROUNDDOWN(AK3-(AL3*60),0) -> 0 | AN3: =IF(E3="H8",BK3,IF(E3="D8",BK3,"")) ->  | AO3: =IF(E3="H4",BM3,IF(E3="D4",BM3,"")) ->  | AP3: =IF($E3="H8",$BA3,"") ->  | AQ3: =IF($E3="H4",$BC3,"") ->  | AR3: =IF($E3="D8",$BE3,"") ->  | AS3: =IF($E3="D4",$BG3,"") ->  | AT3: =IF($E3="Ef",$BI3,"") ->  | AU3: =IF($E3="D",$BK3,"") ->  | AV3: =IF($E3="A1",$BM3,"") ->  | AW3: =IF($E3="A2",$BO3,"") ->  | AX3: =IF($E3="A3",$BQ3,"") ->  | AY3: =AZ3 -> 0 | AZ3: =IF(E3="Eg",1,0) -> 0 | BA3: =BB3 -> 0 | BB3: =IF($E3="H8",1,0) -> 0 | BC3: =BD3 -> 0 | BD3: =IF($E3="H4",1,0) -> 0 | BE3: =BF3 -> 0 | BF3: =IF($E3="D8",1,0) -> 0 | BG3: =BH3 -> 0 | BH3: =IF($E3="D4",1,0) -> 0 | BI3: =BJ3 -> 0 | BJ3: =IF($E3="Ef",1,0) -> 0 | BK3: =BL3 -> 0 | BL3: =IF($E3="D8",1,IF(E3="H8",1,0)) -> 0 | BM3: =BN3 -> 0 | BN3: =IF($E3="D4",1,IF(E3="H4",1,0)) -> 0 | BO3: =BP3 -> 0 | BP3: =IF($E3="A2",1,0) -> 0 | BQ3: =BR3 -> 0 | BR3: =IF($E3="A3",1,0) -> 0
A4: 1 | B4: =PROPER(LOOKUP(D4,Inscription!$A$4:$A$883,Inscription!$B$4:$B$883)) -> Culot | C4: =PROPER(LOOKUP(D4,Inscription!$A$4:$A$883,Inscription!$C$4:$C$883)) -> Gregory | D4: 213 | E4: =LOOKUP(D5,Inscription!$A$4:$A$493,Inscription!$D$4:$D$493) -> H10 | H4: 42533.51128 | I4: 42533.46697 | J4: 00:39:07.150 | K4: =W4/AG4*3.6 -> 15.33873029 | L4: =IF(E4="H8",AN4,IF(E4="D8",AN4,"")) ->  | M4: =IF(E4="H4",AO4,IF(E4="D4",AO4,"")) ->  | W4: =IF(E4="H10",10000,IF(E4="D10",10000,5000)) -> 10000 | AA4: =HOUR(J4) -> 0 | AB4: =MINUTE(J4) -> 39 | AC4: =SECOND(J4) -> 7 | AD4: =AA4 -> 0 | AE4: =AB4 -> 39 | AF4: =AC4 -> 7 | AG4: =((((AD4*60)+AE4)*60)+AF4) -> 2347 | AH4: =((AG4/Inscription!$E$2)*1000) -> 234.7 | AI4: =AH4/3600 -> 0.06519444444 | AJ4: 3.911666667 | AK4: 234.7 | AL4: =ROUNDDOWN(AJ4,0) -> 3 | AM4: =ROUNDDOWN(AK4-(AL4*60),0) -> 54 | AN4: =IF(E4="H8",BK4,IF(E4="D8",BK4,"")) ->  | AO4: =IF(E4="H4",BM4,IF(E4="D4",BM4,"")) ->  | AP4: =IF($E4="H8",$BA4,"") ->  | AQ4: =IF($E4="H4",$BC4,"") ->  | AR4: =IF($E4="D8",$BE4,"") ->  | AS4: =IF($E4="D4",$BG4,"") ->  | AY4: =AZ4+AY3 -> 0 | AZ4: =IF(E4="Eg",1,0) -> 0 | BA4: =BB4+BA3 -> 0 | BB4: =IF($E4="H8",1,0) -> 0 | BC4: =BD4+BC3 -> 0 | BD4: =IF($E4="H4",1,0) -> 0 | BE4: =BF4+BE3 -> 0 | BF4: =IF($E4="D8",1,0) -> 0 | BG4: =BH4+BG3 -> 0 | BH4: =IF($E4="D4",1,0) -> 0 | BI4: =BJ4+BI3 -> 0 | BJ4: =IF($E4="Ef",1,0) -> 0 | BK4: =BL4+BK3 -> 0 | BL4: =IF($E4="D8",1,IF(E4="H8",1,0)) -> 0 | BM4: =BN4+BM3 -> 0 | BN4: =IF($E4="D4",1,IF(E4="H4",1,0)) -> 0 | BO4: =BP4+BO3 -> 0 | BP4: =IF($E4="A2",1,0) -> 0 | BQ4: =BR4+BQ3 -> 0 | BR4: =IF($E4="A3",1,0) -> 0
A5: 2 | B5: =PROPER(LOOKUP(D5,Inscription!$A$4:$A$883,Inscription!$B$4:$B$883)) -> Lieutenant | C5: =PROPER(LOOKUP(D5,Inscription!$A$4:$A$883,Inscription!$C$4:$C$883)) -> Jerome | D5: 230 | E5: =LOOKUP(D6,Inscription!$A$4:$A$493,Inscription!$D$4:$D$493) -> H10 | H5: 42533.51128 | I5: 42533.46928 | J5: 00:42:26.720 | K5: 14.13427562 | W5: 10000 | AA5: 0 | AB5: 42 | AC5: 27 | AD5: 0 | AE5: 42 | AF5: 27 | AG5: 2547 | AH5: =((AG5/Inscription!$E$2)*1000) -> 254.7 | AI5: 0.07075 | AJ5: 4.245 | AK5: 254.7 | AL5: 4 | AM5: =ROUNDDOWN(AK5-(AL5*60),0) -> 14 | AY5: =AZ5+AY4 -> 0 | AZ5: 0 | BA5: =BB5+BA4 -> 0 | BB5: 0 | BC5: =BD5+BC4 -> 0 | BD5: 0 | BE5: =BF5+BE4 -> 0 | BF5: 0 | BG5: =BH5+BG4 -> 0 | BH5: 0 | BI5: =BJ5+BI4 -> 0 | BJ5: 0 | BK5: =BL5+BK4 -> 0 | BL5: 0 | BM5: =BN5+BM4 -> 0 | BN5: 0 | BO5: =BP5+BO4 -> 0 | BP5: =IF($E5="A2",1,0) -> 0 | BQ5: =BR5+BQ4 -> 0 | BR5: =IF($E5="A3",1,0) -> 0
A6: 3 | B6: =PROPER(LOOKUP(D6,Inscription!$A$4:$A$883,Inscription!$B$4:$B$883)) -> Kricfalusi | C6: =PROPER(LOOKUP(D6,Inscription!$A$4:$A$883,Inscription!$C$4:$C$883)) -> Michael | D6: 221 | E6: =LOOKUP(D7,Inscription!$A$4:$A$493,Inscription!$D$4:$D$493) -> H10 | H6: 42533.51128 | I6: 42533.47131 | J6: 00:45:22.190 | K6: 13.22556943 | W6: 10000 | AA6: 0 | AB6: 45 | AC6: 22 | AD6: 0 | AE6: 45 | AF6: 22 | AG6: 2722 | AH6: =((AG6/Inscription!$E$2)*1000) -> 272.2 | AI6: 0.07561111111 | AJ6: 4.536666667 | AK6: 272.2 | AL6: 4 | AM6: 32 | AY6: 0 | AZ6: 0 | BA6: 0 | BB6: 0 | BC6: 0 | BD6: 0 | BE6: 0 | BF6: 0 | BG6: 0 | BH6: 0 | BI6: 0 | BJ6: 0 | BK6: 0 | BL6: 0 | BM6: 0 | BN6: 0 | BO6: 0 | BP6: 0 | BQ6: 0 | BR6: 0
A7: 4 | B7: =PROPER(LOOKUP(D7,Inscription!$A$4:$A$883,Inscription!$B$4:$B$883)) -> Keydener | C7: =PROPER(LOOKUP(D7,Inscription!$A$4:$A$883,Inscription!$C$4:$C$883)) -> Christian | D7: 205 | E7: =LOOKUP(D8,Inscription!$A$4:$A$493,Inscription!$D$4:$D$493) -> D10 | H7: 42533.51128 | I7: 42533.47139 | J7: 00:45:29.320 | K7: 13.19164529 | W7: 10000 | AA7: 0 | AB7: 45 | AC7: 29 | AD7: 0 | AE7: 45 | AF7: 29 | AG7: 2729 | AH7: =((AG7/Inscription!$E$2)*1000) -> 272.9 | AI7: 0.07580555556 | AJ7: 4.548333333 | AK7: 272.9 | AL7: 4 | AM7: 32 | AY7: 0 | AZ7: 0 | BA7: 0 | BB7: 0 | BC7: 0 | BD7: 0 | BE7: 0 | BF7: 0 | BG7: 0 | BH7: 0 | BI7: 0 | BJ7: 0 | BK7: 0 | BL7: 0 | BM7: 0 | BN7: 0 | BO7: 0 | BP7: 0 | BQ7: 0 | BR7: 0
A8: 5 | B8: =PROPER(LOOKUP(D8,Inscription!$A$4:$A$883,Inscription!$B$4:$B$883)) -> Muller | C8: =PROPER(LOOKUP(D8,Inscription!$A$4:$A$883,Inscription!$C$4:$C$883)) -> Françoise | D8: 207 | E8: =LOOKUP(D9,Inscription!$A$4:$A$493,Inscription!$D$4:$D$493) -> H10 | H8: 42533.51128 | I8: 42533.47181 | J8: 00:46:05.410 | K8: 13.0198915 | W8: 10000 | AA8: 0 | AB8: 46 | AC8: 5 | AD8: 0 | AE8: 46 | AF8: 5 | AG8: 2765 | AH8: =((AG8/Inscription!$E$2)*1000) -> 276.5 | AI8: 0.07680555556 | AJ8: 4.608333333 | AK8: 276.5 | AL8: 4 | AM8: 36 | AY8: 0 | AZ8: 0 | BA8: 0 | BB8: 0 | BC8: 0 | BD8: 0 | BE8: 0 | BF8: 0 | BG8: 0 | BH8: 0 | BI8: 0 | BJ8: 0 | BK8: 0 | BL8: 0 | BM8: 0 | BN8: 0 | BO8: 0 | BP8: 0 | BQ8: 0 | BR8: 0
A9: 6 | B9: =PROPER(LOOKUP(D9,Inscription!$A$4:$A$883,Inscription!$B$4:$B$883)) -> Heusschen | C9: =PROPER(LOOKUP(D9,Inscription!$A$4:$A$883,Inscription!$C$4:$C$883)) -> Dominique | D9: 208 | E9: =LOOKUP(D10,Inscription!$A$4:$A$493,Inscription!$D$4:$D$493) -> H10 | H9: =NOW() -> 2016-06-12T12:16:14.590 | I9: 42533.47181 | J9: 00:46:06.100 | K9: 13.01518438 | W9: 10000 | AA9: 0 | AB9: 46 | AC9: 6 | AD9: 0 | AE9: 46 | AF9: 6 | AG9: 2766 | AH9: =((AG9/Inscription!$E$2)*1000) -> 276.6 | AI9: =(AH9/3600) -> 0.07683333333 | AJ9: 4.61 | AK9: 276.6 | AL9: 4 | AM9: 36 | AY9: 0 | AZ9: 0 | BA9: 0 | BB9: 0 | BC9: 0 | BD9: 0 | BE9: 0 | BF9: 0 | BG9: 0 | BH9: 0 | BI9: 0 | BJ9: 0 | BK9: 0 | BL9: 0 | BM9: 0 | BN9: 0 | BO9: 0 | BP9: 0 | BQ9: 0 | BR9: 0
A10: 7 | B10: =PROPER(LOOKUP(D10,Inscription!$A$4:$A$883,Inscription!$B$4:$B$883)) -> Josse | C10: =PROPER(LOOKUP(D10,Inscription!$A$4:$A$883,Inscription!$C$4:$C$883)) -> Noel | D10: 224 | E10: =LOOKUP(D11,Inscription!$A$4:$A$493,Inscription!$D$4:$D$493) -> D10 | H10: 42533.51128 | I10: 42533.47204 | J10: 00:46:25.320 | K10: 12.92639138 | W10: 10000 | AA10: =HOUR(J10) -> 0 | AB10: =MINUTE(J10) -> 46 | AC10: =SECOND(J10) -> 25 | AD10: =AA10 -> 0 | AE10: =AB10 -> 46 | AF10: =AC10 -> 25 | AG10: =((((AD10*60)+AE10)*60)+AF10) -> 2785 | AH10: =((AG10/Inscription!$E$2)*1000) -> 278.5 | AI10: 0.07736111111 | AJ10: 4.641666667 | AK10: 278.5 | AL10: 4 | AM10: 38 | AY10: 0 | AZ10: 0 | BA10: 0 | BB10: 0 | BC10: 0 | BD10: 0 | BE10: 0 | BF10: 0 | BG10: 0 | BH10: 0 | BI10: 0 | BJ10: 0 | BK10: 0 | BL10: 0 | BM10: 0 | BN10: 0 | BO10: 0 | BP10: 0 | BQ10: 0 | BR10: 0
A11: 8 | B11: =PROPER(LOOKUP(D11,Inscription!$A$4:$A$883,Inscription!$B$4:$B$883)) -> Leclercq | C11: =PROPER(LOOKUP(D11,Inscription!$A$4:$A$883,Inscription!$C$4:$C$883)) -> Sabrina | D11: 220 | E11: =LOOKUP(D12,Inscription!$A$4:$A$493,Inscription!$D$4:$D$493) -> H10 | H11: 42533.51128 | I11: 42533.47386 | J11: 00:49:02.770 | K11: 12.2324159 | W11: 10000 | AA11: 0 | AB11: 49 | AC11: 3 | AD11: 0 | AE11: 49 | AF11: 3 | AG11: 2943 | AH11: =((AG11/Inscription!$E$2)*1000) -> 294.3 | AI11: 0.08175 | AJ11: 4.905 | AK11: 294.3 | AL11: 4 | AM11: 54 | AY11: 0 | AZ11: 0 | BA11: 0 | BB11: 0 | BC11: 0 | BD11: 0 | BE11: 0 | BF11: 0 | BG11: 0 | BH11: 0 | BI11: 0 | BJ11: 0 | BK11: 0 | BL11: 0 | BM11: 0 | BN11: 0 | BO11: 0 | BP11: 0 | BQ11: 0 | BR11: 0
A12: 9 | B12: =PROPER(LOOKUP(D12,Inscription!$A$4:$A$883,Inscription!$B$4:$B$883)) -> Hoeters | C12: =PROPER(LOOKUP(D12,Inscription!$A$4:$A$883,Inscription!$C$4:$C$883)) -> Nicolas | D12: 235 | F12: =IF(E13="H8",AP12,IF(E13="D8",AR12,IF(E13="H4",AQ12,AS12))) ->  | J12: 00:49:20 | K12: 6.081081081 | L12: =IF(E13="H8",AN12,IF(E13="D8",AN12,"")) ->  | M12: =IF(E13="H4",AO12,IF(E13="D4",AO12,"")) ->  | W12: 5000 | AA12: 0 | AB12: 49 | AC12: 20 | AD12: 0 | AE12: 49 | AF12: 20 | AG12: 2960 | AH12: =((AG12/Inscription!$E$2)*1000) -> 296 | AI12: 0.08222222222 | AJ12: 4.933333333 | AK12: 296 | AL12: 4 | AM12: 56 | AN12: =IF(E13="H8",BK12,IF(E13="D8",BK12,"")) ->  | AO12: =IF(E13="H4",BM12,IF(E13="D4",BM12,"")) ->  | AP12: =IF($E13="H8",$BA12,"") ->  | AQ12: =IF($E13="H4",$BC12,"") ->  | AR12: =IF($E13="D8",$BE12,"") ->  | AS12: =IF($E13="D4",$BG12,"") ->  | AT12: =IF($E13="Ef",$BI12,"") ->  | AU12: =IF($E13="D",$BK12,"") ->  | AV12: =IF($E13="A1",$BM12,"") ->  | AW12: =IF($E13="A2",$BO12,"") ->  | AX12: =IF($E13="A3",$BQ12,"") ->  | AY12: 0 | AZ12: =IF(E13="Eg",1,0) -> 0 | BA12: 0 | BB12: =IF($E13="H8",1,0) -> 0 | BC12: 0 | BD12: =IF($E13="H4",1,0) -> 0 | BE12: 0 | BF12: =IF($E13="D8",1,0) -> 0 | BG12: 0 | BH12: =IF($E13="D4",1,0) -> 0 | BI12: 0 | BJ12: =IF($E13="Ef",1,0) -> 0 | BK12: 0 | BL12: =IF($E13="D8",1,IF(E13="H8",1,0)) -> 0 | BM12: 0 | BN12: =IF($E13="D4",1,IF(E13="H4",1,0)) -> 0 | BO12: 0 | BP12: =IF($E13="A2",1,0) -> 0 | BQ12: 0 | BR12: =IF($E13="A3",1,0) -> 0
A13: 10 | B13: =PROPER(LOOKUP(D13,Inscription!$A$4:$A$883,Inscription!$B$4:$B$883)) -> Bruwer | C13: =PROPER(LOOKUP(D13,Inscription!$A$4:$A$883,Inscription!$C$4:$C$883)) -> Françoise | D13: 228 | E13: =LOOKUP(D14,Inscription!$A$4:$A$493,Inscription!$D$4:$D$493) -> H10 | F13: =IF(E15="H8",AP13,IF(E15="D8",AR13,IF(E15="H4",AQ13,AS13))) ->  | H13: 42533.51128 | I13: 42533.47438 | J13: 00:49:47.760 | K13: 12.04819277 | L13: =IF(E15="H8",AN13,IF(E15="D8",AN13,"")) ->  | M13: =IF(E15="H4",AO13,IF(E15="D4",AO13,"")) ->  | W13: 10000 | AA13: 0 | AB13: 49 | AC13: 48 | AD13: 0 | AE13: 49 | AF13: 48 | AG13: 2988 | AH13: =((AG13/Inscription!$E$2)*1000) -> 298.8 | AI13: 0.083 | AJ13: 4.98 | AK13: 298.8 | AL13: 4 | AM13: 58 | AN13: =IF(E15="H8",BK13,IF(E15="D8",BK13,"")) ->  | AO13: =IF(E15="H4",BM13,IF(E15="D4",BM13,"")) ->  | AP13: =IF($E15="H8",$BA13,"") ->  | AQ13: =IF($E15="H4",$BC13,"") ->  | AR13: =IF($E15="D8",$BE13,"") ->  | AS13: =IF($E15="D4",$BG13,"") ->  | AT13: =IF($E15="Ef",$BI13,"") ->  | AU13: =IF($E15="D",$BK13,"") ->  | AV13: =IF($E15="A1",$BM13,"") ->  | AW13: =IF($E15="A2",$BO13,"") ->  | AX13: =IF($E15="A3",$BQ13,"") ->  | AY13: =AZ13+#REF! ->  | AZ13: =IF(E15="Eg",1,0) -> 0 | BA13: =BB13+#REF! ->  | BB13: =IF($E15="H8",1,0) -> 0 | BC13: =BD13+#REF! ->  | BD13: =IF($E15="H4",1,0) -> 0 | BE13: =BF13+#REF! ->  | BF13: =IF($E15="D8",1,0) -> 0 | BG13: =BH13+#REF! ->  | BH13: =IF($E15="D4",1,0) -> 0 | BI13: =BJ13+#REF! ->  | BJ13: =IF($E15="Ef",1,0) -> 0 | BK13: =BL13+#REF! ->  | BL13: =IF($E15="D8",1,IF(E15="H8",1,0)) -> 0 | BM13: =BN13+#REF! ->  | BN13: =IF($E15="D4",1,IF(E15="H4",1,0)) -> 0 | BO13: =BP13+#REF! ->  | BP13: =IF($E15="A2",1,0) -> 0 | BQ13: =BR13+#REF! ->  | BR13: =IF($E15="A3",1,0) -> 0
A14: 11 | B14: =PROPER(LOOKUP(D14,Inscription!$A$4:$A$883,Inscription!$B$4:$B$883)) -> Donne | C14: =PROPER(LOOKUP(D14,Inscription!$A$4:$A$883,Inscription!$C$4:$C$883)) -> Kevin | D14: 216 | E14: =LOOKUP(D15,Inscription!$A$4:$A$493,Inscription!$D$4:$D$493) -> D10 | H14: 42533.51128 | I14: 42533.4755 | J14: 00:51:24.170 | K14: 11.67315175 | W14: 10000 | AA14: 0 | AB14: 51 | AC14: 24 | AD14: 0 | AE14: 51 | AF14: 24 | AG14: 3084 | AH14: =((AG14/Inscription!$E$2)*1000) -> 308.4 | AI14: 0.08566666667 | AJ14: 5.14 | AK14: 308.4 | AL14: 5 | AM14: 8 | AZ14: 0 | BB14: 0 | BD14: 0 | BF14: 0 | BH14: 0 | BJ14: 0 | BL14: 0 | BN14: 0 | BP14: 0 | BR14: 0
A15: 12 | B15: =PROPER(LOOKUP(D15,Inscription!$A$4:$A$883,Inscription!$B$4:$B$883)) -> Demonceau | C15: =PROPER(LOOKUP(D15,Inscription!$A$4:$A$883,Inscription!$C$4:$C$883)) -> Isabelle | D15: 231 | E15: =LOOKUP(D16,Inscription!$A$4:$A$493,Inscription!$D$4:$D$493) -> H10 | H15: 42533.51128 | I15: 42533.47574 | J15: 00:51:45.500 | K15: 11.59047006 | W15: 10000 | AA15: 0 | AB15: 51 | AC15: 46 | AD15: 0 | AE15: 51 | AF15: 46 | AG15: 3106 | AH15: =((AG15/Inscription!$E$2)*1000) -> 310.6 | AI15: 0.08627777778 | AJ15: 5.176666667 | AK15: 310.6 | AL15: =ROUNDDOWN(AJ15,0) -> 5 | AM15: 10 | AZ15: 0 | BB15: 0 | BD15: 0 | BF15: 0 | BH15: 0 | BJ15: 0 | BL15: 0 | BN15: 0 | BP15: 0 | BR15: 0
A16: 13 | B16: =PROPER(LOOKUP(D16,Inscription!$A$4:$A$883,Inscription!$B$4:$B$883)) -> Colle | C16: =PROPER(LOOKUP(D16,Inscription!$A$4:$A$883,Inscription!$C$4:$C$883)) -> Jean-François | D16: 200 | E16: =LOOKUP(D17,Inscription!$A$4:$A$493,Inscription!$D$4:$D$493) -> D10 | H16: 42533.51128 | I16: 42533.47795 | J16: 00:54:56.380 | K16: 10.9223301 | W16: 10000 | AA16: 0 | AB16: 54 | AC16: 56 | AD16: 0 | AE16: 54 | AF16: 56 | AG16: 3296 | AH16: =((AG16/Inscription!$E$2)*1000) -> 329.6 | AI16: 0.09155555556 | AJ16: 5.493333333 | AK16: 329.6 | AL16: 5 | AM16: =ROUNDDOWN(AK16-(AL16*60),0) -> 29 | AZ16: 0 | BB16: 0 | BD16: 0 | BF16: 0 | BH16: 0 | BJ16: 0 | BL16: 0 | BN16: 0 | BP16: 0 | BR16: 0
A17: 14 | B17: =PROPER(LOOKUP(D17,Inscription!$A$4:$A$883,Inscription!$B$4:$B$883)) -> Vanoirbeck | C17: =PROPER(LOOKUP(D17,Inscription!$A$4:$A$883,Inscription!$C$4:$C$883)) -> Dominique | D17: 236 | E17: =LOOKUP(D18,Inscription!$A$4:$A$493,Inscription!$D$4:$D$493) -> H10 | H17: 42533.51128 | I17: 42533.47946 | J17: 00:57:06.390 | K17: 10.50788091 | W17: 10000 | AA17: 0 | AB17: 57 | AC17: 6 | AD17: 0 | AE17: 57 | AF17: 6 | AG17: 3426 | AH17: =((AG17/Inscription!$E$2)*1000) -> 342.6 | AI17: 0.09516666667 | AJ17: 5.71 | AK17: 342.6 | AL17: 5 | AM17: 42 | AZ17: 0 | BB17: 0 | BD17: 0 | BF17: 0 | BH17: 0 | BJ17: 0 | BL17: 0 | BN17: 0 | BP17: 0 | BR17: 0
A18: 15 | B18: =PROPER(LOOKUP(D18,Inscription!$A$4:$A$883,Inscription!$B$4:$B$883)) -> Servam | C18: =PROPER(LOOKUP(D18,Inscription!$A$4:$A$883,Inscription!$C$4:$C$883)) -> Pascal | D18: 222 | E18: =LOOKUP(D19,Inscription!$A$4:$A$493,Inscription!$D$4:$D$493) -> H10 | H18: 42533.51128 | I18: 42533.48019 | J18: 00:58:10.020 | K18: 10.31518625 | W18: 10000 | AA18: 0 | AB18: 58 | AC18: 10 | AD18: 0 | AE18: 58 | AF18: 10 | AG18: 3490 | AH18: =((AG18/Inscription!$E$2)*1000) -> 349 | AI18: 0.09694444444 | AJ18: 5.816666667 | AK18: 349 | AL18: 5 | AM18: 49 | AZ18: 0 | BB18: 0 | BD18: 0 | BF18: 0 | BH18: 0 | BJ18: 0 | BL18: 0 | BN18: 0 | BP18: 0 | BR18: 0
A19: 16 | B19: =PROPER(LOOKUP(D19,Inscription!$A$4:$A$883,Inscription!$B$4:$B$883)) -> Gillon | C19: =PROPER(LOOKUP(D19,Inscription!$A$4:$A$883,Inscription!$C$4:$C$883)) -> Patrick | D19: 217 | E19: =LOOKUP(D20,Inscription!$A$4:$A$493,Inscription!$D$4:$D$493) -> D10 | H19: 42533.51128 | I19: 42533.48071 | J19: 00:58:54.980 | K19: 10.18387553 | W19: 10000 | AA19: 0 | AB19: 58 | AC19: 55 | AD19: 0 | AE19: 58 | AF19: 55 | AG19: 3535 | AH19: =((AG19/Inscription!$E$2)*1000) -> 353.5 | AI19: 0.09819444444 | AJ19: 5.891666667 | AK19: 353.5 | AL19: 5 | AM19: 53 | AZ19: 0 | BB19: 0 | BD19: 0 | BF19: 0 | BH19: 0 | BJ19: 0 | BL19: 0 | BN19: 0 | BP19: 0 | BR19: 0
A20: 17 | B20: =PROPER(LOOKUP(D20,Inscription!$A$4:$A$883,Inscription!$B$4:$B$883)) -> Sabel | C20: =PROPER(LOOKUP(D20,Inscription!$A$4:$A$883,Inscription!$C$4:$C$883)) -> Ingrid | D20: 223 | E20: =LOOKUP(D21,Inscription!$A$4:$A$493,Inscription!$D$4:$D$493) -> H10 | H20: 42533.51128 | I20: 42533.48288 | J20: 01:02:02.490 | K20: 9.672219237 | W20: 10000 | AA20: 1 | AB20: 2 | AC20: 2 | AD20: 1 | AE20: 2 | AF20: 2 | AG20: 3722 | AH20: =((AG20/Inscription!$E$2)*1000) -> 372.2 | AI20: =(AH20/3600) -> 0.1033888889 | AJ20: =AH20/60 -> 6.203333333 | AK20: =AH20 -> 372.2 | AL20: 6 | AM20: 12 | AZ20: 0 | BB20: 0 | BD20: 0 | BF20: 0 | BH20: 0 | BJ20: 0 | BL20: 0 | BN20: 0 | BP20: 0 | BR20: 0
A21: 18 | B21: =PROPER(LOOKUP(D21,Inscription!$A$4:$A$883,Inscription!$B$4:$B$883)) -> Lesoinne | C21: =PROPER(LOOKUP(D21,Inscription!$A$4:$A$883,Inscription!$C$4:$C$883)) -> Philippe | D21: 225 | E21: =LOOKUP(D22,Inscription!$A$4:$A$493,Inscription!$D$4:$D$493) -> D10 | H21: 42533.51128 | I21: 42533.48322 | J21: 01:02:31.430 | K21: 9.597440682 | W21: 10000 | AA21: =HOUR(J21) -> 1 | AB21: =MINUTE(J21) -> 2 | AC21: =SECOND(J21) -> 31 | AD21: =AA21 -> 1 | AE21: =AB21 -> 2 | AF21: =AC21 -> 31 | AG21: =((((AD21*60)+AE21)*60)+AF21) -> 3751 | AH21: =((AG21/Inscription!$E$2)*1000) -> 375.1 | AI21: 0.1041944444 | AJ21: 6.251666667 | AK21: 375.1 | AL21: 6 | AM21: 15 | AZ21: 0 | BB21: 0 | BD21: 0 | BF21: 0 | BH21: 0 | BJ21: 0 | BL21: 0 | BN21: 0 | BP21: 0 | BR21: 0
A22: 19 | B22: =PROPER(LOOKUP(D22,Inscription!$A$4:$A$883,Inscription!$B$4:$B$883)) -> Bonhomme | C22: =PROPER(LOOKUP(D22,Inscription!$A$4:$A$883,Inscription!$C$4:$C$883)) -> Evelyne | D22: 212 | E22: =LOOKUP(D23,Inscription!$A$4:$A$493,Inscription!$D$4:$D$493) -> D10 | H22: 42533.51128 | I22: 42533.48338 | J22: 01:02:45.220 | K22: 9.561752988 | W22: 10000 | AA22: 1 | AB22: 2 | AC22: 45 | AD22: 1 | AE22: 2 | AF22: 45 | AG22: 3765 | AH22: =((AG22/Inscription!$E$2)*1000) -> 376.5 | AI22: 0.1045833333 | AJ22: 6.275 | AK22: 376.5 | AL22: 6 | AM22: 16 | AZ22: 0 | BB22: 0 | BD22: 0 | BF22: 0 | BH22: 0 | BJ22: 0 | BL22: 0 | BN22: 0 | BP22: 0 | BR22: 0
A23: 20 | B23: =PROPER(LOOKUP(D23,Inscription!$A$4:$A$883,Inscription!$B$4:$B$883)) -> Pregardien | C23: =PROPER(LOOKUP(D23,Inscription!$A$4:$A$883,Inscription!$C$4:$C$883)) -> Aline | D23: 203 | E23: =LOOKUP(D24,Inscription!$A$4:$A$493,Inscription!$D$4:$D$493) -> H10 | H23: 42533.51128 | I23: 42533.48344 | J23: 01:02:50.150 | K23: 9.549071618 | W23: 10000 | AA23: 1 | AB23: 2 | AC23: 50 | AD23: 1 | AE23: 2 | AF23: 50 | AG23: 3770 | AH23: =((AG23/Inscription!$E$2)*1000) -> 377 | AI23: 0.1047222222 | AJ23: 6.283333333 | AK23: 377 | AL23: 6 | AM23: 17 | AZ23: 0 | BB23: 0 | BD23: 0 | BF23: 0 | BH23: 0 | BJ23: 0 | BL23: 0 | BN23: 0 | BP23: 0 | BR23: 0
A24: 21 | B24: =PROPER(LOOKUP(D24,Inscription!$A$4:$A$883,Inscription!$B$4:$B$883)) -> Stas | C24: =PROPER(LOOKUP(D24,Inscription!$A$4:$A$883,Inscription!$C$4:$C$883)) -> Luc | D24: 202 | E24: =LOOKUP(D25,Inscription!$A$4:$A$493,Inscription!$D$4:$D$493) -> H10 | H24: 42533.51128 | I24: 42533.4839 | J24: 01:03:30.240 | K24: 9.448818898 | W24: 10000 | AA24: 1 | AB24: 3 | AC24: 30 | AD24: 1 | AE24: 3 | AF24: 30 | AG24: 3810 | AH24: =((AG24/Inscription!$E$2)*1000) -> 381 | AI24: 0.1058333333 | AJ24: 6.35 | AK24: 381 | AL24: 6 | AM24: 21 | AZ24: 0 | BB24: 0 | BD24: 0 | BF24: 0 | BH24: 0 | BJ24: 0 | BL24: 0 | BN24: 0 | BP24: 0 | BR24: 0
A25: 22 | B25: =PROPER(LOOKUP(D25,Inscription!$A$4:$A$883,Inscription!$B$4:$B$883)) -> Presardien | C25: =PROPER(LOOKUP(D25,Inscription!$A$4:$A$883,Inscription!$C$4:$C$883)) -> Christian | D25: 229 | E25: =LOOKUP(D26,Inscription!$A$4:$A$493,Inscription!$D$4:$D$493) -> D10 | H25: 42533.51128 | I25: 42533.48391 | J25: 01:03:30.760 | K25: 9.446339543 | W25: 10000 | AA25: 1 | AB25: 3 | AC25: 31 | AD25: 1 | AE25: 3 | AF25: 31 | AG25: 3811 | AH25: =((AG25/Inscription!$E$2)*1000) -> 381.1 | AI25: 0.1058611111 | AJ25: 6.351666667 | AK25: 381.1 | AL25: 6 | AM25: 21 | AZ25: 0 | BB25: 0 | BD25: 0 | BF25: 0 | BH25: 0 | BJ25: 0 | BL25: 0 | BN25: 0 | BP25: 0 | BR25: 0
A26: 23 | B26: =PROPER(LOOKUP(D26,Inscription!$A$4:$A$883,Inscription!$B$4:$B$883)) -> Bertrand | C26: =PROPER(LOOKUP(D26,Inscription!$A$4:$A$883,Inscription!$C$4:$C$883)) -> Sylvia | D26: 210 | E26: =LOOKUP(D27,Inscription!$A$4:$A$493,Inscription!$D$4:$D$493) -> D10 | F26: =IF(#REF!="H8",AP26,IF(#REF!="D8",AR26,IF(#REF!="H4",AQ26,AS26))) ->  | H26: 42533.51128 | I26: 42533.48534 | J26: 01:05:35.140 | K26: 9.14866582 | L26: =IF(#REF!="H8",AN26,IF(#REF!="D8",AN26,"")) ->  | M26: =IF(#REF!="H4",AO26,IF(#REF!="D4",AO26,"")) ->  | W26: 10000 | AA26: 1 | AB26: 5 | AC26: 35 | AD26: 1 | AE26: 5 | AF26: 35 | AG26: 3935 | AH26: =((AG26/Inscription!$E$2)*1000) -> 393.5 | AI26: 0.1093055556 | AJ26: 6.558333333 | AK26: 393.5 | AL26: 6 | AM26: 33 | AN26: =IF(#REF!="H8",BK26,IF(#REF!="D8",BK26,"")) ->  | AO26: =IF(#REF!="H4",BM26,IF(#REF!="D4",BM26,"")) ->  | AP26: =IF(#REF!="H8",$BA26,"") ->  | AQ26: =IF(#REF!="H4",$BC26,"") ->  | AR26: =IF(#REF!="D8",$BE26,"") ->  | AS26: =IF(#REF!="D4",$BG26,"") ->  | AT26: =IF(#REF!="Ef",$BI26,"") ->  | AU26: =IF(#REF!="D",$BK26,"") ->  | AV26: =IF(#REF!="A1",$BM26,"") ->  | AW26: =IF(#REF!="A2",$BO26,"") ->  | AX26: =IF(#REF!="A3",$BQ26,"") ->  | AZ26: =IF(#REF!="Eg",1,0) ->  | BB26: =IF(#REF!="H8",1,0) ->  | BD26: =IF(#REF!="H4",1,0) ->  | BF26: =IF(#REF!="D8",1,0) ->  | BH26: =IF(#REF!="D4",1,0) ->  | BJ26: =IF(#REF!="Ef",1,0) ->  | BL26: =IF(#REF!="D8",1,IF(#REF!="H8",1,0)) ->  | BN26: =IF(#REF!="D4",1,IF(#REF!="H4",1,0)) ->  | BP26: =IF(#REF!="A2",1,0) ->  | BR26: =IF(#REF!="A3",1,0) -> 
A27: 24 | B27: =PROPER(LOOKUP(D27,Inscription!$A$4:$A$883,Inscription!$B$4:$B$883)) -> Somja | C27: =PROPER(LOOKUP(D27,Inscription!$A$4:$A$883,Inscription!$C$4:$C$883)) -> Bénédicte | D27: 211 | E27: =LOOKUP(D28,Inscription!$A$4:$A$493,Inscription!$D$4:$D$493) -> H10 | F27: =IF(#REF!="H8",AP27,IF(#REF!="D8",AR27,IF(#REF!="H4",AQ27,AS27))) ->  | H27: 42533.51128 | I27: 42533.48535 | J27: 01:05:35.900 | K27: 9.146341463 | L27: =IF(#REF!="H8",AN27,IF(#REF!="D8",AN27,"")) ->  | M27: =IF(#REF!="H4",AO27,IF(#REF!="D4",AO27,"")) ->  | W27: 10000 | AA27: 1 | AB27: 5 | AC27: 36 | AD27: 1 | AE27: 5 | AF27: 36 | AG27: 3936 | AH27: =((AG27/Inscription!$E$2)*1000) -> 393.6 | AI27: 0.1093333333 | AJ27: 6.56 | AK27: 393.6 | AL27: 6 | AM27: 33 | AN27: =IF(#REF!="H8",BK27,IF(#REF!="D8",BK27,"")) ->  | AO27: =IF(#REF!="H4",BM27,IF(#REF!="D4",BM27,"")) ->  | AP27: =IF(#REF!="H8",$BA27,"") ->  | AQ27: =IF(#REF!="H4",$BC27,"") ->  | AR27: =IF(#REF!="D8",$BE27,"") ->  | AS27: =IF(#REF!="D4",$BG27,"") ->  | AT27: =IF(#REF!="Ef",$BI27,"") ->  | AU27: =IF(#REF!="D",$BK27,"") ->  | AV27: =IF(#REF!="A1",$BM27,"") ->  | AW27: =IF(#REF!="A2",$BO27,"") ->  | AX27: =IF(#REF!="A3",$BQ27,"") ->  | AZ27: =IF(#REF!="Eg",1,0) ->  | BB27: =IF(#REF!="H8",1,0) ->  | BD27: =IF(#REF!="H4",1,0) ->  | BF27: =IF(#REF!="D8",1,0) ->  | BH27: =IF(#REF!="D4",1,0) ->  | BJ27: =IF(#REF!="Ef",1,0) ->  | BL27: =IF(#REF!="D8",1,IF(#REF!="H8",1,0)) ->  | BN27: =IF(#REF!="D4",1,IF(#REF!="H4",1,0)) ->  | BP27: =IF(#REF!="A2",1,0) ->  | BR27: =IF(#REF!="A3",1,0) -> 
A28: 25 | B28: =PROPER(LOOKUP(D28,Inscription!$A$4:$A$883,Inscription!$B$4:$B$883)) -> Bourdouxhe-Nelissen | C28: =PROPER(LOOKUP(D28,Inscription!$A$4:$A$883,Inscription!$C$4:$C$883)) -> Xavier | D28: 204 | E28: =LOOKUP(D32,Inscription!$A$4:$A$493,Inscription!$D$4:$D$493) -> D10 | H28: 42533.51128 | I28: 42533.48774 | J28: 01:09:41 | K28: 8.610380292 | W28: 10000 | AA28: =HOUR(J30) -> 1 | AB28: =MINUTE(J30) -> 9 | AC28: =SECOND(J30) -> 41 | AD28: 1 | AE28: 9 | AF28: 41 | AG28: 4181 | AH28: =((AG28/Inscription!$E$2)*1000) -> 418.1 | AI28: 0.1161388889 | AJ28: 6.968333333 | AK28: 418.1 | AL28: 6 | AM28: 58 | AY28: =AZ28+#REF! ->  | AZ28: 0 | BA28: =BB28+#REF! ->  | BB28: 0 | BC28: =BD28+#REF! ->  | BD28: 0 | BE28: =BF28+#REF! ->  | BF28: 0 | BG28: =BH28+#REF! ->  | BH28: 0 | BI28: =BJ28+#REF! ->  | BJ28: 0 | BK28: =BL28+#REF! ->  | BL28: 0 | BM28: =BN28+#REF! ->  | BN28: 0 | BO28: =BP28+#REF! ->  | BP28: 0 | BQ28: =BR28+#REF! ->  | BR28: 0
A29: 26 | B29: =PROPER(LOOKUP(D29,Inscription!$A$4:$A$883,Inscription!$B$4:$B$883)) -> Gomboso | C29: =PROPER(LOOKUP(D29,Inscription!$A$4:$A$883,Inscription!$C$4:$C$883)) -> Michael | D29: 214 | E29: =LOOKUP(D33,Inscription!$A$4:$A$493,Inscription!$D$4:$D$493) -> D10 | H29: 42533.51128 | I29: 42533.48834 | J29: 01:09:41 | K29: 8.399440037 | W29: 10000 | AA29: =HOUR(J31) -> 1 | AB29: =MINUTE(J31) -> 11 | AC29: =SECOND(J31) -> 26 | AD29: 1 | AE29: 11 | AF29: 26 | AG29: 4286 | AH29: =((AG29/Inscription!$E$2)*1000) -> 428.6 | AI29: =(AH29/3600) -> 0.1190555556 | AJ29: 7.143333333 | AK29: 428.6 | AL29: 7 | AM29: 8
A30: 27 | B30: =PROPER(LOOKUP(D30,Inscription!$A$4:$A$883,Inscription!$B$4:$B$883)) -> Salerno | C30: =PROPER(LOOKUP(D30,Inscription!$A$4:$A$883,Inscription!$C$4:$C$883)) -> Michael | D30: 215 | E30: =LOOKUP(D34,Inscription!$A$4:$A$493,Inscription!$D$4:$D$493) -> D10 | H30: 42533.51128 | I30: 42533.48835 | J30: 01:09:41 | K30: 8.348794063 | W30: 10000 | AA30: =HOUR(J32) -> 1 | AB30: =MINUTE(J32) -> 11 | AC30: =SECOND(J32) -> 52 | AD30: 1 | AE30: 11 | AF30: 52 | AG30: 4312 | AH30: =((AG30/Inscription!$E$2)*1000) -> 431.2 | AI30: 0.1197777778 | AJ30: 7.186666667 | AK30: 431.2 | AL30: 7 | AM30: 11
A31: 28 | B31: =PROPER(LOOKUP(D31,Inscription!$A$4:$A$883,Inscription!$B$4:$B$883)) -> Schyns | C31: =PROPER(LOOKUP(D31,Inscription!$A$4:$A$883,Inscription!$C$4:$C$883)) -> Fanny | D31: 233 | E31: =LOOKUP(#REF!,Inscription!$A$4:$A$493,Inscription!$D$4:$D$493) ->  | F31: =IF(#REF!="H8",AP31,IF(#REF!="D8",AR31,IF(#REF!="H4",AQ31,AS31))) ->  | H31: 42533.51128 | I31: 42533.48794 | J31: 01:11:26 | L31: =IF(#REF!="H8",AN31,IF(#REF!="D8",AN31,"")) ->  | M31: =IF(#REF!="H4",AO31,IF(#REF!="D4",AO31,"")) ->  | AA31: =HOUR(#REF!) ->  | AB31: =MINUTE(#REF!) ->  | AC31: =SECOND(#REF!) ->  | AH31: =((AG31/Inscription!$E$2)*1000) ->  | AN31: =IF(#REF!="H8",BK31,IF(#REF!="D8",BK31,"")) ->  | AO31: =IF(#REF!="H4",BM31,IF(#REF!="D4",BM31,"")) ->  | AP31: =IF(#REF!="H8",$BA31,"") ->  | AQ31: =IF(#REF!="H4",$BC31,"") ->  | AR31: =IF(#REF!="D8",$BE31,"") ->  | AS31: =IF(#REF!="D4",$BG31,"") ->  | AT31: =IF(#REF!="Ef",$BI31,"") ->  | AU31: =IF(#REF!="D",$BK31,"") ->  | AV31: =IF(#REF!="A1",$BM31,"") ->  | AW31: =IF(#REF!="A2",$BO31,"") ->  | AX31: =IF(#REF!="A3",$BQ31,"") ->  | AZ31: =IF(#REF!="Eg",1,0) ->  | BB31: =IF(#REF!="H8",1,0) ->  | BD31: =IF(#REF!="H4",1,0) ->  | BF31: =IF(#REF!="D8",1,0) ->  | BH31: =IF(#REF!="D4",1,0) ->  | BJ31: =IF(#REF!="Ef",1,0) ->  | BL31: =IF(#REF!="D8",1,IF(#REF!="H8",1,0)) ->  | BN31: =IF(#REF!="D4",1,IF(#REF!="H4",1,0)) ->  | BP31: =IF(#REF!="A2",1,0) ->  | BR31: =IF(#REF!="A3",1,0) -> 
A32: 29 | B32: =PROPER(LOOKUP(D32,Inscription!$A$4:$A$883,Inscription!$B$4:$B$883)) -> Nossent | C32: =PROPER(LOOKUP(D32,Inscription!$A$4:$A$883,Inscription!$C$4:$C$883)) -> Françoise | D32: 227 | E32: =LOOKUP(#REF!,Inscription!$A$4:$A$493,Inscription!$D$4:$D$493) ->  | F32: =IF(#REF!="H8",AP32,IF(#REF!="D8",AR32,IF(#REF!="H4",AQ32,AS32))) ->  | H32: 42533.51128 | I32: 42533.48796 | J32: 01:11:52 | L32: =IF(#REF!="H8",AN32,IF(#REF!="D8",AN32,"")) ->  | M32: =IF(#REF!="H4",AO32,IF(#REF!="D4",AO32,"")) ->  | AA32: =HOUR(#REF!) ->  | AB32: =MINUTE(#REF!) ->  | AC32: =SECOND(#REF!) ->  | AH32: =((AG32/Inscription!$E$2)*1000) ->  | AN32: =IF(#REF!="H8",BK32,IF(#REF!="D8",BK32,"")) ->  | AO32: =IF(#REF!="H4",BM32,IF(#REF!="D4",BM32,"")) ->  | AP32: =IF(#REF!="H8",$BA32,"") ->  | AQ32: =IF(#REF!="H4",$BC32,"") ->  | AR32: =IF(#REF!="D8",$BE32,"") ->  | AS32: =IF(#REF!="D4",$BG32,"") ->  | AT32: =IF(#REF!="Ef",$BI32,"") ->  | AU32: =IF(#REF!="D",$BK32,"") ->  | AV32: =IF(#REF!="A1",$BM32,"") ->  | AW32: =IF(#REF!="A2",$BO32,"") ->  | AX32: =IF(#REF!="A3",$BQ32,"") ->  | AZ32: =IF(#REF!="Eg",1,0) ->  | BB32: =IF(#REF!="H8",1,0) ->  | BD32: =IF(#REF!="H4",1,0) ->  | BF32: =IF(#REF!="D8",1,0) ->  | BH32: =IF(#REF!="D4",1,0) ->  | BJ32: =IF(#REF!="Ef",1,0) ->  | BL32: =IF(#REF!="D8",1,IF(#REF!="H8",1,0)) ->  | BN32: =IF(#REF!="D4",1,IF(#REF!="H4",1,0)) ->  | BP32: =IF(#REF!="A2",1,0) ->  | BR32: =IF(#REF!="A3",1,0) -> 
A33: 30 | B33: =PROPER(LOOKUP(D33,Inscription!$A$4:$A$883,Inscription!$B$4:$B$883)) -> Fawe | C33: =PROPER(LOOKUP(D33,Inscription!$A$4:$A$883,Inscription!$C$4:$C$883)) -> Jocelyne | D33: 226 | E33: =LOOKUP(#REF!,Inscription!$A$4:$A$493,Inscription!$D$4:$D$493) ->  | F33: =IF(E33="H8",AP33,IF(E33="D8",AR33,IF(E33="H4",AQ33,AS33))) ->  | H33: 42533.51128 | I33: 41966.48399 | J33: 01:13:01 | AA33: 1 | AB33: 13 | AC33: 1 | AD33: 1 | AE33: 13 | AF33: 1 | AG33: 4381 | AH33: =((AG33/Inscription!$E$2)*1000) -> 438.1 | AI33: 0.1216944444 | AJ33: 7.301666667 | AK33: 438.1 | AL33: 7 | AM33: 18
A34: 31 | B34: =PROPER(LOOKUP(D34,Inscription!$A$4:$A$883,Inscription!$B$4:$B$883)) -> Deprez | C34: =PROPER(LOOKUP(D34,Inscription!$A$4:$A$883,Inscription!$C$4:$C$883)) -> Françoise | D34: 232 | E34: =LOOKUP(#REF!,Inscription!$A$4:$A$493,Inscription!$D$4:$D$493) ->  | H34: 42533.51128 | I34: 41966.48446 | J34: 01:16:04 | AA34: 1 | AB34: 16 | AC34: 4 | AD34: 1 | AE34: 16 | AF34: 4 | AG34: 4564 | AH34: =((AG34/Inscription!$E$2)*1000) -> 456.4 | AI34: 0.1267777778 | AJ34: 7.606666667 | AK34: 456.4 | AL34: 7 | AM34: 36
A35: 36 | B35: =PROPER(LOOKUP(D35,Inscription!$A$4:$A$883,Inscription!$B$4:$B$883)) ->  | C35: =PROPER(LOOKUP(D35,Inscription!$A$4:$A$883,Inscription!$C$4:$C$883)) ->  | E35: =LOOKUP(D35,Inscription!$A$4:$A$493,Inscription!$D$4:$D$493) ->  | H35: 42533.51128 | I35: 41966.48677 | K35: =W35/AG35*3.6 ->  | AA35: 0 | AB35: 0 | AC35: 0 | AD35: 0 | AE35: 0 | AF35: 0 | AG35: 0 | AH35: =((AG35/Inscription!$E$2)*1000) -> 0 | AI35: 0 | AJ35: 0 | AK35: 0 | AL35: 0 | AM35: 0
A36: 37 | B36: =PROPER(LOOKUP(D36,Inscription!$A$4:$A$883,Inscription!$B$4:$B$883)) ->  | C36: =PROPER(LOOKUP(D36,Inscription!$A$4:$A$883,Inscription!$C$4:$C$883)) ->  | E36: =LOOKUP(D36,Inscription!$A$4:$A$493,Inscription!$D$4:$D$493) ->  | H36: 42533.51128 | I36: 41966.49004 | AH36: =((AG36/Inscription!$E$2)*1000) -> 
A37: 38 | B37: =PROPER(LOOKUP(D37,Inscription!$A$4:$A$883,Inscription!$B$4:$B$883)) ->  | C37: =PROPER(LOOKUP(D37,Inscription!$A$4:$A$883,Inscription!$C$4:$C$883)) ->  | E37: =LOOKUP(D37,Inscription!$A$4:$A$493,Inscription!$D$4:$D$493) ->  | H37: 42533.51128 | I37: 41966.49047 | AH37: =((AG37/Inscription!$E$2)*1000) -> 
A38: 39 | B38: =PROPER(LOOKUP(D38,Inscription!$A$4:$A$883,Inscription!$B$4:$B$883)) ->  | C38: =PROPER(LOOKUP(D38,Inscription!$A$4:$A$883,Inscription!$C$4:$C$883)) ->  | E38: =LOOKUP(D38,Inscription!$A$4:$A$493,Inscription!$D$4:$D$493) ->  | H38: 42533.51128 | I38: 41966.49282 | AH38: =((AG38/Inscription!$E$2)*1000) -> 
A39: 40 | B39: =PROPER(LOOKUP(D39,Inscription!$A$4:$A$883,Inscription!$B$4:$B$883)) ->  | C39: =PROPER(LOOKUP(D39,Inscription!$A$4:$A$883,Inscription!$C$4:$C$883)) ->  | E39: =LOOKUP(D39,Inscription!$A$4:$A$493,Inscription!$D$4:$D$493) ->  | F39: =IF(E39="H8",AP39,IF(E39="D8",AR39,IF(E39="H4",AQ39,AS39))) ->  | H39: 42533.51128 | I39: 41803.86186 | AH39: =((AG39/Inscription!$E$2)*1000) -> 
A40: 41 | B40: =PROPER(LOOKUP(D40,Inscription!$A$4:$A$883,Inscription!$B$4:$B$883)) ->  | C40: =PROPER(LOOKUP(D40,Inscription!$A$4:$A$883,Inscription!$C$4:$C$883)) ->  | E40: =LOOKUP(D40,Inscription!$A$4:$A$493,Inscription!$D$4:$D$493) ->  | H40: 42533.51128 | I40: 41803.86207 | W40: =IF(E40="H10",10000,IF(E40="D10",10000,5000)) ->  | AH40: =((AG40/Inscription!$E$2)*1000) -> 
A41: 42 | B41: =PROPER(LOOKUP(D41,Inscription!$A$4:$A$883,Inscription!$B$4:$B$883)) ->  | C41: =PROPER(LOOKUP(D41,Inscription!$A$4:$A$883,Inscription!$C$4:$C$883)) ->  | E41: =LOOKUP(D41,Inscription!$A$4:$A$493,Inscription!$D$4:$D$493) ->  | H41: 42533.51128 | I41: 41803.86208 | AH41: =((AG41/Inscription!$E$2)*1000) ->  | AI41: =(AH41/3600) -> 
A42: 43 | B42: =PROPER(LOOKUP(D42,Inscription!$A$4:$A$883,Inscription!$B$4:$B$883)) ->  | C42: =PROPER(LOOKUP(D42,Inscription!$A$4:$A$883,Inscription!$C$4:$C$883)) ->  | E42: =LOOKUP(D42,Inscription!$A$4:$A$493,Inscription!$D$4:$D$493) ->  | H42: 42533.51128 | I42: 41803.86209 | AH42: =((AG42/Inscription!$E$2)*1000) -> 
A43: 44 | B43: =PROPER(LOOKUP(D43,Inscription!$A$4:$A$883,Inscription!$B$4:$B$883)) ->  | C43: =PROPER(LOOKUP(D43,Inscription!$A$4:$A$883,Inscription!$C$4:$C$883)) ->  | E43: =LOOKUP(D43,Inscription!$A$4:$A$493,Inscription!$D$4:$D$493) ->  | H43: 42533.51128 | I43: 41803.86209 | AH43: =((AG43/Inscription!$E$2)*1000) -> 
A44: 45 | B44: =PROPER(LOOKUP(D44,Inscription!$A$4:$A$883,Inscription!$B$4:$B$883)) ->  | C44: =PROPER(LOOKUP(D44,Inscription!$A$4:$A$883,Inscription!$C$4:$C$883)) ->  | E44: =LOOKUP(D44,Inscription!$A$4:$A$493,Inscription!$D$4:$D$493) ->  | H44: 42533.51128 | I44: 41803.86378 | AH44: =((AG44/Inscription!$E$2)*1000) -> 
A45: 46 | B45: =PROPER(LOOKUP(D45,Inscription!$A$4:$A$883,Inscription!$B$4:$B$883)) ->  | C45: =PROPER(LOOKUP(D45,Inscription!$A$4:$A$883,Inscription!$C$4:$C$883)) ->  | E45: =LOOKUP(D45,Inscription!$A$4:$A$493,Inscription!$D$4:$D$493) ->  | H45: 42533.51128 | I45: 41803.86379 | AH45: =((AG45/Inscription!$E$2)*1000) -> 
A46: 48 | B46: =PROPER(LOOKUP(D46,Inscription!$A$4:$A$883,Inscription!$B$4:$B$883)) ->  | C46: =PROPER(LOOKUP(D46,Inscription!$A$4:$A$883,Inscription!$C$4:$C$883)) ->  | E46: =LOOKUP(D46,Inscription!$A$4:$A$493,Inscription!$D$4:$D$493) ->  | H46: 42533.51128 | I46: 41803.86486 | AH46: =((AG46/Inscription!$E$2)*1000) -> 
A47: 49 | B47: =PROPER(LOOKUP(D47,Inscription!$A$4:$A$883,Inscription!$B$4:$B$883)) ->  | C47: =PROPER(LOOKUP(D47,Inscription!$A$4:$A$883,Inscription!$C$4:$C$883)) ->  | E47: =LOOKUP(D47,Inscription!$A$4:$A$493,Inscription!$D$4:$D$493) ->  | H47: 42533.51128 | I47: 41803.86487 | AH47: =((AG47/Inscription!$E$2)*1000) -> 
A48: 50 | B48: =PROPER(LOOKUP(D48,Inscription!$A$4:$A$883,Inscription!$B$4:$B$883)) ->  | C48: =PROPER(LOOKUP(D48,Inscription!$A$4:$A$883,Inscription!$C$4:$C$883)) ->  | E48: =LOOKUP(D48,Inscription!$A$4:$A$493,Inscription!$D$4:$D$493) ->  | H48: 42533.51128 | I48: 41803.86994 | AH48: =((AG48/Inscription!$E$2)*1000) -> 
A49: 51 | B49: =PROPER(LOOKUP(D49,Inscription!$A$4:$A$883,Inscription!$B$4:$B$883)) ->  | C49: =PROPER(LOOKUP(D49,Inscription!$A$4:$A$883,Inscription!$C$4:$C$883)) ->  | E49: =LOOKUP(D49,Inscription!$A$4:$A$493,Inscription!$D$4:$D$493) ->  | H49: 42533.51128 | I49: 41803.86996 | AH49: =((AG49/Inscription!$E$2)*1000) -> 
A50: 52 | B50: =PROPER(LOOKUP(D50,Inscription!$A$4:$A$883,Inscription!$B$4:$B$883)) ->  | C50: =PROPER(LOOKUP(D50,Inscription!$A$4:$A$883,Inscription!$C$4:$C$883)) ->  | E50: =LOOKUP(D50,Inscription!$A$4:$A$493,Inscription!$D$4:$D$493) ->  | H50: 42533.51128 | I50: 41803.87004 | AH50: =((AG50/Inscription!$E$2)*1000) -> 
A51: 53 | B51: =PROPER(LOOKUP(D51,Inscription!$A$4:$A$883,Inscription!$B$4:$B$883)) ->  | C51: =PROPER(LOOKUP(D51,Inscription!$A$4:$A$883,Inscription!$C$4:$C$883)) ->  | E51: =LOOKUP(D51,Inscription!$A$4:$A$493,Inscription!$D$4:$D$493) ->  | H51: 42533.51128 | AH51: =((AG51/Inscription!$E$2)*1000) -> 
A52: 54 | B52: =PROPER(LOOKUP(D52,Inscription!$A$4:$A$883,Inscription!$B$4:$B$883)) ->  | C52: =PROPER(LOOKUP(D52,Inscription!$A$4:$A$883,Inscription!$C$4:$C$883)) ->  | E52: =LOOKUP(D52,Inscription!$A$4:$A$493,Inscription!$D$4:$D$493) ->  | H52: 42533.51128 | AH52: =((AG52/Inscription!$E$2)*1000) -> 
A53: 55 | B53: =PROPER(LOOKUP(D53,Inscription!$A$4:$A$883,Inscription!$B$4:$B$883)) ->  | C53: =PROPER(LOOKUP(D53,Inscription!$A$4:$A$883,Inscription!$C$4:$C$883)) ->  | E53: =LOOKUP(D53,Inscription!$A$4:$A$493,Inscription!$D$4:$D$493) ->  | H53: 42533.51128 | AH53: =((AG53/Inscription!$E$2)*1000) ->  | AI53: =(AH53/3600) -> 
A54: 56 | B54: =PROPER(LOOKUP(D54,Inscription!$A$4:$A$883,Inscription!$B$4:$B$883)) ->  | C54: =PROPER(LOOKUP(D54,Inscription!$A$4:$A$883,Inscription!$C$4:$C$883)) ->  | E54: =LOOKUP(D54,Inscription!$A$4:$A$493,Inscription!$D$4:$D$493) ->  | H54: 42533.51128 | AH54: =((AG54/Inscription!$E$2)*1000) -> 
A55: 57 | B55: =PROPER(LOOKUP(D55,Inscription!$A$4:$A$883,Inscription!$B$4:$B$883)) ->  | C55: =PROPER(LOOKUP(D55,Inscription!$A$4:$A$883,Inscription!$C$4:$C$883)) ->  | E55: =LOOKUP(D55,Inscription!$A$4:$A$493,Inscription!$D$4:$D$493) ->  | H55: 42533.51128 | AH55: =((AG55/Inscription!$E$2)*1000) -> 
A56: 58 | B56: =PROPER(LOOKUP(D56,Inscription!$A$4:$A$883,Inscription!$B$4:$B$883)) ->  | C56: =PROPER(LOOKUP(D56,Inscription!$A$4:$A$883,Inscription!$C$4:$C$883)) ->  | E56: =LOOKUP(D56,Inscription!$A$4:$A$493,Inscription!$D$4:$D$493) ->  | H56: =NOW() -> 42533.51128 | AH56: =((AG56/Inscription!$E$2)*1000) -> 
A57: 59 | B57: =PROPER(LOOKUP(D57,Inscription!$A$4:$A$883,Inscription!$B$4:$B$883)) ->  | C57: =PROPER(LOOKUP(D57,Inscription!$A$4:$A$883,Inscription!$C$4:$C$883)) ->  | E57: =LOOKUP(D57,Inscription!$A$4:$A$493,Inscription!$D$4:$D$493) ->  | H57: 42533.51128 | AH57: =((AG57/Inscription!$E$2)*1000) -> 
A58: 60 | B58: =PROPER(LOOKUP(D58,Inscription!$A$4:$A$883,Inscription!$B$4:$B$883)) ->  | C58: =PROPER(LOOKUP(D58,Inscription!$A$4:$A$883,Inscription!$C$4:$C$883)) ->  | E58: =LOOKUP(D58,Inscription!$A$4:$A$493,Inscription!$D$4:$D$493) ->  | H58: 42533.51128 | AH58: =((AG58/Inscription!$E$2)*1000) -> 
A59: 61 | B59: =PROPER(LOOKUP(D59,Inscription!$A$4:$A$883,Inscription!$B$4:$B$883)) ->  | C59: =PROPER(LOOKUP(D59,Inscription!$A$4:$A$883,Inscription!$C$4:$C$883)) ->  | E59: =LOOKUP(D59,Inscription!$A$4:$A$493,Inscription!$D$4:$D$493) ->  | H59: 42533.51128 | J59: =IF((I59-I$2)<0,"",IF((I59-I$2=0),"",I59-I$2)) ->  | AH59: =((AG59/Inscription!$E$2)*1000) -> 
A60: 62 | B60: =PROPER(LOOKUP(D60,Inscription!$A$4:$A$883,Inscription!$B$4:$B$883)) ->  | C60: =PROPER(LOOKUP(D60,Inscription!$A$4:$A$883,Inscription!$C$4:$C$883)) ->  | E60: =LOOKUP(D60,Inscription!$A$4:$A$493,Inscription!$D$4:$D$493) ->  | H60: 42533.51128 | J60: =IF((I60-I$2)<0,"",IF((I60-I$2=0),"",I60-I$2)) ->  | AH60: =((AG60/Inscription!$E$2)*1000) -> 
A61: 63 | B61: =PROPER(LOOKUP(D61,Inscription!$A$4:$A$883,Inscription!$B$4:$B$883)) ->  | C61: =PROPER(LOOKUP(D61,Inscription!$A$4:$A$883,Inscription!$C$4:$C$883)) ->  | E61: =LOOKUP(D61,Inscription!$A$4:$A$493,Inscription!$D$4:$D$493) ->  | H61: 42533.51128 | J61: =IF((I61-I$2)<0,"",IF((I61-I$2=0),"",I61-I$2)) ->  | AH61: =((AG61/Inscription!$E$2)*1000) -> 
A62: 64 | B62: =PROPER(LOOKUP(D62,Inscription!$A$4:$A$883,Inscription!$B$4:$B$883)) ->  | C62: =PROPER(LOOKUP(D62,Inscription!$A$4:$A$883,Inscription!$C$4:$C$883)) ->  | E62: =LOOKUP(D62,Inscription!$A$4:$A$493,Inscription!$D$4:$D$493) ->  | H62: 42533.51128 | J62: =IF((I62-I$2)<0,"",IF((I62-I$2=0),"",I62-I$2)) ->  | AH62: =((AG62/Inscription!$E$2)*1000) -> 
A63: 65 | B63: =PROPER(LOOKUP(D63,Inscription!$A$4:$A$883,Inscription!$B$4:$B$883)) ->  | C63: =PROPER(LOOKUP(D63,Inscription!$A$4:$A$883,Inscription!$C$4:$C$883)) ->  | E63: =LOOKUP(D63,Inscription!$A$4:$A$493,Inscription!$D$4:$D$493) ->  | F63: =IF(E63="H8",AP63,IF(E63="D8",AR63,IF(E63="H4",AQ63,AS63))) ->  | H63: 42533.51128 | J63: =IF((I63-I$2)<0,"",IF((I63-I$2=0),"",I63-I$2)) ->  | AH63: =((AG63/Inscription!$E$2)*1000) ->  | AT63: =IF($E63="Ef",$BI63,"") ->  | AU63: =IF($E63="D",$BK63,"") ->  | AV63: =IF($E63="A1",$BM63,"") ->  | AW63: =IF($E63="A2",$BO63,"") ->  | AX63: =IF($E63="A3",$BQ63,"") -> 
A64: 66 | B64: =PROPER(LOOKUP(D64,Inscription!$A$4:$A$883,Inscription!$B$4:$B$883)) ->  | C64: =PROPER(LOOKUP(D64,Inscription!$A$4:$A$883,Inscription!$C$4:$C$883)) ->  | E64: =LOOKUP(D64,Inscription!$A$4:$A$493,Inscription!$D$4:$D$493) ->  | H64: 42533.51128 | J64: =IF((I64-I$2)<0,"",IF((I64-I$2=0),"",I64-I$2)) ->  | K64: =W64/AG64*3.6 ->  | L64: =IF(E64="H8",AN64,IF(E64="D8",AN64,"")) ->  | M64: =IF(E64="H4",AO64,IF(E64="D4",AO64,"")) ->  | W64: =IF(E64="H10",10000,IF(E64="D10",10000,5000)) ->  | AH64: =((AG64/Inscription!$E$2)*1000) ->  | AI64: =AH64/3600 ->  | AN64: =IF(E64="H8",BK64,IF(E64="D8",BK64,"")) ->  | AO64: =IF(E64="H4",BM64,IF(E64="D4",BM64,"")) ->  | AP64: =IF($E64="H8",$BA64,"") ->  | AQ64: =IF($E64="H4",$BC64,"") ->  | AR64: =IF($E64="D8",$BE64,"") ->  | AS64: =IF($E64="D4",$BG64,"") ->  | AZ64: =IF(E64="Eg",1,0) ->  | BB64: =IF($E64="H8",1,0) ->  | BD64: =IF($E64="H4",1,0) ->  | BF64: =IF($E64="D8",1,0) ->  | BH64: =IF($E64="D4",1,0) ->  | BJ64: =IF($E64="Ef",1,0) ->  | BL64: =IF($E64="D8",1,IF(E64="H8",1,0)) ->  | BN64: =IF($E64="D4",1,IF(E64="H4",1,0)) -> 
A65: 67 | B65: =PROPER(LOOKUP(D65,Inscription!$A$4:$A$883,Inscription!$B$4:$B$883)) ->  | C65: =PROPER(LOOKUP(D65,Inscription!$A$4:$A$883,Inscription!$C$4:$C$883)) ->  | E65: =LOOKUP(D65,Inscription!$A$4:$A$493,Inscription!$D$4:$D$493) ->  | H65: 42533.51128 | AH65: =((AG65/Inscription!$E$2)*1000) ->  | AI65: =(AH65/3600) ->  | AY65: =AZ65+AY64 ->  | BA65: =BB65+BA64 ->  | BC65: =BD65+BC64 ->  | BE65: =BF65+BE64 ->  | BG65: =BH65+BG64 ->  | BI65: =BJ65+BI64 ->  | BK65: =BL65+BK64 ->  | BM65: =BN65+BM64 ->  | BO65: =BP65+BO64 ->  | BP65: =IF($E65="A2",1,0) ->  | BQ65: =BR65+BQ64 ->  | BR65: =IF($E65="A3",1,0) -> 
A66: 68 | B66: =PROPER(LOOKUP(D66,Inscription!$A$4:$A$883,Inscription!$B$4:$B$883)) ->  | C66: =PROPER(LOOKUP(D66,Inscription!$A$4:$A$883,Inscription!$C$4:$C$883)) ->  | E66: =LOOKUP(D66,Inscription!$A$4:$A$493,Inscription!$D$4:$D$493) ->  | H66: 42533.51128 | AH66: =((AG66/Inscription!$E$2)*1000) -> 
A67: 69 | B67: =PROPER(LOOKUP(D67,Inscription!$A$4:$A$883,Inscription!$B$4:$B$883)) ->  | C67: =PROPER(LOOKUP(D67,Inscription!$A$4:$A$883,Inscription!$C$4:$C$883)) ->  | E67: =LOOKUP(D67,Inscription!$A$4:$A$493,Inscription!$D$4:$D$493) ->  | H67: 42533.51128 | AH67: =((AG67/Inscription!$E$2)*1000) -> 
A68: 70 | B68: =PROPER(LOOKUP(D68,Inscription!$A$4:$A$883,Inscription!$B$4:$B$883)) ->  | C68: =PROPER(LOOKUP(D68,Inscription!$A$4:$A$883,Inscription!$C$4:$C$883)) ->  | E68: =LOOKUP(D68,Inscription!$A$4:$A$493,Inscription!$D$4:$D$493) ->  | H68: 42533.51128 | AH68: =((AG68/Inscription!$E$2)*1000) -> 
A69: 71 | B69: =PROPER(LOOKUP(D69,Inscription!$A$4:$A$883,Inscription!$B$4:$B$883)) ->  | C69: =PROPER(LOOKUP(D69,Inscription!$A$4:$A$883,Inscription!$C$4:$C$883)) ->  | E69: =LOOKUP(D69,Inscription!$A$4:$A$493,Inscription!$D$4:$D$493) ->  | H69: 42533.51128 | AH69: =((AG69/Inscription!$E$2)*1000) -> 
A70: 72 | B70: =PROPER(LOOKUP(D70,Inscription!$A$4:$A$883,Inscription!$B$4:$B$883)) ->  | C70: =PROPER(LOOKUP(D70,Inscription!$A$4:$A$883,Inscription!$C$4:$C$883)) ->  | E70: =LOOKUP(D70,Inscription!$A$4:$A$493,Inscription!$D$4:$D$493) ->  | H70: 42533.51128 | AH70: =((AG70/Inscription!$E$2)*1000) -> 
A71: 73 | B71: =PROPER(LOOKUP(D71,Inscription!$A$4:$A$883,Inscription!$B$4:$B$883)) ->  | C71: =PROPER(LOOKUP(D71,Inscription!$A$4:$A$883,Inscription!$C$4:$C$883)) ->  | E71: =LOOKUP(D71,Inscription!$A$4:$A$493,Inscription!$D$4:$D$493) ->  | H71: 42533.51128 | AH71: =((AG71/Inscription!$E$2)*1000) -> 
A72: 74 | B72: =PROPER(LOOKUP(D72,Inscription!$A$4:$A$883,Inscription!$B$4:$B$883)) ->  | C72: =PROPER(LOOKUP(D72,Inscription!$A$4:$A$883,Inscription!$C$4:$C$883)) ->  | E72: =LOOKUP(D72,Inscription!$A$4:$A$493,Inscription!$D$4:$D$493) ->  | H72: 42533.51128 | AH72: =((AG72/Inscription!$E$2)*1000) -> 
A73: 75 | B73: =PROPER(LOOKUP(D73,Inscription!$A$4:$A$883,Inscription!$B$4:$B$883)) ->  | C73: =PROPER(LOOKUP(D73,Inscription!$A$4:$A$883,Inscription!$C$4:$C$883)) ->  | E73: =LOOKUP(D73,Inscription!$A$4:$A$493,Inscription!$D$4:$D$493) ->  | H73: 42533.51128 | AH73: =((AG73/Inscription!$E$2)*1000) -> 
A74: 76 | B74: =PROPER(LOOKUP(D74,Inscription!$A$4:$A$883,Inscription!$B$4:$B$883)) ->  | C74: =PROPER(LOOKUP(D74,Inscription!$A$4:$A$883,Inscription!$C$4:$C$883)) ->  | E74: =LOOKUP(D74,Inscription!$A$4:$A$493,Inscription!$D$4:$D$493) ->  | H74: 42533.51128 | AH74: =((AG74/Inscription!$E$2)*1000) -> 
A75: 77 | B75: =PROPER(LOOKUP(D75,Inscription!$A$4:$A$883,Inscription!$B$4:$B$883)) ->  | C75: =PROPER(LOOKUP(D75,Inscription!$A$4:$A$883,Inscription!$C$4:$C$883)) ->  | E75: =LOOKUP(D75,Inscription!$A$4:$A$493,Inscription!$D$4:$D$493) ->  | H75: 42533.51128 | AH75: =((AG75/Inscription!$E$2)*1000) -> 
A76: 78 | B76: =PROPER(LOOKUP(D76,Inscription!$A$4:$A$883,Inscription!$B$4:$B$883)) ->  | C76: =PROPER(LOOKUP(D76,Inscription!$A$4:$A$883,Inscription!$C$4:$C$883)) ->  | E76: =LOOKUP(D76,Inscription!$A$4:$A$493,Inscription!$D$4:$D$493) ->  | H76: 42533.51128 | AH76: =((AG76/Inscription!$E$2)*1000) ->  | AL76: =ROUNDDOWN(AJ76,0) -> 
A77: 79 | B77: =PROPER(LOOKUP(D77,Inscription!$A$4:$A$883,Inscription!$B$4:$B$883)) ->  | C77: =PROPER(LOOKUP(D77,Inscription!$A$4:$A$883,Inscription!$C$4:$C$883)) ->  | E77: =LOOKUP(D77,Inscription!$A$4:$A$493,Inscription!$D$4:$D$493) ->  | H77: 42533.51128 | AH77: =((AG77/Inscription!$E$2)*1000) ->  | AI77: =(AH77/3600) ->  | AM77: =ROUNDDOWN(AK77-(AL77*60),0) -> 
A78: 80 | B78: =PROPER(LOOKUP(D78,Inscription!$A$4:$A$883,Inscription!$B$4:$B$883)) ->  | C78: =PROPER(LOOKUP(D78,Inscription!$A$4:$A$883,Inscription!$C$4:$C$883)) ->  | E78: =LOOKUP(D78,Inscription!$A$4:$A$493,Inscription!$D$4:$D$493) ->  | H78: 42533.51128 | AH78: =((AG78/Inscription!$E$2)*1000) -> 
A79: 81 | B79: =PROPER(LOOKUP(D79,Inscription!$A$4:$A$883,Inscription!$B$4:$B$883)) ->  | C79: =PROPER(LOOKUP(D79,Inscription!$A$4:$A$883,Inscription!$C$4:$C$883)) ->  | E79: =LOOKUP(D79,Inscription!$A$4:$A$493,Inscription!$D$4:$D$493) ->  | H79: 42533.51128 | AH79: =((AG79/Inscription!$E$2)*1000) -> 
A80: 82 | B80: =PROPER(LOOKUP(D80,Inscription!$A$4:$A$883,Inscription!$B$4:$B$883)) ->  | C80: =PROPER(LOOKUP(D80,Inscription!$A$4:$A$883,Inscription!$C$4:$C$883)) ->  | E80: =LOOKUP(D80,Inscription!$A$4:$A$493,Inscription!$D$4:$D$493) ->  | H80: 42533.51128 | AH80: =((AG80/Inscription!$E$2)*1000) -> 
A81: 83 | B81: =PROPER(LOOKUP(D81,Inscription!$A$4:$A$883,Inscription!$B$4:$B$883)) ->  | C81: =PROPER(LOOKUP(D81,Inscription!$A$4:$A$883,Inscription!$C$4:$C$883)) ->  | E81: =LOOKUP(D81,Inscription!$A$4:$A$493,Inscription!$D$4:$D$493) ->  | H81: 42533.51128 | AH81: =((AG81/Inscription!$E$2)*1000) ->  | AJ81: =AH81/60 ->  | AK81: =AH81 -> 
A82: 84 | B82: =PROPER(LOOKUP(D82,Inscription!$A$4:$A$883,Inscription!$B$4:$B$883)) ->  | C82: =PROPER(LOOKUP(D82,Inscription!$A$4:$A$883,Inscription!$C$4:$C$883)) ->  | E82: =LOOKUP(D82,Inscription!$A$4:$A$493,Inscription!$D$4:$D$493) ->  | H82: 42533.51128 | AA82: =HOUR(J82) ->  | AB82: =MINUTE(J82) ->  | AC82: =SECOND(J82) ->  | AD82: =AA82 ->  | AE82: =AB82 ->  | AF82: =AC82 ->  | AG82: =((((AD82*60)+AE82)*60)+AF82) ->  | AH82: =((AG82/Inscription!$E$2)*1000) -> 
A83: 85 | B83: =PROPER(LOOKUP(D83,Inscription!$A$4:$A$883,Inscription!$B$4:$B$883)) ->  | C83: =PROPER(LOOKUP(D83,Inscription!$A$4:$A$883,Inscription!$C$4:$C$883)) ->  | E83: =LOOKUP(D83,Inscription!$A$4:$A$493,Inscription!$D$4:$D$493) ->  | H83: 42533.51128 | AH83: =((AG83/Inscription!$E$2)*1000) -> 
A84: 86 | B84: =PROPER(LOOKUP(D84,Inscription!$A$4:$A$883,Inscription!$B$4:$B$883)) ->  | C84: =PROPER(LOOKUP(D84,Inscription!$A$4:$A$883,Inscription!$C$4:$C$883)) ->  | E84: =LOOKUP(D84,Inscription!$A$4:$A$493,Inscription!$D$4:$D$493) ->  | H84: 42533.51128 | AH84: =((AG84/Inscription!$E$2)*1000) -> 
A85: 87 | B85: =PROPER(LOOKUP(D85,Inscription!$A$4:$A$883,Inscription!$B$4:$B$883)) ->  | C85: =PROPER(LOOKUP(D85,Inscription!$A$4:$A$883,Inscription!$C$4:$C$883)) ->  | E85: =LOOKUP(D85,Inscription!$A$4:$A$493,Inscription!$D$4:$D$493) ->  | H85: 42533.51128 | AH85: =((AG85/Inscription!$E$2)*1000) -> 
A86: 88 | B86: =PROPER(LOOKUP(D86,Inscription!$A$4:$A$883,Inscription!$B$4:$B$883)) ->  | C86: =PROPER(LOOKUP(D86,Inscription!$A$4:$A$883,Inscription!$C$4:$C$883)) ->  | E86: =LOOKUP(D86,Inscription!$A$4:$A$493,Inscription!$D$4:$D$493) ->  | H86: 42533.51128 | AH86: =((AG86/Inscription!$E$2)*1000) -> 
A87: 89 | B87: =PROPER(LOOKUP(D87,Inscription!$A$4:$A$883,Inscription!$B$4:$B$883)) ->  | C87: =PROPER(LOOKUP(D87,Inscription!$A$4:$A$883,Inscription!$C$4:$C$883)) ->  | E87: =LOOKUP(D87,Inscription!$A$4:$A$493,Inscription!$D$4:$D$493) ->  | H87: 42533.51128 | AH87: =((AG87/Inscription!$E$2)*1000) -> 
A88: 90 | B88: =PROPER(LOOKUP(D88,Inscription!$A$4:$A$883,Inscription!$B$4:$B$883)) ->  | C88: =PROPER(LOOKUP(D88,Inscription!$A$4:$A$883,Inscription!$C$4:$C$883)) ->  | E88: =LOOKUP(D88,Inscription!$A$4:$A$493,Inscription!$D$4:$D$493) ->  | H88: 42533.51128 | AH88: =((AG88/Inscription!$E$2)*1000) -> 
A89: 91 | B89: =PROPER(LOOKUP(D89,Inscription!$A$4:$A$883,Inscription!$B$4:$B$883)) ->  | C89: =PROPER(LOOKUP(D89,Inscription!$A$4:$A$883,Inscription!$C$4:$C$883)) ->  | E89: =LOOKUP(D89,Inscription!$A$4:$A$493,Inscription!$D$4:$D$493) ->  | H89: 42533.51128 | AH89: =((AG89/Inscription!$E$2)*1000) ->  | AI89: =(AH89/3600) -> 
A90: 92 | B90: =PROPER(LOOKUP(D90,Inscription!$A$4:$A$883,Inscription!$B$4:$B$883)) ->  | C90: =PROPER(LOOKUP(D90,Inscription!$A$4:$A$883,Inscription!$C$4:$C$883)) ->  | E90: =LOOKUP(D90,Inscription!$A$4:$A$493,Inscription!$D$4:$D$493) ->  | H90: 42533.51128 | AH90: =((AG90/Inscription!$E$2)*1000) -> 
A91: 93 | B91: =PROPER(LOOKUP(D91,Inscription!$A$4:$A$883,Inscription!$B$4:$B$883)) ->  | C91: =PROPER(LOOKUP(D91,Inscription!$A$4:$A$883,Inscription!$C$4:$C$883)) ->  | E91: =LOOKUP(D91,Inscription!$A$4:$A$493,Inscription!$D$4:$D$493) ->  | H91: 42533.51128 | AH91: =((AG91/Inscription!$E$2)*1000) -> 
A92: 94 | B92: =PROPER(LOOKUP(D92,Inscription!$A$4:$A$883,Inscription!$B$4:$B$883)) ->  | C92: =PROPER(LOOKUP(D92,Inscription!$A$4:$A$883,Inscription!$C$4:$C$883)) ->  | E92: =LOOKUP(D92,Inscription!$A$4:$A$493,Inscription!$D$4:$D$493) ->  | H92: 42533.51128 | AH92: =((AG92/Inscription!$E$2)*1000) -> 
A93: 95 | B93: =PROPER(LOOKUP(D93,Inscription!$A$4:$A$883,Inscription!$B$4:$B$883)) ->  | C93: =PROPER(LOOKUP(D93,Inscription!$A$4:$A$883,Inscription!$C$4:$C$883)) ->  | E93: =LOOKUP(D93,Inscription!$A$4:$A$493,Inscription!$D$4:$D$493) ->  | H93: 42533.51128 | AH93: =((AG93/Inscription!$E$2)*1000) -> 
A94: 96 | B94: =PROPER(LOOKUP(D94,Inscription!$A$4:$A$883,Inscription!$B$4:$B$883)) ->  | C94: =PROPER(LOOKUP(D94,Inscription!$A$4:$A$883,Inscription!$C$4:$C$883)) ->  | E94: =LOOKUP(D94,Inscription!$A$4:$A$493,Inscription!$D$4:$D$493) ->  | H94: 42533.51128 | AH94: =((AG94/Inscription!$E$2)*1000) -> 
A95: 97 | B95: =PROPER(LOOKUP(D95,Inscription!$A$4:$A$883,Inscription!$B$4:$B$883)) ->  | C95: =PROPER(LOOKUP(D95,Inscription!$A$4:$A$883,Inscription!$C$4:$C$883)) ->  | E95: =LOOKUP(D95,Inscription!$A$4:$A$493,Inscription!$D$4:$D$493) ->  | H95: 42533.51128 | AH95: =((AG95/Inscription!$E$2)*1000) -> 
A96: 98 | B96: =PROPER(LOOKUP(D96,Inscription!$A$4:$A$883,Inscription!$B$4:$B$883)) ->  | C96: =PROPER(LOOKUP(D96,Inscription!$A$4:$A$883,Inscription!$C$4:$C$883)) ->  | E96: =LOOKUP(D96,Inscription!$A$4:$A$493,Inscription!$D$4:$D$493) ->  | H96: 42533.51128 | AH96: =((AG96/Inscription!$E$2)*1000) -> 
A97: 99 | B97: =PROPER(LOOKUP(D97,Inscription!$A$4:$A$883,Inscription!$B$4:$B$883)) ->  | C97: =PROPER(LOOKUP(D97,Inscription!$A$4:$A$883,Inscription!$C$4:$C$883)) ->  | E97: =LOOKUP(D97,Inscription!$A$4:$A$493,Inscription!$D$4:$D$493) ->  | H97: 42533.51128 | AH97: =((AG97/Inscription!$E$2)*1000) -> 
A98: 100 | B98: =PROPER(LOOKUP(D98,Inscription!$A$4:$A$883,Inscription!$B$4:$B$883)) ->  | C98: =PROPER(LOOKUP(D98,Inscription!$A$4:$A$883,Inscription!$C$4:$C$883)) ->  | E98: =LOOKUP(D98,Inscription!$A$4:$A$493,Inscription!$D$4:$D$493) ->  | H98: 42533.51128 | AH98: =((AG98/Inscription!$E$2)*1000) -> 
A99: 101 | B99: =PROPER(LOOKUP(D99,Inscription!$A$4:$A$883,Inscription!$B$4:$B$883)) ->  | C99: =PROPER(LOOKUP(D99,Inscription!$A$4:$A$883,Inscription!$C$4:$C$883)) ->  | E99: =LOOKUP(D99,Inscription!$A$4:$A$493,Inscription!$D$4:$D$493) ->  | H99: 42533.51128 | AH99: =((AG99/Inscription!$E$2)*1000) -> 
A100: 102 | B100: =PROPER(LOOKUP(D100,Inscription!$A$4:$A$883,Inscription!$B$4:$B$883)) ->  | C100: =PROPER(LOOKUP(D100,Inscription!$A$4:$A$883,Inscription!$C$4:$C$883)) ->  | E100: =LOOKUP(D100,Inscription!$A$4:$A$493,Inscription!$D$4:$D$493) ->  | H100: 42533.51128 | AH100: =((AG100/Inscription!$E$2)*1000) -> 
A101: 103 | B101: =PROPER(LOOKUP(D101,Inscription!$A$4:$A$883,Inscription!$B$4:$B$883)) ->  | C101: =PROPER(LOOKUP(D101,Inscription!$A$4:$A$883,Inscription!$C$4:$C$883)) ->  | E101: =LOOKUP(D101,Inscription!$A$4:$A$493,Inscription!$D$4:$D$493) ->  | H101: 42533.51128 | AH101: =((AG101/Inscription!$E$2)*1000) ->  | AI101: =(AH101/3600) -> 
A102: 104 | B102: =PROPER(LOOKUP(D102,Inscription!$A$4:$A$883,Inscription!$B$4:$B$883)) ->  | C102: =PROPER(LOOKUP(D102,Inscription!$A$4:$A$883,Inscription!$C$4:$C$883)) ->  | E102: =LOOKUP(D102,Inscription!$A$4:$A$493,Inscription!$D$4:$D$493) ->  | H102: 42533.51128 | AH102: =((AG102/Inscription!$E$2)*1000) -> 
A103: 105 | B103: =PROPER(LOOKUP(D103,Inscription!$A$4:$A$883,Inscription!$B$4:$B$883)) ->  | C103: =PROPER(LOOKUP(D103,Inscription!$A$4:$A$883,Inscription!$C$4:$C$883)) ->  | E103: =LOOKUP(D103,Inscription!$A$4:$A$493,Inscription!$D$4:$D$493) ->  | H103: 42533.51128 | AH103: =((AG103/Inscription!$E$2)*1000) -> 
A104: 106 | B104: =PROPER(LOOKUP(D104,Inscription!$A$4:$A$883,Inscription!$B$4:$B$883)) ->  | C104: =PROPER(LOOKUP(D104,Inscription!$A$4:$A$883,Inscription!$C$4:$C$883)) ->  | E104: =LOOKUP(D104,Inscription!$A$4:$A$493,Inscription!$D$4:$D$493) ->  | H104: 42533.51128 | AH104: =((AG104/Inscription!$E$2)*1000) -> 
A105: 107 | B105: =PROPER(LOOKUP(D105,Inscription!$A$4:$A$883,Inscription!$B$4:$B$883)) ->  | C105: =PROPER(LOOKUP(D105,Inscription!$A$4:$A$883,Inscription!$C$4:$C$883)) ->  | E105: =LOOKUP(D105,Inscription!$A$4:$A$493,Inscription!$D$4:$D$493) ->  | H105: 42533.51128 | AH105: =((AG105/Inscription!$E$2)*1000) -> 
A106: 108 | B106: =PROPER(LOOKUP(D106,Inscription!$A$4:$A$883,Inscription!$B$4:$B$883)) ->  | C106: =PROPER(LOOKUP(D106,Inscription!$A$4:$A$883,Inscription!$C$4:$C$883)) ->  | E106: =LOOKUP(D106,Inscription!$A$4:$A$493,Inscription!$D$4:$D$493) ->  | H106: 42533.51128 | AH106: =((AG106/Inscription!$E$2)*1000) -> 
A107: 109 | B107: =PROPER(LOOKUP(D107,Inscription!$A$4:$A$883,Inscription!$B$4:$B$883)) ->  | C107: =PROPER(LOOKUP(D107,Inscription!$A$4:$A$883,Inscription!$C$4:$C$883)) ->  | E107: =LOOKUP(D107,Inscription!$A$4:$A$493,Inscription!$D$4:$D$493) ->  | H107: 42533.51128 | AH107: =((AG107/Inscription!$E$2)*1000) -> 
A108: 110 | B108: =PROPER(LOOKUP(D108,Inscription!$A$4:$A$883,Inscription!$B$4:$B$883)) ->  | C108: =PROPER(LOOKUP(D108,Inscription!$A$4:$A$883,Inscription!$C$4:$C$883)) ->  | E108: =LOOKUP(D108,Inscription!$A$4:$A$493,Inscription!$D$4:$D$493) ->  | H108: 42533.51128 | AH108: =((AG108/Inscription!$E$2)*1000) -> 
A109: 111 | B109: =PROPER(LOOKUP(D109,Inscription!$A$4:$A$883,Inscription!$B$4:$B$883)) ->  | C109: =PROPER(LOOKUP(D109,Inscription!$A$4:$A$883,Inscription!$C$4:$C$883)) ->  | E109: =LOOKUP(D109,Inscription!$A$4:$A$493,Inscription!$D$4:$D$493) ->  | H109: 42533.51128 | AH109: =((AG109/Inscription!$E$2)*1000) -> 
A110: 112 | B110: =PROPER(LOOKUP(D110,Inscription!$A$4:$A$883,Inscription!$B$4:$B$883)) ->  | C110: =PROPER(LOOKUP(D110,Inscription!$A$4:$A$883,Inscription!$C$4:$C$883)) ->  | E110: =LOOKUP(D110,Inscription!$A$4:$A$493,Inscription!$D$4:$D$493) ->  | H110: 42533.51128 | AH110: =((AG110/Inscription!$E$2)*1000) -> 
A111: 113 | B111: =PROPER(LOOKUP(D111,Inscription!$A$4:$A$883,Inscription!$B$4:$B$883)) ->  | C111: =PROPER(LOOKUP(D111,Inscription!$A$4:$A$883,Inscription!$C$4:$C$883)) ->  | E111: =LOOKUP(D111,Inscription!$A$4:$A$493,Inscription!$D$4:$D$493) ->  | H111: 42533.51128 | AH111: =((AG111/Inscription!$E$2)*1000) -> 
A112: 114 | B112: =PROPER(LOOKUP(D112,Inscription!$A$4:$A$883,Inscription!$B$4:$B$883)) ->  | C112: =PROPER(LOOKUP(D112,Inscription!$A$4:$A$883,Inscription!$C$4:$C$883)) ->  | E112: =LOOKUP(D112,Inscription!$A$4:$A$493,Inscription!$D$4:$D$493) ->  | H112: 42533.51128 | AH112: =((AG112/Inscription!$E$2)*1000) -> 
A113: 115 | B113: =PROPER(LOOKUP(D113,Inscription!$A$4:$A$883,Inscription!$B$4:$B$883)) ->  | C113: =PROPER(LOOKUP(D113,Inscription!$A$4:$A$883,Inscription!$C$4:$C$883)) ->  | E113: =LOOKUP(D113,Inscription!$A$4:$A$493,Inscription!$D$4:$D$493) ->  | H113: 42533.51128 | AH113: =((AG113/Inscription!$E$2)*1000) ->  | AI113: =(AH113/3600) -> 
A114: 116 | B114: =PROPER(LOOKUP(D114,Inscription!$A$4:$A$883,Inscription!$B$4:$B$883)) ->  | C114: =PROPER(LOOKUP(D114,Inscription!$A$4:$A$883,Inscription!$C$4:$C$883)) ->  | E114: =LOOKUP(D114,Inscription!$A$4:$A$493,Inscription!$D$4:$D$493) ->  | H114: 42533.51128 | AH114: =((AG114/Inscription!$E$2)*1000) -> 
A115: 117 | B115: =PROPER(LOOKUP(D115,Inscription!$A$4:$A$883,Inscription!$B$4:$B$883)) ->  | C115: =PROPER(LOOKUP(D115,Inscription!$A$4:$A$883,Inscription!$C$4:$C$883)) ->  | E115: =LOOKUP(D115,Inscription!$A$4:$A$493,Inscription!$D$4:$D$493) ->  | H115: 42533.51128 | AH115: =((AG115/Inscription!$E$2)*1000) -> 
A116: 118 | B116: =PROPER(LOOKUP(D116,Inscription!$A$4:$A$883,Inscription!$B$4:$B$883)) ->  | C116: =PROPER(LOOKUP(D116,Inscription!$A$4:$A$883,Inscription!$C$4:$C$883)) ->  | E116: =LOOKUP(D116,Inscription!$A$4:$A$493,Inscription!$D$4:$D$493) ->  | H116: 42533.51128 | AH116: =((AG116/Inscription!$E$2)*1000) -> 
A117: 119 | B117: =PROPER(LOOKUP(D117,Inscription!$A$4:$A$883,Inscription!$B$4:$B$883)) ->  | C117: =PROPER(LOOKUP(D117,Inscription!$A$4:$A$883,Inscription!$C$4:$C$883)) ->  | E117: =LOOKUP(D117,Inscription!$A$4:$A$493,Inscription!$D$4:$D$493) ->  | H117: 42533.51128 | AH117: =((AG117/Inscription!$E$2)*1000) -> 
A118: 120 | B118: =PROPER(LOOKUP(D118,Inscription!$A$4:$A$883,Inscription!$B$4:$B$883)) ->  | C118: =PROPER(LOOKUP(D118,Inscription!$A$4:$A$883,Inscription!$C$4:$C$883)) ->  | E118: =LOOKUP(D118,Inscription!$A$4:$A$493,Inscription!$D$4:$D$493) ->  | H118: 42533.51128 | AH118: =((AG118/Inscription!$E$2)*1000) -> 
A119: 121 | B119: =PROPER(LOOKUP(D119,Inscription!$A$4:$A$883,Inscription!$B$4:$B$883)) ->  | C119: =PROPER(LOOKUP(D119,Inscription!$A$4:$A$883,Inscription!$C$4:$C$883)) ->  | E119: =LOOKUP(D119,Inscription!$A$4:$A$493,Inscription!$D$4:$D$493) ->  | H119: 42533.51128 | AH119: =((AG119/Inscription!$E$2)*1000) -> 
A120: 122 | B120: =PROPER(LOOKUP(D120,Inscription!$A$4:$A$883,Inscription!$B$4:$B$883)) ->  | C120: =PROPER(LOOKUP(D120,Inscription!$A$4:$A$883,Inscription!$C$4:$C$883)) ->  | E120: =LOOKUP(D120,Inscription!$A$4:$A$493,Inscription!$D$4:$D$493) ->  | H120: =NOW() -> 42533.51128 | AH120: =((AG120/Inscription!$E$2)*1000) -> 
A121: 123 | B121: =PROPER(LOOKUP(D121,Inscription!$A$4:$A$883,Inscription!$B$4:$B$883)) ->  | C121: =PROPER(LOOKUP(D121,Inscription!$A$4:$A$883,Inscription!$C$4:$C$883)) ->  | E121: =LOOKUP(D121,Inscription!$A$4:$A$493,Inscription!$D$4:$D$493) ->  | H121: 42533.51128 | AH121: =((AG121/Inscription!$E$2)*1000) -> 
A122: 124 | B122: =PROPER(LOOKUP(D122,Inscription!$A$4:$A$883,Inscription!$B$4:$B$883)) ->  | C122: =PROPER(LOOKUP(D122,Inscription!$A$4:$A$883,Inscription!$C$4:$C$883)) ->  | E122: =LOOKUP(D122,Inscription!$A$4:$A$493,Inscription!$D$4:$D$493) ->  | H122: 42533.51128 | AH122: =((AG122/Inscription!$E$2)*1000) -> 
A123: 125 | B123: =PROPER(LOOKUP(D123,Inscription!$A$4:$A$883,Inscription!$B$4:$B$883)) ->  | C123: =PROPER(LOOKUP(D123,Inscription!$A$4:$A$883,Inscription!$C$4:$C$883)) ->  | E123: =LOOKUP(D123,Inscription!$A$4:$A$493,Inscription!$D$4:$D$493) ->  | H123: 42533.51128 | AH123: =((AG123/Inscription!$E$2)*1000) -> 
A124: 126 | B124: =PROPER(LOOKUP(D124,Inscription!$A$4:$A$883,Inscription!$B$4:$B$883)) ->  | C124: =PROPER(LOOKUP(D124,Inscription!$A$4:$A$883,Inscription!$C$4:$C$883)) ->  | E124: =LOOKUP(D124,Inscription!$A$4:$A$493,Inscription!$D$4:$D$493) ->  | H124: 42533.51128 | AH124: =((AG124/Inscription!$E$2)*1000) -> 
A125: 127 | B125: =PROPER(LOOKUP(D125,Inscription!$A$4:$A$883,Inscription!$B$4:$B$883)) ->  | C125: =PROPER(LOOKUP(D125,Inscription!$A$4:$A$883,Inscription!$C$4:$C$883)) ->  | E125: =LOOKUP(D125,Inscription!$A$4:$A$493,Inscription!$D$4:$D$493) ->  | H125: 42533.51128 | AH125: =((AG125/Inscription!$E$2)*1000) ->  | AI125: =(AH125/3600) -> 
A126: 128 | B126: =PROPER(LOOKUP(D126,Inscription!$A$4:$A$883,Inscription!$B$4:$B$883)) ->  | C126: =PROPER(LOOKUP(D126,Inscription!$A$4:$A$883,Inscription!$C$4:$C$883)) ->  | E126: =LOOKUP(D126,Inscription!$A$4:$A$493,Inscription!$D$4:$D$493) ->  | H126: 42533.51128 | AH126: =((AG126/Inscription!$E$2)*1000) -> 
A127: 129 | B127: =PROPER(LOOKUP(D127,Inscription!$A$4:$A$883,Inscription!$B$4:$B$883)) ->  | C127: =PROPER(LOOKUP(D127,Inscription!$A$4:$A$883,Inscription!$C$4:$C$883)) ->  | E127: =LOOKUP(D127,Inscription!$A$4:$A$493,Inscription!$D$4:$D$493) ->  | F127: =IF(E127="H8",AP127,IF(E127="D8",AR127,IF(E127="H4",AQ127,AS127))) ->  | H127: 42533.51128 | AH127: =((AG127/Inscription!$E$2)*1000) ->  | AT127: =IF($E127="Ef",$BI127,"") ->  | AU127: =IF($E127="D",$BK127,"") ->  | AV127: =IF($E127="A1",$BM127,"") ->  | AW127: =IF($E127="A2",$BO127,"") ->  | AX127: =IF($E127="A3",$BQ127,"") -> 
A128: 130 | B128: =PROPER(LOOKUP(D128,Inscription!$A$4:$A$883,Inscription!$B$4:$B$883)) ->  | C128: =PROPER(LOOKUP(D128,Inscription!$A$4:$A$883,Inscription!$C$4:$C$883)) ->  | E128: =LOOKUP(D128,Inscription!$A$4:$A$493,Inscription!$D$4:$D$493) ->  | H128: 42533.51128 | J128: =IF((I128-I$2)<0,"",IF((I128-I$2=0),"",I128-I$2)) ->  | K128: =W128/AG128*3.6 ->  | L128: =IF(E128="H8",AN128,IF(E128="D8",AN128,"")) ->  | M128: =IF(E128="H4",AO128,IF(E128="D4",AO128,"")) ->  | W128: =IF(E128="H10",10000,IF(E128="D10",10000,5000)) ->  | AH128: =((AG128/Inscription!$E$2)*1000) ->  | AI128: =AH128/3600 ->  | AN128: =IF(E128="H8",BK128,IF(E128="D8",BK128,"")) ->  | AO128: =IF(E128="H4",BM128,IF(E128="D4",BM128,"")) ->  | AP128: =IF($E128="H8",$BA128,"") ->  | AQ128: =IF($E128="H4",$BC128,"") ->  | AR128: =IF($E128="D8",$BE128,"") ->  | AS128: =IF($E128="D4",$BG128,"") ->  | AZ128: =IF(E128="Eg",1,0) ->  | BB128: =IF($E128="H8",1,0) ->  | BD128: =IF($E128="H4",1,0) ->  | BF128: =IF($E128="D8",1,0) ->  | BH128: =IF($E128="D4",1,0) ->  | BJ128: =IF($E128="Ef",1,0) ->  | BL128: =IF($E128="D8",1,IF(E128="H8",1,0)) ->  | BN128: =IF($E128="D4",1,IF(E128="H4",1,0)) -> 
A129: 131 | B129: =PROPER(LOOKUP(D129,Inscription!$A$4:$A$883,Inscription!$B$4:$B$883)) ->  | C129: =PROPER(LOOKUP(D129,Inscription!$A$4:$A$883,Inscription!$C$4:$C$883)) ->  | E129: =LOOKUP(D129,Inscription!$A$4:$A$493,Inscription!$D$4:$D$493) ->  | H129: 42533.51128 | AH129: =((AG129/Inscription!$E$2)*1000) ->  | AY129: =AZ129+AY128 ->  | BA129: =BB129+BA128 ->  | BC129: =BD129+BC128 ->  | BE129: =BF129+BE128 ->  | BG129: =BH129+BG128 ->  | BI129: =BJ129+BI128 ->  | BK129: =BL129+BK128 ->  | BM129: =BN129+BM128 ->  | BO129: =BP129+BO128 ->  | BP129: =IF($E129="A2",1,0) ->  | BQ129: =BR129+BQ128 ->  | BR129: =IF($E129="A3",1,0) -> 
A130: 132 | B130: =PROPER(LOOKUP(D130,Inscription!$A$4:$A$883,Inscription!$B$4:$B$883)) ->  | C130: =PROPER(LOOKUP(D130,Inscription!$A$4:$A$883,Inscription!$C$4:$C$883)) ->  | E130: =LOOKUP(D130,Inscription!$A$4:$A$493,Inscription!$D$4:$D$493) ->  | H130: 42533.51128 | AH130: =((AG130/Inscription!$E$2)*1000) -> 
A131: 133 | B131: =PROPER(LOOKUP(D131,Inscription!$A$4:$A$883,Inscription!$B$4:$B$883)) ->  | C131: =PROPER(LOOKUP(D131,Inscription!$A$4:$A$883,Inscription!$C$4:$C$883)) ->  | E131: =LOOKUP(D131,Inscription!$A$4:$A$493,Inscription!$D$4:$D$493) ->  | H131: 42533.51128 | AH131: =((AG131/Inscription!$E$2)*1000) -> 
A132: 134 | B132: =PROPER(LOOKUP(D132,Inscription!$A$4:$A$883,Inscription!$B$4:$B$883)) ->  | C132: =PROPER(LOOKUP(D132,Inscription!$A$4:$A$883,Inscription!$C$4:$C$883)) ->  | E132: =LOOKUP(D132,Inscription!$A$4:$A$493,Inscription!$D$4:$D$493) ->  | H132: 42533.51128 | AH132: =((AG132/Inscription!$E$2)*1000) -> 
A133: 135 | B133: =PROPER(LOOKUP(D133,Inscription!$A$4:$A$883,Inscription!$B$4:$B$883)) ->  | C133: =PROPER(LOOKUP(D133,Inscription!$A$4:$A$883,Inscription!$C$4:$C$883)) ->  | E133: =LOOKUP(D133,Inscription!$A$4:$A$493,Inscription!$D$4:$D$493) ->  | H133: 42533.51128 | AH133: =((AG133/Inscription!$E$2)*1000) -> 
A134: 136 | B134: =PROPER(LOOKUP(D134,Inscription!$A$4:$A$883,Inscription!$B$4:$B$883)) ->  | C134: =PROPER(LOOKUP(D134,Inscription!$A$4:$A$883,Inscription!$C$4:$C$883)) ->  | E134: =LOOKUP(D134,Inscription!$A$4:$A$493,Inscription!$D$4:$D$493) ->  | H134: 42533.51128 | AH134: =((AG134/Inscription!$E$2)*1000) -> 
A135: 137 | B135: =PROPER(LOOKUP(D135,Inscription!$A$4:$A$883,Inscription!$B$4:$B$883)) ->  | C135: =PROPER(LOOKUP(D135,Inscription!$A$4:$A$883,Inscription!$C$4:$C$883)) ->  | E135: =LOOKUP(D135,Inscription!$A$4:$A$493,Inscription!$D$4:$D$493) ->  | H135: 42533.51128 | AH135: =((AG135/Inscription!$E$2)*1000) -> 
A136: 138 | B136: =PROPER(LOOKUP(D136,Inscription!$A$4:$A$883,Inscription!$B$4:$B$883)) ->  | C136: =PROPER(LOOKUP(D136,Inscription!$A$4:$A$883,Inscription!$C$4:$C$883)) ->  | E136: =LOOKUP(D136,Inscription!$A$4:$A$493,Inscription!$D$4:$D$493) ->  | H136: 42533.51128 | AH136: =((AG136/Inscription!$E$2)*1000) -> 
A137: 139 | B137: =PROPER(LOOKUP(D137,Inscription!$A$4:$A$883,Inscription!$B$4:$B$883)) ->  | C137: =PROPER(LOOKUP(D137,Inscription!$A$4:$A$883,Inscription!$C$4:$C$883)) ->  | E137: =LOOKUP(D137,Inscription!$A$4:$A$493,Inscription!$D$4:$D$493) ->  | H137: 42533.51128 | AH137: =((AG137/Inscription!$E$2)*1000) ->  | AI137: =(AH137/3600) -> 
A138: 140 | B138: =PROPER(LOOKUP(D138,Inscription!$A$4:$A$883,Inscription!$B$4:$B$883)) ->  | C138: =PROPER(LOOKUP(D138,Inscription!$A$4:$A$883,Inscription!$C$4:$C$883)) ->  | E138: =LOOKUP(D138,Inscription!$A$4:$A$493,Inscription!$D$4:$D$493) ->  | H138: 42533.51128 | AH138: =((AG138/Inscription!$E$2)*1000) -> 
A139: 141 | B139: =PROPER(LOOKUP(D139,Inscription!$A$4:$A$883,Inscription!$B$4:$B$883)) ->  | C139: =PROPER(LOOKUP(D139,Inscription!$A$4:$A$883,Inscription!$C$4:$C$883)) ->  | E139: =LOOKUP(D139,Inscription!$A$4:$A$493,Inscription!$D$4:$D$493) ->  | H139: 42533.51128 | AH139: =((AG139/Inscription!$E$2)*1000) -> 
A140: 142 | B140: =PROPER(LOOKUP(D140,Inscription!$A$4:$A$883,Inscription!$B$4:$B$883)) ->  | C140: =PROPER(LOOKUP(D140,Inscription!$A$4:$A$883,Inscription!$C$4:$C$883)) ->  | E140: =LOOKUP(D140,Inscription!$A$4:$A$493,Inscription!$D$4:$D$493) ->  | H140: 42533.51128 | AH140: =((AG140/Inscription!$E$2)*1000) ->  | AL140: =ROUNDDOWN(AJ140,0) -> 
A141: 143 | B141: =PROPER(LOOKUP(D141,Inscription!$A$4:$A$883,Inscription!$B$4:$B$883)) ->  | C141: =PROPER(LOOKUP(D141,Inscription!$A$4:$A$883,Inscription!$C$4:$C$883)) ->  | E141: =LOOKUP(D141,Inscription!$A$4:$A$493,Inscription!$D$4:$D$493) ->  | H141: 42533.51128 | AH141: =((AG141/Inscription!$E$2)*1000) ->  | AM141: =ROUNDDOWN(AK141-(AL141*60),0) -> 
A142: 144 | B142: =PROPER(LOOKUP(D142,Inscription!$A$4:$A$883,Inscription!$B$4:$B$883)) ->  | C142: =PROPER(LOOKUP(D142,Inscription!$A$4:$A$883,Inscription!$C$4:$C$883)) ->  | E142: =LOOKUP(D142,Inscription!$A$4:$A$493,Inscription!$D$4:$D$493) ->  | H142: 42533.51128 | AH142: =((AG142/Inscription!$E$2)*1000) -> 
A143: 145 | B143: =PROPER(LOOKUP(D143,Inscription!$A$4:$A$883,Inscription!$B$4:$B$883)) ->  | C143: =PROPER(LOOKUP(D143,Inscription!$A$4:$A$883,Inscription!$C$4:$C$883)) ->  | E143: =LOOKUP(D143,Inscription!$A$4:$A$493,Inscription!$D$4:$D$493) ->  | H143: 42533.51128 | AH143: =((AG143/Inscription!$E$2)*1000) -> 
A144: 146 | B144: =PROPER(LOOKUP(D144,Inscription!$A$4:$A$883,Inscription!$B$4:$B$883)) ->  | C144: =PROPER(LOOKUP(D144,Inscription!$A$4:$A$883,Inscription!$C$4:$C$883)) ->  | E144: =LOOKUP(D144,Inscription!$A$4:$A$493,Inscription!$D$4:$D$493) ->  | H144: 42533.51128 | AH144: =((AG144/Inscription!$E$2)*1000) -> 
A145: 147 | B145: =PROPER(LOOKUP(D145,Inscription!$A$4:$A$883,Inscription!$B$4:$B$883)) ->  | C145: =PROPER(LOOKUP(D145,Inscription!$A$4:$A$883,Inscription!$C$4:$C$883)) ->  | E145: =LOOKUP(D145,Inscription!$A$4:$A$493,Inscription!$D$4:$D$493) ->  | H145: 42533.51128 | AH145: =((AG145/Inscription!$E$2)*1000) ->  | AJ145: =AH145/60 ->  | AK145: =AH145 -> 
A146: 148 | B146: =PROPER(LOOKUP(D146,Inscription!$A$4:$A$883,Inscription!$B$4:$B$883)) ->  | C146: =PROPER(LOOKUP(D146,Inscription!$A$4:$A$883,Inscription!$C$4:$C$883)) ->  | E146: =LOOKUP(D146,Inscription!$A$4:$A$493,Inscription!$D$4:$D$493) ->  | H146: 42533.51128 | AA146: =HOUR(J146) ->  | AB146: =MINUTE(J146) ->  | AC146: =SECOND(J146) ->  | AD146: =AA146 ->  | AE146: =AB146 ->  | AF146: =AC146 ->  | AG146: =((((AD146*60)+AE146)*60)+AF146) ->  | AH146: =((AG146/Inscription!$E$2)*1000) -> 
A147: 149 | B147: =PROPER(LOOKUP(D147,Inscription!$A$4:$A$883,Inscription!$B$4:$B$883)) ->  | C147: =PROPER(LOOKUP(D147,Inscription!$A$4:$A$883,Inscription!$C$4:$C$883)) ->  | E147: =LOOKUP(D147,Inscription!$A$4:$A$493,Inscription!$D$4:$D$493) ->  | H147: 42533.51128 | AH147: =((AG147/Inscription!$E$2)*1000) -> 
A148: 150 | B148: =PROPER(LOOKUP(D148,Inscription!$A$4:$A$883,Inscription!$B$4:$B$883)) ->  | C148: =PROPER(LOOKUP(D148,Inscription!$A$4:$A$883,Inscription!$C$4:$C$883)) ->  | E148: =LOOKUP(D148,Inscription!$A$4:$A$493,Inscription!$D$4:$D$493) ->  | H148: 42533.51128 | AH148: =((AG148/Inscription!$E$2)*1000) -> 
A149: 151 | B149: =PROPER(LOOKUP(D149,Inscription!$A$4:$A$883,Inscription!$B$4:$B$883)) ->  | C149: =PROPER(LOOKUP(D149,Inscription!$A$4:$A$883,Inscription!$C$4:$C$883)) ->  | E149: =LOOKUP(D149,Inscription!$A$4:$A$493,Inscription!$D$4:$D$493) ->  | H149: 42533.51128 | AH149: =((AG149/Inscription!$E$2)*1000) ->  | AI149: =(AH149/3600) -> 
A150: 152 | B150: =PROPER(LOOKUP(D150,Inscription!$A$4:$A$883,Inscription!$B$4:$B$883)) ->  | C150: =PROPER(LOOKUP(D150,Inscription!$A$4:$A$883,Inscription!$C$4:$C$883)) ->  | E150: =LOOKUP(D150,Inscription!$A$4:$A$493,Inscription!$D$4:$D$493) ->  | H150: 42533.51128 | AH150: =((AG150/Inscription!$E$2)*1000) -> 
A151: 153 | B151: =PROPER(LOOKUP(D151,Inscription!$A$4:$A$883,Inscription!$B$4:$B$883)) ->  | C151: =PROPER(LOOKUP(D151,Inscription!$A$4:$A$883,Inscription!$C$4:$C$883)) ->  | E151: =LOOKUP(D151,Inscription!$A$4:$A$493,Inscription!$D$4:$D$493) ->  | H151: 42533.51128 | AH151: =((AG151/Inscription!$E$2)*1000) -> 
A152: 154 | B152: =PROPER(LOOKUP(D152,Inscription!$A$4:$A$883,Inscription!$B$4:$B$883)) ->  | C152: =PROPER(LOOKUP(D152,Inscription!$A$4:$A$883,Inscription!$C$4:$C$883)) ->  | E152: =LOOKUP(D152,Inscription!$A$4:$A$493,Inscription!$D$4:$D$493) ->  | H152: 42533.51128 | AH152: =((AG152/Inscription!$E$2)*1000) -> 
A153: 155 | B153: =PROPER(LOOKUP(D153,Inscription!$A$4:$A$883,Inscription!$B$4:$B$883)) ->  | C153: =PROPER(LOOKUP(D153,Inscription!$A$4:$A$883,Inscription!$C$4:$C$883)) ->  | E153: =LOOKUP(D153,Inscription!$A$4:$A$493,Inscription!$D$4:$D$493) ->  | H153: 42533.51128 | AH153: =((AG153/Inscription!$E$2)*1000) -> 
A154: 156 | B154: =PROPER(LOOKUP(D154,Inscription!$A$4:$A$883,Inscription!$B$4:$B$883)) ->  | C154: =PROPER(LOOKUP(D154,Inscription!$A$4:$A$883,Inscription!$C$4:$C$883)) ->  | E154: =LOOKUP(D154,Inscription!$A$4:$A$493,Inscription!$D$4:$D$493) ->  | H154: 42533.51128 | AH154: =((AG154/Inscription!$E$2)*1000) -> 
A155: 157 | B155: =PROPER(LOOKUP(D155,Inscription!$A$4:$A$883,Inscription!$B$4:$B$883)) ->  | C155: =PROPER(LOOKUP(D155,Inscription!$A$4:$A$883,Inscription!$C$4:$C$883)) ->  | E155: =LOOKUP(D155,Inscription!$A$4:$A$493,Inscription!$D$4:$D$493) ->  | H155: 42533.51128 | AH155: =((AG155/Inscription!$E$2)*1000) -> 
A156: 158 | B156: =PROPER(LOOKUP(D156,Inscription!$A$4:$A$883,Inscription!$B$4:$B$883)) ->  | C156: =PROPER(LOOKUP(D156,Inscription!$A$4:$A$883,Inscription!$C$4:$C$883)) ->  | E156: =LOOKUP(D156,Inscription!$A$4:$A$493,Inscription!$D$4:$D$493) ->  | H156: 42533.51128 | AH156: =((AG156/Inscription!$E$2)*1000) -> 
A157: 159 | B157: =PROPER(LOOKUP(D157,Inscription!$A$4:$A$883,Inscription!$B$4:$B$883)) ->  | C157: =PROPER(LOOKUP(D157,Inscription!$A$4:$A$883,Inscription!$C$4:$C$883)) ->  | E157: =LOOKUP(D157,Inscription!$A$4:$A$493,Inscription!$D$4:$D$493) ->  | H157: 42533.51128 | AH157: =((AG157/Inscription!$E$2)*1000) -> 
A158: 160 | B158: =PROPER(LOOKUP(D158,Inscription!$A$4:$A$883,Inscription!$B$4:$B$883)) ->  | C158: =PROPER(LOOKUP(D158,Inscription!$A$4:$A$883,Inscription!$C$4:$C$883)) ->  | E158: =LOOKUP(D158,Inscription!$A$4:$A$493,Inscription!$D$4:$D$493) ->  | H158: 42533.51128 | AH158: =((AG158/Inscription!$E$2)*1000) -> 
A159: 161 | B159: =PROPER(LOOKUP(D159,Inscription!$A$4:$A$883,Inscription!$B$4:$B$883)) ->  | C159: =PROPER(LOOKUP(D159,Inscription!$A$4:$A$883,Inscription!$C$4:$C$883)) ->  | E159: =LOOKUP(D159,Inscription!$A$4:$A$493,Inscription!$D$4:$D$493) ->  | H159: 42533.51128 | AH159: =((AG159/Inscription!$E$2)*1000) -> 
A160: 162 | B160: =PROPER(LOOKUP(D160,Inscription!$A$4:$A$883,Inscription!$B$4:$B$883)) ->  | C160: =PROPER(LOOKUP(D160,Inscription!$A$4:$A$883,Inscription!$C$4:$C$883)) ->  | E160: =LOOKUP(D160,Inscription!$A$4:$A$493,Inscription!$D$4:$D$493) ->  | H160: 42533.51128 | AH160: =((AG160/Inscription!$E$2)*1000) -> 
A161: 163 | B161: =PROPER(LOOKUP(D161,Inscription!$A$4:$A$883,Inscription!$B$4:$B$883)) ->  | C161: =PROPER(LOOKUP(D161,Inscription!$A$4:$A$883,Inscription!$C$4:$C$883)) ->  | E161: =LOOKUP(D161,Inscription!$A$4:$A$493,Inscription!$D$4:$D$493) ->  | H161: 42533.51128 | AH161: =((AG161/Inscription!$E$2)*1000) ->  | AI161: =(AH161/3600) ->  | AT161: =IF($E161="Ef",$BI161,"") -> 
A162: 164 | B162: =PROPER(LOOKUP(D162,Inscription!$A$4:$A$883,Inscription!$B$4:$B$883)) ->  | C162: =PROPER(LOOKUP(D162,Inscription!$A$4:$A$883,Inscription!$C$4:$C$883)) ->  | E162: =LOOKUP(D162,Inscription!$A$4:$A$493,Inscription!$D$4:$D$493) ->  | H162: 42533.51128 | AH162: =((AG162/Inscription!$E$2)*1000) -> 
A163: 165 | B163: =PROPER(LOOKUP(D163,Inscription!$A$4:$A$883,Inscription!$B$4:$B$883)) ->  | C163: =PROPER(LOOKUP(D163,Inscription!$A$4:$A$883,Inscription!$C$4:$C$883)) ->  | E163: =LOOKUP(D163,Inscription!$A$4:$A$493,Inscription!$D$4:$D$493) ->  | H163: 42533.51128 | AH163: =((AG163/Inscription!$E$2)*1000) -> 
A164: 166 | B164: =PROPER(LOOKUP(D164,Inscription!$A$4:$A$883,Inscription!$B$4:$B$883)) ->  | C164: =PROPER(LOOKUP(D164,Inscription!$A$4:$A$883,Inscription!$C$4:$C$883)) ->  | E164: =LOOKUP(D164,Inscription!$A$4:$A$493,Inscription!$D$4:$D$493) ->  | H164: 42533.51128 | AH164: =((AG164/Inscription!$E$2)*1000) -> 
A165: 167 | B165: =PROPER(LOOKUP(D165,Inscription!$A$4:$A$883,Inscription!$B$4:$B$883)) ->  | C165: =PROPER(LOOKUP(D165,Inscription!$A$4:$A$883,Inscription!$C$4:$C$883)) ->  | E165: =LOOKUP(D165,Inscription!$A$4:$A$493,Inscription!$D$4:$D$493) ->  | H165: 42533.51128 | AH165: =((AG165/Inscription!$E$2)*1000) -> 
A166: 168 | B166: =PROPER(LOOKUP(D166,Inscription!$A$4:$A$883,Inscription!$B$4:$B$883)) ->  | C166: =PROPER(LOOKUP(D166,Inscription!$A$4:$A$883,Inscription!$C$4:$C$883)) ->  | E166: =LOOKUP(D166,Inscription!$A$4:$A$493,Inscription!$D$4:$D$493) ->  | H166: 42533.51128 | AH166: =((AG166/Inscription!$E$2)*1000) -> 
A167: 169 | B167: =PROPER(LOOKUP(D167,Inscription!$A$4:$A$883,Inscription!$B$4:$B$883)) ->  | C167: =PROPER(LOOKUP(D167,Inscription!$A$4:$A$883,Inscription!$C$4:$C$883)) ->  | E167: =LOOKUP(D167,Inscription!$A$4:$A$493,Inscription!$D$4:$D$493) ->  | H167: 42533.51128 | AH167: =((AG167/Inscription!$E$2)*1000) -> 
A168: 170 | B168: =PROPER(LOOKUP(D168,Inscription!$A$4:$A$883,Inscription!$B$4:$B$883)) ->  | C168: =PROPER(LOOKUP(D168,Inscription!$A$4:$A$883,Inscription!$C$4:$C$883)) ->  | E168: =LOOKUP(D168,Inscription!$A$4:$A$493,Inscription!$D$4:$D$493) ->  | H168: 42533.51128 | AH168: =((AG168/Inscription!$E$2)*1000) -> 
A169: 171 | B169: =PROPER(LOOKUP(D169,Inscription!$A$4:$A$883,Inscription!$B$4:$B$883)) ->  | C169: =PROPER(LOOKUP(D169,Inscription!$A$4:$A$883,Inscription!$C$4:$C$883)) ->  | E169: =LOOKUP(D169,Inscription!$A$4:$A$493,Inscription!$D$4:$D$493) ->  | H169: 42533.51128 | AH169: =((AG169/Inscription!$E$2)*1000) -> 
A170: 172 | B170: =PROPER(LOOKUP(D170,Inscription!$A$4:$A$883,Inscription!$B$4:$B$883)) ->  | C170: =PROPER(LOOKUP(D170,Inscription!$A$4:$A$883,Inscription!$C$4:$C$883)) ->  | E170: =LOOKUP(D170,Inscription!$A$4:$A$493,Inscription!$D$4:$D$493) ->  | H170: 42533.51128 | AH170: =((AG170/Inscription!$E$2)*1000) -> 
A171: 173 | B171: =PROPER(LOOKUP(D171,Inscription!$A$4:$A$883,Inscription!$B$4:$B$883)) ->  | C171: =PROPER(LOOKUP(D171,Inscription!$A$4:$A$883,Inscription!$C$4:$C$883)) ->  | E171: =LOOKUP(D171,Inscription!$A$4:$A$493,Inscription!$D$4:$D$493) ->  | H171: 42533.51128 | AH171: =((AG171/Inscription!$E$2)*1000) -> 
A172: 174 | B172: =PROPER(LOOKUP(D172,Inscription!$A$4:$A$883,Inscription!$B$4:$B$883)) ->  | C172: =PROPER(LOOKUP(D172,Inscription!$A$4:$A$883,Inscription!$C$4:$C$883)) ->  | E172: =LOOKUP(D172,Inscription!$A$4:$A$493,Inscription!$D$4:$D$493) ->  | H172: 42533.51128 | AH172: =((AG172/Inscription!$E$2)*1000) -> 
A173: 175 | B173: =PROPER(LOOKUP(D173,Inscription!$A$4:$A$883,Inscription!$B$4:$B$883)) ->  | C173: =PROPER(LOOKUP(D173,Inscription!$A$4:$A$883,Inscription!$C$4:$C$883)) ->  | E173: =LOOKUP(D173,Inscription!$A$4:$A$493,Inscription!$D$4:$D$493) ->  | H173: 42533.51128 | AH173: =((AG173/Inscription!$E$2)*1000) ->  | AI173: =(AH173/3600) -> 
A174: 176 | B174: =PROPER(LOOKUP(D174,Inscription!$A$4:$A$883,Inscription!$B$4:$B$883)) ->  | C174: =PROPER(LOOKUP(D174,Inscription!$A$4:$A$883,Inscription!$C$4:$C$883)) ->  | E174: =LOOKUP(D174,Inscription!$A$4:$A$493,Inscription!$D$4:$D$493) ->  | H174: 42533.51128 | AH174: =((AG174/Inscription!$E$2)*1000) -> 
A175: 177 | B175: =PROPER(LOOKUP(D175,Inscription!$A$4:$A$883,Inscription!$B$4:$B$883)) ->  | C175: =PROPER(LOOKUP(D175,Inscription!$A$4:$A$883,Inscription!$C$4:$C$883)) ->  | E175: =LOOKUP(D175,Inscription!$A$4:$A$493,Inscription!$D$4:$D$493) ->  | H175: 42533.51128 | AH175: =((AG175/Inscription!$E$2)*1000) -> 
A176: 178 | B176: =PROPER(LOOKUP(D176,Inscription!$A$4:$A$883,Inscription!$B$4:$B$883)) ->  | C176: =PROPER(LOOKUP(D176,Inscription!$A$4:$A$883,Inscription!$C$4:$C$883)) ->  | E176: =LOOKUP(D176,Inscription!$A$4:$A$493,Inscription!$D$4:$D$493) ->  | H176: 42533.51128 | AH176: =((AG176/Inscription!$E$2)*1000) -> 
A177: 179 | B177: =PROPER(LOOKUP(D177,Inscription!$A$4:$A$883,Inscription!$B$4:$B$883)) ->  | C177: =PROPER(LOOKUP(D177,Inscription!$A$4:$A$883,Inscription!$C$4:$C$883)) ->  | E177: =LOOKUP(D177,Inscription!$A$4:$A$493,Inscription!$D$4:$D$493) ->  | H177: 42533.51128 | AH177: =((AG177/Inscription!$E$2)*1000) -> 
A178: 180 | B178: =PROPER(LOOKUP(D178,Inscription!$A$4:$A$883,Inscription!$B$4:$B$883)) ->  | C178: =PROPER(LOOKUP(D178,Inscription!$A$4:$A$883,Inscription!$C$4:$C$883)) ->  | E178: =LOOKUP(D178,Inscription!$A$4:$A$493,Inscription!$D$4:$D$493) ->  | H178: 42533.51128 | AH178: =((AG178/Inscription!$E$2)*1000) -> 
A179: 181 | B179: =PROPER(LOOKUP(D179,Inscription!$A$4:$A$883,Inscription!$B$4:$B$883)) ->  | C179: =PROPER(LOOKUP(D179,Inscription!$A$4:$A$883,Inscription!$C$4:$C$883)) ->  | E179: =LOOKUP(D179,Inscription!$A$4:$A$493,Inscription!$D$4:$D$493) ->  | H179: 42533.51128 | AH179: =((AG179/Inscription!$E$2)*1000) -> 
A180: 182 | B180: =PROPER(LOOKUP(D180,Inscription!$A$4:$A$883,Inscription!$B$4:$B$883)) ->  | C180: =PROPER(LOOKUP(D180,Inscription!$A$4:$A$883,Inscription!$C$4:$C$883)) ->  | E180: =LOOKUP(D180,Inscription!$A$4:$A$493,Inscription!$D$4:$D$493) ->  | H180: 42533.51128 | AH180: =((AG180/Inscription!$E$2)*1000) -> 
A181: 183 | B181: =PROPER(LOOKUP(D181,Inscription!$A$4:$A$883,Inscription!$B$4:$B$883)) ->  | C181: =PROPER(LOOKUP(D181,Inscription!$A$4:$A$883,Inscription!$C$4:$C$883)) ->  | E181: =LOOKUP(D181,Inscription!$A$4:$A$493,Inscription!$D$4:$D$493) ->  | H181: 42533.51128 | AH181: =((AG181/Inscription!$E$2)*1000) -> 
A182: 184 | B182: =PROPER(LOOKUP(D182,Inscription!$A$4:$A$883,Inscription!$B$4:$B$883)) ->  | C182: =PROPER(LOOKUP(D182,Inscription!$A$4:$A$883,Inscription!$C$4:$C$883)) ->  | E182: =LOOKUP(D182,Inscription!$A$4:$A$493,Inscription!$D$4:$D$493) ->  | H182: 42533.51128 | AH182: =((AG182/Inscription!$E$2)*1000) -> 
A183: 185 | B183: =PROPER(LOOKUP(D183,Inscription!$A$4:$A$883,Inscription!$B$4:$B$883)) ->  | C183: =PROPER(LOOKUP(D183,Inscription!$A$4:$A$883,Inscription!$C$4:$C$883)) ->  | E183: =LOOKUP(D183,Inscription!$A$4:$A$493,Inscription!$D$4:$D$493) ->  | H183: 42533.51128 | AH183: =((AG183/Inscription!$E$2)*1000) -> 
A184: 186 | B184: =PROPER(LOOKUP(D184,Inscription!$A$4:$A$883,Inscription!$B$4:$B$883)) ->  | C184: =PROPER(LOOKUP(D184,Inscription!$A$4:$A$883,Inscription!$C$4:$C$883)) ->  | E184: =LOOKUP(D184,Inscription!$A$4:$A$493,Inscription!$D$4:$D$493) ->  | H184: =NOW() -> 42533.51128 | AH184: =((AG184/Inscription!$E$2)*1000) -> 
A185: 187 | B185: =PROPER(LOOKUP(D185,Inscription!$A$4:$A$883,Inscription!$B$4:$B$883)) ->  | C185: =PROPER(LOOKUP(D185,Inscription!$A$4:$A$883,Inscription!$C$4:$C$883)) ->  | E185: =LOOKUP(D185,Inscription!$A$4:$A$493,Inscription!$D$4:$D$493) ->  | H185: 42533.51128 | AH185: =((AG185/Inscription!$E$2)*1000) ->  | AI185: =(AH185/3600) -> 
A186: 188 | B186: =PROPER(LOOKUP(D186,Inscription!$A$4:$A$883,Inscription!$B$4:$B$883)) ->  | C186: =PROPER(LOOKUP(D186,Inscription!$A$4:$A$883,Inscription!$C$4:$C$883)) ->  | E186: =LOOKUP(D186,Inscription!$A$4:$A$493,Inscription!$D$4:$D$493) ->  | H186: 42533.51128 | AH186: =((AG186/Inscription!$E$2)*1000) -> 
A187: 189 | B187: =PROPER(LOOKUP(D187,Inscription!$A$4:$A$883,Inscription!$B$4:$B$883)) ->  | C187: =PROPER(LOOKUP(D187,Inscription!$A$4:$A$883,Inscription!$C$4:$C$883)) ->  | E187: =LOOKUP(D187,Inscription!$A$4:$A$493,Inscription!$D$4:$D$493) ->  | H187: 42533.51128 | AH187: =((AG187/Inscription!$E$2)*1000) -> 
A188: 190 | B188: =PROPER(LOOKUP(D188,Inscription!$A$4:$A$883,Inscription!$B$4:$B$883)) ->  | C188: =PROPER(LOOKUP(D188,Inscription!$A$4:$A$883,Inscription!$C$4:$C$883)) ->  | E188: =LOOKUP(D188,Inscription!$A$4:$A$493,Inscription!$D$4:$D$493) ->  | H188: 42533.51128 | AH188: =((AG188/Inscription!$E$2)*1000) -> 
A189: 191 | B189: =PROPER(LOOKUP(D189,Inscription!$A$4:$A$883,Inscription!$B$4:$B$883)) ->  | C189: =PROPER(LOOKUP(D189,Inscription!$A$4:$A$883,Inscription!$C$4:$C$883)) ->  | E189: =LOOKUP(D189,Inscription!$A$4:$A$493,Inscription!$D$4:$D$493) ->  | H189: 42533.51128 | AH189: =((AG189/Inscription!$E$2)*1000) -> 
A190: 192 | B190: =PROPER(LOOKUP(D190,Inscription!$A$4:$A$883,Inscription!$B$4:$B$883)) ->  | C190: =PROPER(LOOKUP(D190,Inscription!$A$4:$A$883,Inscription!$C$4:$C$883)) ->  | E190: =LOOKUP(D190,Inscription!$A$4:$A$493,Inscription!$D$4:$D$493) ->  | H190: 42533.51128 | AH190: =((AG190/Inscription!$E$2)*1000) -> 
A191: 193 | B191: =PROPER(LOOKUP(D191,Inscription!$A$4:$A$883,Inscription!$B$4:$B$883)) ->  | C191: =PROPER(LOOKUP(D191,Inscription!$A$4:$A$883,Inscription!$C$4:$C$883)) ->  | E191: =LOOKUP(D191,Inscription!$A$4:$A$493,Inscription!$D$4:$D$493) ->  | F191: =IF(E191="H8",AP191,IF(E191="D8",AR191,IF(E191="H4",AQ191,AS191))) ->  | H191: 42533.51128 | AH191: =((AG191/Inscription!$E$2)*1000) ->  | AT191: =IF($E191="Ef",$BI191,"") ->  | AU191: =IF($E191="D",$BK191,"") ->  | AV191: =IF($E191="A1",$BM191,"") ->  | AW191: =IF($E191="A2",$BO191,"") ->  | AX191: =IF($E191="A3",$BQ191,"") -> 
A192: 194 | B192: =PROPER(LOOKUP(D192,Inscription!$A$4:$A$883,Inscription!$B$4:$B$883)) ->  | C192: =PROPER(LOOKUP(D192,Inscription!$A$4:$A$883,Inscription!$C$4:$C$883)) ->  | E192: =LOOKUP(D192,Inscription!$A$4:$A$493,Inscription!$D$4:$D$493) ->  | H192: 42533.51128 | J192: =IF((I192-I$2)<0,"",IF((I192-I$2=0),"",I192-I$2)) ->  | K192: =W192/AG192*3.6 ->  | L192: =IF(E192="H8",AN192,IF(E192="D8",AN192,"")) ->  | M192: =IF(E192="H4",AO192,IF(E192="D4",AO192,"")) ->  | W192: =IF(E192="H10",10000,IF(E192="D10",10000,5000)) ->  | AH192: =((AG192/Inscription!$E$2)*1000) ->  | AI192: =AH192/3600 ->  | AN192: =IF(E192="H8",BK192,IF(E192="D8",BK192,"")) ->  | AO192: =IF(E192="H4",BM192,IF(E192="D4",BM192,"")) ->  | AP192: =IF($E192="H8",$BA192,"") ->  | AQ192: =IF($E192="H4",$BC192,"") ->  | AR192: =IF($E192="D8",$BE192,"") ->  | AS192: =IF($E192="D4",$BG192,"") ->  | AZ192: =IF(E192="Eg",1,0) ->  | BB192: =IF($E192="H8",1,0) ->  | BD192: =IF($E192="H4",1,0) ->  | BF192: =IF($E192="D8",1,0) ->  | BH192: =IF($E192="D4",1,0) ->  | BJ192: =IF($E192="Ef",1,0) ->  | BL192: =IF($E192="D8",1,IF(E192="H8",1,0)) ->  | BN192: =IF($E192="D4",1,IF(E192="H4",1,0)) -> 
A193: 195 | B193: =PROPER(LOOKUP(D193,Inscription!$A$4:$A$883,Inscription!$B$4:$B$883)) ->  | C193: =PROPER(LOOKUP(D193,Inscription!$A$4:$A$883,Inscription!$C$4:$C$883)) ->  | E193: =LOOKUP(D193,Inscription!$A$4:$A$493,Inscription!$D$4:$D$493) ->  | H193: 42533.51128 | AH193: =((AG193/Inscription!$E$2)*1000) ->  | AY193: =AZ193+AY192 ->  | BA193: =BB193+BA192 ->  | BC193: =BD193+BC192 ->  | BE193: =BF193+BE192 ->  | BG193: =BH193+BG192 ->  | BI193: =BJ193+BI192 ->  | BK193: =BL193+BK192 ->  | BM193: =BN193+BM192 ->  | BO193: =BP193+BO192 ->  | BP193: =IF($E193="A2",1,0) ->  | BQ193: =BR193+BQ192 ->  | BR193: =IF($E193="A3",1,0) -> 
A194: 196 | B194: =PROPER(LOOKUP(D194,Inscription!$A$4:$A$883,Inscription!$B$4:$B$883)) ->  | C194: =PROPER(LOOKUP(D194,Inscription!$A$4:$A$883,Inscription!$C$4:$C$883)) ->  | E194: =LOOKUP(D194,Inscription!$A$4:$A$493,Inscription!$D$4:$D$493) ->  | H194: 42533.51128 | AH194: =((AG194/Inscription!$E$2)*1000) -> 
A195: 197 | B195: =PROPER(LOOKUP(D195,Inscription!$A$4:$A$883,Inscription!$B$4:$B$883)) ->  | C195: =PROPER(LOOKUP(D195,Inscription!$A$4:$A$883,Inscription!$C$4:$C$883)) ->  | E195: =LOOKUP(D195,Inscription!$A$4:$A$493,Inscription!$D$4:$D$493) ->  | H195: 42533.51128 | AH195: =((AG195/Inscription!$E$2)*1000) -> 
A196: 198 | B196: =PROPER(LOOKUP(D196,Inscription!$A$4:$A$883,Inscription!$B$4:$B$883)) ->  | C196: =PROPER(LOOKUP(D196,Inscription!$A$4:$A$883,Inscription!$C$4:$C$883)) ->  | E196: =LOOKUP(D196,Inscription!$A$4:$A$493,Inscription!$D$4:$D$493) ->  | H196: 42533.51128 | AH196: =((AG196/Inscription!$E$2)*1000) -> 
A197: 199 | B197: =PROPER(LOOKUP(D197,Inscription!$A$4:$A$883,Inscription!$B$4:$B$883)) ->  | C197: =PROPER(LOOKUP(D197,Inscription!$A$4:$A$883,Inscription!$C$4:$C$883)) ->  | E197: =LOOKUP(D197,Inscription!$A$4:$A$493,Inscription!$D$4:$D$493) ->  | H197: 42533.51128 | AH197: =((AG197/Inscription!$E$2)*1000) ->  | AI197: =(AH197/3600) -> 
A198: 200 | B198: =PROPER(LOOKUP(D198,Inscription!$A$4:$A$883,Inscription!$B$4:$B$883)) ->  | C198: =PROPER(LOOKUP(D198,Inscription!$A$4:$A$883,Inscription!$C$4:$C$883)) ->  | E198: =LOOKUP(D198,Inscription!$A$4:$A$493,Inscription!$D$4:$D$493) ->  | H198: 42533.51128 | AH198: =((AG198/Inscription!$E$2)*1000) -> 
A199: 201 | B199: =PROPER(LOOKUP(D199,Inscription!$A$4:$A$883,Inscription!$B$4:$B$883)) ->  | C199: =PROPER(LOOKUP(D199,Inscription!$A$4:$A$883,Inscription!$C$4:$C$883)) ->  | E199: =LOOKUP(D199,Inscription!$A$4:$A$493,Inscription!$D$4:$D$493) ->  | H199: 42533.51128 | AH199: =((AG199/Inscription!$E$2)*1000) -> 
A200: 202 | B200: =PROPER(LOOKUP(D200,Inscription!$A$4:$A$883,Inscription!$B$4:$B$883)) ->  | C200: =PROPER(LOOKUP(D200,Inscription!$A$4:$A$883,Inscription!$C$4:$C$883)) ->  | E200: =LOOKUP(D200,Inscription!$A$4:$A$493,Inscription!$D$4:$D$493) ->  | H200: 42533.51128 | AH200: =((AG200/Inscription!$E$2)*1000) -> 
... 299 more rows

Sheet classement10m
B2: =Inscription!B2 -> Housse | D2: 8 km | F2: 2011-10-23
A5: Pl | B5: N° | C5: Nom | D5: Prénom | E5: Pla./cat. | G5: Temps | H5: km/h
A6: 1 | B6: =LOOKUP($A6,Résultats!$L$3:$L$496,Résultats!$D$4:$D$496) ->  | C6: =PROPER(LOOKUP($A6,Résultats!$L$3:$L$496,Résultats!$B$4:$B$496)) ->  | D6: =PROPER(LOOKUP($A6,Résultats!$L$3:$L$496,Résultats!$C$4:$C$496)) ->  | E6: =LOOKUP($A6,Résultats!$L$3:$L$496,Résultats!$E$3:$E$496) ->  | F6: =LOOKUP($A6,Résultats!$L$3:$L$496,Résultats!$F$3:$F$496) ->  | G6: =LOOKUP($A6,Résultats!$L$3:$L$496,Résultats!$J$3:$J$496) ->  | H6: =LOOKUP($A6,Résultats!$L$3:$L$496,Résultats!$K$3:$K$496) -> 
A7: 2 | B7: =LOOKUP($A7,Résultats!$L$3:$L$496,Résultats!$D$4:$D$496) ->  | C7: =PROPER(LOOKUP($A7,Résultats!$L$3:$L$496,Résultats!$B$4:$B$496)) ->  | D7: =PROPER(LOOKUP($A7,Résultats!$L$3:$L$496,Résultats!$C$4:$C$496)) ->  | E7: =LOOKUP($A7,Résultats!$L$3:$L$496,Résultats!$E$3:$E$496) ->  | F7: =LOOKUP($A7,Résultats!$L$3:$L$496,Résultats!$F$3:$F$496) ->  | G7: =LOOKUP($A7,Résultats!$L$3:$L$496,Résultats!$J$3:$J$496) ->  | H7: =LOOKUP($A7,Résultats!$L$3:$L$496,Résultats!$K$3:$K$496) -> 
A8: 3 | B8: =LOOKUP($A8,Résultats!$L$3:$L$496,Résultats!$D$4:$D$496) ->  | C8: =PROPER(LOOKUP($A8,Résultats!$L$3:$L$496,Résultats!$B$4:$B$496)) ->  | D8: =PROPER(LOOKUP($A8,Résultats!$L$3:$L$496,Résultats!$C$4:$C$496)) ->  | E8: =LOOKUP($A8,Résultats!$L$3:$L$496,Résultats!$E$3:$E$496) ->  | F8: =LOOKUP($A8,Résultats!$L$3:$L$496,Résultats!$F$3:$F$496) ->  | G8: =LOOKUP($A8,Résultats!$L$3:$L$496,Résultats!$J$3:$J$496) ->  | H8: =LOOKUP($A8,Résultats!$L$3:$L$496,Résultats!$K$3:$K$496) -> 
A9: 4 | B9: =LOOKUP($A9,Résultats!$L$3:$L$496,Résultats!$D$4:$D$496) ->  | C9: =PROPER(LOOKUP($A9,Résultats!$L$3:$L$496,Résultats!$B$4:$B$496)) ->  | D9: =PROPER(LOOKUP($A9,Résultats!$L$3:$L$496,Résultats!$C$4:$C$496)) ->  | E9: =LOOKUP($A9,Résultats!$L$3:$L$496,Résultats!$E$3:$E$496) ->  | F9: =LOOKUP($A9,Résultats!$L$3:$L$496,Résultats!$F$3:$F$496) ->  | G9: =LOOKUP($A9,Résultats!$L$3:$L$496,Résultats!$J$3:$J$496) ->  | H9: =LOOKUP($A9,Résultats!$L$3:$L$496,Résultats!$K$3:$K$496) -> 
A10: 5 | B10: =LOOKUP($A10,Résultats!$L$3:$L$496,Résultats!$D$4:$D$496) ->  | C10: =PROPER(LOOKUP($A10,Résultats!$L$3:$L$496,Résultats!$B$4:$B$496)) ->  | D10: =PROPER(LOOKUP($A10,Résultats!$L$3:$L$496,Résultats!$C$4:$C$496)) ->  | E10: =LOOKUP($A10,Résultats!$L$3:$L$496,Résultats!$E$3:$E$496) ->  | F10: =LOOKUP($A10,Résultats!$L$3:$L$496,Résultats!$F$3:$F$496) ->  | G10: =LOOKUP($A10,Résultats!$L$3:$L$496,Résultats!$J$3:$J$496) ->  | H10: =LOOKUP($A10,Résultats!$L$3:$L$496,Résultats!$K$3:$K$496) -> 
A11: 6 | B11: =LOOKUP($A11,Résultats!$L$3:$L$496,Résultats!$D$4:$D$496) ->  | C11: =PROPER(LOOKUP($A11,Résultats!$L$3:$L$496,Résultats!$B$4:$B$496)) ->  | D11: =PROPER(LOOKUP($A11,Résultats!$L$3:$L$496,Résultats!$C$4:$C$496)) ->  | E11: =LOOKUP($A11,Résultats!$L$3:$L$496,Résultats!$E$3:$E$496) ->  | F11: =LOOKUP($A11,Résultats!$L$3:$L$496,Résultats!$F$3:$F$496) ->  | G11: =LOOKUP($A11,Résultats!$L$3:$L$496,Résultats!$J$3:$J$496) ->  | H11: =LOOKUP($A11,Résultats!$L$3:$L$496,Résultats!$K$3:$K$496) -> 
A12: 7 | B12: =LOOKUP($A12,Résultats!$L$3:$L$496,Résultats!$D$4:$D$496) ->  | C12: =PROPER(LOOKUP($A12,Résultats!$L$3:$L$496,Résultats!$B$4:$B$496)) ->  | D12: =PROPER(LOOKUP($A12,Résultats!$L$3:$L$496,Résultats!$C$4:$C$496)) ->  | E12: =LOOKUP($A12,Résultats!$L$3:$L$496,Résultats!$E$3:$E$496) ->  | F12: =LOOKUP($A12,Résultats!$L$3:$L$496,Résultats!$F$3:$F$496) ->  | G12: =LOOKUP($A12,Résultats!$L$3:$L$496,Résultats!$J$3:$J$496) ->  | H12: =LOOKUP($A12,Résultats!$L$3:$L$496,Résultats!$K$3:$K$496) -> 
A13: 8 | B13: =LOOKUP($A13,Résultats!$L$3:$L$496,Résultats!$D$4:$D$496) ->  | C13: =PROPER(LOOKUP($A13,Résultats!$L$3:$L$496,Résultats!$B$4:$B$496)) ->  | D13: =PROPER(LOOKUP($A13,Résultats!$L$3:$L$496,Résultats!$C$4:$C$496)) ->  | E13: =LOOKUP($A13,Résultats!$L$3:$L$496,Résultats!$E$3:$E$496) ->  | F13: =LOOKUP($A13,Résultats!$L$3:$L$496,Résultats!$F$3:$F$496) ->  | G13: =LOOKUP($A13,Résultats!$L$3:$L$496,Résultats!$J$3:$J$496) ->  | H13: =LOOKUP($A13,Résultats!$L$3:$L$496,Résultats!$K$3:$K$496) -> 
A14: 9 | B14: =LOOKUP($A14,Résultats!$L$3:$L$496,Résultats!$D$4:$D$496) ->  | C14: =PROPER(LOOKUP($A14,Résultats!$L$3:$L$496,Résultats!$B$4:$B$496)) ->  | D14: =PROPER(LOOKUP($A14,Résultats!$L$3:$L$496,Résultats!$C$4:$C$496)) ->  | E14: =LOOKUP($A14,Résultats!$L$3:$L$496,Résultats!$E$3:$E$496) ->  | F14: =LOOKUP($A14,Résultats!$L$3:$L$496,Résultats!$F$3:$F$496) ->  | G14: =LOOKUP($A14,Résultats!$L$3:$L$496,Résultats!$J$3:$J$496) ->  | H14: =LOOKUP($A14,Résultats!$L$3:$L$496,Résultats!$K$3:$K$496) -> 
A15: 10 | B15: =LOOKUP($A15,Résultats!$L$3:$L$496,Résultats!$D$4:$D$496) ->  | C15: =PROPER(LOOKUP($A15,Résultats!$L$3:$L$496,Résultats!$B$4:$B$496)) ->  | D15: =PROPER(LOOKUP($A15,Résultats!$L$3:$L$496,Résultats!$C$4:$C$496)) ->  | E15: =LOOKUP($A15,Résultats!$L$3:$L$496,Résultats!$E$3:$E$496) ->  | F15: =LOOKUP($A15,Résultats!$L$3:$L$496,Résultats!$F$3:$F$496) ->  | G15: =LOOKUP($A15,Résultats!$L$3:$L$496,Résultats!$J$3:$J$496) ->  | H15: =LOOKUP($A15,Résultats!$L$3:$L$496,Résultats!$K$3:$K$496) -> 
A16: 11 | B16: =LOOKUP($A16,Résultats!$L$3:$L$496,Résultats!$D$4:$D$496) ->  | C16: =PROPER(LOOKUP($A16,Résultats!$L$3:$L$496,Résultats!$B$4:$B$496)) ->  | D16: =PROPER(LOOKUP($A16,Résultats!$L$3:$L$496,Résultats!$C$4:$C$496)) ->  | E16: =LOOKUP($A16,Résultats!$L$3:$L$496,Résultats!$E$3:$E$496) ->  | F16: =LOOKUP($A16,Résultats!$L$3:$L$496,Résultats!$F$3:$F$496) ->  | G16: =LOOKUP($A16,Résultats!$L$3:$L$496,Résultats!$J$3:$J$496) ->  | H16: =LOOKUP($A16,Résultats!$L$3:$L$496,Résultats!$K$3:$K$496) -> 
A17: 12 | B17: =LOOKUP($A17,Résultats!$L$3:$L$496,Résultats!$D$4:$D$496) ->  | C17: =PROPER(LOOKUP($A17,Résultats!$L$3:$L$496,Résultats!$B$4:$B$496)) ->  | D17: =PROPER(LOOKUP($A17,Résultats!$L$3:$L$496,Résultats!$C$4:$C$496)) ->  | E17: =LOOKUP($A17,Résultats!$L$3:$L$496,Résultats!$E$3:$E$496) ->  | F17: =LOOKUP($A17,Résultats!$L$3:$L$496,Résultats!$F$3:$F$496) ->  | G17: =LOOKUP($A17,Résultats!$L$3:$L$496,Résultats!$J$3:$J$496) ->  | H17: =LOOKUP($A17,Résultats!$L$3:$L$496,Résultats!$K$3:$K$496) -> 
A18: 13 | B18: =LOOKUP($A18,Résultats!$L$3:$L$496,Résultats!$D$4:$D$496) ->  | C18: =PROPER(LOOKUP($A18,Résultats!$L$3:$L$496,Résultats!$B$4:$B$496)) ->  | D18: =PROPER(LOOKUP($A18,Résultats!$L$3:$L$496,Résultats!$C$4:$C$496)) ->  | E18: =LOOKUP($A18,Résultats!$L$3:$L$496,Résultats!$E$3:$E$496) ->  | F18: =LOOKUP($A18,Résultats!$L$3:$L$496,Résultats!$F$3:$F$496) ->  | G18: =LOOKUP($A18,Résultats!$L$3:$L$496,Résultats!$J$3:$J$496) ->  | H18: =LOOKUP($A18,Résultats!$L$3:$L$496,Résultats!$K$3:$K$496) -> 
A19: 14 | B19: =LOOKUP($A19,Résultats!$L$3:$L$496,Résultats!$D$4:$D$496) ->  | C19: =PROPER(LOOKUP($A19,Résultats!$L$3:$L$496,Résultats!$B$4:$B$496)) ->  | D19: =PROPER(LOOKUP($A19,Résultats!$L$3:$L$496,Résultats!$C$4:$C$496)) ->  | E19: =LOOKUP($A19,Résultats!$L$3:$L$496,Résultats!$E$3:$E$496) ->  | F19: =LOOKUP($A19,Résultats!$L$3:$L$496,Résultats!$F$3:$F$496) ->  | G19: =LOOKUP($A19,Résultats!$L$3:$L$496,Résultats!$J$3:$J$496) ->  | H19: =LOOKUP($A19,Résultats!$L$3:$L$496,Résultats!$K$3:$K$496) -> 
A20: 15 | B20: =LOOKUP($A20,Résultats!$L$3:$L$496,Résultats!$D$4:$D$496) ->  | C20: =PROPER(LOOKUP($A20,Résultats!$L$3:$L$496,Résultats!$B$4:$B$496)) ->  | D20: =PROPER(LOOKUP($A20,Résultats!$L$3:$L$496,Résultats!$C$4:$C$496)) ->  | E20: =LOOKUP($A20,Résultats!$L$3:$L$496,Résultats!$E$3:$E$496) ->  | F20: =LOOKUP($A20,Résultats!$L$3:$L$496,Résultats!$F$3:$F$496) ->  | G20: =LOOKUP($A20,Résultats!$L$3:$L$496,Résultats!$J$3:$J$496) ->  | H20: =LOOKUP($A20,Résultats!$L$3:$L$496,Résultats!$K$3:$K$496) -> 
A21: 16 | B21: =LOOKUP($A21,Résultats!$L$3:$L$496,Résultats!$D$4:$D$496) ->  | C21: =PROPER(LOOKUP($A21,Résultats!$L$3:$L$496,Résultats!$B$4:$B$496)) ->  | D21: =PROPER(LOOKUP($A21,Résultats!$L$3:$L$496,Résultats!$C$4:$C$496)) ->  | E21: =LOOKUP($A21,Résultats!$L$3:$L$496,Résultats!$E$3:$E$496) ->  | F21: =LOOKUP($A21,Résultats!$L$3:$L$496,Résultats!$F$3:$F$496) ->  | G21: =LOOKUP($A21,Résultats!$L$3:$L$496,Résultats!$J$3:$J$496) ->  | H21: =LOOKUP($A21,Résultats!$L$3:$L$496,Résultats!$K$3:$K$496) -> 
A22: 17 | B22: =LOOKUP($A22,Résultats!$L$3:$L$496,Résultats!$D$4:$D$496) ->  | C22: =PROPER(LOOKUP($A22,Résultats!$L$3:$L$496,Résultats!$B$4:$B$496)) ->  | D22: =PROPER(LOOKUP($A22,Résultats!$L$3:$L$496,Résultats!$C$4:$C$496)) ->  | E22: =LOOKUP($A22,Résultats!$L$3:$L$496,Résultats!$E$3:$E$496) ->  | F22: =LOOKUP($A22,Résultats!$L$3:$L$496,Résultats!$F$3:$F$496) ->  | G22: =LOOKUP($A22,Résultats!$L$3:$L$496,Résultats!$J$3:$J$496) ->  | H22: =LOOKUP($A22,Résultats!$L$3:$L$496,Résultats!$K$3:$K$496) -> 
A23: 18 | B23: =LOOKUP($A23,Résultats!$L$3:$L$496,Résultats!$D$4:$D$496) ->  | C23: =PROPER(LOOKUP($A23,Résultats!$L$3:$L$496,Résultats!$B$4:$B$496)) ->  | D23: =PROPER(LOOKUP($A23,Résultats!$L$3:$L$496,Résultats!$C$4:$C$496)) ->  | E23: =LOOKUP($A23,Résultats!$L$3:$L$496,Résultats!$E$3:$E$496) ->  | F23: =LOOKUP($A23,Résultats!$L$3:$L$496,Résultats!$F$3:$F$496) ->  | G23: =LOOKUP($A23,Résultats!$L$3:$L$496,Résultats!$J$3:$J$496) ->  | H23: =LOOKUP($A23,Résultats!$L$3:$L$496,Résultats!$K$3:$K$496) -> 
A24: 19 | B24: =LOOKUP($A24,Résultats!$L$3:$L$496,Résultats!$D$4:$D$496) ->  | C24: =PROPER(LOOKUP($A24,Résultats!$L$3:$L$496,Résultats!$B$4:$B$496)) ->  | D24: =PROPER(LOOKUP($A24,Résultats!$L$3:$L$496,Résultats!$C$4:$C$496)) ->  | E24: =LOOKUP($A24,Résultats!$L$3:$L$496,Résultats!$E$3:$E$496) ->  | F24: =LOOKUP($A24,Résultats!$L$3:$L$496,Résultats!$F$3:$F$496) ->  | G24: =LOOKUP($A24,Résultats!$L$3:$L$496,Résultats!$J$3:$J$496) ->  | H24: =LOOKUP($A24,Résultats!$L$3:$L$496,Résultats!$K$3:$K$496) -> 
A25: 20 | B25: =LOOKUP($A25,Résultats!$L$3:$L$496,Résultats!$D$4:$D$496) ->  | C25: =PROPER(LOOKUP($A25,Résultats!$L$3:$L$496,Résultats!$B$4:$B$496)) ->  | D25: =PROPER(LOOKUP($A25,Résultats!$L$3:$L$496,Résultats!$C$4:$C$496)) ->  | E25: =LOOKUP($A25,Résultats!$L$3:$L$496,Résultats!$E$3:$E$496) ->  | F25: =LOOKUP($A25,Résultats!$L$3:$L$496,Résultats!$F$3:$F$496) ->  | G25: =LOOKUP($A25,Résultats!$L$3:$L$496,Résultats!$J$3:$J$496) ->  | H25: =LOOKUP($A25,Résultats!$L$3:$L$496,Résultats!$K$3:$K$496) -> 
A26: 21 | B26: =LOOKUP($A26,Résultats!$L$3:$L$496,Résultats!$D$4:$D$496) ->  | C26: =PROPER(LOOKUP($A26,Résultats!$L$3:$L$496,Résultats!$B$4:$B$496)) ->  | D26: =PROPER(LOOKUP($A26,Résultats!$L$3:$L$496,Résultats!$C$4:$C$496)) ->  | E26: =LOOKUP($A26,Résultats!$L$3:$L$496,Résultats!$E$3:$E$496) ->  | F26: =LOOKUP($A26,Résultats!$L$3:$L$496,Résultats!$F$3:$F$496) ->  | G26: =LOOKUP($A26,Résultats!$L$3:$L$496,Résultats!$J$3:$J$496) ->  | H26: =LOOKUP($A26,Résultats!$L$3:$L$496,Résultats!$K$3:$K$496) -> 
A27: 22 | B27: =LOOKUP($A27,Résultats!$L$3:$L$496,Résultats!$D$4:$D$496) ->  | C27: =PROPER(LOOKUP($A27,Résultats!$L$3:$L$496,Résultats!$B$4:$B$496)) ->  | D27: =PROPER(LOOKUP($A27,Résultats!$L$3:$L$496,Résultats!$C$4:$C$496)) ->  | E27: =LOOKUP($A27,Résultats!$L$3:$L$496,Résultats!$E$3:$E$496) ->  | F27: =LOOKUP($A27,Résultats!$L$3:$L$496,Résultats!$F$3:$F$496) ->  | G27: =LOOKUP($A27,Résultats!$L$3:$L$496,Résultats!$J$3:$J$496) ->  | H27: =LOOKUP($A27,Résultats!$L$3:$L$496,Résultats!$K$3:$K$496) -> 
A28: 23 | B28: =LOOKUP($A28,Résultats!$L$3:$L$496,Résultats!$D$4:$D$496) ->  | C28: =PROPER(LOOKUP($A28,Résultats!$L$3:$L$496,Résultats!$B$4:$B$496)) ->  | D28: =PROPER(LOOKUP($A28,Résultats!$L$3:$L$496,Résultats!$C$4:$C$496)) ->  | E28: =LOOKUP($A28,Résultats!$L$3:$L$496,Résultats!$E$3:$E$496) ->  | F28: =LOOKUP($A28,Résultats!$L$3:$L$496,Résultats!$F$3:$F$496) ->  | G28: =LOOKUP($A28,Résultats!$L$3:$L$496,Résultats!$J$3:$J$496) ->  | H28: =LOOKUP($A28,Résultats!$L$3:$L$496,Résultats!$K$3:$K$496) -> 
A29: 24 | B29: =LOOKUP($A29,Résultats!$L$3:$L$496,Résultats!$D$4:$D$496) ->  | C29: =PROPER(LOOKUP($A29,Résultats!$L$3:$L$496,Résultats!$B$4:$B$496)) ->  | D29: =PROPER(LOOKUP($A29,Résultats!$L$3:$L$496,Résultats!$C$4:$C$496)) ->  | E29: =LOOKUP($A29,Résultats!$L$3:$L$496,Résultats!$E$3:$E$496) ->  | F29: =LOOKUP($A29,Résultats!$L$3:$L$496,Résultats!$F$3:$F$496) ->  | G29: =LOOKUP($A29,Résultats!$L$3:$L$496,Résultats!$J$3:$J$496) ->  | H29: =LOOKUP($A29,Résultats!$L$3:$L$496,Résultats!$K$3:$K$496) -> 
A30: 25 | B30: =LOOKUP($A30,Résultats!$L$3:$L$496,Résultats!$D$4:$D$496) ->  | C30: =PROPER(LOOKUP($A30,Résultats!$L$3:$L$496,Résultats!$B$4:$B$496)) ->  | D30: =PROPER(LOOKUP($A30,Résultats!$L$3:$L$496,Résultats!$C$4:$C$496)) ->  | E30: =LOOKUP($A30,Résultats!$L$3:$L$496,Résultats!$E$3:$E$496) ->  | F30: =LOOKUP($A30,Résultats!$L$3:$L$496,Résultats!$F$3:$F$496) ->  | G30: =LOOKUP($A30,Résultats!$L$3:$L$496,Résultats!$J$3:$J$496) ->  | H30: =LOOKUP($A30,Résultats!$L$3:$L$496,Résultats!$K$3:$K$496) -> 
A31: 26 | B31: =LOOKUP($A31,Résultats!$L$3:$L$496,Résultats!$D$4:$D$496) ->  | C31: =PROPER(LOOKUP($A31,Résultats!$L$3:$L$496,Résultats!$B$4:$B$496)) ->  | D31: =PROPER(LOOKUP($A31,Résultats!$L$3:$L$496,Résultats!$C$4:$C$496)) ->  | E31: =LOOKUP($A31,Résultats!$L$3:$L$496,Résultats!$E$3:$E$496) ->  | F31: =LOOKUP($A31,Résultats!$L$3:$L$496,Résultats!$F$3:$F$496) ->  | G31: =LOOKUP($A31,Résultats!$L$3:$L$496,Résultats!$J$3:$J$496) ->  | H31: =LOOKUP($A31,Résultats!$L$3:$L$496,Résultats!$K$3:$K$496) -> 
A32: 27 | B32: =LOOKUP($A32,Résultats!$L$3:$L$496,Résultats!$D$4:$D$496) ->  | C32: =PROPER(LOOKUP($A32,Résultats!$L$3:$L$496,Résultats!$B$4:$B$496)) ->  | D32: =PROPER(LOOKUP($A32,Résultats!$L$3:$L$496,Résultats!$C$4:$C$496)) ->  | E32: =LOOKUP($A32,Résultats!$L$3:$L$496,Résultats!$E$3:$E$496) ->  | F32: =LOOKUP($A32,Résultats!$L$3:$L$496,Résultats!$F$3:$F$496) ->  | G32: =LOOKUP($A32,Résultats!$L$3:$L$496,Résultats!$J$3:$J$496) ->  | H32: =LOOKUP($A32,Résultats!$L$3:$L$496,Résultats!$K$3:$K$496) -> 
A33: 28 | B33: =LOOKUP($A33,Résultats!$L$3:$L$496,Résultats!$D$4:$D$496) ->  | C33: =PROPER(LOOKUP($A33,Résultats!$L$3:$L$496,Résultats!$B$4:$B$496)) ->  | D33: =PROPER(LOOKUP($A33,Résultats!$L$3:$L$496,Résultats!$C$4:$C$496)) ->  | E33: =LOOKUP($A33,Résultats!$L$3:$L$496,Résultats!$E$3:$E$496) ->  | F33: =LOOKUP($A33,Résultats!$L$3:$L$496,Résultats!$F$3:$F$496) ->  | G33: =LOOKUP($A33,Résultats!$L$3:$L$496,Résultats!$J$3:$J$496) ->  | H33: =LOOKUP($A33,Résultats!$L$3:$L$496,Résultats!$K$3:$K$496) -> 
A34: 29 | B34: =LOOKUP($A34,Résultats!$L$3:$L$496,Résultats!$D$4:$D$496) ->  | C34: =PROPER(LOOKUP($A34,Résultats!$L$3:$L$496,Résultats!$B$4:$B$496)) ->  | D34: =PROPER(LOOKUP($A34,Résultats!$L$3:$L$496,Résultats!$C$4:$C$496)) ->  | E34: =LOOKUP($A34,Résultats!$L$3:$L$496,Résultats!$E$3:$E$496) ->  | F34: =LOOKUP($A34,Résultats!$L$3:$L$496,Résultats!$F$3:$F$496) ->  | G34: =LOOKUP($A34,Résultats!$L$3:$L$496,Résultats!$J$3:$J$496) ->  | H34: =LOOKUP($A34,Résultats!$L$3:$L$496,Résultats!$K$3:$K$496) -> 
A35: 30 | B35: =LOOKUP($A35,Résultats!$L$3:$L$496,Résultats!$D$4:$D$496) ->  | C35: =PROPER(LOOKUP($A35,Résultats!$L$3:$L$496,Résultats!$B$4:$B$496)) ->  | D35: =PROPER(LOOKUP($A35,Résultats!$L$3:$L$496,Résultats!$C$4:$C$496)) ->  | E35: =LOOKUP($A35,Résultats!$L$3:$L$496,Résultats!$E$3:$E$496) ->  | F35: =LOOKUP($A35,Résultats!$L$3:$L$496,Résultats!$F$3:$F$496) ->  | G35: =LOOKUP($A35,Résultats!$L$3:$L$496,Résultats!$J$3:$J$496) ->  | H35: =LOOKUP($A35,Résultats!$L$3:$L$496,Résultats!$K$3:$K$496) -> 
A36: 31 | B36: =LOOKUP($A36,Résultats!$L$3:$L$496,Résultats!$D$4:$D$496) ->  | C36: =PROPER(LOOKUP($A36,Résultats!$L$3:$L$496,Résultats!$B$4:$B$496)) ->  | D36: =PROPER(LOOKUP($A36,Résultats!$L$3:$L$496,Résultats!$C$4:$C$496)) ->  | E36: =LOOKUP($A36,Résultats!$L$3:$L$496,Résultats!$E$3:$E$496) ->  | F36: =LOOKUP($A36,Résultats!$L$3:$L$496,Résultats!$F$3:$F$496) ->  | G36: =LOOKUP($A36,Résultats!$L$3:$L$496,Résultats!$J$3:$J$496) ->  | H36: =LOOKUP($A36,Résultats!$L$3:$L$496,Résultats!$K$3:$K$496) -> 
A37: 32 | B37: =LOOKUP($A37,Résultats!$L$3:$L$496,Résultats!$D$4:$D$496) ->  | C37: =PROPER(LOOKUP($A37,Résultats!$L$3:$L$496,Résultats!$B$4:$B$496)) ->  | D37: =PROPER(LOOKUP($A37,Résultats!$L$3:$L$496,Résultats!$C$4:$C$496)) ->  | E37: =LOOKUP($A37,Résultats!$L$3:$L$496,Résultats!$E$3:$E$496) ->  | F37: =LOOKUP($A37,Résultats!$L$3:$L$496,Résultats!$F$3:$F$496) ->  | G37: =LOOKUP($A37,Résultats!$L$3:$L$496,Résultats!$J$3:$J$496) ->  | H37: =LOOKUP($A37,Résultats!$L$3:$L$496,Résultats!$K$3:$K$496) -> 
A38: 33 | B38: =LOOKUP($A38,Résultats!$L$3:$L$496,Résultats!$D$4:$D$496) ->  | C38: =PROPER(LOOKUP($A38,Résultats!$L$3:$L$496,Résultats!$B$4:$B$496)) ->  | D38: =PROPER(LOOKUP($A38,Résultats!$L$3:$L$496,Résultats!$C$4:$C$496)) ->  | E38: =LOOKUP($A38,Résultats!$L$3:$L$496,Résultats!$E$3:$E$496) ->  | F38: =LOOKUP($A38,Résultats!$L$3:$L$496,Résultats!$F$3:$F$496) ->  | G38: =LOOKUP($A38,Résultats!$L$3:$L$496,Résultats!$J$3:$J$496) ->  | H38: =LOOKUP($A38,Résultats!$L$3:$L$496,Résultats!$K$3:$K$496) -> 
A39: 34 | B39: =LOOKUP($A39,Résultats!$L$3:$L$496,Résultats!$D$4:$D$496) ->  | C39: =PROPER(LOOKUP($A39,Résultats!$L$3:$L$496,Résultats!$B$4:$B$496)) ->  | D39: =PROPER(LOOKUP($A39,Résultats!$L$3:$L$496,Résultats!$C$4:$C$496)) ->  | E39: =LOOKUP($A39,Résultats!$L$3:$L$496,Résultats!$E$3:$E$496) ->  | F39: =LOOKUP($A39,Résultats!$L$3:$L$496,Résultats!$F$3:$F$496) ->  | G39: =LOOKUP($A39,Résultats!$L$3:$L$496,Résultats!$J$3:$J$496) ->  | H39: =LOOKUP($A39,Résultats!$L$3:$L$496,Résultats!$K$3:$K$496) -> 
A40: 35 | B40: =LOOKUP($A40,Résultats!$L$3:$L$496,Résultats!$D$4:$D$496) ->  | C40: =PROPER(LOOKUP($A40,Résultats!$L$3:$L$496,Résultats!$B$4:$B$496)) ->  | D40: =PROPER(LOOKUP($A40,Résultats!$L$3:$L$496,Résultats!$C$4:$C$496)) ->  | E40: =LOOKUP($A40,Résultats!$L$3:$L$496,Résultats!$E$3:$E$496) ->  | F40: =LOOKUP($A40,Résultats!$L$3:$L$496,Résultats!$F$3:$F$496) ->  | G40: =LOOKUP($A40,Résultats!$L$3:$L$496,Résultats!$J$3:$J$496) ->  | H40: =LOOKUP($A40,Résultats!$L$3:$L$496,Résultats!$K$3:$K$496) -> 
A41: 36 | B41: =LOOKUP($A41,Résultats!$AN$3:$AN$496,Résultats!$D$4:$D$496) ->  | C41: =PROPER(LOOKUP($A41,Résultats!$L$3:$L$496,Résultats!$B$4:$B$496)) ->  | D41: =PROPER(LOOKUP($A41,Résultats!$L$3:$L$496,Résultats!$C$4:$C$496)) ->  | E41: =LOOKUP($A41,Résultats!$L$3:$L$496,Résultats!$E$3:$E$496) ->  | F41: =LOOKUP($A41,Résultats!$L$3:$L$496,Résultats!$F$3:$F$496) ->  | G41: =LOOKUP($A41,Résultats!$L$3:$L$496,Résultats!$J$3:$J$496) ->  | H41: =LOOKUP($A41,Résultats!$L$3:$L$496,Résultats!$K$3:$K$496) -> 
A42: 37 | B42: =LOOKUP($A42,Résultats!$AN$3:$AN$496,Résultats!$D$4:$D$496) ->  | C42: =PROPER(LOOKUP($A42,Résultats!$L$3:$L$496,Résultats!$B$4:$B$496)) ->  | D42: =PROPER(LOOKUP($A42,Résultats!$L$3:$L$496,Résultats!$C$4:$C$496)) ->  | E42: =LOOKUP($A42,Résultats!$L$3:$L$496,Résultats!$E$3:$E$496) ->  | F42: =LOOKUP($A42,Résultats!$L$3:$L$496,Résultats!$F$3:$F$496) ->  | G42: =LOOKUP($A42,Résultats!$L$3:$L$496,Résultats!$J$3:$J$496) ->  | H42: =LOOKUP($A42,Résultats!$L$3:$L$496,Résultats!$K$3:$K$496) -> 
A43: 38 | B43: =LOOKUP($A43,Résultats!$AN$3:$AN$496,Résultats!$D$4:$D$496) ->  | C43: =PROPER(LOOKUP($A43,Résultats!$L$3:$L$496,Résultats!$B$4:$B$496)) ->  | D43: =PROPER(LOOKUP($A43,Résultats!$L$3:$L$496,Résultats!$C$4:$C$496)) ->  | E43: =LOOKUP($A43,Résultats!$L$3:$L$496,Résultats!$E$3:$E$496) ->  | F43: =LOOKUP($A43,Résultats!$L$3:$L$496,Résultats!$F$3:$F$496) ->  | G43: =LOOKUP($A43,Résultats!$L$3:$L$496,Résultats!$J$3:$J$496) ->  | H43: =LOOKUP($A43,Résultats!$L$3:$L$496,Résultats!$K$3:$K$496) -> 
A44: 39 | B44: =LOOKUP($A44,Résultats!$AN$3:$AN$496,Résultats!$D$4:$D$496) ->  | C44: =PROPER(LOOKUP($A44,Résultats!$L$3:$L$496,Résultats!$B$4:$B$496)) ->  | D44: =PROPER(LOOKUP($A44,Résultats!$L$3:$L$496,Résultats!$C$4:$C$496)) ->  | E44: =LOOKUP($A44,Résultats!$L$3:$L$496,Résultats!$E$3:$E$496) ->  | F44: =LOOKUP($A44,Résultats!$L$3:$L$496,Résultats!$F$3:$F$496) ->  | G44: =LOOKUP($A44,Résultats!$L$3:$L$496,Résultats!$J$3:$J$496) ->  | H44: =LOOKUP($A44,Résultats!$L$3:$L$496,Résultats!$K$3:$K$496) -> 
A45: 40 | B45: =LOOKUP($A45,Résultats!$AN$3:$AN$496,Résultats!$D$4:$D$496) ->  | C45: =PROPER(LOOKUP($A45,Résultats!$L$3:$L$496,Résultats!$B$4:$B$496)) ->  | D45: =PROPER(LOOKUP($A45,Résultats!$L$3:$L$496,Résultats!$C$4:$C$496)) ->  | E45: =LOOKUP($A45,Résultats!$L$3:$L$496,Résultats!$E$3:$E$496) ->  | F45: =LOOKUP($A45,Résultats!$L$3:$L$496,Résultats!$F$3:$F$496) ->  | G45: =LOOKUP($A45,Résultats!$L$3:$L$496,Résultats!$J$3:$J$496) ->  | H45: =LOOKUP($A45,Résultats!$L$3:$L$496,Résultats!$K$3:$K$496) -> 
A46: 41 | B46: =LOOKUP($A46,Résultats!$AN$3:$AN$496,Résultats!$D$4:$D$496) ->  | C46: =PROPER(LOOKUP($A46,Résultats!$L$3:$L$496,Résultats!$B$4:$B$496)) ->  | D46: =PROPER(LOOKUP($A46,Résultats!$L$3:$L$496,Résultats!$C$4:$C$496)) ->  | E46: =LOOKUP($A46,Résultats!$L$3:$L$496,Résultats!$E$3:$E$496) ->  | F46: =LOOKUP($A46,Résultats!$L$3:$L$496,Résultats!$F$3:$F$496) ->  | G46: =LOOKUP($A46,Résultats!$L$3:$L$496,Résultats!$J$3:$J$496) ->  | H46: =LOOKUP($A46,Résultats!$L$3:$L$496,Résultats!$K$3:$K$496) -> 
A47: 42 | B47: =LOOKUP($A47,Résultats!$AN$3:$AN$496,Résultats!$D$4:$D$496) ->  | C47: =PROPER(LOOKUP($A47,Résultats!$L$3:$L$496,Résultats!$B$4:$B$496)) ->  | D47: =PROPER(LOOKUP($A47,Résultats!$L$3:$L$496,Résultats!$C$4:$C$496)) ->  | E47: =LOOKUP($A47,Résultats!$L$3:$L$496,Résultats!$E$3:$E$496) ->  | F47: =LOOKUP($A47,Résultats!$L$3:$L$496,Résultats!$F$3:$F$496) ->  | G47: =LOOKUP($A47,Résultats!$L$3:$L$496,Résultats!$J$3:$J$496) ->  | H47: =LOOKUP($A47,Résultats!$L$3:$L$496,Résultats!$K$3:$K$496) -> 
A48: 43 | B48: =LOOKUP($A48,Résultats!$AN$3:$AN$496,Résultats!$D$4:$D$496) ->  | C48: =PROPER(LOOKUP($A48,Résultats!$L$3:$L$496,Résultats!$B$4:$B$496)) ->  | D48: =PROPER(LOOKUP($A48,Résultats!$L$3:$L$496,Résultats!$C$4:$C$496)) ->  | E48: =LOOKUP($A48,Résultats!$L$3:$L$496,Résultats!$E$3:$E$496) ->  | F48: =LOOKUP($A48,Résultats!$L$3:$L$496,Résultats!$F$3:$F$496) ->  | G48: =LOOKUP($A48,Résultats!$L$3:$L$496,Résultats!$J$3:$J$496) ->  | H48: =LOOKUP($A48,Résultats!$L$3:$L$496,Résultats!$K$3:$K$496) -> 
A49: 44 | B49: =LOOKUP($A49,Résultats!$AN$3:$AN$496,Résultats!$D$4:$D$496) ->  | C49: =PROPER(LOOKUP($A49,Résultats!$L$3:$L$496,Résultats!$B$4:$B$496)) ->  | D49: =PROPER(LOOKUP($A49,Résultats!$L$3:$L$496,Résultats!$C$4:$C$496)) ->  | E49: =LOOKUP($A49,Résultats!$L$3:$L$496,Résultats!$E$3:$E$496) ->  | F49: =LOOKUP($A49,Résultats!$L$3:$L$496,Résultats!$F$3:$F$496) ->  | G49: =LOOKUP($A49,Résultats!$L$3:$L$496,Résultats!$J$3:$J$496) ->  | H49: =LOOKUP($A49,Résultats!$L$3:$L$496,Résultats!$K$3:$K$496) -> 
A50: 45 | B50: =LOOKUP($A50,Résultats!$AN$3:$AN$496,Résultats!$D$4:$D$496) ->  | C50: =PROPER(LOOKUP($A50,Résultats!$L$3:$L$496,Résultats!$B$4:$B$496)) ->  | D50: =PROPER(LOOKUP($A50,Résultats!$L$3:$L$496,Résultats!$C$4:$C$496)) ->  | E50: =LOOKUP($A50,Résultats!$L$3:$L$496,Résultats!$E$3:$E$496) ->  | F50: =LOOKUP($A50,Résultats!$L$3:$L$496,Résultats!$F$3:$F$496) ->  | G50: =LOOKUP($A50,Résultats!$L$3:$L$496,Résultats!$J$3:$J$496) ->  | H50: =LOOKUP($A50,Résultats!$L$3:$L$496,Résultats!$K$3:$K$496) -> 
A51: 46 | B51: =LOOKUP($A51,Résultats!$AN$3:$AN$496,Résultats!$D$4:$D$496) ->  | C51: =PROPER(LOOKUP($A51,Résultats!$L$3:$L$496,Résultats!$B$4:$B$496)) ->  | D51: =PROPER(LOOKUP($A51,Résultats!$L$3:$L$496,Résultats!$C$4:$C$496)) ->  | E51: =LOOKUP($A51,Résultats!$L$3:$L$496,Résultats!$E$3:$E$496) ->  | F51: =LOOKUP($A51,Résultats!$L$3:$L$496,Résultats!$F$3:$F$496) ->  | G51: =LOOKUP($A51,Résultats!$L$3:$L$496,Résultats!$J$3:$J$496) ->  | H51: =LOOKUP($A51,Résultats!$L$3:$L$496,Résultats!$K$3:$K$496) -> 
A52: 47 | B52: =LOOKUP($A52,Résultats!$AN$3:$AN$496,Résultats!$D$4:$D$496) ->  | C52: =PROPER(LOOKUP($A52,Résultats!$L$3:$L$496,Résultats!$B$4:$B$496)) ->  | D52: =PROPER(LOOKUP($A52,Résultats!$L$3:$L$496,Résultats!$C$4:$C$496)) ->  | E52: =LOOKUP($A52,Résultats!$L$3:$L$496,Résultats!$E$3:$E$496) ->  | F52: =LOOKUP($A52,Résultats!$L$3:$L$496,Résultats!$F$3:$F$496) ->  | G52: =LOOKUP($A52,Résultats!$L$3:$L$496,Résultats!$J$3:$J$496) ->  | H52: =LOOKUP($A52,Résultats!$L$3:$L$496,Résultats!$K$3:$K$496) -> 
A53: 48 | B53: =LOOKUP($A53,Résultats!$AN$3:$AN$496,Résultats!$D$4:$D$496) ->  | C53: =PROPER(LOOKUP($A53,Résultats!$L$3:$L$496,Résultats!$B$4:$B$496)) ->  | D53: =PROPER(LOOKUP($A53,Résultats!$L$3:$L$496,Résultats!$C$4:$C$496)) ->  | E53: =LOOKUP($A53,Résultats!$L$3:$L$496,Résultats!$E$3:$E$496) ->  | F53: =LOOKUP($A53,Résultats!$L$3:$L$496,Résultats!$F$3:$F$496) ->  | G53: =LOOKUP($A53,Résultats!$L$3:$L$496,Résultats!$J$3:$J$496) ->  | H53: =LOOKUP($A53,Résultats!$L$3:$L$496,Résultats!$K$3:$K$496) -> 
A54: 49 | B54: =LOOKUP($A54,Résultats!$AN$3:$AN$496,Résultats!$D$4:$D$496) ->  | C54: =PROPER(LOOKUP($A54,Résultats!$L$3:$L$496,Résultats!$B$4:$B$496)) ->  | D54: =PROPER(LOOKUP($A54,Résultats!$L$3:$L$496,Résultats!$C$4:$C$496)) ->  | E54: =LOOKUP($A54,Résultats!$L$3:$L$496,Résultats!$E$3:$E$496) ->  | F54: =LOOKUP($A54,Résultats!$L$3:$L$496,Résultats!$F$3:$F$496) ->  | G54: =LOOKUP($A54,Résultats!$L$3:$L$496,Résultats!$J$3:$J$496) ->  | H54: =LOOKUP($A54,Résultats!$L$3:$L$496,Résultats!$K$3:$K$496) -> 
A55: 50 | B55: =LOOKUP($A55,Résultats!$AN$3:$AN$496,Résultats!$D$4:$D$496) ->  | C55: =PROPER(LOOKUP($A55,Résultats!$L$3:$L$496,Résultats!$B$4:$B$496)) ->  | D55: =PROPER(LOOKUP($A55,Résultats!$L$3:$L$496,Résultats!$C$4:$C$496)) ->  | E55: =LOOKUP($A55,Résultats!$L$3:$L$496,Résultats!$E$3:$E$496) ->  | F55: =LOOKUP($A55,Résultats!$L$3:$L$496,Résultats!$F$3:$F$496) ->  | G55: =LOOKUP($A55,Résultats!$L$3:$L$496,Résultats!$J$3:$J$496) ->  | H55: =LOOKUP($A55,Résultats!$L$3:$L$496,Résultats!$K$3:$K$496) -> 
A56: 51 | B56: =LOOKUP($A56,Résultats!$AN$3:$AN$496,Résultats!$D$4:$D$496) ->  | C56: =PROPER(LOOKUP($A56,Résultats!$L$3:$L$496,Résultats!$B$4:$B$496)) ->  | D56: =PROPER(LOOKUP($A56,Résultats!$L$3:$L$496,Résultats!$C$4:$C$496)) ->  | E56: =LOOKUP($A56,Résultats!$L$3:$L$496,Résultats!$E$3:$E$496) ->  | F56: =LOOKUP($A56,Résultats!$L$3:$L$496,Résultats!$F$3:$F$496) ->  | G56: =LOOKUP($A56,Résultats!$L$3:$L$496,Résultats!$J$3:$J$496) ->  | H56: =LOOKUP($A56,Résultats!$L$3:$L$496,Résultats!$K$3:$K$496) -> 
A57: 52 | B57: =LOOKUP($A57,Résultats!$AN$3:$AN$496,Résultats!$D$4:$D$496) ->  | C57: =PROPER(LOOKUP($A57,Résultats!$L$3:$L$496,Résultats!$B$4:$B$496)) ->  | D57: =PROPER(LOOKUP($A57,Résultats!$L$3:$L$496,Résultats!$C$4:$C$496)) ->  | E57: =LOOKUP($A57,Résultats!$L$3:$L$496,Résultats!$E$3:$E$496) ->  | F57: =LOOKUP($A57,Résultats!$L$3:$L$496,Résultats!$F$3:$F$496) ->  | G57: =LOOKUP($A57,Résultats!$L$3:$L$496,Résultats!$J$3:$J$496) ->  | H57: =LOOKUP($A57,Résultats!$L$3:$L$496,Résultats!$K$3:$K$496) -> 
A58: 53 | B58: =LOOKUP($A58,Résultats!$AN$3:$AN$496,Résultats!$D$4:$D$496) ->  | C58: =PROPER(LOOKUP($A58,Résultats!$L$3:$L$496,Résultats!$B$4:$B$496)) ->  | D58: =PROPER(LOOKUP($A58,Résultats!$L$3:$L$496,Résultats!$C$4:$C$496)) ->  | E58: =LOOKUP($A58,Résultats!$L$3:$L$496,Résultats!$E$3:$E$496) ->  | F58: =LOOKUP($A58,Résultats!$L$3:$L$496,Résultats!$F$3:$F$496) ->  | G58: =LOOKUP($A58,Résultats!$L$3:$L$496,Résultats!$J$3:$J$496) ->  | H58: =LOOKUP($A58,Résultats!$L$3:$L$496,Résultats!$K$3:$K$496) -> 
A59: 54 | B59: =LOOKUP($A59,Résultats!$AN$3:$AN$496,Résultats!$D$4:$D$496) ->  | C59: =PROPER(LOOKUP($A59,Résultats!$L$3:$L$496,Résultats!$B$4:$B$496)) ->  | D59: =PROPER(LOOKUP($A59,Résultats!$L$3:$L$496,Résultats!$C$4:$C$496)) ->  | E59: =LOOKUP($A59,Résultats!$L$3:$L$496,Résultats!$E$3:$E$496) ->  | F59: =LOOKUP($A59,Résultats!$L$3:$L$496,Résultats!$F$3:$F$496) ->  | G59: =LOOKUP($A59,Résultats!$L$3:$L$496,Résultats!$J$3:$J$496) ->  | H59: =LOOKUP($A59,Résultats!$L$3:$L$496,Résultats!$K$3:$K$496) -> 
A60: 55 | B60: =LOOKUP($A60,Résultats!$AN$3:$AN$496,Résultats!$D$4:$D$496) ->  | C60: =PROPER(LOOKUP($A60,Résultats!$L$3:$L$496,Résultats!$B$4:$B$496)) ->  | D60: =PROPER(LOOKUP($A60,Résultats!$L$3:$L$496,Résultats!$C$4:$C$496)) ->  | E60: =LOOKUP($A60,Résultats!$L$3:$L$496,Résultats!$E$3:$E$496) ->  | F60: =LOOKUP($A60,Résultats!$L$3:$L$496,Résultats!$F$3:$F$496) ->  | G60: =LOOKUP($A60,Résultats!$L$3:$L$496,Résultats!$J$3:$J$496) ->  | H60: =LOOKUP($A60,Résultats!$L$3:$L$496,Résultats!$K$3:$K$496) -> 
A61: 56 | B61: =LOOKUP($A61,Résultats!$AN$3:$AN$496,Résultats!$D$4:$D$496) ->  | C61: =PROPER(LOOKUP($A61,Résultats!$L$3:$L$496,Résultats!$B$4:$B$496)) ->  | D61: =PROPER(LOOKUP($A61,Résultats!$L$3:$L$496,Résultats!$C$4:$C$496)) ->  | E61: =LOOKUP($A61,Résultats!$L$3:$L$496,Résultats!$E$3:$E$496) ->  | F61: =LOOKUP($A61,Résultats!$L$3:$L$496,Résultats!$F$3:$F$496) ->  | G61: =LOOKUP($A61,Résultats!$L$3:$L$496,Résultats!$J$3:$J$496) ->  | H61: =LOOKUP($A61,Résultats!$L$3:$L$496,Résultats!$K$3:$K$496) -> 
A62: 57 | B62: =LOOKUP($A62,Résultats!$AN$3:$AN$496,Résultats!$D$4:$D$496) ->  | C62: =PROPER(LOOKUP($A62,Résultats!$L$3:$L$496,Résultats!$B$4:$B$496)) ->  | D62: =PROPER(LOOKUP($A62,Résultats!$L$3:$L$496,Résultats!$C$4:$C$496)) ->  | E62: =LOOKUP($A62,Résultats!$L$3:$L$496,Résultats!$E$3:$E$496) ->  | F62: =LOOKUP($A62,Résultats!$L$3:$L$496,Résultats!$F$3:$F$496) ->  | G62: =LOOKUP($A62,Résultats!$L$3:$L$496,Résultats!$J$3:$J$496) ->  | H62: =LOOKUP($A62,Résultats!$L$3:$L$496,Résultats!$K$3:$K$496) -> 
A63: 58 | B63: =LOOKUP($A63,Résultats!$AN$3:$AN$496,Résultats!$D$4:$D$496) ->  | C63: =PROPER(LOOKUP($A63,Résultats!$L$3:$L$496,Résultats!$B$4:$B$496)) ->  | D63: =PROPER(LOOKUP($A63,Résultats!$L$3:$L$496,Résultats!$C$4:$C$496)) ->  | E63: =LOOKUP($A63,Résultats!$L$3:$L$496,Résultats!$E$3:$E$496) ->  | F63: =LOOKUP($A63,Résultats!$L$3:$L$496,Résultats!$F$3:$F$496) ->  | G63: =LOOKUP($A63,Résultats!$L$3:$L$496,Résultats!$J$3:$J$496) ->  | H63: =LOOKUP($A63,Résultats!$L$3:$L$496,Résultats!$K$3:$K$496) -> 
A64: 59 | B64: =LOOKUP($A64,Résultats!$AN$3:$AN$496,Résultats!$D$4:$D$496) ->  | C64: =PROPER(LOOKUP($A64,Résultats!$L$3:$L$496,Résultats!$B$4:$B$496)) ->  | D64: =PROPER(LOOKUP($A64,Résultats!$L$3:$L$496,Résultats!$C$4:$C$496)) ->  | E64: =LOOKUP($A64,Résultats!$L$3:$L$496,Résultats!$E$3:$E$496) ->  | F64: =LOOKUP($A64,Résultats!$L$3:$L$496,Résultats!$F$3:$F$496) ->  | G64: =LOOKUP($A64,Résultats!$L$3:$L$496,Résultats!$J$3:$J$496) ->  | H64: =LOOKUP($A64,Résultats!$L$3:$L$496,Résultats!$K$3:$K$496) -> 
A65: 60 | B65: =LOOKUP($A65,Résultats!$AN$3:$AN$496,Résultats!$D$4:$D$496) ->  | C65: =PROPER(LOOKUP($A65,Résultats!$L$3:$L$496,Résultats!$B$4:$B$496)) ->  | D65: =PROPER(LOOKUP($A65,Résultats!$L$3:$L$496,Résultats!$C$4:$C$496)) ->  | E65: =LOOKUP($A65,Résultats!$L$3:$L$496,Résultats!$E$3:$E$496) ->  | F65: =LOOKUP($A65,Résultats!$L$3:$L$496,Résultats!$F$3:$F$496) ->  | G65: =LOOKUP($A65,Résultats!$L$3:$L$496,Résultats!$J$3:$J$496) ->  | H65: =LOOKUP($A65,Résultats!$L$3:$L$496,Résultats!$K$3:$K$496) -> 
A66: 61 | B66: =LOOKUP($A66,Résultats!$AN$3:$AN$496,Résultats!$D$4:$D$496) ->  | C66: =PROPER(LOOKUP($A66,Résultats!$L$3:$L$496,Résultats!$B$4:$B$496)) ->  | D66: =PROPER(LOOKUP($A66,Résultats!$L$3:$L$496,Résultats!$C$4:$C$496)) ->  | E66: =LOOKUP($A66,Résultats!$L$3:$L$496,Résultats!$E$3:$E$496) ->  | F66: =LOOKUP($A66,Résultats!$L$3:$L$496,Résultats!$F$3:$F$496) ->  | G66: =LOOKUP($A66,Résultats!$L$3:$L$496,Résultats!$J$3:$J$496) ->  | H66: =LOOKUP($A66,Résultats!$L$3:$L$496,Résultats!$K$3:$K$496) -> 
A67: 62 | B67: =LOOKUP($A67,Résultats!$AN$3:$AN$496,Résultats!$D$4:$D$496) ->  | C67: =PROPER(LOOKUP($A67,Résultats!$L$3:$L$496,Résultats!$B$4:$B$496)) ->  | D67: =PROPER(LOOKUP($A67,Résultats!$L$3:$L$496,Résultats!$C$4:$C$496)) ->  | E67: =LOOKUP($A67,Résultats!$L$3:$L$496,Résultats!$E$3:$E$496) ->  | F67: =LOOKUP($A67,Résultats!$L$3:$L$496,Résultats!$F$3:$F$496) ->  | G67: =LOOKUP($A67,Résultats!$L$3:$L$496,Résultats!$J$3:$J$496) ->  | H67: =LOOKUP($A67,Résultats!$L$3:$L$496,Résultats!$K$3:$K$496) -> 
A68: 63 | B68: =LOOKUP($A68,Résultats!$AN$3:$AN$496,Résultats!$D$4:$D$496) ->  | C68: =PROPER(LOOKUP($A68,Résultats!$L$3:$L$496,Résultats!$B$4:$B$496)) ->  | D68: =PROPER(LOOKUP($A68,Résultats!$L$3:$L$496,Résultats!$C$4:$C$496)) ->  | E68: =LOOKUP($A68,Résultats!$L$3:$L$496,Résultats!$E$3:$E$496) ->  | F68: =LOOKUP($A68,Résultats!$L$3:$L$496,Résultats!$F$3:$F$496) ->  | G68: =LOOKUP($A68,Résultats!$L$3:$L$496,Résultats!$J$3:$J$496) ->  | H68: =LOOKUP($A68,Résultats!$L$3:$L$496,Résultats!$K$3:$K$496) -> 
A69: 64 | B69: =LOOKUP($A69,Résultats!$AN$3:$AN$496,Résultats!$D$4:$D$496) ->  | C69: =PROPER(LOOKUP($A69,Résultats!$L$3:$L$496,Résultats!$B$4:$B$496)) ->  | D69: =PROPER(LOOKUP($A69,Résultats!$L$3:$L$496,Résultats!$C$4:$C$496)) ->  | E69: =LOOKUP($A69,Résultats!$L$3:$L$496,Résultats!$E$3:$E$496) ->  | F69: =LOOKUP($A69,Résultats!$L$3:$L$496,Résultats!$F$3:$F$496) ->  | G69: =LOOKUP($A69,Résultats!$L$3:$L$496,Résultats!$J$3:$J$496) ->  | H69: =LOOKUP($A69,Résultats!$L$3:$L$496,Résultats!$K$3:$K$496) -> 
A70: 65 | B70: =LOOKUP($A70,Résultats!$AN$3:$AN$496,Résultats!$D$4:$D$496) ->  | C70: =PROPER(LOOKUP($A70,Résultats!$L$3:$L$496,Résultats!$B$4:$B$496)) ->  | D70: =PROPER(LOOKUP($A70,Résultats!$L$3:$L$496,Résultats!$C$4:$C$496)) ->  | E70: =LOOKUP($A70,Résultats!$L$3:$L$496,Résultats!$E$3:$E$496) ->  | F70: =LOOKUP($A70,Résultats!$L$3:$L$496,Résultats!$F$3:$F$496) ->  | G70: =LOOKUP($A70,Résultats!$L$3:$L$496,Résultats!$J$3:$J$496) ->  | H70: =LOOKUP($A70,Résultats!$L$3:$L$496,Résultats!$K$3:$K$496) -> 
A71: 66 | B71: =LOOKUP($A71,Résultats!$AN$3:$AN$496,Résultats!$D$4:$D$496) ->  | C71: =PROPER(LOOKUP($A71,Résultats!$L$3:$L$496,Résultats!$B$4:$B$496)) ->  | D71: =PROPER(LOOKUP($A71,Résultats!$L$3:$L$496,Résultats!$C$4:$C$496)) ->  | E71: =LOOKUP($A71,Résultats!$L$3:$L$496,Résultats!$E$3:$E$496) ->  | F71: =LOOKUP($A71,Résultats!$L$3:$L$496,Résultats!$F$3:$F$496) ->  | G71: =LOOKUP($A71,Résultats!$L$3:$L$496,Résultats!$J$3:$J$496) ->  | H71: =LOOKUP($A71,Résultats!$L$3:$L$496,Résultats!$K$3:$K$496) -> 
A72: 67 | B72: =LOOKUP($A72,Résultats!$AN$3:$AN$496,Résultats!$D$4:$D$496) ->  | C72: =PROPER(LOOKUP($A72,Résultats!$L$3:$L$496,Résultats!$B$4:$B$496)) ->  | D72: =PROPER(LOOKUP($A72,Résultats!$L$3:$L$496,Résultats!$C$4:$C$496)) ->  | E72: =LOOKUP($A72,Résultats!$L$3:$L$496,Résultats!$E$3:$E$496) ->  | F72: =LOOKUP($A72,Résultats!$L$3:$L$496,Résultats!$F$3:$F$496) ->  | G72: =LOOKUP($A72,Résultats!$L$3:$L$496,Résultats!$J$3:$J$496) ->  | H72: =LOOKUP($A72,Résultats!$L$3:$L$496,Résultats!$K$3:$K$496) -> 
A73: 68 | B73: =LOOKUP($A73,Résultats!$AN$3:$AN$496,Résultats!$D$4:$D$496) ->  | C73: =PROPER(LOOKUP($A73,Résultats!$L$3:$L$496,Résultats!$B$4:$B$496)) ->  | D73: =PROPER(LOOKUP($A73,Résultats!$L$3:$L$496,Résultats!$C$4:$C$496)) ->  | E73: =LOOKUP($A73,Résultats!$L$3:$L$496,Résultats!$E$3:$E$496) ->  | F73: =LOOKUP($A73,Résultats!$L$3:$L$496,Résultats!$F$3:$F$496) ->  | G73: =LOOKUP($A73,Résultats!$L$3:$L$496,Résultats!$J$3:$J$496) ->  | H73: =LOOKUP($A73,Résultats!$L$3:$L$496,Résultats!$K$3:$K$496) -> 
A74: 69 | B74: =LOOKUP($A74,Résultats!$AN$3:$AN$496,Résultats!$D$4:$D$496) ->  | C74: =PROPER(LOOKUP($A74,Résultats!$L$3:$L$496,Résultats!$B$4:$B$496)) ->  | D74: =PROPER(LOOKUP($A74,Résultats!$L$3:$L$496,Résultats!$C$4:$C$496)) ->  | E74: =LOOKUP($A74,Résultats!$L$3:$L$496,Résultats!$E$3:$E$496) ->  | F74: =LOOKUP($A74,Résultats!$L$3:$L$496,Résultats!$F$3:$F$496) ->  | G74: =LOOKUP($A74,Résultats!$L$3:$L$496,Résultats!$J$3:$J$496) ->  | H74: =LOOKUP($A74,Résultats!$L$3:$L$496,Résultats!$K$3:$K$496) -> 
A75: 70 | B75: =LOOKUP($A75,Résultats!$AN$3:$AN$496,Résultats!$D$4:$D$496) ->  | C75: =PROPER(LOOKUP($A75,Résultats!$L$3:$L$496,Résultats!$B$4:$B$496)) ->  | D75: =PROPER(LOOKUP($A75,Résultats!$L$3:$L$496,Résultats!$C$4:$C$496)) ->  | E75: =LOOKUP($A75,Résultats!$L$3:$L$496,Résultats!$E$3:$E$496) ->  | F75: =LOOKUP($A75,Résultats!$L$3:$L$496,Résultats!$F$3:$F$496) ->  | G75: =LOOKUP($A75,Résultats!$L$3:$L$496,Résultats!$J$3:$J$496) ->  | H75: =LOOKUP($A75,Résultats!$L$3:$L$496,Résultats!$K$3:$K$496) -> 
A76: 71 | B76: =LOOKUP($A76,Résultats!$AN$3:$AN$496,Résultats!$D$4:$D$496) ->  | C76: =PROPER(LOOKUP($A76,Résultats!$L$3:$L$496,Résultats!$B$4:$B$496)) ->  | D76: =PROPER(LOOKUP($A76,Résultats!$L$3:$L$496,Résultats!$C$4:$C$496)) ->  | E76: =LOOKUP($A76,Résultats!$L$3:$L$496,Résultats!$E$3:$E$496) ->  | F76: =LOOKUP($A76,Résultats!$L$3:$L$496,Résultats!$F$3:$F$496) ->  | G76: =LOOKUP($A76,Résultats!$L$3:$L$496,Résultats!$J$3:$J$496) ->  | H76: =LOOKUP($A76,Résultats!$L$3:$L$496,Résultats!$K$3:$K$496) -> 
A77: 72 | B77: =LOOKUP($A77,Résultats!$AN$3:$AN$496,Résultats!$D$4:$D$496) ->  | C77: =PROPER(LOOKUP($A77,Résultats!$L$3:$L$496,Résultats!$B$4:$B$496)) ->  | D77: =PROPER(LOOKUP($A77,Résultats!$L$3:$L$496,Résultats!$C$4:$C$496)) ->  | E77: =LOOKUP($A77,Résultats!$L$3:$L$496,Résultats!$E$3:$E$496) ->  | F77: =LOOKUP($A77,Résultats!$L$3:$L$496,Résultats!$F$3:$F$496) ->  | G77: =LOOKUP($A77,Résultats!$L$3:$L$496,Résultats!$J$3:$J$496) ->  | H77: =LOOKUP($A77,Résultats!$L$3:$L$496,Résultats!$K$3:$K$496) -> 
A78: 73 | B78: =LOOKUP($A78,Résultats!$AN$3:$AN$496,Résultats!$D$4:$D$496) ->  | C78: =PROPER(LOOKUP($A78,Résultats!$L$3:$L$496,Résultats!$B$4:$B$496)) ->  | D78: =PROPER(LOOKUP($A78,Résultats!$L$3:$L$496,Résultats!$C$4:$C$496)) ->  | E78: =LOOKUP($A78,Résultats!$L$3:$L$496,Résultats!$E$3:$E$496) ->  | F78: =LOOKUP($A78,Résultats!$L$3:$L$496,Résultats!$F$3:$F$496) ->  | G78: =LOOKUP($A78,Résultats!$L$3:$L$496,Résultats!$J$3:$J$496) ->  | H78: =LOOKUP($A78,Résultats!$L$3:$L$496,Résultats!$K$3:$K$496) -> 
A79: 74 | B79: =LOOKUP($A79,Résultats!$AN$3:$AN$496,Résultats!$D$4:$D$496) ->  | C79: =PROPER(LOOKUP($A79,Résultats!$L$3:$L$496,Résultats!$B$4:$B$496)) ->  | D79: =PROPER(LOOKUP($A79,Résultats!$L$3:$L$496,Résultats!$C$4:$C$496)) ->  | E79: =LOOKUP($A79,Résultats!$L$3:$L$496,Résultats!$E$3:$E$496) ->  | F79: =LOOKUP($A79,Résultats!$L$3:$L$496,Résultats!$F$3:$F$496) ->  | G79: =LOOKUP($A79,Résultats!$L$3:$L$496,Résultats!$J$3:$J$496) ->  | H79: =LOOKUP($A79,Résultats!$L$3:$L$496,Résultats!$K$3:$K$496) -> 
A80: 75 | B80: =LOOKUP($A80,Résultats!$AN$3:$AN$496,Résultats!$D$4:$D$496) ->  | C80: =PROPER(LOOKUP($A80,Résultats!$L$3:$L$496,Résultats!$B$4:$B$496)) ->  | D80: =PROPER(LOOKUP($A80,Résultats!$L$3:$L$496,Résultats!$C$4:$C$496)) ->  | E80: =LOOKUP($A80,Résultats!$L$3:$L$496,Résultats!$E$3:$E$496) ->  | F80: =LOOKUP($A80,Résultats!$L$3:$L$496,Résultats!$F$3:$F$496) ->  | G80: =LOOKUP($A80,Résultats!$L$3:$L$496,Résultats!$J$3:$J$496) ->  | H80: =LOOKUP($A80,Résultats!$L$3:$L$496,Résultats!$K$3:$K$496) -> 
A81: 76 | B81: =LOOKUP($A81,Résultats!$AN$3:$AN$496,Résultats!$D$4:$D$496) ->  | C81: =PROPER(LOOKUP($A81,Résultats!$L$3:$L$496,Résultats!$B$4:$B$496)) ->  | D81: =PROPER(LOOKUP($A81,Résultats!$L$3:$L$496,Résultats!$C$4:$C$496)) ->  | E81: =LOOKUP($A81,Résultats!$L$3:$L$496,Résultats!$E$3:$E$496) ->  | F81: =LOOKUP($A81,Résultats!$L$3:$L$496,Résultats!$F$3:$F$496) ->  | G81: =LOOKUP($A81,Résultats!$L$3:$L$496,Résultats!$J$3:$J$496) ->  | H81: =LOOKUP($A81,Résultats!$L$3:$L$496,Résultats!$K$3:$K$496) -> 
A82: 77 | B82: =LOOKUP($A82,Résultats!$AN$3:$AN$496,Résultats!$D$4:$D$496) ->  | C82: =PROPER(LOOKUP($A82,Résultats!$L$3:$L$496,Résultats!$B$4:$B$496)) ->  | D82: =PROPER(LOOKUP($A82,Résultats!$L$3:$L$496,Résultats!$C$4:$C$496)) ->  | E82: =LOOKUP($A82,Résultats!$L$3:$L$496,Résultats!$E$3:$E$496) ->  | F82: =LOOKUP($A82,Résultats!$L$3:$L$496,Résultats!$F$3:$F$496) ->  | G82: =LOOKUP($A82,Résultats!$L$3:$L$496,Résultats!$J$3:$J$496) ->  | H82: =LOOKUP($A82,Résultats!$L$3:$L$496,Résultats!$K$3:$K$496) -> 
A83: 78 | B83: =LOOKUP($A83,Résultats!$AN$3:$AN$496,Résultats!$D$4:$D$496) ->  | C83: =PROPER(LOOKUP($A83,Résultats!$L$3:$L$496,Résultats!$B$4:$B$496)) ->  | D83: =PROPER(LOOKUP($A83,Résultats!$L$3:$L$496,Résultats!$C$4:$C$496)) ->  | E83: =LOOKUP($A83,Résultats!$L$3:$L$496,Résultats!$E$3:$E$496) ->  | F83: =LOOKUP($A83,Résultats!$L$3:$L$496,Résultats!$F$3:$F$496) ->  | G83: =LOOKUP($A83,Résultats!$L$3:$L$496,Résultats!$J$3:$J$496) ->  | H83: =LOOKUP($A83,Résultats!$L$3:$L$496,Résultats!$K$3:$K$496) -> 
A84: 79 | B84: =LOOKUP($A84,Résultats!$AN$3:$AN$496,Résultats!$D$4:$D$496) ->  | C84: =PROPER(LOOKUP($A84,Résultats!$L$3:$L$496,Résultats!$B$4:$B$496)) ->  | D84: =PROPER(LOOKUP($A84,Résultats!$L$3:$L$496,Résultats!$C$4:$C$496)) ->  | E84: =LOOKUP($A84,Résultats!$L$3:$L$496,Résultats!$E$3:$E$496) ->  | F84: =LOOKUP($A84,Résultats!$L$3:$L$496,Résultats!$F$3:$F$496) ->  | G84: =LOOKUP($A84,Résultats!$L$3:$L$496,Résultats!$J$3:$J$496) ->  | H84: =LOOKUP($A84,Résultats!$L$3:$L$496,Résultats!$K$3:$K$496) -> 
A85: 80 | B85: =LOOKUP($A85,Résultats!$AN$3:$AN$496,Résultats!$D$4:$D$496) ->  | C85: =PROPER(LOOKUP($A85,Résultats!$L$3:$L$496,Résultats!$B$4:$B$496)) ->  | D85: =PROPER(LOOKUP($A85,Résultats!$L$3:$L$496,Résultats!$C$4:$C$496)) ->  | E85: =LOOKUP($A85,Résultats!$L$3:$L$496,Résultats!$E$3:$E$496) ->  | F85: =LOOKUP($A85,Résultats!$L$3:$L$496,Résultats!$F$3:$F$496) ->  | G85: =LOOKUP($A85,Résultats!$L$3:$L$496,Résultats!$J$3:$J$496) ->  | H85: =LOOKUP($A85,Résultats!$L$3:$L$496,Résultats!$K$3:$K$496) -> 
A86: 81 | B86: =LOOKUP($A86,Résultats!$AN$3:$AN$496,Résultats!$D$4:$D$496) ->  | C86: =PROPER(LOOKUP($A86,Résultats!$L$3:$L$496,Résultats!$B$4:$B$496)) ->  | D86: =PROPER(LOOKUP($A86,Résultats!$L$3:$L$496,Résultats!$C$4:$C$496)) ->  | E86: =LOOKUP($A86,Résultats!$L$3:$L$496,Résultats!$E$3:$E$496) ->  | F86: =LOOKUP($A86,Résultats!$L$3:$L$496,Résultats!$F$3:$F$496) ->  | G86: =LOOKUP($A86,Résultats!$L$3:$L$496,Résultats!$J$3:$J$496) ->  | H86: =LOOKUP($A86,Résultats!$L$3:$L$496,Résultats!$K$3:$K$496) -> 
A87: 82 | B87: =LOOKUP($A87,Résultats!$AN$3:$AN$496,Résultats!$D$4:$D$496) ->  | C87: =PROPER(LOOKUP($A87,Résultats!$L$3:$L$496,Résultats!$B$4:$B$496)) ->  | D87: =PROPER(LOOKUP($A87,Résultats!$L$3:$L$496,Résultats!$C$4:$C$496)) ->  | E87: =LOOKUP($A87,Résultats!$L$3:$L$496,Résultats!$E$3:$E$496) ->  | F87: =LOOKUP($A87,Résultats!$L$3:$L$496,Résultats!$F$3:$F$496) ->  | G87: =LOOKUP($A87,Résultats!$L$3:$L$496,Résultats!$J$3:$J$496) ->  | H87: =LOOKUP($A87,Résultats!$L$3:$L$496,Résultats!$K$3:$K$496) -> 
A88: 83 | B88: =LOOKUP($A88,Résultats!$AN$3:$AN$496,Résultats!$D$4:$D$496) ->  | C88: =PROPER(LOOKUP($A88,Résultats!$L$3:$L$496,Résultats!$B$4:$B$496)) ->  | D88: =PROPER(LOOKUP($A88,Résultats!$L$3:$L$496,Résultats!$C$4:$C$496)) ->  | E88: =LOOKUP($A88,Résultats!$L$3:$L$496,Résultats!$E$3:$E$496) ->  | F88: =LOOKUP($A88,Résultats!$L$3:$L$496,Résultats!$F$3:$F$496) ->  | G88: =LOOKUP($A88,Résultats!$L$3:$L$496,Résultats!$J$3:$J$496) ->  | H88: =LOOKUP($A88,Résultats!$L$3:$L$496,Résultats!$K$3:$K$496) -> 
A89: 84 | B89: =LOOKUP($A89,Résultats!$AN$3:$AN$496,Résultats!$D$4:$D$496) ->  | C89: =PROPER(LOOKUP($A89,Résultats!$L$3:$L$496,Résultats!$B$4:$B$496)) ->  | D89: =PROPER(LOOKUP($A89,Résultats!$L$3:$L$496,Résultats!$C$4:$C$496)) ->  | E89: =LOOKUP($A89,Résultats!$L$3:$L$496,Résultats!$E$3:$E$496) ->  | F89: =LOOKUP($A89,Résultats!$L$3:$L$496,Résultats!$F$3:$F$496) ->  | G89: =LOOKUP($A89,Résultats!$L$3:$L$496,Résultats!$J$3:$J$496) ->  | H89: =LOOKUP($A89,Résultats!$L$3:$L$496,Résultats!$K$3:$K$496) -> 
A90: 85 | B90: =LOOKUP($A90,Résultats!$AN$3:$AN$496,Résultats!$D$4:$D$496) ->  | C90: =PROPER(LOOKUP($A90,Résultats!$L$3:$L$496,Résultats!$B$4:$B$496)) ->  | D90: =PROPER(LOOKUP($A90,Résultats!$L$3:$L$496,Résultats!$C$4:$C$496)) ->  | E90: =LOOKUP($A90,Résultats!$L$3:$L$496,Résultats!$E$3:$E$496) ->  | F90: =LOOKUP($A90,Résultats!$L$3:$L$496,Résultats!$F$3:$F$496) ->  | G90: =LOOKUP($A90,Résultats!$L$3:$L$496,Résultats!$J$3:$J$496) ->  | H90: =LOOKUP($A90,Résultats!$L$3:$L$496,Résultats!$K$3:$K$496) -> 
A91: 86 | B91: =LOOKUP($A91,Résultats!$AN$3:$AN$496,Résultats!$D$4:$D$496) ->  | C91: =PROPER(LOOKUP($A91,Résultats!$L$3:$L$496,Résultats!$B$4:$B$496)) ->  | D91: =PROPER(LOOKUP($A91,Résultats!$L$3:$L$496,Résultats!$C$4:$C$496)) ->  | E91: =LOOKUP($A91,Résultats!$L$3:$L$496,Résultats!$E$3:$E$496) ->  | F91: =LOOKUP($A91,Résultats!$L$3:$L$496,Résultats!$F$3:$F$496) ->  | G91: =LOOKUP($A91,Résultats!$L$3:$L$496,Résultats!$J$3:$J$496) ->  | H91: =LOOKUP($A91,Résultats!$L$3:$L$496,Résultats!$K$3:$K$496) -> 
A92: 87 | B92: =LOOKUP($A92,Résultats!$AN$3:$AN$496,Résultats!$D$4:$D$496) ->  | C92: =PROPER(LOOKUP($A92,Résultats!$L$3:$L$496,Résultats!$B$4:$B$496)) ->  | D92: =PROPER(LOOKUP($A92,Résultats!$L$3:$L$496,Résultats!$C$4:$C$496)) ->  | E92: =LOOKUP($A92,Résultats!$L$3:$L$496,Résultats!$E$3:$E$496) ->  | F92: =LOOKUP($A92,Résultats!$L$3:$L$496,Résultats!$F$3:$F$496) ->  | G92: =LOOKUP($A92,Résultats!$L$3:$L$496,Résultats!$J$3:$J$496) ->  | H92: =LOOKUP($A92,Résultats!$L$3:$L$496,Résultats!$K$3:$K$496) -> 
A93: 88 | B93: =LOOKUP($A93,Résultats!$AN$3:$AN$496,Résultats!$D$4:$D$496) ->  | C93: =PROPER(LOOKUP($A93,Résultats!$L$3:$L$496,Résultats!$B$4:$B$496)) ->  | D93: =PROPER(LOOKUP($A93,Résultats!$L$3:$L$496,Résultats!$C$4:$C$496)) ->  | E93: =LOOKUP($A93,Résultats!$L$3:$L$496,Résultats!$E$3:$E$496) ->  | F93: =LOOKUP($A93,Résultats!$L$3:$L$496,Résultats!$F$3:$F$496) ->  | G93: =LOOKUP($A93,Résultats!$L$3:$L$496,Résultats!$J$3:$J$496) ->  | H93: =LOOKUP($A93,Résultats!$L$3:$L$496,Résultats!$K$3:$K$496) -> 
A94: 89 | B94: =LOOKUP($A94,Résultats!$AN$3:$AN$496,Résultats!$D$4:$D$496) ->  | C94: =PROPER(LOOKUP($A94,Résultats!$L$3:$L$496,Résultats!$B$4:$B$496)) ->  | D94: =PROPER(LOOKUP($A94,Résultats!$L$3:$L$496,Résultats!$C$4:$C$496)) ->  | E94: =LOOKUP($A94,Résultats!$L$3:$L$496,Résultats!$E$3:$E$496) ->  | F94: =LOOKUP($A94,Résultats!$L$3:$L$496,Résultats!$F$3:$F$496) ->  | G94: =LOOKUP($A94,Résultats!$L$3:$L$496,Résultats!$J$3:$J$496) ->  | H94: =LOOKUP($A94,Résultats!$L$3:$L$496,Résultats!$K$3:$K$496) -> 
A95: 90 | B95: =LOOKUP($A95,Résultats!$AN$3:$AN$496,Résultats!$D$4:$D$496) ->  | C95: =PROPER(LOOKUP($A95,Résultats!$L$3:$L$496,Résultats!$B$4:$B$496)) ->  | D95: =PROPER(LOOKUP($A95,Résultats!$L$3:$L$496,Résultats!$C$4:$C$496)) ->  | E95: =LOOKUP($A95,Résultats!$L$3:$L$496,Résultats!$E$3:$E$496) ->  | F95: =LOOKUP($A95,Résultats!$L$3:$L$496,Résultats!$F$3:$F$496) ->  | G95: =LOOKUP($A95,Résultats!$L$3:$L$496,Résultats!$J$3:$J$496) ->  | H95: =LOOKUP($A95,Résultats!$L$3:$L$496,Résultats!$K$3:$K$496) -> 
A96: 91 | B96: =LOOKUP($A96,Résultats!$AN$3:$AN$496,Résultats!$D$4:$D$496) ->  | C96: =PROPER(LOOKUP($A96,Résultats!$L$3:$L$496,Résultats!$B$4:$B$496)) ->  | D96: =PROPER(LOOKUP($A96,Résultats!$L$3:$L$496,Résultats!$C$4:$C$496)) ->  | E96: =LOOKUP($A96,Résultats!$L$3:$L$496,Résultats!$E$3:$E$496) ->  | F96: =LOOKUP($A96,Résultats!$L$3:$L$496,Résultats!$F$3:$F$496) ->  | G96: =LOOKUP($A96,Résultats!$L$3:$L$496,Résultats!$J$3:$J$496) ->  | H96: =LOOKUP($A96,Résultats!$L$3:$L$496,Résultats!$K$3:$K$496) -> 
A97: 92 | B97: =LOOKUP($A97,Résultats!$AN$3:$AN$496,Résultats!$D$4:$D$496) ->  | C97: =PROPER(LOOKUP($A97,Résultats!$L$3:$L$496,Résultats!$B$4:$B$496)) ->  | D97: =PROPER(LOOKUP($A97,Résultats!$L$3:$L$496,Résultats!$C$4:$C$496)) ->  | E97: =LOOKUP($A97,Résultats!$L$3:$L$496,Résultats!$E$3:$E$496) ->  | F97: =LOOKUP($A97,Résultats!$L$3:$L$496,Résultats!$F$3:$F$496) ->  | G97: =LOOKUP($A97,Résultats!$L$3:$L$496,Résultats!$J$3:$J$496) ->  | H97: =LOOKUP($A97,Résultats!$L$3:$L$496,Résultats!$K$3:$K$496) -> 
A98: 93 | B98: =LOOKUP($A98,Résultats!$AN$3:$AN$496,Résultats!$D$4:$D$496) ->  | C98: =PROPER(LOOKUP($A98,Résultats!$L$3:$L$496,Résultats!$B$4:$B$496)) ->  | D98: =PROPER(LOOKUP($A98,Résultats!$L$3:$L$496,Résultats!$C$4:$C$496)) ->  | E98: =LOOKUP($A98,Résultats!$L$3:$L$496,Résultats!$E$3:$E$496) ->  | F98: =LOOKUP($A98,Résultats!$L$3:$L$496,Résultats!$F$3:$F$496) ->  | G98: =LOOKUP($A98,Résultats!$L$3:$L$496,Résultats!$J$3:$J$496) ->  | H98: =LOOKUP($A98,Résultats!$L$3:$L$496,Résultats!$K$3:$K$496) -> 
A99: 94 | B99: =LOOKUP($A99,Résultats!$AN$3:$AN$496,Résultats!$D$4:$D$496) ->  | C99: =PROPER(LOOKUP($A99,Résultats!$L$3:$L$496,Résultats!$B$4:$B$496)) ->  | D99: =PROPER(LOOKUP($A99,Résultats!$L$3:$L$496,Résultats!$C$4:$C$496)) ->  | E99: =LOOKUP($A99,Résultats!$L$3:$L$496,Résultats!$E$3:$E$496) ->  | F99: =LOOKUP($A99,Résultats!$L$3:$L$496,Résultats!$F$3:$F$496) ->  | G99: =LOOKUP($A99,Résultats!$L$3:$L$496,Résultats!$J$3:$J$496) ->  | H99: =LOOKUP($A99,Résultats!$L$3:$L$496,Résultats!$K$3:$K$496) -> 
A100: 95 | B100: =LOOKUP($A100,Résultats!$AN$3:$AN$496,Résultats!$D$4:$D$496) ->  | C100: =PROPER(LOOKUP($A100,Résultats!$L$3:$L$496,Résultats!$B$4:$B$496)) ->  | D100: =PROPER(LOOKUP($A100,Résultats!$L$3:$L$496,Résultats!$C$4:$C$496)) ->  | E100: =LOOKUP($A100,Résultats!$L$3:$L$496,Résultats!$E$3:$E$496) ->  | F100: =LOOKUP($A100,Résultats!$L$3:$L$496,Résultats!$F$3:$F$496) ->  | G100: =LOOKUP($A100,Résultats!$L$3:$L$496,Résultats!$J$3:$J$496) ->  | H100: =LOOKUP($A100,Résultats!$L$3:$L$496,Résultats!$K$3:$K$496) -> 
A101: 96 | B101: =LOOKUP($A101,Résultats!$AN$3:$AN$496,Résultats!$D$4:$D$496) ->  | C101: =PROPER(LOOKUP($A101,Résultats!$L$3:$L$496,Résultats!$B$4:$B$496)) ->  | D101: =PROPER(LOOKUP($A101,Résultats!$L$3:$L$496,Résultats!$C$4:$C$496)) ->  | E101: =LOOKUP($A101,Résultats!$L$3:$L$496,Résultats!$E$3:$E$496) ->  | F101: =LOOKUP($A101,Résultats!$L$3:$L$496,Résultats!$F$3:$F$496) ->  | G101: =LOOKUP($A101,Résultats!$L$3:$L$496,Résultats!$J$3:$J$496) ->  | H101: =LOOKUP($A101,Résultats!$L$3:$L$496,Résultats!$K$3:$K$496) -> 
A102: 97 | B102: =LOOKUP($A102,Résultats!$AN$3:$AN$496,Résultats!$D$4:$D$496) ->  | C102: =PROPER(LOOKUP($A102,Résultats!$L$3:$L$496,Résultats!$B$4:$B$496)) ->  | D102: =PROPER(LOOKUP($A102,Résultats!$L$3:$L$496,Résultats!$C$4:$C$496)) ->  | E102: =LOOKUP($A102,Résultats!$L$3:$L$496,Résultats!$E$3:$E$496) ->  | F102: =LOOKUP($A102,Résultats!$L$3:$L$496,Résultats!$F$3:$F$496) ->  | G102: =LOOKUP($A102,Résultats!$L$3:$L$496,Résultats!$J$3:$J$496) ->  | H102: =LOOKUP($A102,Résultats!$L$3:$L$496,Résultats!$K$3:$K$496) -> 
A103: 98 | B103: =LOOKUP($A103,Résultats!$AN$3:$AN$496,Résultats!$D$4:$D$496) ->  | C103: =PROPER(LOOKUP($A103,Résultats!$L$3:$L$496,Résultats!$B$4:$B$496)) ->  | D103: =PROPER(LOOKUP($A103,Résultats!$L$3:$L$496,Résultats!$C$4:$C$496)) ->  | E103: =LOOKUP($A103,Résultats!$L$3:$L$496,Résultats!$E$3:$E$496) ->  | F103: =LOOKUP($A103,Résultats!$L$3:$L$496,Résultats!$F$3:$F$496) ->  | G103: =LOOKUP($A103,Résultats!$L$3:$L$496,Résultats!$J$3:$J$496) ->  | H103: =LOOKUP($A103,Résultats!$L$3:$L$496,Résultats!$K$3:$K$496) -> 
A104: 99 | B104: =LOOKUP($A104,Résultats!$AN$3:$AN$496,Résultats!$D$4:$D$496) ->  | C104: =PROPER(LOOKUP($A104,Résultats!$L$3:$L$496,Résultats!$B$4:$B$496)) ->  | D104: =PROPER(LOOKUP($A104,Résultats!$L$3:$L$496,Résultats!$C$4:$C$496)) ->  | E104: =LOOKUP($A104,Résultats!$L$3:$L$496,Résultats!$E$3:$E$496) ->  | F104: =LOOKUP($A104,Résultats!$L$3:$L$496,Résultats!$F$3:$F$496) ->  | G104: =LOOKUP($A104,Résultats!$L$3:$L$496,Résultats!$J$3:$J$496) ->  | H104: =LOOKUP($A104,Résultats!$L$3:$L$496,Résultats!$K$3:$K$496) -> 
A105: 100 | B105: =LOOKUP($A105,Résultats!$AN$3:$AN$496,Résultats!$D$4:$D$496) ->  | C105: =PROPER(LOOKUP($A105,Résultats!$L$3:$L$496,Résultats!$B$4:$B$496)) ->  | D105: =PROPER(LOOKUP($A105,Résultats!$L$3:$L$496,Résultats!$C$4:$C$496)) ->  | E105: =LOOKUP($A105,Résultats!$L$3:$L$496,Résultats!$E$3:$E$496) ->  | F105: =LOOKUP($A105,Résultats!$L$3:$L$496,Résultats!$F$3:$F$496) ->  | G105: =LOOKUP($A105,Résultats!$L$3:$L$496,Résultats!$J$3:$J$496) ->  | H105: =LOOKUP($A105,Résultats!$L$3:$L$496,Résultats!$K$3:$K$496) -> 
A106: 101 | B106: =LOOKUP($A106,Résultats!$AN$3:$AN$496,Résultats!$D$4:$D$496) ->  | C106: =PROPER(LOOKUP($A106,Résultats!$L$3:$L$496,Résultats!$B$4:$B$496)) ->  | D106: =PROPER(LOOKUP($A106,Résultats!$L$3:$L$496,Résultats!$C$4:$C$496)) ->  | E106: =LOOKUP($A106,Résultats!$L$3:$L$496,Résultats!$E$3:$E$496) ->  | F106: =LOOKUP($A106,Résultats!$L$3:$L$496,Résultats!$F$3:$F$496) ->  | G106: =LOOKUP($A106,Résultats!$L$3:$L$496,Résultats!$J$3:$J$496) ->  | H106: =LOOKUP($A106,Résultats!$L$3:$L$496,Résultats!$K$3:$K$496) -> 
A107: 102 | B107: =LOOKUP($A107,Résultats!$AN$3:$AN$496,Résultats!$D$4:$D$496) ->  | C107: =PROPER(LOOKUP($A107,Résultats!$L$3:$L$496,Résultats!$B$4:$B$496)) ->  | D107: =PROPER(LOOKUP($A107,Résultats!$L$3:$L$496,Résultats!$C$4:$C$496)) ->  | E107: =LOOKUP($A107,Résultats!$L$3:$L$496,Résultats!$E$3:$E$496) ->  | F107: =LOOKUP($A107,Résultats!$L$3:$L$496,Résultats!$F$3:$F$496) ->  | G107: =LOOKUP($A107,Résultats!$L$3:$L$496,Résultats!$J$3:$J$496) ->  | H107: =LOOKUP($A107,Résultats!$L$3:$L$496,Résultats!$K$3:$K$496) -> 
A108: 103 | B108: =LOOKUP($A108,Résultats!$AN$3:$AN$496,Résultats!$D$4:$D$496) ->  | C108: =PROPER(LOOKUP($A108,Résultats!$L$3:$L$496,Résultats!$B$4:$B$496)) ->  | D108: =PROPER(LOOKUP($A108,Résultats!$L$3:$L$496,Résultats!$C$4:$C$496)) ->  | E108: =LOOKUP($A108,Résultats!$L$3:$L$496,Résultats!$E$3:$E$496) ->  | F108: =LOOKUP($A108,Résultats!$L$3:$L$496,Résultats!$F$3:$F$496) ->  | G108: =LOOKUP($A108,Résultats!$L$3:$L$496,Résultats!$J$3:$J$496) ->  | H108: =LOOKUP($A108,Résultats!$L$3:$L$496,Résultats!$K$3:$K$496) -> 
A109: 104 | B109: =LOOKUP($A109,Résultats!$AN$3:$AN$496,Résultats!$D$4:$D$496) ->  | C109: =PROPER(LOOKUP($A109,Résultats!$L$3:$L$496,Résultats!$B$4:$B$496)) ->  | D109: =PROPER(LOOKUP($A109,Résultats!$L$3:$L$496,Résultats!$C$4:$C$496)) ->  | E109: =LOOKUP($A109,Résultats!$L$3:$L$496,Résultats!$E$3:$E$496) ->  | F109: =LOOKUP($A109,Résultats!$L$3:$L$496,Résultats!$F$3:$F$496) ->  | G109: =LOOKUP($A109,Résultats!$L$3:$L$496,Résultats!$J$3:$J$496) ->  | H109: =LOOKUP($A109,Résultats!$L$3:$L$496,Résultats!$K$3:$K$496) -> 
A110: 105 | B110: =LOOKUP($A110,Résultats!$AN$3:$AN$496,Résultats!$D$4:$D$496) ->  | C110: =PROPER(LOOKUP($A110,Résultats!$L$3:$L$496,Résultats!$B$4:$B$496)) ->  | D110: =PROPER(LOOKUP($A110,Résultats!$L$3:$L$496,Résultats!$C$4:$C$496)) ->  | E110: =LOOKUP($A110,Résultats!$L$3:$L$496,Résultats!$E$3:$E$496) ->  | F110: =LOOKUP($A110,Résultats!$L$3:$L$496,Résultats!$F$3:$F$496) ->  | G110: =LOOKUP($A110,Résultats!$L$3:$L$496,Résultats!$J$3:$J$496) ->  | H110: =LOOKUP($A110,Résultats!$L$3:$L$496,Résultats!$K$3:$K$496) -> 
A111: 106 | B111: =LOOKUP($A111,Résultats!$AN$3:$AN$496,Résultats!$D$4:$D$496) ->  | C111: =PROPER(LOOKUP($A111,Résultats!$L$3:$L$496,Résultats!$B$4:$B$496)) ->  | D111: =PROPER(LOOKUP($A111,Résultats!$L$3:$L$496,Résultats!$C$4:$C$496)) ->  | E111: =LOOKUP($A111,Résultats!$L$3:$L$496,Résultats!$E$3:$E$496) ->  | F111: =LOOKUP($A111,Résultats!$L$3:$L$496,Résultats!$F$3:$F$496) ->  | G111: =LOOKUP($A111,Résultats!$L$3:$L$496,Résultats!$J$3:$J$496) ->  | H111: =LOOKUP($A111,Résultats!$L$3:$L$496,Résultats!$K$3:$K$496) -> 
A112: 107 | B112: =LOOKUP($A112,Résultats!$AN$3:$AN$496,Résultats!$D$4:$D$496) ->  | C112: =PROPER(LOOKUP($A112,Résultats!$L$3:$L$496,Résultats!$B$4:$B$496)) ->  | D112: =PROPER(LOOKUP($A112,Résultats!$L$3:$L$496,Résultats!$C$4:$C$496)) ->  | E112: =LOOKUP($A112,Résultats!$L$3:$L$496,Résultats!$E$3:$E$496) ->  | F112: =LOOKUP($A112,Résultats!$L$3:$L$496,Résultats!$F$3:$F$496) ->  | G112: =LOOKUP($A112,Résultats!$L$3:$L$496,Résultats!$J$3:$J$496) ->  | H112: =LOOKUP($A112,Résultats!$L$3:$L$496,Résultats!$K$3:$K$496) -> 
A113: 108 | B113: =LOOKUP($A113,Résultats!$AN$3:$AN$496,Résultats!$D$4:$D$496) ->  | C113: =PROPER(LOOKUP($A113,Résultats!$L$3:$L$496,Résultats!$B$4:$B$496)) ->  | D113: =PROPER(LOOKUP($A113,Résultats!$L$3:$L$496,Résultats!$C$4:$C$496)) ->  | E113: =LOOKUP($A113,Résultats!$L$3:$L$496,Résultats!$E$3:$E$496) ->  | F113: =LOOKUP($A113,Résultats!$L$3:$L$496,Résultats!$F$3:$F$496) ->  | G113: =LOOKUP($A113,Résultats!$L$3:$L$496,Résultats!$J$3:$J$496) ->  | H113: =LOOKUP($A113,Résultats!$L$3:$L$496,Résultats!$K$3:$K$496) -> 
A114: 109 | B114: =LOOKUP($A114,Résultats!$AN$3:$AN$496,Résultats!$D$4:$D$496) ->  | C114: =PROPER(LOOKUP($A114,Résultats!$L$3:$L$496,Résultats!$B$4:$B$496)) ->  | D114: =PROPER(LOOKUP($A114,Résultats!$L$3:$L$496,Résultats!$C$4:$C$496)) ->  | E114: =LOOKUP($A114,Résultats!$L$3:$L$496,Résultats!$E$3:$E$496) ->  | F114: =LOOKUP($A114,Résultats!$L$3:$L$496,Résultats!$F$3:$F$496) ->  | G114: =LOOKUP($A114,Résultats!$L$3:$L$496,Résultats!$J$3:$J$496) ->  | H114: =LOOKUP($A114,Résultats!$L$3:$L$496,Résultats!$K$3:$K$496) -> 
A115: 110 | B115: =LOOKUP($A115,Résultats!$AN$3:$AN$496,Résultats!$D$4:$D$496) ->  | C115: =PROPER(LOOKUP($A115,Résultats!$L$3:$L$496,Résultats!$B$4:$B$496)) ->  | D115: =PROPER(LOOKUP($A115,Résultats!$L$3:$L$496,Résultats!$C$4:$C$496)) ->  | E115: =LOOKUP($A115,Résultats!$L$3:$L$496,Résultats!$E$3:$E$496) ->  | F115: =LOOKUP($A115,Résultats!$L$3:$L$496,Résultats!$F$3:$F$496) ->  | G115: =LOOKUP($A115,Résultats!$L$3:$L$496,Résultats!$J$3:$J$496) ->  | H115: =LOOKUP($A115,Résultats!$L$3:$L$496,Résultats!$K$3:$K$496) -> 
A116: 111 | B116: =LOOKUP($A116,Résultats!$AN$3:$AN$496,Résultats!$D$4:$D$496) ->  | C116: =PROPER(LOOKUP($A116,Résultats!$L$3:$L$496,Résultats!$B$4:$B$496)) ->  | D116: =PROPER(LOOKUP($A116,Résultats!$L$3:$L$496,Résultats!$C$4:$C$496)) ->  | E116: =LOOKUP($A116,Résultats!$L$3:$L$496,Résultats!$E$3:$E$496) ->  | F116: =LOOKUP($A116,Résultats!$L$3:$L$496,Résultats!$F$3:$F$496) ->  | G116: =LOOKUP($A116,Résultats!$L$3:$L$496,Résultats!$J$3:$J$496) ->  | H116: =LOOKUP($A116,Résultats!$L$3:$L$496,Résultats!$K$3:$K$496) -> 
L132: qazs

Sheet classement_5km
B2: =Inscription!B2 -> Housse | D2: 4 km | F2: 2011-10-23
A5: Pl | B5: N° | C5: Nom | D5: Prénom | E5: Pla./cat. | G5: Temps | H5: km/h
A6: 1 | B6: =LOOKUP($A6,Résultats!$M$3:$M$496,Résultats!$D$4:$D$496) ->  | C6: =PROPER(LOOKUP($A6,Résultats!$M$3:$M$496,Résultats!$B$4:$B$496)) ->  | D6: =PROPER(LOOKUP($A6,Résultats!$M$3:$M$496,Résultats!$C$4:$C$496)) ->  | E6: =LOOKUP($A6,Résultats!$M$3:$M$496,Résultats!$E$3:$E$496) ->  | F6: =LOOKUP($A6,Résultats!$M$3:$M$496,Résultats!$F$3:$F$496) ->  | G6: =LOOKUP($A6,Résultats!$M$3:$M$496,Résultats!$J$3:$J$496) ->  | H6: =LOOKUP($A6,Résultats!$M$3:$M$496,Résultats!$K$3:$K$496) -> 
A7: 2 | B7: =LOOKUP($A7,Résultats!$M$3:$M$496,Résultats!$D$4:$D$496) ->  | C7: =PROPER(LOOKUP($A7,Résultats!$M$3:$M$496,Résultats!$B$4:$B$496)) ->  | D7: =PROPER(LOOKUP($A7,Résultats!$M$3:$M$496,Résultats!$C$4:$C$496)) ->  | E7: =LOOKUP($A7,Résultats!$M$3:$M$496,Résultats!$E$3:$E$496) ->  | F7: =LOOKUP($A7,Résultats!$M$3:$M$496,Résultats!$F$3:$F$496) ->  | G7: =LOOKUP($A7,Résultats!$M$3:$M$496,Résultats!$J$3:$J$496) ->  | H7: =LOOKUP($A7,Résultats!$M$3:$M$496,Résultats!$K$3:$K$496) -> 
A8: 3 | B8: =LOOKUP($A8,Résultats!$M$3:$M$496,Résultats!$D$4:$D$496) ->  | C8: =PROPER(LOOKUP($A8,Résultats!$M$3:$M$496,Résultats!$B$4:$B$496)) ->  | D8: =PROPER(LOOKUP($A8,Résultats!$M$3:$M$496,Résultats!$C$4:$C$496)) ->  | E8: =LOOKUP($A8,Résultats!$M$3:$M$496,Résultats!$E$3:$E$496) ->  | F8: =LOOKUP($A8,Résultats!$M$3:$M$496,Résultats!$F$3:$F$496) ->  | G8: =LOOKUP($A8,Résultats!$M$3:$M$496,Résultats!$J$3:$J$496) ->  | H8: =LOOKUP($A8,Résultats!$M$3:$M$496,Résultats!$K$3:$K$496) -> 
A9: 4 | B9: =LOOKUP($A9,Résultats!$M$3:$M$496,Résultats!$D$4:$D$496) ->  | C9: =PROPER(LOOKUP($A9,Résultats!$M$3:$M$496,Résultats!$B$4:$B$496)) ->  | D9: =PROPER(LOOKUP($A9,Résultats!$M$3:$M$496,Résultats!$C$4:$C$496)) ->  | E9: =LOOKUP($A9,Résultats!$M$3:$M$496,Résultats!$E$3:$E$496) ->  | F9: =LOOKUP($A9,Résultats!$M$3:$M$496,Résultats!$F$3:$F$496) ->  | G9: =LOOKUP($A9,Résultats!$M$3:$M$496,Résultats!$J$3:$J$496) ->  | H9: =LOOKUP($A9,Résultats!$M$3:$M$496,Résultats!$K$3:$K$496) -> 
A10: 5 | B10: =LOOKUP($A10,Résultats!$M$3:$M$496,Résultats!$D$4:$D$496) ->  | C10: =PROPER(LOOKUP($A10,Résultats!$M$3:$M$496,Résultats!$B$4:$B$496)) ->  | D10: =PROPER(LOOKUP($A10,Résultats!$M$3:$M$496,Résultats!$C$4:$C$496)) ->  | E10: =LOOKUP($A10,Résultats!$M$3:$M$496,Résultats!$E$3:$E$496) ->  | F10: =LOOKUP($A10,Résultats!$M$3:$M$496,Résultats!$F$3:$F$496) ->  | G10: =LOOKUP($A10,Résultats!$M$3:$M$496,Résultats!$J$3:$J$496) ->  | H10: =LOOKUP($A10,Résultats!$M$3:$M$496,Résultats!$K$3:$K$496) -> 
A11: 6 | B11: =LOOKUP($A11,Résultats!$M$3:$M$496,Résultats!$D$4:$D$496) ->  | C11: =PROPER(LOOKUP($A11,Résultats!$M$3:$M$496,Résultats!$B$4:$B$496)) ->  | D11: =PROPER(LOOKUP($A11,Résultats!$M$3:$M$496,Résultats!$C$4:$C$496)) ->  | E11: =LOOKUP($A11,Résultats!$M$3:$M$496,Résultats!$E$3:$E$496) ->  | F11: =LOOKUP($A11,Résultats!$M$3:$M$496,Résultats!$F$3:$F$496) ->  | G11: =LOOKUP($A11,Résultats!$M$3:$M$496,Résultats!$J$3:$J$496) ->  | H11: =LOOKUP($A11,Résultats!$M$3:$M$496,Résultats!$K$3:$K$496) -> 
A12: 7 | B12: =LOOKUP($A12,Résultats!$M$3:$M$496,Résultats!$D$4:$D$496) ->  | C12: =PROPER(LOOKUP($A12,Résultats!$M$3:$M$496,Résultats!$B$4:$B$496)) ->  | D12: =PROPER(LOOKUP($A12,Résultats!$M$3:$M$496,Résultats!$C$4:$C$496)) ->  | E12: =LOOKUP($A12,Résultats!$M$3:$M$496,Résultats!$E$3:$E$496) ->  | F12: =LOOKUP($A12,Résultats!$M$3:$M$496,Résultats!$F$3:$F$496) ->  | G12: =LOOKUP($A12,Résultats!$M$3:$M$496,Résultats!$J$3:$J$496) ->  | H12: =LOOKUP($A12,Résultats!$M$3:$M$496,Résultats!$K$3:$K$496) -> 
A13: 8 | B13: =LOOKUP($A13,Résultats!$M$3:$M$496,Résultats!$D$4:$D$496) ->  | C13: =PROPER(LOOKUP($A13,Résultats!$M$3:$M$496,Résultats!$B$4:$B$496)) ->  | D13: =PROPER(LOOKUP($A13,Résultats!$M$3:$M$496,Résultats!$C$4:$C$496)) ->  | E13: =LOOKUP($A13,Résultats!$M$3:$M$496,Résultats!$E$3:$E$496) ->  | F13: =LOOKUP($A13,Résultats!$M$3:$M$496,Résultats!$F$3:$F$496) ->  | G13: =LOOKUP($A13,Résultats!$M$3:$M$496,Résultats!$J$3:$J$496) ->  | H13: =LOOKUP($A13,Résultats!$M$3:$M$496,Résultats!$K$3:$K$496) -> 
A14: 9 | B14: =LOOKUP($A14,Résultats!$M$3:$M$496,Résultats!$D$4:$D$496) ->  | C14: =PROPER(LOOKUP($A14,Résultats!$M$3:$M$496,Résultats!$B$4:$B$496)) ->  | D14: =PROPER(LOOKUP($A14,Résultats!$M$3:$M$496,Résultats!$C$4:$C$496)) ->  | E14: =LOOKUP($A14,Résultats!$M$3:$M$496,Résultats!$E$3:$E$496) ->  | F14: =LOOKUP($A14,Résultats!$M$3:$M$496,Résultats!$F$3:$F$496) ->  | G14: =LOOKUP($A14,Résultats!$M$3:$M$496,Résultats!$J$3:$J$496) ->  | H14: =LOOKUP($A14,Résultats!$M$3:$M$496,Résultats!$K$3:$K$496) -> 
A15: 10 | B15: =LOOKUP($A15,Résultats!$M$3:$M$496,Résultats!$D$4:$D$496) ->  | C15: =PROPER(LOOKUP($A15,Résultats!$M$3:$M$496,Résultats!$B$4:$B$496)) ->  | D15: =PROPER(LOOKUP($A15,Résultats!$M$3:$M$496,Résultats!$C$4:$C$496)) ->  | E15: =LOOKUP($A15,Résultats!$M$3:$M$496,Résultats!$E$3:$E$496) ->  | F15: =LOOKUP($A15,Résultats!$M$3:$M$496,Résultats!$F$3:$F$496) ->  | G15: =LOOKUP($A15,Résultats!$M$3:$M$496,Résultats!$J$3:$J$496) ->  | H15: =LOOKUP($A15,Résultats!$M$3:$M$496,Résultats!$K$3:$K$496) -> 
A16: 11 | B16: =LOOKUP($A16,Résultats!$M$3:$M$496,Résultats!$D$4:$D$496) ->  | C16: =PROPER(LOOKUP($A16,Résultats!$M$3:$M$496,Résultats!$B$4:$B$496)) ->  | D16: =PROPER(LOOKUP($A16,Résultats!$M$3:$M$496,Résultats!$C$4:$C$496)) ->  | E16: =LOOKUP($A16,Résultats!$M$3:$M$496,Résultats!$E$3:$E$496) ->  | F16: =LOOKUP($A16,Résultats!$M$3:$M$496,Résultats!$F$3:$F$496) ->  | G16: =LOOKUP($A16,Résultats!$M$3:$M$496,Résultats!$J$3:$J$496) ->  | H16: =LOOKUP($A16,Résultats!$M$3:$M$496,Résultats!$K$3:$K$496) -> 
A17: 12 | B17: =LOOKUP($A17,Résultats!$M$3:$M$496,Résultats!$D$4:$D$496) ->  | C17: =PROPER(LOOKUP($A17,Résultats!$M$3:$M$496,Résultats!$B$4:$B$496)) ->  | D17: =PROPER(LOOKUP($A17,Résultats!$M$3:$M$496,Résultats!$C$4:$C$496)) ->  | E17: =LOOKUP($A17,Résultats!$M$3:$M$496,Résultats!$E$3:$E$496) ->  | F17: =LOOKUP($A17,Résultats!$M$3:$M$496,Résultats!$F$3:$F$496) ->  | G17: =LOOKUP($A17,Résultats!$M$3:$M$496,Résultats!$J$3:$J$496) ->  | H17: =LOOKUP($A17,Résultats!$M$3:$M$496,Résultats!$K$3:$K$496) -> 
A18: 13 | B18: =LOOKUP($A18,Résultats!$M$3:$M$496,Résultats!$D$4:$D$496) ->  | C18: =PROPER(LOOKUP($A18,Résultats!$M$3:$M$496,Résultats!$B$4:$B$496)) ->  | D18: =PROPER(LOOKUP($A18,Résultats!$M$3:$M$496,Résultats!$C$4:$C$496)) ->  | E18: =LOOKUP($A18,Résultats!$M$3:$M$496,Résultats!$E$3:$E$496) ->  | F18: =LOOKUP($A18,Résultats!$M$3:$M$496,Résultats!$F$3:$F$496) ->  | G18: =LOOKUP($A18,Résultats!$M$3:$M$496,Résultats!$J$3:$J$496) ->  | H18: =LOOKUP($A18,Résultats!$M$3:$M$496,Résultats!$K$3:$K$496) -> 
A19: 14 | B19: =LOOKUP($A19,Résultats!$M$3:$M$496,Résultats!$D$4:$D$496) ->  | C19: =PROPER(LOOKUP($A19,Résultats!$M$3:$M$496,Résultats!$B$4:$B$496)) ->  | D19: =PROPER(LOOKUP($A19,Résultats!$M$3:$M$496,Résultats!$C$4:$C$496)) ->  | E19: =LOOKUP($A19,Résultats!$M$3:$M$496,Résultats!$E$3:$E$496) ->  | F19: =LOOKUP($A19,Résultats!$M$3:$M$496,Résultats!$F$3:$F$496) ->  | G19: =LOOKUP($A19,Résultats!$M$3:$M$496,Résultats!$J$3:$J$496) ->  | H19: =LOOKUP($A19,Résultats!$M$3:$M$496,Résultats!$K$3:$K$496) -> 
A20: 15 | B20: =LOOKUP($A20,Résultats!$M$3:$M$496,Résultats!$D$4:$D$496) ->  | C20: =PROPER(LOOKUP($A20,Résultats!$M$3:$M$496,Résultats!$B$4:$B$496)) ->  | D20: =PROPER(LOOKUP($A20,Résultats!$M$3:$M$496,Résultats!$C$4:$C$496)) ->  | E20: =LOOKUP($A20,Résultats!$M$3:$M$496,Résultats!$E$3:$E$496) ->  | F20: =LOOKUP($A20,Résultats!$M$3:$M$496,Résultats!$F$3:$F$496) ->  | G20: =LOOKUP($A20,Résultats!$M$3:$M$496,Résultats!$J$3:$J$496) ->  | H20: =LOOKUP($A20,Résultats!$M$3:$M$496,Résultats!$K$3:$K$496) -> 
A21: 16 | B21: =LOOKUP($A21,Résultats!$M$3:$M$496,Résultats!$D$4:$D$496) ->  | C21: =PROPER(LOOKUP($A21,Résultats!$M$3:$M$496,Résultats!$B$4:$B$496)) ->  | D21: =PROPER(LOOKUP($A21,Résultats!$M$3:$M$496,Résultats!$C$4:$C$496)) ->  | E21: =LOOKUP($A21,Résultats!$M$3:$M$496,Résultats!$E$3:$E$496) ->  | F21: =LOOKUP($A21,Résultats!$M$3:$M$496,Résultats!$F$3:$F$496) ->  | G21: =LOOKUP($A21,Résultats!$M$3:$M$496,Résultats!$J$3:$J$496) ->  | H21: =LOOKUP($A21,Résultats!$M$3:$M$496,Résultats!$K$3:$K$496) -> 
A22: 17 | B22: =LOOKUP($A22,Résultats!$M$3:$M$496,Résultats!$D$4:$D$496) ->  | C22: =PROPER(LOOKUP($A22,Résultats!$M$3:$M$496,Résultats!$B$4:$B$496)) ->  | D22: =PROPER(LOOKUP($A22,Résultats!$M$3:$M$496,Résultats!$C$4:$C$496)) ->  | E22: =LOOKUP($A22,Résultats!$M$3:$M$496,Résultats!$E$3:$E$496) ->  | F22: =LOOKUP($A22,Résultats!$M$3:$M$496,Résultats!$F$3:$F$496) ->  | G22: =LOOKUP($A22,Résultats!$M$3:$M$496,Résultats!$J$3:$J$496) ->  | H22: =LOOKUP($A22,Résultats!$M$3:$M$496,Résultats!$K$3:$K$496) -> 
A23: 18 | B23: =LOOKUP($A23,Résultats!$M$3:$M$496,Résultats!$D$4:$D$496) ->  | C23: =PROPER(LOOKUP($A23,Résultats!$M$3:$M$496,Résultats!$B$4:$B$496)) ->  | D23: =PROPER(LOOKUP($A23,Résultats!$M$3:$M$496,Résultats!$C$4:$C$496)) ->  | E23: =LOOKUP($A23,Résultats!$M$3:$M$496,Résultats!$E$3:$E$496) ->  | F23: =LOOKUP($A23,Résultats!$M$3:$M$496,Résultats!$F$3:$F$496) ->  | G23: =LOOKUP($A23,Résultats!$M$3:$M$496,Résultats!$J$3:$J$496) ->  | H23: =LOOKUP($A23,Résultats!$M$3:$M$496,Résultats!$K$3:$K$496) -> 
A24: 19 | B24: =LOOKUP($A24,Résultats!$M$3:$M$496,Résultats!$D$4:$D$496) ->  | C24: =PROPER(LOOKUP($A24,Résultats!$M$3:$M$496,Résultats!$B$4:$B$496)) ->  | D24: =PROPER(LOOKUP($A24,Résultats!$M$3:$M$496,Résultats!$C$4:$C$496)) ->  | E24: =LOOKUP($A24,Résultats!$M$3:$M$496,Résultats!$E$3:$E$496) ->  | F24: =LOOKUP($A24,Résultats!$M$3:$M$496,Résultats!$F$3:$F$496) ->  | G24: =LOOKUP($A24,Résultats!$M$3:$M$496,Résultats!$J$3:$J$496) ->  | H24: =LOOKUP($A24,Résultats!$M$3:$M$496,Résultats!$K$3:$K$496) -> 
A25: 20 | B25: =LOOKUP($A25,Résultats!$M$3:$M$496,Résultats!$D$4:$D$496) ->  | C25: =PROPER(LOOKUP($A25,Résultats!$M$3:$M$496,Résultats!$B$4:$B$496)) ->  | D25: =PROPER(LOOKUP($A25,Résultats!$M$3:$M$496,Résultats!$C$4:$C$496)) ->  | E25: =LOOKUP($A25,Résultats!$M$3:$M$496,Résultats!$E$3:$E$496) ->  | F25: =LOOKUP($A25,Résultats!$M$3:$M$496,Résultats!$F$3:$F$496) ->  | G25: =LOOKUP($A25,Résultats!$M$3:$M$496,Résultats!$J$3:$J$496) ->  | H25: =LOOKUP($A25,Résultats!$M$3:$M$496,Résultats!$K$3:$K$496) -> 
A26: 21 | B26: =LOOKUP($A26,Résultats!$M$3:$M$496,Résultats!$D$4:$D$496) ->  | C26: =PROPER(LOOKUP($A26,Résultats!$M$3:$M$496,Résultats!$B$4:$B$496)) ->  | D26: =PROPER(LOOKUP($A26,Résultats!$M$3:$M$496,Résultats!$C$4:$C$496)) ->  | E26: =LOOKUP($A26,Résultats!$M$3:$M$496,Résultats!$E$3:$E$496) ->  | F26: =LOOKUP($A26,Résultats!$M$3:$M$496,Résultats!$F$3:$F$496) ->  | G26: =LOOKUP($A26,Résultats!$M$3:$M$496,Résultats!$J$3:$J$496) ->  | H26: =LOOKUP($A26,Résultats!$M$3:$M$496,Résultats!$K$3:$K$496) -> 
A27: 22 | B27: =LOOKUP($A27,Résultats!$M$3:$M$496,Résultats!$D$4:$D$496) ->  | C27: =PROPER(LOOKUP($A27,Résultats!$M$3:$M$496,Résultats!$B$4:$B$496)) ->  | D27: =PROPER(LOOKUP($A27,Résultats!$M$3:$M$496,Résultats!$C$4:$C$496)) ->  | E27: =LOOKUP($A27,Résultats!$M$3:$M$496,Résultats!$E$3:$E$496) ->  | F27: =LOOKUP($A27,Résultats!$M$3:$M$496,Résultats!$F$3:$F$496) ->  | G27: =LOOKUP($A27,Résultats!$M$3:$M$496,Résultats!$J$3:$J$496) ->  | H27: =LOOKUP($A27,Résultats!$M$3:$M$496,Résultats!$K$3:$K$496) -> 
A28: 23 | B28: =LOOKUP($A28,Résultats!$M$3:$M$496,Résultats!$D$4:$D$496) ->  | C28: =PROPER(LOOKUP($A28,Résultats!$M$3:$M$496,Résultats!$B$4:$B$496)) ->  | D28: =PROPER(LOOKUP($A28,Résultats!$M$3:$M$496,Résultats!$C$4:$C$496)) ->  | E28: =LOOKUP($A28,Résultats!$M$3:$M$496,Résultats!$E$3:$E$496) ->  | F28: =LOOKUP($A28,Résultats!$M$3:$M$496,Résultats!$F$3:$F$496) ->  | G28: =LOOKUP($A28,Résultats!$M$3:$M$496,Résultats!$J$3:$J$496) ->  | H28: =LOOKUP($A28,Résultats!$M$3:$M$496,Résultats!$K$3:$K$496) -> 
A29: 24 | B29: =LOOKUP($A29,Résultats!$M$3:$M$496,Résultats!$D$4:$D$496) ->  | C29: =PROPER(LOOKUP($A29,Résultats!$M$3:$M$496,Résultats!$B$4:$B$496)) ->  | D29: =PROPER(LOOKUP($A29,Résultats!$M$3:$M$496,Résultats!$C$4:$C$496)) ->  | E29: =LOOKUP($A29,Résultats!$M$3:$M$496,Résultats!$E$3:$E$496) ->  | F29: =LOOKUP($A29,Résultats!$M$3:$M$496,Résultats!$F$3:$F$496) ->  | G29: =LOOKUP($A29,Résultats!$M$3:$M$496,Résultats!$J$3:$J$496) ->  | H29: =LOOKUP($A29,Résultats!$M$3:$M$496,Résultats!$K$3:$K$496) -> 
A30: 25 | B30: =LOOKUP($A30,Résultats!$M$3:$M$496,Résultats!$D$4:$D$496) ->  | C30: =PROPER(LOOKUP($A30,Résultats!$M$3:$M$496,Résultats!$B$4:$B$496)) ->  | D30: =PROPER(LOOKUP($A30,Résultats!$M$3:$M$496,Résultats!$C$4:$C$496)) ->  | E30: =LOOKUP($A30,Résultats!$M$3:$M$496,Résultats!$E$3:$E$496) ->  | F30: =LOOKUP($A30,Résultats!$M$3:$M$496,Résultats!$F$3:$F$496) ->  | G30: =LOOKUP($A30,Résultats!$M$3:$M$496,Résultats!$J$3:$J$496) ->  | H30: =LOOKUP($A30,Résultats!$M$3:$M$496,Résultats!$K$3:$K$496) -> 
A31: 26 | B31: =LOOKUP($A31,Résultats!$M$3:$M$496,Résultats!$D$4:$D$496) ->  | C31: =PROPER(LOOKUP($A31,Résultats!$M$3:$M$496,Résultats!$B$4:$B$496)) ->  | D31: =PROPER(LOOKUP($A31,Résultats!$M$3:$M$496,Résultats!$C$4:$C$496)) ->  | E31: =LOOKUP($A31,Résultats!$M$3:$M$496,Résultats!$E$3:$E$496) ->  | F31: =LOOKUP($A31,Résultats!$M$3:$M$496,Résultats!$F$3:$F$496) ->  | G31: =LOOKUP($A31,Résultats!$M$3:$M$496,Résultats!$J$3:$J$496) ->  | H31: =LOOKUP($A31,Résultats!$M$3:$M$496,Résultats!$K$3:$K$496) -> 
A32: 27 | B32: =LOOKUP($A32,Résultats!$M$3:$M$496,Résultats!$D$4:$D$496) ->  | C32: =PROPER(LOOKUP($A32,Résultats!$M$3:$M$496,Résultats!$B$4:$B$496)) ->  | D32: =PROPER(LOOKUP($A32,Résultats!$M$3:$M$496,Résultats!$C$4:$C$496)) ->  | E32: =LOOKUP($A32,Résultats!$M$3:$M$496,Résultats!$E$3:$E$496) ->  | F32: =LOOKUP($A32,Résultats!$M$3:$M$496,Résultats!$F$3:$F$496) ->  | G32: =LOOKUP($A32,Résultats!$M$3:$M$496,Résultats!$J$3:$J$496) ->  | H32: =LOOKUP($A32,Résultats!$M$3:$M$496,Résultats!$K$3:$K$496) -> 
A33: 28 | B33: =LOOKUP($A33,Résultats!$M$3:$M$496,Résultats!$D$4:$D$496) ->  | C33: =PROPER(LOOKUP($A33,Résultats!$M$3:$M$496,Résultats!$B$4:$B$496)) ->  | D33: =PROPER(LOOKUP($A33,Résultats!$M$3:$M$496,Résultats!$C$4:$C$496)) ->  | E33: =LOOKUP($A33,Résultats!$M$3:$M$496,Résultats!$E$3:$E$496) ->  | F33: =LOOKUP($A33,Résultats!$M$3:$M$496,Résultats!$F$3:$F$496) ->  | G33: =LOOKUP($A33,Résultats!$M$3:$M$496,Résultats!$J$3:$J$496) ->  | H33: =LOOKUP($A33,Résultats!$M$3:$M$496,Résultats!$K$3:$K$496) -> 
A34: 29 | B34: =LOOKUP($A34,Résultats!$M$3:$M$496,Résultats!$D$4:$D$496) ->  | C34: =PROPER(LOOKUP($A34,Résultats!$M$3:$M$496,Résultats!$B$4:$B$496)) ->  | D34: =PROPER(LOOKUP($A34,Résultats!$M$3:$M$496,Résultats!$C$4:$C$496)) ->  | E34: =LOOKUP($A34,Résultats!$M$3:$M$496,Résultats!$E$3:$E$496) ->  | F34: =LOOKUP($A34,Résultats!$M$3:$M$496,Résultats!$F$3:$F$496) ->  | G34: =LOOKUP($A34,Résultats!$M$3:$M$496,Résultats!$J$3:$J$496) ->  | H34: =LOOKUP($A34,Résultats!$M$3:$M$496,Résultats!$K$3:$K$496) -> 
A35: 30 | B35: =LOOKUP($A35,Résultats!$M$3:$M$496,Résultats!$D$4:$D$496) ->  | C35: =PROPER(LOOKUP($A35,Résultats!$M$3:$M$496,Résultats!$B$4:$B$496)) ->  | D35: =PROPER(LOOKUP($A35,Résultats!$M$3:$M$496,Résultats!$C$4:$C$496)) ->  | E35: =LOOKUP($A35,Résultats!$M$3:$M$496,Résultats!$E$3:$E$496) ->  | F35: =LOOKUP($A35,Résultats!$M$3:$M$496,Résultats!$F$3:$F$496) ->  | G35: =LOOKUP($A35,Résultats!$M$3:$M$496,Résultats!$J$3:$J$496) ->  | H35: =LOOKUP($A35,Résultats!$M$3:$M$496,Résultats!$K$3:$K$496) -> 
A36: 31 | B36: =LOOKUP($A36,Résultats!$M$3:$M$496,Résultats!$D$4:$D$496) ->  | C36: =PROPER(LOOKUP($A36,Résultats!$M$3:$M$496,Résultats!$B$4:$B$496)) ->  | D36: =PROPER(LOOKUP($A36,Résultats!$M$3:$M$496,Résultats!$C$4:$C$496)) ->  | E36: =LOOKUP($A36,Résultats!$M$3:$M$496,Résultats!$E$3:$E$496) ->  | F36: =LOOKUP($A36,Résultats!$M$3:$M$496,Résultats!$F$3:$F$496) ->  | G36: =LOOKUP($A36,Résultats!$M$3:$M$496,Résultats!$J$3:$J$496) ->  | H36: =LOOKUP($A36,Résultats!$M$3:$M$496,Résultats!$K$3:$K$496) -> 
A37: 32 | B37: =LOOKUP($A37,Résultats!$M$3:$M$496,Résultats!$D$4:$D$496) ->  | C37: =PROPER(LOOKUP($A37,Résultats!$M$3:$M$496,Résultats!$B$4:$B$496)) ->  | D37: =PROPER(LOOKUP($A37,Résultats!$M$3:$M$496,Résultats!$C$4:$C$496)) ->  | E37: =LOOKUP($A37,Résultats!$M$3:$M$496,Résultats!$E$3:$E$496) ->  | F37: =LOOKUP($A37,Résultats!$M$3:$M$496,Résultats!$F$3:$F$496) ->  | G37: =LOOKUP($A37,Résultats!$M$3:$M$496,Résultats!$J$3:$J$496) ->  | H37: =LOOKUP($A37,Résultats!$M$3:$M$496,Résultats!$K$3:$K$496) -> 
A38: 33 | B38: =LOOKUP($A38,Résultats!$M$3:$M$496,Résultats!$D$4:$D$496) ->  | C38: =PROPER(LOOKUP($A38,Résultats!$M$3:$M$496,Résultats!$B$4:$B$496)) ->  | D38: =PROPER(LOOKUP($A38,Résultats!$M$3:$M$496,Résultats!$C$4:$C$496)) ->  | E38: =LOOKUP($A38,Résultats!$M$3:$M$496,Résultats!$E$3:$E$496) ->  | F38: =LOOKUP($A38,Résultats!$M$3:$M$496,Résultats!$F$3:$F$496) ->  | G38: =LOOKUP($A38,Résultats!$M$3:$M$496,Résultats!$J$3:$J$496) ->  | H38: =LOOKUP($A38,Résultats!$M$3:$M$496,Résultats!$K$3:$K$496) -> 
A39: 34 | B39: =LOOKUP($A39,Résultats!$M$3:$M$496,Résultats!$D$4:$D$496) ->  | C39: =PROPER(LOOKUP($A39,Résultats!$M$3:$M$496,Résultats!$B$4:$B$496)) ->  | D39: =PROPER(LOOKUP($A39,Résultats!$M$3:$M$496,Résultats!$C$4:$C$496)) ->  | E39: =LOOKUP($A39,Résultats!$M$3:$M$496,Résultats!$E$3:$E$496) ->  | F39: =LOOKUP($A39,Résultats!$M$3:$M$496,Résultats!$F$3:$F$496) ->  | G39: =LOOKUP($A39,Résultats!$M$3:$M$496,Résultats!$J$3:$J$496) ->  | H39: =LOOKUP($A39,Résultats!$M$3:$M$496,Résultats!$K$3:$K$496) -> 
A40: 35 | B40: =LOOKUP($A40,Résultats!$M$3:$M$496,Résultats!$D$4:$D$496) ->  | C40: =PROPER(LOOKUP($A40,Résultats!$M$3:$M$496,Résultats!$B$4:$B$496)) ->  | D40: =PROPER(LOOKUP($A40,Résultats!$M$3:$M$496,Résultats!$C$4:$C$496)) ->  | E40: =LOOKUP($A40,Résultats!$M$3:$M$496,Résultats!$E$3:$E$496) ->  | F40: =LOOKUP($A40,Résultats!$M$3:$M$496,Résultats!$F$3:$F$496) ->  | G40: =LOOKUP($A40,Résultats!$M$3:$M$496,Résultats!$J$3:$J$496) ->  | H40: =LOOKUP($A40,Résultats!$M$3:$M$496,Résultats!$K$3:$K$496) -> 
A41: 36 | B41: =LOOKUP($A41,Résultats!$M$3:$M$496,Résultats!$D$4:$D$496) ->  | C41: =PROPER(LOOKUP($A41,Résultats!$M$3:$M$496,Résultats!$B$4:$B$496)) ->  | D41: =PROPER(LOOKUP($A41,Résultats!$M$3:$M$496,Résultats!$C$4:$C$496)) ->  | E41: =LOOKUP($A41,Résultats!$M$3:$M$496,Résultats!$E$3:$E$496) ->  | F41: =LOOKUP($A41,Résultats!$M$3:$M$496,Résultats!$F$3:$F$496) ->  | G41: =LOOKUP($A41,Résultats!$M$3:$M$496,Résultats!$J$3:$J$496) ->  | H41: =LOOKUP($A41,Résultats!$M$3:$M$496,Résultats!$K$3:$K$496) -> 
A42: 37 | B42: =LOOKUP($A42,Résultats!$M$3:$M$496,Résultats!$D$4:$D$496) ->  | C42: =PROPER(LOOKUP($A42,Résultats!$M$3:$M$496,Résultats!$B$4:$B$496)) ->  | D42: =PROPER(LOOKUP($A42,Résultats!$M$3:$M$496,Résultats!$C$4:$C$496)) ->  | E42: =LOOKUP($A42,Résultats!$M$3:$M$496,Résultats!$E$3:$E$496) ->  | F42: =LOOKUP($A42,Résultats!$M$3:$M$496,Résultats!$F$3:$F$496) ->  | G42: =LOOKUP($A42,Résultats!$M$3:$M$496,Résultats!$J$3:$J$496) ->  | H42: =LOOKUP($A42,Résultats!$M$3:$M$496,Résultats!$K$3:$K$496) -> 
A43: 38 | B43: =LOOKUP($A43,Résultats!$M$3:$M$496,Résultats!$D$4:$D$496) ->  | C43: =PROPER(LOOKUP($A43,Résultats!$M$3:$M$496,Résultats!$B$4:$B$496)) ->  | D43: =PROPER(LOOKUP($A43,Résultats!$M$3:$M$496,Résultats!$C$4:$C$496)) ->  | E43: =LOOKUP($A43,Résultats!$M$3:$M$496,Résultats!$E$3:$E$496) ->  | F43: =LOOKUP($A43,Résultats!$M$3:$M$496,Résultats!$F$3:$F$496) ->  | G43: =LOOKUP($A43,Résultats!$M$3:$M$496,Résultats!$J$3:$J$496) ->  | H43: =LOOKUP($A43,Résultats!$M$3:$M$496,Résultats!$K$3:$K$496) -> 
A44: 39 | B44: =LOOKUP($A44,Résultats!$M$3:$M$496,Résultats!$D$4:$D$496) ->  | C44: =PROPER(LOOKUP($A44,Résultats!$M$3:$M$496,Résultats!$B$4:$B$496)) ->  | D44: =PROPER(LOOKUP($A44,Résultats!$M$3:$M$496,Résultats!$C$4:$C$496)) ->  | E44: =LOOKUP($A44,Résultats!$M$3:$M$496,Résultats!$E$3:$E$496) ->  | F44: =LOOKUP($A44,Résultats!$M$3:$M$496,Résultats!$F$3:$F$496) ->  | G44: =LOOKUP($A44,Résultats!$M$3:$M$496,Résultats!$J$3:$J$496) ->  | H44: =LOOKUP($A44,Résultats!$M$3:$M$496,Résultats!$K$3:$K$496) -> 
A45: 40 | B45: =LOOKUP($A45,Résultats!$M$3:$M$496,Résultats!$D$4:$D$496) ->  | C45: =PROPER(LOOKUP($A45,Résultats!$M$3:$M$496,Résultats!$B$4:$B$496)) ->  | D45: =PROPER(LOOKUP($A45,Résultats!$M$3:$M$496,Résultats!$C$4:$C$496)) ->  | E45: =LOOKUP($A45,Résultats!$M$3:$M$496,Résultats!$E$3:$E$496) ->  | F45: =LOOKUP($A45,Résultats!$M$3:$M$496,Résultats!$F$3:$F$496) ->  | G45: =LOOKUP($A45,Résultats!$M$3:$M$496,Résultats!$J$3:$J$496) ->  | H45: =LOOKUP($A45,Résultats!$M$3:$M$496,Résultats!$K$3:$K$496) -> 
A46: 41 | B46: =LOOKUP($A46,Résultats!$M$3:$M$496,Résultats!$D$4:$D$496) ->  | C46: =PROPER(LOOKUP($A46,Résultats!$M$3:$M$496,Résultats!$B$4:$B$496)) ->  | D46: =PROPER(LOOKUP($A46,Résultats!$M$3:$M$496,Résultats!$C$4:$C$496)) ->  | E46: =LOOKUP($A46,Résultats!$M$3:$M$496,Résultats!$E$3:$E$496) ->  | F46: =LOOKUP($A46,Résultats!$M$3:$M$496,Résultats!$F$3:$F$496) ->  | G46: =LOOKUP($A46,Résultats!$M$3:$M$496,Résultats!$J$3:$J$496) ->  | H46: =LOOKUP($A46,Résultats!$M$3:$M$496,Résultats!$K$3:$K$496) -> 
A47: 42 | B47: =LOOKUP($A47,Résultats!$M$3:$M$496,Résultats!$D$4:$D$496) ->  | C47: =PROPER(LOOKUP($A47,Résultats!$M$3:$M$496,Résultats!$B$4:$B$496)) ->  | D47: =PROPER(LOOKUP($A47,Résultats!$M$3:$M$496,Résultats!$C$4:$C$496)) ->  | E47: =LOOKUP($A47,Résultats!$M$3:$M$496,Résultats!$E$3:$E$496) ->  | F47: =LOOKUP($A47,Résultats!$M$3:$M$496,Résultats!$F$3:$F$496) ->  | G47: =LOOKUP($A47,Résultats!$M$3:$M$496,Résultats!$J$3:$J$496) ->  | H47: =LOOKUP($A47,Résultats!$M$3:$M$496,Résultats!$K$3:$K$496) -> 
A48: 43 | B48: =LOOKUP($A48,Résultats!$M$3:$M$496,Résultats!$D$4:$D$496) ->  | C48: =PROPER(LOOKUP($A48,Résultats!$M$3:$M$496,Résultats!$B$4:$B$496)) ->  | D48: =PROPER(LOOKUP($A48,Résultats!$M$3:$M$496,Résultats!$C$4:$C$496)) ->  | E48: =LOOKUP($A48,Résultats!$M$3:$M$496,Résultats!$E$3:$E$496) ->  | F48: =LOOKUP($A48,Résultats!$M$3:$M$496,Résultats!$F$3:$F$496) ->  | G48: =LOOKUP($A48,Résultats!$M$3:$M$496,Résultats!$J$3:$J$496) ->  | H48: =LOOKUP($A48,Résultats!$M$3:$M$496,Résultats!$K$3:$K$496) -> 
A49: 44 | B49: =LOOKUP($A49,Résultats!$M$3:$M$496,Résultats!$D$4:$D$496) ->  | C49: =PROPER(LOOKUP($A49,Résultats!$M$3:$M$496,Résultats!$B$4:$B$496)) ->  | D49: =PROPER(LOOKUP($A49,Résultats!$M$3:$M$496,Résultats!$C$4:$C$496)) ->  | E49: =LOOKUP($A49,Résultats!$M$3:$M$496,Résultats!$E$3:$E$496) ->  | F49: =LOOKUP($A49,Résultats!$M$3:$M$496,Résultats!$F$3:$F$496) ->  | G49: =LOOKUP($A49,Résultats!$M$3:$M$496,Résultats!$J$3:$J$496) ->  | H49: =LOOKUP($A49,Résultats!$M$3:$M$496,Résultats!$K$3:$K$496) -> 
A50: 45 | B50: =LOOKUP($A50,Résultats!$M$3:$M$496,Résultats!$D$4:$D$496) ->  | C50: =PROPER(LOOKUP($A50,Résultats!$M$3:$M$496,Résultats!$B$4:$B$496)) ->  | D50: =PROPER(LOOKUP($A50,Résultats!$M$3:$M$496,Résultats!$C$4:$C$496)) ->  | E50: =LOOKUP($A50,Résultats!$M$3:$M$496,Résultats!$E$3:$E$496) ->  | F50: =LOOKUP($A50,Résultats!$M$3:$M$496,Résultats!$F$3:$F$496) ->  | G50: =LOOKUP($A50,Résultats!$M$3:$M$496,Résultats!$J$3:$J$496) ->  | H50: =LOOKUP($A50,Résultats!$M$3:$M$496,Résultats!$K$3:$K$496) -> 

Sheet Explication
A2: Inscription: | E2: Contact:
A3: Entrez le nom et prénom correspondant au dossard | E3: Jerome schmitz
A4: de l'athlète, ainsi que sa date de naissance. | E4: 4 rue mallar 4800 Verviers
A5: Pour sexe, mettez "D" ou "H" | E5: 0495/998142
A6: Ne pas s'occuper de la catégorie | E6: 087/226989
E7: jeromeschmitz86@hotmail.com
A8: Résultats:
A9: Mettez le numéro de dossard dans la colone D par
A10: odre d'arrivée.
A11: Pour le départ, cliqué sur la zone verte juste en
A12: dessous du mots curseur. Pour démarrer le chrono,
A13: cliquer alors sur la colonne ou il fait mis chrono.
A14: Pour les arrivées, idem que pour le départ mais le
A15: curseur doit être sur la zone rouge. (1ière case pour le
A16: premier ainsi de suite). N'oubliez pas de cliquer à
A17: chaque fois sur chrono.
A18: Si vous devez effacer un temps, c'est dans la colone I
A19: uniquement.
A21: Impression:
A22: Il n'y a rien à faire à par choisir le melleur format et
A23: vérifier si tout est juste.
A24: Ensuite faites imprimer.

Sheet p2f (hidden)
B1: Saison | D1: =#REF! ->  | E1: =#REF! ->  | S1: Modifications | W1: =#REF! -> 
A2: Dos | B2: code | D2: Nom | E2: Prénom | F2: an | G2: sx | H2: cat | S2: Nom | T2: Prénom | U2: an | V2: sx | W2: remarques
A3: 1 | B3: =#REF! ->  | C3: =#REF! ->  | D3: =#REF! ->  | E3: =#REF! ->  | F3: =#REF! ->  | G3: =#REF! ->  | H3: =#REF! ->  | I3: =#REF! ->  | J3: =#REF! ->  | K3: =#REF! ->  | L3: =#REF! ->  | M3: =#REF! ->  | N3: =#REF! ->  | O3: =#REF! ->  | P3: =#REF! ->  | Q3: =#REF! ->  | R3: =#REF! ->  | S3: =#REF! ->  | T3: =#REF! ->  | U3: =#REF! ->  | V3: =#REF! ->  | W3: =#REF! ->  | X3: p2f
A4: 2 | B4: =#REF! ->  | C4: =#REF! ->  | D4: =#REF! ->  | E4: =#REF! ->  | F4: =#REF! ->  | G4: =#REF! ->  | H4: =#REF! ->  | I4: =#REF! ->  | J4: =#REF! ->  | K4: =#REF! ->  | L4: =#REF! ->  | M4: =#REF! ->  | N4: =#REF! ->  | O4: =#REF! ->  | P4: =#REF! ->  | Q4: =#REF! ->  | R4: =#REF! ->  | S4: =#REF! ->  | T4: =#REF! ->  | U4: =#REF! ->  | V4: =#REF! ->  | W4: =#REF! ->  | X4: p2f
A5: 3 | B5: =#REF! ->  | C5: =#REF! ->  | D5: =#REF! ->  | E5: =#REF! ->  | F5: =#REF! ->  | G5: =#REF! ->  | H5: =#REF! ->  | I5: =#REF! ->  | J5: =#REF! ->  | K5: =#REF! ->  | L5: =#REF! ->  | M5: =#REF! ->  | N5: =#REF! ->  | O5: =#REF! ->  | P5: =#REF! ->  | Q5: =#REF! ->  | R5: =#REF! ->  | S5: =#REF! ->  | T5: =#REF! ->  | U5: =#REF! ->  | V5: =#REF! ->  | W5: =#REF! ->  | X5: p2f
A6: 4 | B6: =#REF! ->  | C6: =#REF! ->  | D6: =#REF! ->  | E6: =#REF! ->  | F6: =#REF! ->  | G6: =#REF! ->  | H6: =#REF! ->  | I6: =#REF! ->  | J6: =#REF! ->  | K6: =#REF! ->  | L6: =#REF! ->  | M6: =#REF! ->  | N6: =#REF! ->  | O6: =#REF! ->  | P6: =#REF! ->  | Q6: =#REF! ->  | R6: =#REF! ->  | S6: =#REF! ->  | T6: =#REF! ->  | U6: =#REF! ->  | V6: =#REF! ->  | W6: =#REF! ->  | X6: p2f
A7: 5 | B7: =#REF! ->  | C7: =#REF! ->  | D7: =#REF! ->  | E7: =#REF! ->  | F7: =#REF! ->  | G7: =#REF! ->  | H7: =#REF! ->  | I7: =#REF! ->  | J7: =#REF! ->  | K7: =#REF! ->  | L7: =#REF! ->  | M7: =#REF! ->  | N7: =#REF! ->  | O7: =#REF! ->  | P7: =#REF! ->  | Q7: =#REF! ->  | R7: =#REF! ->  | S7: =#REF! ->  | T7: =#REF! ->  | U7: =#REF! ->  | V7: =#REF! ->  | W7: =#REF! ->  | X7: p2f
A8: 6 | B8: =#REF! ->  | C8: =#REF! ->  | D8: =#REF! ->  | E8: =#REF! ->  | F8: =#REF! ->  | G8: =#REF! ->  | H8: =#REF! ->  | I8: =#REF! ->  | J8: =#REF! ->  | K8: =#REF! ->  | L8: =#REF! ->  | M8: =#REF! ->  | N8: =#REF! ->  | O8: =#REF! ->  | P8: =#REF! ->  | Q8: =#REF! ->  | R8: =#REF! ->  | S8: =#REF! ->  | T8: =#REF! ->  | U8: =#REF! ->  | V8: =#REF! ->  | W8: =#REF! ->  | X8: p2f
A9: 7 | B9: =#REF! ->  | C9: =#REF! ->  | D9: =#REF! ->  | E9: =#REF! ->  | F9: =#REF! ->  | G9: =#REF! ->  | H9: =#REF! ->  | I9: =#REF! ->  | J9: =#REF! ->  | K9: =#REF! ->  | L9: =#REF! ->  | M9: =#REF! ->  | N9: =#REF! ->  | O9: =#REF! ->  | P9: =#REF! ->  | Q9: =#REF! ->  | R9: =#REF! ->  | S9: =#REF! ->  | T9: =#REF! ->  | U9: =#REF! ->  | V9: =#REF! ->  | W9: =#REF! ->  | X9: p2f
A10: 8 | B10: =#REF! ->  | C10: =#REF! ->  | D10: =#REF! ->  | E10: =#REF! ->  | F10: =#REF! ->  | G10: =#REF! ->  | H10: =#REF! ->  | I10: =#REF! ->  | J10: =#REF! ->  | K10: =#REF! ->  | L10: =#REF! ->  | M10: =#REF! ->  | N10: =#REF! ->  | O10: =#REF! ->  | P10: =#REF! ->  | Q10: =#REF! ->  | R10: =#REF! ->  | S10: =#REF! ->  | T10: =#REF! ->  | U10: =#REF! ->  | V10: =#REF! ->  | W10: =#REF! ->  | X10: p2f
A11: 9 | B11: =#REF! ->  | C11: =#REF! ->  | D11: =#REF! ->  | E11: =#REF! ->  | F11: =#REF! ->  | G11: =#REF! ->  | H11: =#REF! ->  | I11: =#REF! ->  | J11: =#REF! ->  | K11: =#REF! ->  | L11: =#REF! ->  | M11: =#REF! ->  | N11: =#REF! ->  | O11: =#REF! ->  | P11: =#REF! ->  | Q11: =#REF! ->  | R11: =#REF! ->  | S11: =#REF! ->  | T11: =#REF! ->  | U11: =#REF! ->  | V11: =#REF! ->  | W11: =#REF! ->  | X11: p2f
A12: 10 | B12: =#REF! ->  | C12: =#REF! ->  | D12: =#REF! ->  | E12: =#REF! ->  | F12: =#REF! ->  | G12: =#REF! ->  | H12: =#REF! ->  | I12: =#REF! ->  | J12: =#REF! ->  | K12: =#REF! ->  | L12: =#REF! ->  | M12: =#REF! ->  | N12: =#REF! ->  | O12: =#REF! ->  | P12: =#REF! ->  | Q12: =#REF! ->  | R12: =#REF! ->  | S12: =#REF! ->  | T12: =#REF! ->  | U12: =#REF! ->  | V12: =#REF! ->  | W12: =#REF! ->  | X12: p2f
A13: 11 | B13: =#REF! ->  | C13: =#REF! ->  | D13: =#REF! ->  | E13: =#REF! ->  | F13: =#REF! ->  | G13: =#REF! ->  | H13: =#REF! ->  | I13: =#REF! ->  | J13: =#REF! ->  | K13: =#REF! ->  | L13: =#REF! ->  | M13: =#REF! ->  | N13: =#REF! ->  | O13: =#REF! ->  | P13: =#REF! ->  | Q13: =#REF! ->  | R13: =#REF! ->  | S13: =#REF! ->  | T13: =#REF! ->  | U13: =#REF! ->  | V13: =#REF! ->  | W13: =#REF! ->  | X13: p2f
A14: 12 | B14: =#REF! ->  | C14: =#REF! ->  | D14: =#REF! ->  | E14: =#REF! ->  | F14: =#REF! ->  | G14: =#REF! ->  | H14: =#REF! ->  | I14: =#REF! ->  | J14: =#REF! ->  | K14: =#REF! ->  | L14: =#REF! ->  | M14: =#REF! ->  | N14: =#REF! ->  | O14: =#REF! ->  | P14: =#REF! ->  | Q14: =#REF! ->  | R14: =#REF! ->  | S14: =#REF! ->  | T14: =#REF! ->  | U14: =#REF! ->  | V14: =#REF! ->  | W14: =#REF! ->  | X14: p2f
A15: 13 | B15: =#REF! ->  | C15: =#REF! ->  | D15: =#REF! ->  | E15: =#REF! ->  | F15: =#REF! ->  | G15: =#REF! ->  | H15: =#REF! ->  | I15: =#REF! ->  | J15: =#REF! ->  | K15: =#REF! ->  | L15: =#REF! ->  | M15: =#REF! ->  | N15: =#REF! ->  | O15: =#REF! ->  | P15: =#REF! ->  | Q15: =#REF! ->  | R15: =#REF! ->  | S15: =#REF! ->  | T15: =#REF! ->  | U15: =#REF! ->  | V15: =#REF! ->  | W15: =#REF! ->  | X15: p2f
A16: 14 | B16: =#REF! ->  | C16: =#REF! ->  | D16: =#REF! ->  | E16: =#REF! ->  | F16: =#REF! ->  | G16: =#REF! ->  | H16: =#REF! ->  | I16: =#REF! ->  | J16: =#REF! ->  | K16: =#REF! ->  | L16: =#REF! ->  | M16: =#REF! ->  | N16: =#REF! ->  | O16: =#REF! ->  | P16: =#REF! ->  | Q16: =#REF! ->  | R16: =#REF! ->  | S16: =#REF! ->  | T16: =#REF! ->  | U16: =#REF! ->  | V16: =#REF! ->  | W16: =#REF! ->  | X16: p2f
A17: 15 | B17: =#REF! ->  | C17: =#REF! ->  | D17: =#REF! ->  | E17: =#REF! ->  | F17: =#REF! ->  | G17: =#REF! ->  | H17: =#REF! ->  | I17: =#REF! ->  | J17: =#REF! ->  | K17: =#REF! ->  | L17: =#REF! ->  | M17: =#REF! ->  | N17: =#REF! ->  | O17: =#REF! ->  | P17: =#REF! ->  | Q17: =#REF! ->  | R17: =#REF! ->  | S17: =#REF! ->  | T17: =#REF! ->  | U17: =#REF! ->  | V17: =#REF! ->  | W17: =#REF! ->  | X17: p2f
A18: 16 | B18: =#REF! ->  | C18: =#REF! ->  | D18: =#REF! ->  | E18: =#REF! ->  | F18: =#REF! ->  | G18: =#REF! ->  | H18: =#REF! ->  | I18: =#REF! ->  | J18: =#REF! ->  | K18: =#REF! ->  | L18: =#REF! ->  | M18: =#REF! ->  | N18: =#REF! ->  | O18: =#REF! ->  | P18: =#REF! ->  | Q18: =#REF! ->  | R18: =#REF! ->  | S18: =#REF! ->  | T18: =#REF! ->  | U18: =#REF! ->  | V18: =#REF! ->  | W18: =#REF! ->  | X18: p2f
A19: 17 | B19: =#REF! ->  | C19: =#REF! ->  | D19: =#REF! ->  | E19: =#REF! ->  | F19: =#REF! ->  | G19: =#REF! ->  | H19: =#REF! ->  | I19: =#REF! ->  | J19: =#REF! ->  | K19: =#REF! ->  | L19: =#REF! ->  | M19: =#REF! ->  | N19: =#REF! ->  | O19: =#REF! ->  | P19: =#REF! ->  | Q19: =#REF! ->  | R19: =#REF! ->  | S19: =#REF! ->  | T19: =#REF! ->  | U19: =#REF! ->  | V19: =#REF! ->  | W19: =#REF! ->  | X19: p2f
A20: 18 | B20: =#REF! ->  | C20: =#REF! ->  | D20: =#REF! ->  | E20: =#REF! ->  | F20: =#REF! ->  | G20: =#REF! ->  | H20: =#REF! ->  | I20: =#REF! ->  | J20: =#REF! ->  | K20: =#REF! ->  | L20: =#REF! ->  | M20: =#REF! ->  | N20: =#REF! ->  | O20: =#REF! ->  | P20: =#REF! ->  | Q20: =#REF! ->  | R20: =#REF! ->  | S20: =#REF! ->  | T20: =#REF! ->  | U20: =#REF! ->  | V20: =#REF! ->  | W20: =#REF! ->  | X20: p2f
A21: 19 | B21: =#REF! ->  | C21: =#REF! ->  | D21: =#REF! ->  | E21: =#REF! ->  | F21: =#REF! ->  | G21: =#REF! ->  | H21: =#REF! ->  | I21: =#REF! ->  | J21: =#REF! ->  | K21: =#REF! ->  | L21: =#REF! ->  | M21: =#REF! ->  | N21: =#REF! ->  | O21: =#REF! ->  | P21: =#REF! ->  | Q21: =#REF! ->  | R21: =#REF! ->  | S21: =#REF! ->  | T21: =#REF! ->  | U21: =#REF! ->  | V21: =#REF! ->  | W21: =#REF! ->  | X21: p2f
A22: 20 | B22: =#REF! ->  | C22: =#REF! ->  | D22: =#REF! ->  | E22: =#REF! ->  | F22: =#REF! ->  | G22: =#REF! ->  | H22: =#REF! ->  | I22: =#REF! ->  | J22: =#REF! ->  | K22: =#REF! ->  | L22: =#REF! ->  | M22: =#REF! ->  | N22: =#REF! ->  | O22: =#REF! ->  | P22: =#REF! ->  | Q22: =#REF! ->  | R22: =#REF! ->  | S22: =#REF! ->  | T22: =#REF! ->  | U22: =#REF! ->  | V22: =#REF! ->  | W22: =#REF! ->  | X22: p2f
A23: 21 | B23: =#REF! ->  | C23: =#REF! ->  | D23: =#REF! ->  | E23: =#REF! ->  | F23: =#REF! ->  | G23: =#REF! ->  | H23: =#REF! ->  | I23: =#REF! ->  | J23: =#REF! ->  | K23: =#REF! ->  | L23: =#REF! ->  | M23: =#REF! ->  | N23: =#REF! ->  | O23: =#REF! ->  | P23: =#REF! ->  | Q23: =#REF! ->  | R23: =#REF! ->  | S23: =#REF! ->  | T23: =#REF! ->  | U23: =#REF! ->  | V23: =#REF! ->  | W23: =#REF! ->  | X23: p2f
A24: 22 | B24: =#REF! ->  | C24: =#REF! ->  | D24: =#REF! ->  | E24: =#REF! ->  | F24: =#REF! ->  | G24: =#REF! ->  | H24: =#REF! ->  | I24: =#REF! ->  | J24: =#REF! ->  | K24: =#REF! ->  | L24: =#REF! ->  | M24: =#REF! ->  | N24: =#REF! ->  | O24: =#REF! ->  | P24: =#REF! ->  | Q24: =#REF! ->  | R24: =#REF! ->  | S24: =#REF! ->  | T24: =#REF! ->  | U24: =#REF! ->  | V24: =#REF! ->  | W24: =#REF! ->  | X24: p2f
A25: 23 | B25: =#REF! ->  | C25: =#REF! ->  | D25: =#REF! ->  | E25: =#REF! ->  | F25: =#REF! ->  | G25: =#REF! ->  | H25: =#REF! ->  | I25: =#REF! ->  | J25: =#REF! ->  | K25: =#REF! ->  | L25: =#REF! ->  | M25: =#REF! ->  | N25: =#REF! ->  | O25: =#REF! ->  | P25: =#REF! ->  | Q25: =#REF! ->  | R25: =#REF! ->  | S25: =#REF! ->  | T25: =#REF! ->  | U25: =#REF! ->  | V25: =#REF! ->  | W25: =#REF! ->  | X25: p2f
A26: 24 | B26: =#REF! ->  | C26: =#REF! ->  | D26: =#REF! ->  | E26: =#REF! ->  | F26: =#REF! ->  | G26: =#REF! ->  | H26: =#REF! ->  | I26: =#REF! ->  | J26: =#REF! ->  | K26: =#REF! ->  | L26: =#REF! ->  | M26: =#REF! ->  | N26: =#REF! ->  | O26: =#REF! ->  | P26: =#REF! ->  | Q26: =#REF! ->  | R26: =#REF! ->  | S26: =#REF! ->  | T26: =#REF! ->  | U26: =#REF! ->  | V26: =#REF! ->  | W26: =#REF! ->  | X26: p2f
A27: 25 | B27: =#REF! ->  | C27: =#REF! ->  | D27: =#REF! ->  | E27: =#REF! ->  | F27: =#REF! ->  | G27: =#REF! ->  | H27: =#REF! ->  | I27: =#REF! ->  | J27: =#REF! ->  | K27: =#REF! ->  | L27: =#REF! ->  | M27: =#REF! ->  | N27: =#REF! ->  | O27: =#REF! ->  | P27: =#REF! ->  | Q27: =#REF! ->  | R27: =#REF! ->  | S27: =#REF! ->  | T27: =#REF! ->  | U27: =#REF! ->  | V27: =#REF! ->  | W27: =#REF! ->  | X27: p2f
A28: 26 | B28: =#REF! ->  | C28: =#REF! ->  | D28: =#REF! ->  | E28: =#REF! ->  | F28: =#REF! ->  | G28: =#REF! ->  | H28: =#REF! ->  | I28: =#REF! ->  | J28: =#REF! ->  | K28: =#REF! ->  | L28: =#REF! ->  | M28: =#REF! ->  | N28: =#REF! ->  | O28: =#REF! ->  | P28: =#REF! ->  | Q28: =#REF! ->  | R28: =#REF! ->  | S28: =#REF! ->  | T28: =#REF! ->  | U28: =#REF! ->  | V28: =#REF! ->  | W28: =#REF! ->  | X28: p2f
A29: 27 | B29: =#REF! ->  | C29: =#REF! ->  | D29: =#REF! ->  | E29: =#REF! ->  | F29: =#REF! ->  | G29: =#REF! ->  | H29: =#REF! ->  | I29: =#REF! ->  | J29: =#REF! ->  | K29: =#REF! ->  | L29: =#REF! ->  | M29: =#REF! ->  | N29: =#REF! ->  | O29: =#REF! ->  | P29: =#REF! ->  | Q29: =#REF! ->  | R29: =#REF! ->  | S29: =#REF! ->  | T29: =#REF! ->  | U29: =#REF! ->  | V29: =#REF! ->  | W29: =#REF! ->  | X29: p2f
A30: 28 | B30: =#REF! ->  | C30: =#REF! ->  | D30: =#REF! ->  | E30: =#REF! ->  | F30: =#REF! ->  | G30: =#REF! ->  | H30: =#REF! ->  | I30: =#REF! ->  | J30: =#REF! ->  | K30: =#REF! ->  | L30: =#REF! ->  | M30: =#REF! ->  | N30: =#REF! ->  | O30: =#REF! ->  | P30: =#REF! ->  | Q30: =#REF! ->  | R30: =#REF! ->  | S30: =#REF! ->  | T30: =#REF! ->  | U30: =#REF! ->  | V30: =#REF! ->  | W30: =#REF! ->  | X30: p2f
A31: 29 | B31: =#REF! ->  | C31: =#REF! ->  | D31: =#REF! ->  | E31: =#REF! ->  | F31: =#REF! ->  | G31: =#REF! ->  | H31: =#REF! ->  | I31: =#REF! ->  | J31: =#REF! ->  | K31: =#REF! ->  | L31: =#REF! ->  | M31: =#REF! ->  | N31: =#REF! ->  | O31: =#REF! ->  | P31: =#REF! ->  | Q31: =#REF! ->  | R31: =#REF! ->  | S31: =#REF! ->  | T31: =#REF! ->  | U31: =#REF! ->  | V31: =#REF! ->  | W31: =#REF! ->  | X31: p2f
A32: 30 | B32: =#REF! ->  | C32: =#REF! ->  | D32: =#REF! ->  | E32: =#REF! ->  | F32: =#REF! ->  | G32: =#REF! ->  | H32: =#REF! ->  | I32: =#REF! ->  | J32: =#REF! ->  | K32: =#REF! ->  | L32: =#REF! ->  | M32: =#REF! ->  | N32: =#REF! ->  | O32: =#REF! ->  | P32: =#REF! ->  | Q32: =#REF! ->  | R32: =#REF! ->  | S32: =#REF! ->  | T32: =#REF! ->  | U32: =#REF! ->  | V32: =#REF! ->  | W32: =#REF! ->  | X32: p2f
A33: 31 | B33: =#REF! ->  | C33: =#REF! ->  | D33: =#REF! ->  | E33: =#REF! ->  | F33: =#REF! ->  | G33: =#REF! ->  | H33: =#REF! ->  | I33: =#REF! ->  | J33: =#REF! ->  | K33: =#REF! ->  | L33: =#REF! ->  | M33: =#REF! ->  | N33: =#REF! ->  | O33: =#REF! ->  | P33: =#REF! ->  | Q33: =#REF! ->  | R33: =#REF! ->  | S33: =#REF! ->  | T33: =#REF! ->  | U33: =#REF! ->  | V33: =#REF! ->  | W33: =#REF! ->  | X33: p2f
A34: 32 | B34: =#REF! ->  | C34: =#REF! ->  | D34: =#REF! ->  | E34: =#REF! ->  | F34: =#REF! ->  | G34: =#REF! ->  | H34: =#REF! ->  | I34: =#REF! ->  | J34: =#REF! ->  | K34: =#REF! ->  | L34: =#REF! ->  | M34: =#REF! ->  | N34: =#REF! ->  | O34: =#REF! ->  | P34: =#REF! ->  | Q34: =#REF! ->  | R34: =#REF! ->  | S34: =#REF! ->  | T34: =#REF! ->  | U34: =#REF! ->  | V34: =#REF! ->  | W34: =#REF! ->  | X34: p2f
A35: 33 | B35: =#REF! ->  | C35: =#REF! ->  | D35: =#REF! ->  | E35: =#REF! ->  | F35: =#REF! ->  | G35: =#REF! ->  | H35: =#REF! ->  | I35: =#REF! ->  | J35: =#REF! ->  | K35: =#REF! ->  | L35: =#REF! ->  | M35: =#REF! ->  | N35: =#REF! ->  | O35: =#REF! ->  | P35: =#REF! ->  | Q35: =#REF! ->  | R35: =#REF! ->  | S35: =#REF! ->  | T35: =#REF! ->  | U35: =#REF! ->  | V35: =#REF! ->  | W35: =#REF! ->  | X35: p2f
A36: 34 | B36: =#REF! ->  | C36: =#REF! ->  | D36: =#REF! ->  | E36: =#REF! ->  | F36: =#REF! ->  | G36: =#REF! ->  | H36: =#REF! ->  | I36: =#REF! ->  | J36: =#REF! ->  | K36: =#REF! ->  | L36: =#REF! ->  | M36: =#REF! ->  | N36: =#REF! ->  | O36: =#REF! ->  | P36: =#REF! ->  | Q36: =#REF! ->  | R36: =#REF! ->  | S36: =#REF! ->  | T36: =#REF! ->  | U36: =#REF! ->  | V36: =#REF! ->  | W36: =#REF! ->  | X36: p2f
A37: 35 | B37: =#REF! ->  | C37: =#REF! ->  | D37: =#REF! ->  | E37: =#REF! ->  | F37: =#REF! ->  | G37: =#REF! ->  | H37: =#REF! ->  | I37: =#REF! ->  | J37: =#REF! ->  | K37: =#REF! ->  | L37: =#REF! ->  | M37: =#REF! ->  | N37: =#REF! ->  | O37: =#REF! ->  | P37: =#REF! ->  | Q37: =#REF! ->  | R37: =#REF! ->  | S37: =#REF! ->  | T37: =#REF! ->  | U37: =#REF! ->  | V37: =#REF! ->  | W37: =#REF! ->  | X37: p2f
A38: 36 | B38: =#REF! ->  | C38: =#REF! ->  | D38: =#REF! ->  | E38: =#REF! ->  | F38: =#REF! ->  | G38: =#REF! ->  | H38: =#REF! ->  | I38: =#REF! ->  | J38: =#REF! ->  | K38: =#REF! ->  | L38: =#REF! ->  | M38: =#REF! ->  | N38: =#REF! ->  | O38: =#REF! ->  | P38: =#REF! ->  | Q38: =#REF! ->  | R38: =#REF! ->  | S38: =#REF! ->  | T38: =#REF! ->  | U38: =#REF! ->  | V38: =#REF! ->  | W38: =#REF! ->  | X38: p2f
A39: 37 | B39: =#REF! ->  | C39: =#REF! ->  | D39: =#REF! ->  | E39: =#REF! ->  | F39: =#REF! ->  | G39: =#REF! ->  | H39: =#REF! ->  | I39: =#REF! ->  | J39: =#REF! ->  | K39: =#REF! ->  | L39: =#REF! ->  | M39: =#REF! ->  | N39: =#REF! ->  | O39: =#REF! ->  | P39: =#REF! ->  | Q39: =#REF! ->  | R39: =#REF! ->  | S39: =#REF! ->  | T39: =#REF! ->  | U39: =#REF! ->  | V39: =#REF! ->  | W39: =#REF! ->  | X39: p2f
A40: 38 | B40: =#REF! ->  | C40: =#REF! ->  | D40: =#REF! ->  | E40: =#REF! ->  | F40: =#REF! ->  | G40: =#REF! ->  | H40: =#REF! ->  | I40: =#REF! ->  | J40: =#REF! ->  | K40: =#REF! ->  | L40: =#REF! ->  | M40: =#REF! ->  | N40: =#REF! ->  | O40: =#REF! ->  | P40: =#REF! ->  | Q40: =#REF! ->  | R40: =#REF! ->  | S40: =#REF! ->  | T40: =#REF! ->  | U40: =#REF! ->  | V40: =#REF! ->  | W40: =#REF! ->  | X40: p2f
A41: 39 | B41: =#REF! ->  | C41: =#REF! ->  | D41: =#REF! ->  | E41: =#REF! ->  | F41: =#REF! ->  | G41: =#REF! ->  | H41: =#REF! ->  | I41: =#REF! ->  | J41: =#REF! ->  | K41: =#REF! ->  | L41: =#REF! ->  | M41: =#REF! ->  | N41: =#REF! ->  | O41: =#REF! ->  | P41: =#REF! ->  | Q41: =#REF! ->  | R41: =#REF! ->  | S41: =#REF! ->  | T41: =#REF! ->  | U41: =#REF! ->  | V41: =#REF! ->  | W41: =#REF! ->  | X41: p2f
A42: 40 | B42: =#REF! ->  | C42: =#REF! ->  | D42: =#REF! ->  | E42: =#REF! ->  | F42: =#REF! ->  | G42: =#REF! ->  | H42: =#REF! ->  | I42: =#REF! ->  | J42: =#REF! ->  | K42: =#REF! ->  | L42: =#REF! ->  | M42: =#REF! ->  | N42: =#REF! ->  | O42: =#REF! ->  | P42: =#REF! ->  | Q42: =#REF! ->  | R42: =#REF! ->  | S42: =#REF! ->  | T42: =#REF! ->  | U42: =#REF! ->  | V42: =#REF! ->  | W42: =#REF! ->  | X42: p2f
A43: 41 | B43: =#REF! ->  | C43: =#REF! ->  | D43: =#REF! ->  | E43: =#REF! ->  | F43: =#REF! ->  | G43: =#REF! ->  | H43: =#REF! ->  | I43: =#REF! ->  | J43: =#REF! ->  | K43: =#REF! ->  | L43: =#REF! ->  | M43: =#REF! ->  | N43: =#REF! ->  | O43: =#REF! ->  | P43: =#REF! ->  | Q43: =#REF! ->  | R43: =#REF! ->  | S43: =#REF! ->  | T43: =#REF! ->  | U43: =#REF! ->  | V43: =#REF! ->  | W43: =#REF! ->  | X43: p2f
A44: 42 | B44: =#REF! ->  | C44: =#REF! ->  | D44: =#REF! ->  | E44: =#REF! ->  | F44: =#REF! ->  | G44: =#REF! ->  | H44: =#REF! ->  | I44: =#REF! ->  | J44: =#REF! ->  | K44: =#REF! ->  | L44: =#REF! ->  | M44: =#REF! ->  | N44: =#REF! ->  | O44: =#REF! ->  | P44: =#REF! ->  | Q44: =#REF! ->  | R44: =#REF! ->  | S44: =#REF! ->  | T44: =#REF! ->  | U44: =#REF! ->  | V44: =#REF! ->  | W44: =#REF! ->  | X44: p2f
A45: 43 | B45: =#REF! ->  | C45: =#REF! ->  | D45: =#REF! ->  | E45: =#REF! ->  | F45: =#REF! ->  | G45: =#REF! ->  | H45: =#REF! ->  | I45: =#REF! ->  | J45: =#REF! ->  | K45: =#REF! ->  | L45: =#REF! ->  | M45: =#REF! ->  | N45: =#REF! ->  | O45: =#REF! ->  | P45: =#REF! ->  | Q45: =#REF! ->  | R45: =#REF! ->  | S45: =#REF! ->  | T45: =#REF! ->  | U45: =#REF! ->  | V45: =#REF! ->  | W45: =#REF! ->  | X45: p2f
A46: 44 | B46: =#REF! ->  | C46: =#REF! ->  | D46: =#REF! ->  | E46: =#REF! ->  | F46: =#REF! ->  | G46: =#REF! ->  | H46: =#REF! ->  | I46: =#REF! ->  | J46: =#REF! ->  | K46: =#REF! ->  | L46: =#REF! ->  | M46: =#REF! ->  | N46: =#REF! ->  | O46: =#REF! ->  | P46: =#REF! ->  | Q46: =#REF! ->  | R46: =#REF! ->  | S46: =#REF! ->  | T46: =#REF! ->  | U46: =#REF! ->  | V46: =#REF! ->  | W46: =#REF! ->  | X46: p2f
A47: 45 | B47: =#REF! ->  | C47: =#REF! ->  | D47: =#REF! ->  | E47: =#REF! ->  | F47: =#REF! ->  | G47: =#REF! ->  | H47: =#REF! ->  | I47: =#REF! ->  | J47: =#REF! ->  | K47: =#REF! ->  | L47: =#REF! ->  | M47: =#REF! ->  | N47: =#REF! ->  | O47: =#REF! ->  | P47: =#REF! ->  | Q47: =#REF! ->  | R47: =#REF! ->  | S47: =#REF! ->  | T47: =#REF! ->  | U47: =#REF! ->  | V47: =#REF! ->  | W47: =#REF! ->  | X47: p2f
A48: 46 | B48: =#REF! ->  | C48: =#REF! ->  | D48: =#REF! ->  | E48: =#REF! ->  | F48: =#REF! ->  | G48: =#REF! ->  | H48: =#REF! ->  | I48: =#REF! ->  | J48: =#REF! ->  | K48: =#REF! ->  | L48: =#REF! ->  | M48: =#REF! ->  | N48: =#REF! ->  | O48: =#REF! ->  | P48: =#REF! ->  | Q48: =#REF! ->  | R48: =#REF! ->  | S48: =#REF! ->  | T48: =#REF! ->  | U48: =#REF! ->  | V48: =#REF! ->  | W48: =#REF! ->  | X48: p2f
A49: 47 | B49: =#REF! ->  | C49: =#REF! ->  | D49: =#REF! ->  | E49: =#REF! ->  | F49: =#REF! ->  | G49: =#REF! ->  | H49: =#REF! ->  | I49: =#REF! ->  | J49: =#REF! ->  | K49: =#REF! ->  | L49: =#REF! ->  | M49: =#REF! ->  | N49: =#REF! ->  | O49: =#REF! ->  | P49: =#REF! ->  | Q49: =#REF! ->  | R49: =#REF! ->  | S49: =#REF! ->  | T49: =#REF! ->  | U49: =#REF! ->  | V49: =#REF! ->  | W49: =#REF! ->  | X49: p2f
A50: 48 | B50: =#REF! ->  | C50: =#REF! ->  | D50: =#REF! ->  | E50: =#REF! ->  | F50: =#REF! ->  | G50: =#REF! ->  | H50: =#REF! ->  | I50: =#REF! ->  | J50: =#REF! ->  | K50: =#REF! ->  | L50: =#REF! ->  | M50: =#REF! ->  | N50: =#REF! ->  | O50: =#REF! ->  | P50: =#REF! ->  | Q50: =#REF! ->  | R50: =#REF! ->  | S50: =#REF! ->  | T50: =#REF! ->  | U50: =#REF! ->  | V50: =#REF! ->  | W50: =#REF! ->  | X50: p2f
A51: 49 | B51: =#REF! ->  | C51: =#REF! ->  | D51: =#REF! ->  | E51: =#REF! ->  | F51: =#REF! ->  | G51: =#REF! ->  | H51: =#REF! ->  | I51: =#REF! ->  | J51: =#REF! ->  | K51: =#REF! ->  | L51: =#REF! ->  | M51: =#REF! ->  | N51: =#REF! ->  | O51: =#REF! ->  | P51: =#REF! ->  | Q51: =#REF! ->  | R51: =#REF! ->  | S51: =#REF! ->  | T51: =#REF! ->  | U51: =#REF! ->  | V51: =#REF! ->  | W51: =#REF! ->  | X51: p2f
A52: 50 | B52: =#REF! ->  | C52: =#REF! ->  | D52: =#REF! ->  | E52: =#REF! ->  | F52: =#REF! ->  | G52: =#REF! ->  | H52: =#REF! ->  | I52: =#REF! ->  | J52: =#REF! ->  | K52: =#REF! ->  | L52: =#REF! ->  | M52: =#REF! ->  | N52: =#REF! ->  | O52: =#REF! ->  | P52: =#REF! ->  | Q52: =#REF! ->  | R52: =#REF! ->  | S52: =#REF! ->  | T52: =#REF! ->  | U52: =#REF! ->  | V52: =#REF! ->  | W52: =#REF! ->  | X52: p2f
A53: 51 | B53: =#REF! ->  | C53: =#REF! ->  | D53: =#REF! ->  | E53: =#REF! ->  | F53: =#REF! ->  | G53: =#REF! ->  | H53: =#REF! ->  | I53: =#REF! ->  | J53: =#REF! ->  | K53: =#REF! ->  | L53: =#REF! ->  | M53: =#REF! ->  | N53: =#REF! ->  | O53: =#REF! ->  | P53: =#REF! ->  | Q53: =#REF! ->  | R53: =#REF! ->  | S53: =#REF! ->  | T53: =#REF! ->  | U53: =#REF! ->  | V53: =#REF! ->  | W53: =#REF! ->  | X53: p2f
A54: 52 | B54: =#REF! ->  | C54: =#REF! ->  | D54: =#REF! ->  | E54: =#REF! ->  | F54: =#REF! ->  | G54: =#REF! ->  | H54: =#REF! ->  | I54: =#REF! ->  | J54: =#REF! ->  | K54: =#REF! ->  | L54: =#REF! ->  | M54: =#REF! ->  | N54: =#REF! ->  | O54: =#REF! ->  | P54: =#REF! ->  | Q54: =#REF! ->  | R54: =#REF! ->  | S54: =#REF! ->  | T54: =#REF! ->  | U54: =#REF! ->  | V54: =#REF! ->  | W54: =#REF! ->  | X54: p2f
A55: 53 | B55: =#REF! ->  | C55: =#REF! ->  | D55: =#REF! ->  | E55: =#REF! ->  | F55: =#REF! ->  | G55: =#REF! ->  | H55: =#REF! ->  | I55: =#REF! ->  | J55: =#REF! ->  | K55: =#REF! ->  | L55: =#REF! ->  | M55: =#REF! ->  | N55: =#REF! ->  | O55: =#REF! ->  | P55: =#REF! ->  | Q55: =#REF! ->  | R55: =#REF! ->  | S55: =#REF! ->  | T55: =#REF! ->  | U55: =#REF! ->  | V55: =#REF! ->  | W55: =#REF! ->  | X55: p2f
A56: 54 | B56: =#REF! ->  | C56: =#REF! ->  | D56: =#REF! ->  | E56: =#REF! ->  | F56: =#REF! ->  | G56: =#REF! ->  | H56: =#REF! ->  | I56: =#REF! ->  | J56: =#REF! ->  | K56: =#REF! ->  | L56: =#REF! ->  | M56: =#REF! ->  | N56: =#REF! ->  | O56: =#REF! ->  | P56: =#REF! ->  | Q56: =#REF! ->  | R56: =#REF! ->  | S56: =#REF! ->  | T56: =#REF! ->  | U56: =#REF! ->  | V56: =#REF! ->  | W56: =#REF! ->  | X56: p2f
A57: 55 | B57: =#REF! ->  | C57: =#REF! ->  | D57: =#REF! ->  | E57: =#REF! ->  | F57: =#REF! ->  | G57: =#REF! ->  | H57: =#REF! ->  | I57: =#REF! ->  | J57: =#REF! ->  | K57: =#REF! ->  | L57: =#REF! ->  | M57: =#REF! ->  | N57: =#REF! ->  | O57: =#REF! ->  | P57: =#REF! ->  | Q57: =#REF! ->  | R57: =#REF! ->  | S57: =#REF! ->  | T57: =#REF! ->  | U57: =#REF! ->  | V57: =#REF! ->  | W57: =#REF! ->  | X57: p2f
A58: 56 | B58: =#REF! ->  | C58: =#REF! ->  | D58: =#REF! ->  | E58: =#REF! ->  | F58: =#REF! ->  | G58: =#REF! ->  | H58: =#REF! ->  | I58: =#REF! ->  | J58: =#REF! ->  | K58: =#REF! ->  | L58: =#REF! ->  | M58: =#REF! ->  | N58: =#REF! ->  | O58: =#REF! ->  | P58: =#REF! ->  | Q58: =#REF! ->  | R58: =#REF! ->  | S58: =#REF! ->  | T58: =#REF! ->  | U58: =#REF! ->  | V58: =#REF! ->  | W58: =#REF! ->  | X58: p2f
A59: 57 | B59: =#REF! ->  | C59: =#REF! ->  | D59: =#REF! ->  | E59: =#REF! ->  | F59: =#REF! ->  | G59: =#REF! ->  | H59: =#REF! ->  | I59: =#REF! ->  | J59: =#REF! ->  | K59: =#REF! ->  | L59: =#REF! ->  | M59: =#REF! ->  | N59: =#REF! ->  | O59: =#REF! ->  | P59: =#REF! ->  | Q59: =#REF! ->  | R59: =#REF! ->  | S59: =#REF! ->  | T59: =#REF! ->  | U59: =#REF! ->  | V59: =#REF! ->  | W59: =#REF! ->  | X59: p2f
A60: 58 | B60: =#REF! ->  | C60: =#REF! ->  | D60: =#REF! ->  | E60: =#REF! ->  | F60: =#REF! ->  | G60: =#REF! ->  | H60: =#REF! ->  | I60: =#REF! ->  | J60: =#REF! ->  | K60: =#REF! ->  | L60: =#REF! ->  | M60: =#REF! ->  | N60: =#REF! ->  | O60: =#REF! ->  | P60: =#REF! ->  | Q60: =#REF! ->  | R60: =#REF! ->  | S60: =#REF! ->  | T60: =#REF! ->  | U60: =#REF! ->  | V60: =#REF! ->  | W60: =#REF! ->  | X60: p2f
A61: 59 | B61: =#REF! ->  | C61: =#REF! ->  | D61: =#REF! ->  | E61: =#REF! ->  | F61: =#REF! ->  | G61: =#REF! ->  | H61: =#REF! ->  | I61: =#REF! ->  | J61: =#REF! ->  | K61: =#REF! ->  | L61: =#REF! ->  | M61: =#REF! ->  | N61: =#REF! ->  | O61: =#REF! ->  | P61: =#REF! ->  | Q61: =#REF! ->  | R61: =#REF! ->  | S61: =#REF! ->  | T61: =#REF! ->  | U61: =#REF! ->  | V61: =#REF! ->  | W61: =#REF! ->  | X61: p2f
A62: 60 | B62: =#REF! ->  | C62: =#REF! ->  | D62: =#REF! ->  | E62: =#REF! ->  | F62: =#REF! ->  | G62: =#REF! ->  | H62: =#REF! ->  | I62: =#REF! ->  | J62: =#REF! ->  | K62: =#REF! ->  | L62: =#REF! ->  | M62: =#REF! ->  | N62: =#REF! ->  | O62: =#REF! ->  | P62: =#REF! ->  | Q62: =#REF! ->  | R62: =#REF! ->  | S62: =#REF! ->  | T62: =#REF! ->  | U62: =#REF! ->  | V62: =#REF! ->  | W62: =#REF! ->  | X62: p2f
A63: 61 | B63: =#REF! ->  | C63: =#REF! ->  | D63: =#REF! ->  | E63: =#REF! ->  | F63: =#REF! ->  | G63: =#REF! ->  | H63: =#REF! ->  | I63: =#REF! ->  | J63: =#REF! ->  | K63: =#REF! ->  | L63: =#REF! ->  | M63: =#REF! ->  | N63: =#REF! ->  | O63: =#REF! ->  | P63: =#REF! ->  | Q63: =#REF! ->  | R63: =#REF! ->  | S63: =#REF! ->  | T63: =#REF! ->  | U63: =#REF! ->  | V63: =#REF! ->  | W63: =#REF! ->  | X63: p2f
A64: 62 | B64: =#REF! ->  | C64: =#REF! ->  | D64: =#REF! ->  | E64: =#REF! ->  | F64: =#REF! ->  | G64: =#REF! ->  | H64: =#REF! ->  | I64: =#REF! ->  | J64: =#REF! ->  | K64: =#REF! ->  | L64: =#REF! ->  | M64: =#REF! ->  | N64: =#REF! ->  | O64: =#REF! ->  | P64: =#REF! ->  | Q64: =#REF! ->  | R64: =#REF! ->  | S64: =#REF! ->  | T64: =#REF! ->  | U64: =#REF! ->  | V64: =#REF! ->  | W64: =#REF! ->  | X64: p2f
A65: 63 | B65: =#REF! ->  | C65: =#REF! ->  | D65: =#REF! ->  | E65: =#REF! ->  | F65: =#REF! ->  | G65: =#REF! ->  | H65: =#REF! ->  | I65: =#REF! ->  | J65: =#REF! ->  | K65: =#REF! ->  | L65: =#REF! ->  | M65: =#REF! ->  | N65: =#REF! ->  | O65: =#REF! ->  | P65: =#REF! ->  | Q65: =#REF! ->  | R65: =#REF! ->  | S65: =#REF! ->  | T65: =#REF! ->  | U65: =#REF! ->  | V65: =#REF! ->  | W65: =#REF! ->  | X65: p2f
A66: 64 | B66: =#REF! ->  | C66: =#REF! ->  | D66: =#REF! ->  | E66: =#REF! ->  | F66: =#REF! ->  | G66: =#REF! ->  | H66: =#REF! ->  | I66: =#REF! ->  | J66: =#REF! ->  | K66: =#REF! ->  | L66: =#REF! ->  | M66: =#REF! ->  | N66: =#REF! ->  | O66: =#REF! ->  | P66: =#REF! ->  | Q66: =#REF! ->  | R66: =#REF! ->  | S66: =#REF! ->  | T66: =#REF! ->  | U66: =#REF! ->  | V66: =#REF! ->  | W66: =#REF! ->  | X66: p2f
A67: 65 | B67: =#REF! ->  | C67: =#REF! ->  | D67: =#REF! ->  | E67: =#REF! ->  | F67: =#REF! ->  | G67: =#REF! ->  | H67: =#REF! ->  | I67: =#REF! ->  | J67: =#REF! ->  | K67: =#REF! ->  | L67: =#REF! ->  | M67: =#REF! ->  | N67: =#REF! ->  | O67: =#REF! ->  | P67: =#REF! ->  | Q67: =#REF! ->  | R67: =#REF! ->  | S67: =#REF! ->  | T67: =#REF! ->  | U67: =#REF! ->  | V67: =#REF! ->  | W67: =#REF! ->  | X67: p2f
A68: 66 | B68: =#REF! ->  | C68: =#REF! ->  | D68: =#REF! ->  | E68: =#REF! ->  | F68: =#REF! ->  | G68: =#REF! ->  | H68: =#REF! ->  | I68: =#REF! ->  | J68: =#REF! ->  | K68: =#REF! ->  | L68: =#REF! ->  | M68: =#REF! ->  | N68: =#REF! ->  | O68: =#REF! ->  | P68: =#REF! ->  | Q68: =#REF! ->  | R68: =#REF! ->  | S68: =#REF! ->  | T68: =#REF! ->  | U68: =#REF! ->  | V68: =#REF! ->  | W68: =#REF! ->  | X68: p2f
A69: 67 | B69: =#REF! ->  | C69: =#REF! ->  | D69: =#REF! ->  | E69: =#REF! ->  | F69: =#REF! ->  | G69: =#REF! ->  | H69: =#REF! ->  | I69: =#REF! ->  | J69: =#REF! ->  | K69: =#REF! ->  | L69: =#REF! ->  | M69: =#REF! ->  | N69: =#REF! ->  | O69: =#REF! ->  | P69: =#REF! ->  | Q69: =#REF! ->  | R69: =#REF! ->  | S69: =#REF! ->  | T69: =#REF! ->  | U69: =#REF! ->  | V69: =#REF! ->  | W69: =#REF! ->  | X69: p2f
A70: 68 | B70: =#REF! ->  | C70: =#REF! ->  | D70: =#REF! ->  | E70: =#REF! ->  | F70: =#REF! ->  | G70: =#REF! ->  | H70: =#REF! ->  | I70: =#REF! ->  | J70: =#REF! ->  | K70: =#REF! ->  | L70: =#REF! ->  | M70: =#REF! ->  | N70: =#REF! ->  | O70: =#REF! ->  | P70: =#REF! ->  | Q70: =#REF! ->  | R70: =#REF! ->  | S70: =#REF! ->  | T70: =#REF! ->  | U70: =#REF! ->  | V70: =#REF! ->  | W70: =#REF! ->  | X70: p2f
A71: 69 | B71: =#REF! ->  | C71: =#REF! ->  | D71: =#REF! ->  | E71: =#REF! ->  | F71: =#REF! ->  | G71: =#REF! ->  | H71: =#REF! ->  | I71: =#REF! ->  | J71: =#REF! ->  | K71: =#REF! ->  | L71: =#REF! ->  | M71: =#REF! ->  | N71: =#REF! ->  | O71: =#REF! ->  | P71: =#REF! ->  | Q71: =#REF! ->  | R71: =#REF! ->  | S71: =#REF! ->  | T71: =#REF! ->  | U71: =#REF! ->  | V71: =#REF! ->  | W71: =#REF! ->  | X71: p2f
A72: 70 | B72: =#REF! ->  | C72: =#REF! ->  | D72: =#REF! ->  | E72: =#REF! ->  | F72: =#REF! ->  | G72: =#REF! ->  | H72: =#REF! ->  | I72: =#REF! ->  | J72: =#REF! ->  | K72: =#REF! ->  | L72: =#REF! ->  | M72: =#REF! ->  | N72: =#REF! ->  | O72: =#REF! ->  | P72: =#REF! ->  | Q72: =#REF! ->  | R72: =#REF! ->  | S72: =#REF! ->  | T72: =#REF! ->  | U72: =#REF! ->  | V72: =#REF! ->  | W72: =#REF! ->  | X72: p2f
A73: 71 | B73: =#REF! ->  | C73: =#REF! ->  | D73: =#REF! ->  | E73: =#REF! ->  | F73: =#REF! ->  | G73: =#REF! ->  | H73: =#REF! ->  | I73: =#REF! ->  | J73: =#REF! ->  | K73: =#REF! ->  | L73: =#REF! ->  | M73: =#REF! ->  | N73: =#REF! ->  | O73: =#REF! ->  | P73: =#REF! ->  | Q73: =#REF! ->  | R73: =#REF! ->  | S73: =#REF! ->  | T73: =#REF! ->  | U73: =#REF! ->  | V73: =#REF! ->  | W73: =#REF! ->  | X73: p2f
A74: 72 | B74: =#REF! ->  | C74: =#REF! ->  | D74: =#REF! ->  | E74: =#REF! ->  | F74: =#REF! ->  | G74: =#REF! ->  | H74: =#REF! ->  | I74: =#REF! ->  | J74: =#REF! ->  | K74: =#REF! ->  | L74: =#REF! ->  | M74: =#REF! ->  | N74: =#REF! ->  | O74: =#REF! ->  | P74: =#REF! ->  | Q74: =#REF! ->  | R74: =#REF! ->  | S74: =#REF! ->  | T74: =#REF! ->  | U74: =#REF! ->  | V74: =#REF! ->  | W74: =#REF! ->  | X74: p2f
A75: 73 | B75: =#REF! ->  | C75: =#REF! ->  | D75: =#REF! ->  | E75: =#REF! ->  | F75: =#REF! ->  | G75: =#REF! ->  | H75: =#REF! ->  | I75: =#REF! ->  | J75: =#REF! ->  | K75: =#REF! ->  | L75: =#REF! ->  | M75: =#REF! ->  | N75: =#REF! ->  | O75: =#REF! ->  | P75: =#REF! ->  | Q75: =#REF! ->  | R75: =#REF! ->  | S75: =#REF! ->  | T75: =#REF! ->  | U75: =#REF! ->  | V75: =#REF! ->  | W75: =#REF! ->  | X75: p2f
A76: 74 | B76: =#REF! ->  | C76: =#REF! ->  | D76: =#REF! ->  | E76: =#REF! ->  | F76: =#REF! ->  | G76: =#REF! ->  | H76: =#REF! ->  | I76: =#REF! ->  | J76: =#REF! ->  | K76: =#REF! ->  | L76: =#REF! ->  | M76: =#REF! ->  | N76: =#REF! ->  | O76: =#REF! ->  | P76: =#REF! ->  | Q76: =#REF! ->  | R76: =#REF! ->  | S76: =#REF! ->  | T76: =#REF! ->  | U76: =#REF! ->  | V76: =#REF! ->  | W76: =#REF! ->  | X76: p2f
A77: 75 | B77: =#REF! ->  | C77: =#REF! ->  | D77: =#REF! ->  | E77: =#REF! ->  | F77: =#REF! ->  | G77: =#REF! ->  | H77: =#REF! ->  | I77: =#REF! ->  | J77: =#REF! ->  | K77: =#REF! ->  | L77: =#REF! ->  | M77: =#REF! ->  | N77: =#REF! ->  | O77: =#REF! ->  | P77: =#REF! ->  | Q77: =#REF! ->  | R77: =#REF! ->  | S77: =#REF! ->  | T77: =#REF! ->  | U77: =#REF! ->  | V77: =#REF! ->  | W77: =#REF! ->  | X77: p2f
A78: 76 | B78: =#REF! ->  | C78: =#REF! ->  | D78: =#REF! ->  | E78: =#REF! ->  | F78: =#REF! ->  | G78: =#REF! ->  | H78: =#REF! ->  | I78: =#REF! ->  | J78: =#REF! ->  | K78: =#REF! ->  | L78: =#REF! ->  | M78: =#REF! ->  | N78: =#REF! ->  | O78: =#REF! ->  | P78: =#REF! ->  | Q78: =#REF! ->  | R78: =#REF! ->  | S78: =#REF! ->  | T78: =#REF! ->  | U78: =#REF! ->  | V78: =#REF! ->  | W78: =#REF! ->  | X78: p2f
A79: 77 | B79: =#REF! ->  | C79: =#REF! ->  | D79: =#REF! ->  | E79: =#REF! ->  | F79: =#REF! ->  | G79: =#REF! ->  | H79: =#REF! ->  | I79: =#REF! ->  | J79: =#REF! ->  | K79: =#REF! ->  | L79: =#REF! ->  | M79: =#REF! ->  | N79: =#REF! ->  | O79: =#REF! ->  | P79: =#REF! ->  | Q79: =#REF! ->  | R79: =#REF! ->  | S79: =#REF! ->  | T79: =#REF! ->  | U79: =#REF! ->  | V79: =#REF! ->  | W79: =#REF! ->  | X79: p2f
A80: 78 | B80: =#REF! ->  | C80: =#REF! ->  | D80: =#REF! ->  | E80: =#REF! ->  | F80: =#REF! ->  | G80: =#REF! ->  | H80: =#REF! ->  | I80: =#REF! ->  | J80: =#REF! ->  | K80: =#REF! ->  | L80: =#REF! ->  | M80: =#REF! ->  | N80: =#REF! ->  | O80: =#REF! ->  | P80: =#REF! ->  | Q80: =#REF! ->  | R80: =#REF! ->  | S80: =#REF! ->  | T80: =#REF! ->  | U80: =#REF! ->  | V80: =#REF! ->  | W80: =#REF! ->  | X80: p2f
A81: 79 | B81: =#REF! ->  | C81: =#REF! ->  | D81: =#REF! ->  | E81: =#REF! ->  | F81: =#REF! ->  | G81: =#REF! ->  | H81: =#REF! ->  | I81: =#REF! ->  | J81: =#REF! ->  | K81: =#REF! ->  | L81: =#REF! ->  | M81: =#REF! ->  | N81: =#REF! ->  | O81: =#REF! ->  | P81: =#REF! ->  | Q81: =#REF! ->  | R81: =#REF! ->  | S81: =#REF! ->  | T81: =#REF! ->  | U81: =#REF! ->  | V81: =#REF! ->  | W81: =#REF! ->  | X81: p2f
A82: 80 | B82: =#REF! ->  | C82: =#REF! ->  | D82: =#REF! ->  | E82: =#REF! ->  | F82: =#REF! ->  | G82: =#REF! ->  | H82: =#REF! ->  | I82: =#REF! ->  | J82: =#REF! ->  | K82: =#REF! ->  | L82: =#REF! ->  | M82: =#REF! ->  | N82: =#REF! ->  | O82: =#REF! ->  | P82: =#REF! ->  | Q82: =#REF! ->  | R82: =#REF! ->  | S82: =#REF! ->  | T82: =#REF! ->  | U82: =#REF! ->  | V82: =#REF! ->  | W82: =#REF! ->  | X82: p2f
A83: 81 | B83: =#REF! ->  | C83: =#REF! ->  | D83: =#REF! ->  | E83: =#REF! ->  | F83: =#REF! ->  | G83: =#REF! ->  | H83: =#REF! ->  | I83: =#REF! ->  | J83: =#REF! ->  | K83: =#REF! ->  | L83: =#REF! ->  | M83: =#REF! ->  | N83: =#REF! ->  | O83: =#REF! ->  | P83: =#REF! ->  | Q83: =#REF! ->  | R83: =#REF! ->  | S83: =#REF! ->  | T83: =#REF! ->  | U83: =#REF! ->  | V83: =#REF! ->  | W83: =#REF! ->  | X83: p2f
A84: 82 | B84: =#REF! ->  | C84: =#REF! ->  | D84: =#REF! ->  | E84: =#REF! ->  | F84: =#REF! ->  | G84: =#REF! ->  | H84: =#REF! ->  | I84: =#REF! ->  | J84: =#REF! ->  | K84: =#REF! ->  | L84: =#REF! ->  | M84: =#REF! ->  | N84: =#REF! ->  | O84: =#REF! ->  | P84: =#REF! ->  | Q84: =#REF! ->  | R84: =#REF! ->  | S84: =#REF! ->  | T84: =#REF! ->  | U84: =#REF! ->  | V84: =#REF! ->  | W84: =#REF! ->  | X84: p2f
A85: 83 | B85: =#REF! ->  | C85: =#REF! ->  | D85: =#REF! ->  | E85: =#REF! ->  | F85: =#REF! ->  | G85: =#REF! ->  | H85: =#REF! ->  | I85: =#REF! ->  | J85: =#REF! ->  | K85: =#REF! ->  | L85: =#REF! ->  | M85: =#REF! ->  | N85: =#REF! ->  | O85: =#REF! ->  | P85: =#REF! ->  | Q85: =#REF! ->  | R85: =#REF! ->  | S85: =#REF! ->  | T85: =#REF! ->  | U85: =#REF! ->  | V85: =#REF! ->  | W85: =#REF! ->  | X85: p2f
A86: 84 | B86: =#REF! ->  | C86: =#REF! ->  | D86: =#REF! ->  | E86: =#REF! ->  | F86: =#REF! ->  | G86: =#REF! ->  | H86: =#REF! ->  | I86: =#REF! ->  | J86: =#REF! ->  | K86: =#REF! ->  | L86: =#REF! ->  | M86: =#REF! ->  | N86: =#REF! ->  | O86: =#REF! ->  | P86: =#REF! ->  | Q86: =#REF! ->  | R86: =#REF! ->  | S86: =#REF! ->  | T86: =#REF! ->  | U86: =#REF! ->  | V86: =#REF! ->  | W86: =#REF! ->  | X86: p2f
A87: 85 | B87: =#REF! ->  | C87: =#REF! ->  | D87: =#REF! ->  | E87: =#REF! ->  | F87: =#REF! ->  | G87: =#REF! ->  | H87: =#REF! ->  | I87: =#REF! ->  | J87: =#REF! ->  | K87: =#REF! ->  | L87: =#REF! ->  | M87: =#REF! ->  | N87: =#REF! ->  | O87: =#REF! ->  | P87: =#REF! ->  | Q87: =#REF! ->  | R87: =#REF! ->  | S87: =#REF! ->  | T87: =#REF! ->  | U87: =#REF! ->  | V87: =#REF! ->  | W87: =#REF! ->  | X87: p2f
A88: 86 | B88: =#REF! ->  | C88: =#REF! ->  | D88: =#REF! ->  | E88: =#REF! ->  | F88: =#REF! ->  | G88: =#REF! ->  | H88: =#REF! ->  | I88: =#REF! ->  | J88: =#REF! ->  | K88: =#REF! ->  | L88: =#REF! ->  | M88: =#REF! ->  | N88: =#REF! ->  | O88: =#REF! ->  | P88: =#REF! ->  | Q88: =#REF! ->  | R88: =#REF! ->  | S88: =#REF! ->  | T88: =#REF! ->  | U88: =#REF! ->  | V88: =#REF! ->  | W88: =#REF! ->  | X88: p2f
A89: 87 | B89: =#REF! ->  | C89: =#REF! ->  | D89: =#REF! ->  | E89: =#REF! ->  | F89: =#REF! ->  | G89: =#REF! ->  | H89: =#REF! ->  | I89: =#REF! ->  | J89: =#REF! ->  | K89: =#REF! ->  | L89: =#REF! ->  | M89: =#REF! ->  | N89: =#REF! ->  | O89: =#REF! ->  | P89: =#REF! ->  | Q89: =#REF! ->  | R89: =#REF! ->  | S89: =#REF! ->  | T89: =#REF! ->  | U89: =#REF! ->  | V89: =#REF! ->  | W89: =#REF! ->  | X89: p2f
A90: 88 | B90: =#REF! ->  | C90: =#REF! ->  | D90: =#REF! ->  | E90: =#REF! ->  | F90: =#REF! ->  | G90: =#REF! ->  | H90: =#REF! ->  | I90: =#REF! ->  | J90: =#REF! ->  | K90: =#REF! ->  | L90: =#REF! ->  | M90: =#REF! ->  | N90: =#REF! ->  | O90: =#REF! ->  | P90: =#REF! ->  | Q90: =#REF! ->  | R90: =#REF! ->  | S90: =#REF! ->  | T90: =#REF! ->  | U90: =#REF! ->  | V90: =#REF! ->  | W90: =#REF! ->  | X90: p2f
A91: 89 | B91: =#REF! ->  | C91: =#REF! ->  | D91: =#REF! ->  | E91: =#REF! ->  | F91: =#REF! ->  | G91: =#REF! ->  | H91: =#REF! ->  | I91: =#REF! ->  | J91: =#REF! ->  | K91: =#REF! ->  | L91: =#REF! ->  | M91: =#REF! ->  | N91: =#REF! ->  | O91: =#REF! ->  | P91: =#REF! ->  | Q91: =#REF! ->  | R91: =#REF! ->  | S91: =#REF! ->  | T91: =#REF! ->  | U91: =#REF! ->  | V91: =#REF! ->  | W91: =#REF! ->  | X91: p2f
A92: 90 | B92: =#REF! ->  | C92: =#REF! ->  | D92: =#REF! ->  | E92: =#REF! ->  | F92: =#REF! ->  | G92: =#REF! ->  | H92: =#REF! ->  | I92: =#REF! ->  | J92: =#REF! ->  | K92: =#REF! ->  | L92: =#REF! ->  | M92: =#REF! ->  | N92: =#REF! ->  | O92: =#REF! ->  | P92: =#REF! ->  | Q92: =#REF! ->  | R92: =#REF! ->  | S92: =#REF! ->  | T92: =#REF! ->  | U92: =#REF! ->  | V92: =#REF! ->  | W92: =#REF! ->  | X92: p2f
A93: 91 | B93: =#REF! ->  | C93: =#REF! ->  | D93: =#REF! ->  | E93: =#REF! ->  | F93: =#REF! ->  | G93: =#REF! ->  | H93: =#REF! ->  | I93: =#REF! ->  | J93: =#REF! ->  | K93: =#REF! ->  | L93: =#REF! ->  | M93: =#REF! ->  | N93: =#REF! ->  | O93: =#REF! ->  | P93: =#REF! ->  | Q93: =#REF! ->  | R93: =#REF! ->  | S93: =#REF! ->  | T93: =#REF! ->  | U93: =#REF! ->  | V93: =#REF! ->  | W93: =#REF! ->  | X93: p2f
A94: 92 | B94: =#REF! ->  | C94: =#REF! ->  | D94: =#REF! ->  | E94: =#REF! ->  | F94: =#REF! ->  | G94: =#REF! ->  | H94: =#REF! ->  | I94: =#REF! ->  | J94: =#REF! ->  | K94: =#REF! ->  | L94: =#REF! ->  | M94: =#REF! ->  | N94: =#REF! ->  | O94: =#REF! ->  | P94: =#REF! ->  | Q94: =#REF! ->  | R94: =#REF! ->  | S94: =#REF! ->  | T94: =#REF! ->  | U94: =#REF! ->  | V94: =#REF! ->  | W94: =#REF! ->  | X94: p2f
A95: 93 | B95: =#REF! ->  | C95: =#REF! ->  | D95: =#REF! ->  | E95: =#REF! ->  | F95: =#REF! ->  | G95: =#REF! ->  | H95: =#REF! ->  | I95: =#REF! ->  | J95: =#REF! ->  | K95: =#REF! ->  | L95: =#REF! ->  | M95: =#REF! ->  | N95: =#REF! ->  | O95: =#REF! ->  | P95: =#REF! ->  | Q95: =#REF! ->  | R95: =#REF! ->  | S95: =#REF! ->  | T95: =#REF! ->  | U95: =#REF! ->  | V95: =#REF! ->  | W95: =#REF! ->  | X95: p2f
A96: 94 | B96: =#REF! ->  | C96: =#REF! ->  | D96: =#REF! ->  | E96: =#REF! ->  | F96: =#REF! ->  | G96: =#REF! ->  | H96: =#REF! ->  | I96: =#REF! ->  | J96: =#REF! ->  | K96: =#REF! ->  | L96: =#REF! ->  | M96: =#REF! ->  | N96: =#REF! ->  | O96: =#REF! ->  | P96: =#REF! ->  | Q96: =#REF! ->  | R96: =#REF! ->  | S96: =#REF! ->  | T96: =#REF! ->  | U96: =#REF! ->  | V96: =#REF! ->  | W96: =#REF! ->  | X96: p2f
A97: 95 | B97: =#REF! ->  | C97: =#REF! ->  | D97: =#REF! ->  | E97: =#REF! ->  | F97: =#REF! ->  | G97: =#REF! ->  | H97: =#REF! ->  | I97: =#REF! ->  | J97: =#REF! ->  | K97: =#REF! ->  | L97: =#REF! ->  | M97: =#REF! ->  | N97: =#REF! ->  | O97: =#REF! ->  | P97: =#REF! ->  | Q97: =#REF! ->  | R97: =#REF! ->  | S97: =#REF! ->  | T97: =#REF! ->  | U97: =#REF! ->  | V97: =#REF! ->  | W97: =#REF! ->  | X97: p2f
A98: 96 | B98: =#REF! ->  | C98: =#REF! ->  | D98: =#REF! ->  | E98: =#REF! ->  | F98: =#REF! ->  | G98: =#REF! ->  | H98: =#REF! ->  | I98: =#REF! ->  | J98: =#REF! ->  | K98: =#REF! ->  | L98: =#REF! ->  | M98: =#REF! ->  | N98: =#REF! ->  | O98: =#REF! ->  | P98: =#REF! ->  | Q98: =#REF! ->  | R98: =#REF! ->  | S98: =#REF! ->  | T98: =#REF! ->  | U98: =#REF! ->  | V98: =#REF! ->  | W98: =#REF! ->  | X98: p2f
A99: 97 | B99: =#REF! ->  | C99: =#REF! ->  | D99: =#REF! ->  | E99: =#REF! ->  | F99: =#REF! ->  | G99: =#REF! ->  | H99: =#REF! ->  | I99: =#REF! ->  | J99: =#REF! ->  | K99: =#REF! ->  | L99: =#REF! ->  | M99: =#REF! ->  | N99: =#REF! ->  | O99: =#REF! ->  | P99: =#REF! ->  | Q99: =#REF! ->  | R99: =#REF! ->  | S99: =#REF! ->  | T99: =#REF! ->  | U99: =#REF! ->  | V99: =#REF! ->  | W99: =#REF! ->  | X99: p2f
A100: 98 | B100: =#REF! ->  | C100: =#REF! ->  | D100: =#REF! ->  | E100: =#REF! ->  | F100: =#REF! ->  | G100: =#REF! ->  | H100: =#REF! ->  | I100: =#REF! ->  | J100: =#REF! ->  | K100: =#REF! ->  | L100: =#REF! ->  | M100: =#REF! ->  | N100: =#REF! ->  | O100: =#REF! ->  | P100: =#REF! ->  | Q100: =#REF! ->  | R100: =#REF! ->  | S100: =#REF! ->  | T100: =#REF! ->  | U100: =#REF! ->  | V100: =#REF! ->  | W100: =#REF! ->  | X100: p2f
A101: 99 | B101: =#REF! ->  | C101: =#REF! ->  | D101: =#REF! ->  | E101: =#REF! ->  | F101: =#REF! ->  | G101: =#REF! ->  | H101: =#REF! ->  | I101: =#REF! ->  | J101: =#REF! ->  | K101: =#REF! ->  | L101: =#REF! ->  | M101: =#REF! ->  | N101: =#REF! ->  | O101: =#REF! ->  | P101: =#REF! ->  | Q101: =#REF! ->  | R101: =#REF! ->  | S101: =#REF! ->  | T101: =#REF! ->  | U101: =#REF! ->  | V101: =#REF! ->  | W101: =#REF! ->  | X101: p2f
A102: 100 | B102: =#REF! ->  | C102: =#REF! ->  | D102: =#REF! ->  | E102: =#REF! ->  | F102: =#REF! ->  | G102: =#REF! ->  | H102: =#REF! ->  | I102: =#REF! ->  | J102: =#REF! ->  | K102: =#REF! ->  | L102: =#REF! ->  | M102: =#REF! ->  | N102: =#REF! ->  | O102: =#REF! ->  | P102: =#REF! ->  | Q102: =#REF! ->  | R102: =#REF! ->  | S102: =#REF! ->  | T102: =#REF! ->  | U102: =#REF! ->  | V102: =#REF! ->  | W102: =#REF! ->  | X102: p2f
A103: 101 | B103: =#REF! ->  | C103: =#REF! ->  | D103: =#REF! ->  | E103: =#REF! ->  | F103: =#REF! ->  | G103: =#REF! ->  | H103: =#REF! ->  | I103: =#REF! ->  | J103: =#REF! ->  | K103: =#REF! ->  | L103: =#REF! ->  | M103: =#REF! ->  | N103: =#REF! ->  | O103: =#REF! ->  | P103: =#REF! ->  | Q103: =#REF! ->  | R103: =#REF! ->  | S103: =#REF! ->  | T103: =#REF! ->  | U103: =#REF! ->  | V103: =#REF! ->  | W103: =#REF! ->  | X103: p2f
A104: 102 | B104: =#REF! ->  | C104: =#REF! ->  | D104: =#REF! ->  | E104: =#REF! ->  | F104: =#REF! ->  | G104: =#REF! ->  | H104: =#REF! ->  | I104: =#REF! ->  | J104: =#REF! ->  | K104: =#REF! ->  | L104: =#REF! ->  | M104: =#REF! ->  | N104: =#REF! ->  | O104: =#REF! ->  | P104: =#REF! ->  | Q104: =#REF! ->  | R104: =#REF! ->  | S104: =#REF! ->  | T104: =#REF! ->  | U104: =#REF! ->  | V104: =#REF! ->  | W104: =#REF! ->  | X104: p2f
A105: 103 | B105: =#REF! ->  | C105: =#REF! ->  | D105: =#REF! ->  | E105: =#REF! ->  | F105: =#REF! ->  | G105: =#REF! ->  | H105: =#REF! ->  | I105: =#REF! ->  | J105: =#REF! ->  | K105: =#REF! ->  | L105: =#REF! ->  | M105: =#REF! ->  | N105: =#REF! ->  | O105: =#REF! ->  | P105: =#REF! ->  | Q105: =#REF! ->  | R105: =#REF! ->  | S105: =#REF! ->  | T105: =#REF! ->  | U105: =#REF! ->  | V105: =#REF! ->  | W105: =#REF! ->  | X105: p2f
A106: 104 | B106: =#REF! ->  | C106: =#REF! ->  | D106: =#REF! ->  | E106: =#REF! ->  | F106: =#REF! ->  | G106: =#REF! ->  | H106: =#REF! ->  | I106: =#REF! ->  | J106: =#REF! ->  | K106: =#REF! ->  | L106: =#REF! ->  | M106: =#REF! ->  | N106: =#REF! ->  | O106: =#REF! ->  | P106: =#REF! ->  | Q106: =#REF! ->  | R106: =#REF! ->  | S106: =#REF! ->  | T106: =#REF! ->  | U106: =#REF! ->  | V106: =#REF! ->  | W106: =#REF! ->  | X106: p2f
A107: 105 | B107: =#REF! ->  | C107: =#REF! ->  | D107: =#REF! ->  | E107: =#REF! ->  | F107: =#REF! ->  | G107: =#REF! ->  | H107: =#REF! ->  | I107: =#REF! ->  | J107: =#REF! ->  | K107: =#REF! ->  | L107: =#REF! ->  | M107: =#REF! ->  | N107: =#REF! ->  | O107: =#REF! ->  | P107: =#REF! ->  | Q107: =#REF! ->  | R107: =#REF! ->  | S107: =#REF! ->  | T107: =#REF! ->  | U107: =#REF! ->  | V107: =#REF! ->  | W107: =#REF! ->  | X107: p2f
A108: 106 | B108: =#REF! ->  | C108: =#REF! ->  | D108: =#REF! ->  | E108: =#REF! ->  | F108: =#REF! ->  | G108: =#REF! ->  | H108: =#REF! ->  | I108: =#REF! ->  | J108: =#REF! ->  | K108: =#REF! ->  | L108: =#REF! ->  | M108: =#REF! ->  | N108: =#REF! ->  | O108: =#REF! ->  | P108: =#REF! ->  | Q108: =#REF! ->  | R108: =#REF! ->  | S108: =#REF! ->  | T108: =#REF! ->  | U108: =#REF! ->  | V108: =#REF! ->  | W108: =#REF! ->  | X108: p2f
A109: 107 | B109: =#REF! ->  | C109: =#REF! ->  | D109: =#REF! ->  | E109: =#REF! ->  | F109: =#REF! ->  | G109: =#REF! ->  | H109: =#REF! ->  | I109: =#REF! ->  | J109: =#REF! ->  | K109: =#REF! ->  | L109: =#REF! ->  | M109: =#REF! ->  | N109: =#REF! ->  | O109: =#REF! ->  | P109: =#REF! ->  | Q109: =#REF! ->  | R109: =#REF! ->  | S109: =#REF! ->  | T109: =#REF! ->  | U109: =#REF! ->  | V109: =#REF! ->  | W109: =#REF! ->  | X109: p2f
A110: 108 | B110: =#REF! ->  | C110: =#REF! ->  | D110: =#REF! ->  | E110: =#REF! ->  | F110: =#REF! ->  | G110: =#REF! ->  | H110: =#REF! ->  | I110: =#REF! ->  | J110: =#REF! ->  | K110: =#REF! ->  | L110: =#REF! ->  | M110: =#REF! ->  | N110: =#REF! ->  | O110: =#REF! ->  | P110: =#REF! ->  | Q110: =#REF! ->  | R110: =#REF! ->  | S110: =#REF! ->  | T110: =#REF! ->  | U110: =#REF! ->  | V110: =#REF! ->  | W110: =#REF! ->  | X110: p2f
A111: 109 | B111: =#REF! ->  | C111: =#REF! ->  | D111: =#REF! ->  | E111: =#REF! ->  | F111: =#REF! ->  | G111: =#REF! ->  | H111: =#REF! ->  | I111: =#REF! ->  | J111: =#REF! ->  | K111: =#REF! ->  | L111: =#REF! ->  | M111: =#REF! ->  | N111: =#REF! ->  | O111: =#REF! ->  | P111: =#REF! ->  | Q111: =#REF! ->  | R111: =#REF! ->  | S111: =#REF! ->  | T111: =#REF! ->  | U111: =#REF! ->  | V111: =#REF! ->  | W111: =#REF! ->  | X111: p2f
A112: 110 | B112: =#REF! ->  | C112: =#REF! ->  | D112: =#REF! ->  | E112: =#REF! ->  | F112: =#REF! ->  | G112: =#REF! ->  | H112: =#REF! ->  | I112: =#REF! ->  | J112: =#REF! ->  | K112: =#REF! ->  | L112: =#REF! ->  | M112: =#REF! ->  | N112: =#REF! ->  | O112: =#REF! ->  | P112: =#REF! ->  | Q112: =#REF! ->  | R112: =#REF! ->  | S112: =#REF! ->  | T112: =#REF! ->  | U112: =#REF! ->  | V112: =#REF! ->  | W112: =#REF! ->  | X112: p2f
A113: 111 | B113: =#REF! ->  | C113: =#REF! ->  | D113: =#REF! ->  | E113: =#REF! ->  | F113: =#REF! ->  | G113: =#REF! ->  | H113: =#REF! ->  | I113: =#REF! ->  | J113: =#REF! ->  | K113: =#REF! ->  | L113: =#REF! ->  | M113: =#REF! ->  | N113: =#REF! ->  | O113: =#REF! ->  | P113: =#REF! ->  | Q113: =#REF! ->  | R113: =#REF! ->  | S113: =#REF! ->  | T113: =#REF! ->  | U113: =#REF! ->  | V113: =#REF! ->  | W113: =#REF! ->  | X113: p2f
A114: 112 | B114: =#REF! ->  | C114: =#REF! ->  | D114: =#REF! ->  | E114: =#REF! ->  | F114: =#REF! ->  | G114: =#REF! ->  | H114: =#REF! ->  | I114: =#REF! ->  | J114: =#REF! ->  | K114: =#REF! ->  | L114: =#REF! ->  | M114: =#REF! ->  | N114: =#REF! ->  | O114: =#REF! ->  | P114: =#REF! ->  | Q114: =#REF! ->  | R114: =#REF! ->  | S114: =#REF! ->  | T114: =#REF! ->  | U114: =#REF! ->  | V114: =#REF! ->  | W114: =#REF! ->  | X114: p2f
A115: 113 | B115: =#REF! ->  | C115: =#REF! ->  | D115: =#REF! ->  | E115: =#REF! ->  | F115: =#REF! ->  | G115: =#REF! ->  | H115: =#REF! ->  | I115: =#REF! ->  | J115: =#REF! ->  | K115: =#REF! ->  | L115: =#REF! ->  | M115: =#REF! ->  | N115: =#REF! ->  | O115: =#REF! ->  | P115: =#REF! ->  | Q115: =#REF! ->  | R115: =#REF! ->  | S115: =#REF! ->  | T115: =#REF! ->  | U115: =#REF! ->  | V115: =#REF! ->  | W115: =#REF! ->  | X115: p2f
A116: 114 | B116: =#REF! ->  | C116: =#REF! ->  | D116: =#REF! ->  | E116: =#REF! ->  | F116: =#REF! ->  | G116: =#REF! ->  | H116: =#REF! ->  | I116: =#REF! ->  | J116: =#REF! ->  | K116: =#REF! ->  | L116: =#REF! ->  | M116: =#REF! ->  | N116: =#REF! ->  | O116: =#REF! ->  | P116: =#REF! ->  | Q116: =#REF! ->  | R116: =#REF! ->  | S116: =#REF! ->  | T116: =#REF! ->  | U116: =#REF! ->  | V116: =#REF! ->  | W116: =#REF! ->  | X116: p2f
A117: 115 | B117: =#REF! ->  | C117: =#REF! ->  | D117: =#REF! ->  | E117: =#REF! ->  | F117: =#REF! ->  | G117: =#REF! ->  | H117: =#REF! ->  | I117: =#REF! ->  | J117: =#REF! ->  | K117: =#REF! ->  | L117: =#REF! ->  | M117: =#REF! ->  | N117: =#REF! ->  | O117: =#REF! ->  | P117: =#REF! ->  | Q117: =#REF! ->  | R117: =#REF! ->  | S117: =#REF! ->  | T117: =#REF! ->  | U117: =#REF! ->  | V117: =#REF! ->  | W117: =#REF! ->  | X117: p2f
A118: 116 | B118: =#REF! ->  | C118: =#REF! ->  | D118: =#REF! ->  | E118: =#REF! ->  | F118: =#REF! ->  | G118: =#REF! ->  | H118: =#REF! ->  | I118: =#REF! ->  | J118: =#REF! ->  | K118: =#REF! ->  | L118: =#REF! ->  | M118: =#REF! ->  | N118: =#REF! ->  | O118: =#REF! ->  | P118: =#REF! ->  | Q118: =#REF! ->  | R118: =#REF! ->  | S118: =#REF! ->  | T118: =#REF! ->  | U118: =#REF! ->  | V118: =#REF! ->  | W118: =#REF! ->  | X118: p2f
A119: 117 | B119: =#REF! ->  | C119: =#REF! ->  | D119: =#REF! ->  | E119: =#REF! ->  | F119: =#REF! ->  | G119: =#REF! ->  | H119: =#REF! ->  | I119: =#REF! ->  | J119: =#REF! ->  | K119: =#REF! ->  | L119: =#REF! ->  | M119: =#REF! ->  | N119: =#REF! ->  | O119: =#REF! ->  | P119: =#REF! ->  | Q119: =#REF! ->  | R119: =#REF! ->  | S119: =#REF! ->  | T119: =#REF! ->  | U119: =#REF! ->  | V119: =#REF! ->  | W119: =#REF! ->  | X119: p2f
A120: 118 | B120: =#REF! ->  | C120: =#REF! ->  | D120: =#REF! ->  | E120: =#REF! ->  | F120: =#REF! ->  | G120: =#REF! ->  | H120: =#REF! ->  | I120: =#REF! ->  | J120: =#REF! ->  | K120: =#REF! ->  | L120: =#REF! ->  | M120: =#REF! ->  | N120: =#REF! ->  | O120: =#REF! ->  | P120: =#REF! ->  | Q120: =#REF! ->  | R120: =#REF! ->  | S120: =#REF! ->  | T120: =#REF! ->  | U120: =#REF! ->  | V120: =#REF! ->  | W120: =#REF! ->  | X120: p2f
A121: 119 | B121: =#REF! ->  | C121: =#REF! ->  | D121: =#REF! ->  | E121: =#REF! ->  | F121: =#REF! ->  | G121: =#REF! ->  | H121: =#REF! ->  | I121: =#REF! ->  | J121: =#REF! ->  | K121: =#REF! ->  | L121: =#REF! ->  | M121: =#REF! ->  | N121: =#REF! ->  | O121: =#REF! ->  | P121: =#REF! ->  | Q121: =#REF! ->  | R121: =#REF! ->  | S121: =#REF! ->  | T121: =#REF! ->  | U121: =#REF! ->  | V121: =#REF! ->  | W121: =#REF! ->  | X121: p2f
A122: 120 | B122: =#REF! ->  | C122: =#REF! ->  | D122: =#REF! ->  | E122: =#REF! ->  | F122: =#REF! ->  | G122: =#REF! ->  | H122: =#REF! ->  | I122: =#REF! ->  | J122: =#REF! ->  | K122: =#REF! ->  | L122: =#REF! ->  | M122: =#REF! ->  | N122: =#REF! ->  | O122: =#REF! ->  | P122: =#REF! ->  | Q122: =#REF! ->  | R122: =#REF! ->  | S122: =#REF! ->  | T122: =#REF! ->  | U122: =#REF! ->  | V122: =#REF! ->  | W122: =#REF! ->  | X122: p2f
A123: 121 | B123: =#REF! ->  | C123: =#REF! ->  | D123: =#REF! ->  | E123: =#REF! ->  | F123: =#REF! ->  | G123: =#REF! ->  | H123: =#REF! ->  | I123: =#REF! ->  | J123: =#REF! ->  | K123: =#REF! ->  | L123: =#REF! ->  | M123: =#REF! ->  | N123: =#REF! ->  | O123: =#REF! ->  | P123: =#REF! ->  | Q123: =#REF! ->  | R123: =#REF! ->  | S123: =#REF! ->  | T123: =#REF! ->  | U123: =#REF! ->  | V123: =#REF! ->  | W123: =#REF! ->  | X123: p2f
A124: 122 | B124: =#REF! ->  | C124: =#REF! ->  | D124: =#REF! ->  | E124: =#REF! ->  | F124: =#REF! ->  | G124: =#REF! ->  | H124: =#REF! ->  | I124: =#REF! ->  | J124: =#REF! ->  | K124: =#REF! ->  | L124: =#REF! ->  | M124: =#REF! ->  | N124: =#REF! ->  | O124: =#REF! ->  | P124: =#REF! ->  | Q124: =#REF! ->  | R124: =#REF! ->  | S124: =#REF! ->  | T124: =#REF! ->  | U124: =#REF! ->  | V124: =#REF! ->  | W124: =#REF! ->  | X124: p2f
A125: 123 | B125: =#REF! ->  | C125: =#REF! ->  | D125: =#REF! ->  | E125: =#REF! ->  | F125: =#REF! ->  | G125: =#REF! ->  | H125: =#REF! ->  | I125: =#REF! ->  | J125: =#REF! ->  | K125: =#REF! ->  | L125: =#REF! ->  | M125: =#REF! ->  | N125: =#REF! ->  | O125: =#REF! ->  | P125: =#REF! ->  | Q125: =#REF! ->  | R125: =#REF! ->  | S125: =#REF! ->  | T125: =#REF! ->  | U125: =#REF! ->  | V125: =#REF! ->  | W125: =#REF! ->  | X125: p2f
A126: 124 | B126: =#REF! ->  | C126: =#REF! ->  | D126: =#REF! ->  | E126: =#REF! ->  | F126: =#REF! ->  | G126: =#REF! ->  | H126: =#REF! ->  | I126: =#REF! ->  | J126: =#REF! ->  | K126: =#REF! ->  | L126: =#REF! ->  | M126: =#REF! ->  | N126: =#REF! ->  | O126: =#REF! ->  | P126: =#REF! ->  | Q126: =#REF! ->  | R126: =#REF! ->  | S126: =#REF! ->  | T126: =#REF! ->  | U126: =#REF! ->  | V126: =#REF! ->  | W126: =#REF! ->  | X126: p2f
A127: 125 | B127: =#REF! ->  | C127: =#REF! ->  | D127: =#REF! ->  | E127: =#REF! ->  | F127: =#REF! ->  | G127: =#REF! ->  | H127: =#REF! ->  | I127: =#REF! ->  | J127: =#REF! ->  | K127: =#REF! ->  | L127: =#REF! ->  | M127: =#REF! ->  | N127: =#REF! ->  | O127: =#REF! ->  | P127: =#REF! ->  | Q127: =#REF! ->  | R127: =#REF! ->  | S127: =#REF! ->  | T127: =#REF! ->  | U127: =#REF! ->  | V127: =#REF! ->  | W127: =#REF! ->  | X127: p2f
A128: 126 | B128: =#REF! ->  | C128: =#REF! ->  | D128: =#REF! ->  | E128: =#REF! ->  | F128: =#REF! ->  | G128: =#REF! ->  | H128: =#REF! ->  | I128: =#REF! ->  | J128: =#REF! ->  | K128: =#REF! ->  | L128: =#REF! ->  | M128: =#REF! ->  | N128: =#REF! ->  | O128: =#REF! ->  | P128: =#REF! ->  | Q128: =#REF! ->  | R128: =#REF! ->  | S128: =#REF! ->  | T128: =#REF! ->  | U128: =#REF! ->  | V128: =#REF! ->  | W128: =#REF! ->  | X128: p2f
A129: 127 | B129: =#REF! ->  | C129: =#REF! ->  | D129: =#REF! ->  | E129: =#REF! ->  | F129: =#REF! ->  | G129: =#REF! ->  | H129: =#REF! ->  | I129: =#REF! ->  | J129: =#REF! ->  | K129: =#REF! ->  | L129: =#REF! ->  | M129: =#REF! ->  | N129: =#REF! ->  | O129: =#REF! ->  | P129: =#REF! ->  | Q129: =#REF! ->  | R129: =#REF! ->  | S129: =#REF! ->  | T129: =#REF! ->  | U129: =#REF! ->  | V129: =#REF! ->  | W129: =#REF! ->  | X129: p2f
A130: 128 | B130: =#REF! ->  | C130: =#REF! ->  | D130: =#REF! ->  | E130: =#REF! ->  | F130: =#REF! ->  | G130: =#REF! ->  | H130: =#REF! ->  | I130: =#REF! ->  | J130: =#REF! ->  | K130: =#REF! ->  | L130: =#REF! ->  | M130: =#REF! ->  | N130: =#REF! ->  | O130: =#REF! ->  | P130: =#REF! ->  | Q130: =#REF! ->  | R130: =#REF! ->  | S130: =#REF! ->  | T130: =#REF! ->  | U130: =#REF! ->  | V130: =#REF! ->  | W130: =#REF! ->  | X130: p2f
A131: 129 | B131: =#REF! ->  | C131: =#REF! ->  | D131: =#REF! ->  | E131: =#REF! ->  | F131: =#REF! ->  | G131: =#REF! ->  | H131: =#REF! ->  | I131: =#REF! ->  | J131: =#REF! ->  | K131: =#REF! ->  | L131: =#REF! ->  | M131: =#REF! ->  | N131: =#REF! ->  | O131: =#REF! ->  | P131: =#REF! ->  | Q131: =#REF! ->  | R131: =#REF! ->  | S131: =#REF! ->  | T131: =#REF! ->  | U131: =#REF! ->  | V131: =#REF! ->  | W131: =#REF! ->  | X131: p2f
A132: 130 | B132: =#REF! ->  | C132: =#REF! ->  | D132: =#REF! ->  | E132: =#REF! ->  | F132: =#REF! ->  | G132: =#REF! ->  | H132: =#REF! ->  | I132: =#REF! ->  | J132: =#REF! ->  | K132: =#REF! ->  | L132: =#REF! ->  | M132: =#REF! ->  | N132: =#REF! ->  | O132: =#REF! ->  | P132: =#REF! ->  | Q132: =#REF! ->  | R132: =#REF! ->  | S132: =#REF! ->  | T132: =#REF! ->  | U132: =#REF! ->  | V132: =#REF! ->  | W132: =#REF! ->  | X132: p2f
A133: 131 | B133: =#REF! ->  | C133: =#REF! ->  | D133: =#REF! ->  | E133: =#REF! ->  | F133: =#REF! ->  | G133: =#REF! ->  | H133: =#REF! ->  | I133: =#REF! ->  | J133: =#REF! ->  | K133: =#REF! ->  | L133: =#REF! ->  | M133: =#REF! ->  | N133: =#REF! ->  | O133: =#REF! ->  | P133: =#REF! ->  | Q133: =#REF! ->  | R133: =#REF! ->  | S133: =#REF! ->  | T133: =#REF! ->  | U133: =#REF! ->  | V133: =#REF! ->  | W133: =#REF! ->  | X133: p2f
A134: 132 | B134: =#REF! ->  | C134: =#REF! ->  | D134: =#REF! ->  | E134: =#REF! ->  | F134: =#REF! ->  | G134: =#REF! ->  | H134: =#REF! ->  | I134: =#REF! ->  | J134: =#REF! ->  | K134: =#REF! ->  | L134: =#REF! ->  | M134: =#REF! ->  | N134: =#REF! ->  | O134: =#REF! ->  | P134: =#REF! ->  | Q134: =#REF! ->  | R134: =#REF! ->  | S134: =#REF! ->  | T134: =#REF! ->  | U134: =#REF! ->  | V134: =#REF! ->  | W134: =#REF! ->  | X134: p2f
A135: 133 | B135: =#REF! ->  | C135: =#REF! ->  | D135: =#REF! ->  | E135: =#REF! ->  | F135: =#REF! ->  | G135: =#REF! ->  | H135: =#REF! ->  | I135: =#REF! ->  | J135: =#REF! ->  | K135: =#REF! ->  | L135: =#REF! ->  | M135: =#REF! ->  | N135: =#REF! ->  | O135: =#REF! ->  | P135: =#REF! ->  | Q135: =#REF! ->  | R135: =#REF! ->  | S135: =#REF! ->  | T135: =#REF! ->  | U135: =#REF! ->  | V135: =#REF! ->  | W135: =#REF! ->  | X135: p2f
A136: 134 | B136: =#REF! ->  | C136: =#REF! ->  | D136: =#REF! ->  | E136: =#REF! ->  | F136: =#REF! ->  | G136: =#REF! ->  | H136: =#REF! ->  | I136: =#REF! ->  | J136: =#REF! ->  | K136: =#REF! ->  | L136: =#REF! ->  | M136: =#REF! ->  | N136: =#REF! ->  | O136: =#REF! ->  | P136: =#REF! ->  | Q136: =#REF! ->  | R136: =#REF! ->  | S136: =#REF! ->  | T136: =#REF! ->  | U136: =#REF! ->  | V136: =#REF! ->  | W136: =#REF! ->  | X136: p2f
A137: 135 | B137: =#REF! ->  | C137: =#REF! ->  | D137: =#REF! ->  | E137: =#REF! ->  | F137: =#REF! ->  | G137: =#REF! ->  | H137: =#REF! ->  | I137: =#REF! ->  | J137: =#REF! ->  | K137: =#REF! ->  | L137: =#REF! ->  | M137: =#REF! ->  | N137: =#REF! ->  | O137: =#REF! ->  | P137: =#REF! ->  | Q137: =#REF! ->  | R137: =#REF! ->  | S137: =#REF! ->  | T137: =#REF! ->  | U137: =#REF! ->  | V137: =#REF! ->  | W137: =#REF! ->  | X137: p2f
A138: 136 | B138: =#REF! ->  | C138: =#REF! ->  | D138: =#REF! ->  | E138: =#REF! ->  | F138: =#REF! ->  | G138: =#REF! ->  | H138: =#REF! ->  | I138: =#REF! ->  | J138: =#REF! ->  | K138: =#REF! ->  | L138: =#REF! ->  | M138: =#REF! ->  | N138: =#REF! ->  | O138: =#REF! ->  | P138: =#REF! ->  | Q138: =#REF! ->  | R138: =#REF! ->  | S138: =#REF! ->  | T138: =#REF! ->  | U138: =#REF! ->  | V138: =#REF! ->  | W138: =#REF! ->  | X138: p2f
A139: 137 | B139: =#REF! ->  | C139: =#REF! ->  | D139: =#REF! ->  | E139: =#REF! ->  | F139: =#REF! ->  | G139: =#REF! ->  | H139: =#REF! ->  | I139: =#REF! ->  | J139: =#REF! ->  | K139: =#REF! ->  | L139: =#REF! ->  | M139: =#REF! ->  | N139: =#REF! ->  | O139: =#REF! ->  | P139: =#REF! ->  | Q139: =#REF! ->  | R139: =#REF! ->  | S139: =#REF! ->  | T139: =#REF! ->  | U139: =#REF! ->  | V139: =#REF! ->  | W139: =#REF! ->  | X139: p2f
A140: 138 | B140: =#REF! ->  | C140: =#REF! ->  | D140: =#REF! ->  | E140: =#REF! ->  | F140: =#REF! ->  | G140: =#REF! ->  | H140: =#REF! ->  | I140: =#REF! ->  | J140: =#REF! ->  | K140: =#REF! ->  | L140: =#REF! ->  | M140: =#REF! ->  | N140: =#REF! ->  | O140: =#REF! ->  | P140: =#REF! ->  | Q140: =#REF! ->  | R140: =#REF! ->  | S140: =#REF! ->  | T140: =#REF! ->  | U140: =#REF! ->  | V140: =#REF! ->  | W140: =#REF! ->  | X140: p2f
A141: 139 | B141: =#REF! ->  | C141: =#REF! ->  | D141: =#REF! ->  | E141: =#REF! ->  | F141: =#REF! ->  | G141: =#REF! ->  | H141: =#REF! ->  | I141: =#REF! ->  | J141: =#REF! ->  | K141: =#REF! ->  | L141: =#REF! ->  | M141: =#REF! ->  | N141: =#REF! ->  | O141: =#REF! ->  | P141: =#REF! ->  | Q141: =#REF! ->  | R141: =#REF! ->  | S141: =#REF! ->  | T141: =#REF! ->  | U141: =#REF! ->  | V141: =#REF! ->  | W141: =#REF! ->  | X141: p2f
A142: 140 | B142: =#REF! ->  | C142: =#REF! ->  | D142: =#REF! ->  | E142: =#REF! ->  | F142: =#REF! ->  | G142: =#REF! ->  | H142: =#REF! ->  | I142: =#REF! ->  | J142: =#REF! ->  | K142: =#REF! ->  | L142: =#REF! ->  | M142: =#REF! ->  | N142: =#REF! ->  | O142: =#REF! ->  | P142: =#REF! ->  | Q142: =#REF! ->  | R142: =#REF! ->  | S142: =#REF! ->  | T142: =#REF! ->  | U142: =#REF! ->  | V142: =#REF! ->  | W142: =#REF! ->  | X142: p2f
A143: 141 | B143: =#REF! ->  | C143: =#REF! ->  | D143: =#REF! ->  | E143: =#REF! ->  | F143: =#REF! ->  | G143: =#REF! ->  | H143: =#REF! ->  | I143: =#REF! ->  | J143: =#REF! ->  | K143: =#REF! ->  | L143: =#REF! ->  | M143: =#REF! ->  | N143: =#REF! ->  | O143: =#REF! ->  | P143: =#REF! ->  | Q143: =#REF! ->  | R143: =#REF! ->  | S143: =#REF! ->  | T143: =#REF! ->  | U143: =#REF! ->  | V143: =#REF! ->  | W143: =#REF! ->  | X143: p2f
A144: 142 | B144: =#REF! ->  | C144: =#REF! ->  | D144: =#REF! ->  | E144: =#REF! ->  | F144: =#REF! ->  | G144: =#REF! ->  | H144: =#REF! ->  | I144: =#REF! ->  | J144: =#REF! ->  | K144: =#REF! ->  | L144: =#REF! ->  | M144: =#REF! ->  | N144: =#REF! ->  | O144: =#REF! ->  | P144: =#REF! ->  | Q144: =#REF! ->  | R144: =#REF! ->  | S144: =#REF! ->  | T144: =#REF! ->  | U144: =#REF! ->  | V144: =#REF! ->  | W144: =#REF! ->  | X144: p2f
A145: 143 | B145: =#REF! ->  | C145: =#REF! ->  | D145: =#REF! ->  | E145: =#REF! ->  | F145: =#REF! ->  | G145: =#REF! ->  | H145: =#REF! ->  | I145: =#REF! ->  | J145: =#REF! ->  | K145: =#REF! ->  | L145: =#REF! ->  | M145: =#REF! ->  | N145: =#REF! ->  | O145: =#REF! ->  | P145: =#REF! ->  | Q145: =#REF! ->  | R145: =#REF! ->  | S145: =#REF! ->  | T145: =#REF! ->  | U145: =#REF! ->  | V145: =#REF! ->  | W145: =#REF! ->  | X145: p2f
A146: 144 | B146: =#REF! ->  | C146: =#REF! ->  | D146: =#REF! ->  | E146: =#REF! ->  | F146: =#REF! ->  | G146: =#REF! ->  | H146: =#REF! ->  | I146: =#REF! ->  | J146: =#REF! ->  | K146: =#REF! ->  | L146: =#REF! ->  | M146: =#REF! ->  | N146: =#REF! ->  | O146: =#REF! ->  | P146: =#REF! ->  | Q146: =#REF! ->  | R146: =#REF! ->  | S146: =#REF! ->  | T146: =#REF! ->  | U146: =#REF! ->  | V146: =#REF! ->  | W146: =#REF! ->  | X146: p2f
A147: 145 | B147: =#REF! ->  | C147: =#REF! ->  | D147: =#REF! ->  | E147: =#REF! ->  | F147: =#REF! ->  | G147: =#REF! ->  | H147: =#REF! ->  | I147: =#REF! ->  | J147: =#REF! ->  | K147: =#REF! ->  | L147: =#REF! ->  | M147: =#REF! ->  | N147: =#REF! ->  | O147: =#REF! ->  | P147: =#REF! ->  | Q147: =#REF! ->  | R147: =#REF! ->  | S147: =#REF! ->  | T147: =#REF! ->  | U147: =#REF! ->  | V147: =#REF! ->  | W147: =#REF! ->  | X147: p2f
A148: 146 | B148: =#REF! ->  | C148: =#REF! ->  | D148: =#REF! ->  | E148: =#REF! ->  | F148: =#REF! ->  | G148: =#REF! ->  | H148: =#REF! ->  | I148: =#REF! ->  | J148: =#REF! ->  | K148: =#REF! ->  | L148: =#REF! ->  | M148: =#REF! ->  | N148: =#REF! ->  | O148: =#REF! ->  | P148: =#REF! ->  | Q148: =#REF! ->  | R148: =#REF! ->  | S148: =#REF! ->  | T148: =#REF! ->  | U148: =#REF! ->  | V148: =#REF! ->  | W148: =#REF! ->  | X148: p2f
A149: 147 | B149: =#REF! ->  | C149: =#REF! ->  | D149: =#REF! ->  | E149: =#REF! ->  | F149: =#REF! ->  | G149: =#REF! ->  | H149: =#REF! ->  | I149: =#REF! ->  | J149: =#REF! ->  | K149: =#REF! ->  | L149: =#REF! ->  | M149: =#REF! ->  | N149: =#REF! ->  | O149: =#REF! ->  | P149: =#REF! ->  | Q149: =#REF! ->  | R149: =#REF! ->  | S149: =#REF! ->  | T149: =#REF! ->  | U149: =#REF! ->  | V149: =#REF! ->  | W149: =#REF! ->  | X149: p2f
A150: 148 | B150: =#REF! ->  | C150: =#REF! ->  | D150: =#REF! ->  | E150: =#REF! ->  | F150: =#REF! ->  | G150: =#REF! ->  | H150: =#REF! ->  | I150: =#REF! ->  | J150: =#REF! ->  | K150: =#REF! ->  | L150: =#REF! ->  | M150: =#REF! ->  | N150: =#REF! ->  | O150: =#REF! ->  | P150: =#REF! ->  | Q150: =#REF! ->  | R150: =#REF! ->  | S150: =#REF! ->  | T150: =#REF! ->  | U150: =#REF! ->  | V150: =#REF! ->  | W150: =#REF! ->  | X150: p2f
A151: 149 | B151: =#REF! ->  | C151: =#REF! ->  | D151: =#REF! ->  | E151: =#REF! ->  | F151: =#REF! ->  | G151: =#REF! ->  | H151: =#REF! ->  | I151: =#REF! ->  | J151: =#REF! ->  | K151: =#REF! ->  | L151: =#REF! ->  | M151: =#REF! ->  | N151: =#REF! ->  | O151: =#REF! ->  | P151: =#REF! ->  | Q151: =#REF! ->  | R151: =#REF! ->  | S151: =#REF! ->  | T151: =#REF! ->  | U151: =#REF! ->  | V151: =#REF! ->  | W151: =#REF! ->  | X151: p2f
A152: 150 | B152: =#REF! ->  | C152: =#REF! ->  | D152: =#REF! ->  | E152: =#REF! ->  | F152: =#REF! ->  | G152: =#REF! ->  | H152: =#REF! ->  | I152: =#REF! ->  | J152: =#REF! ->  | K152: =#REF! ->  | L152: =#REF! ->  | M152: =#REF! ->  | N152: =#REF! ->  | O152: =#REF! ->  | P152: =#REF! ->  | Q152: =#REF! ->  | R152: =#REF! ->  | S152: =#REF! ->  | T152: =#REF! ->  | U152: =#REF! ->  | V152: =#REF! ->  | W152: =#REF! ->  | X152: p2f
A153: 151 | B153: =#REF! ->  | C153: =#REF! ->  | D153: =#REF! ->  | E153: =#REF! ->  | F153: =#REF! ->  | G153: =#REF! ->  | H153: =#REF! ->  | I153: =#REF! ->  | J153: =#REF! ->  | K153: =#REF! ->  | L153: =#REF! ->  | M153: =#REF! ->  | N153: =#REF! ->  | O153: =#REF! ->  | P153: =#REF! ->  | Q153: =#REF! ->  | R153: =#REF! ->  | S153: =#REF! ->  | T153: =#REF! ->  | U153: =#REF! ->  | V153: =#REF! ->  | W153: =#REF! ->  | X153: p2f
A154: 152 | B154: =#REF! ->  | C154: =#REF! ->  | D154: =#REF! ->  | E154: =#REF! ->  | F154: =#REF! ->  | G154: =#REF! ->  | H154: =#REF! ->  | I154: =#REF! ->  | J154: =#REF! ->  | K154: =#REF! ->  | L154: =#REF! ->  | M154: =#REF! ->  | N154: =#REF! ->  | O154: =#REF! ->  | P154: =#REF! ->  | Q154: =#REF! ->  | R154: =#REF! ->  | S154: =#REF! ->  | T154: =#REF! ->  | U154: =#REF! ->  | V154: =#REF! ->  | W154: =#REF! ->  | X154: p2f
A155: 153 | B155: =#REF! ->  | C155: =#REF! ->  | D155: =#REF! ->  | E155: =#REF! ->  | F155: =#REF! ->  | G155: =#REF! ->  | H155: =#REF! ->  | I155: =#REF! ->  | J155: =#REF! ->  | K155: =#REF! ->  | L155: =#REF! ->  | M155: =#REF! ->  | N155: =#REF! ->  | O155: =#REF! ->  | P155: =#REF! ->  | Q155: =#REF! ->  | R155: =#REF! ->  | S155: =#REF! ->  | T155: =#REF! ->  | U155: =#REF! ->  | V155: =#REF! ->  | W155: =#REF! ->  | X155: p2f
A156: 154 | B156: =#REF! ->  | C156: =#REF! ->  | D156: =#REF! ->  | E156: =#REF! ->  | F156: =#REF! ->  | G156: =#REF! ->  | H156: =#REF! ->  | I156: =#REF! ->  | J156: =#REF! ->  | K156: =#REF! ->  | L156: =#REF! ->  | M156: =#REF! ->  | N156: =#REF! ->  | O156: =#REF! ->  | P156: =#REF! ->  | Q156: =#REF! ->  | R156: =#REF! ->  | S156: =#REF! ->  | T156: =#REF! ->  | U156: =#REF! ->  | V156: =#REF! ->  | W156: =#REF! ->  | X156: p2f
A157: 155 | B157: =#REF! ->  | C157: =#REF! ->  | D157: =#REF! ->  | E157: =#REF! ->  | F157: =#REF! ->  | G157: =#REF! ->  | H157: =#REF! ->  | I157: =#REF! ->  | J157: =#REF! ->  | K157: =#REF! ->  | L157: =#REF! ->  | M157: =#REF! ->  | N157: =#REF! ->  | O157: =#REF! ->  | P157: =#REF! ->  | Q157: =#REF! ->  | R157: =#REF! ->  | S157: =#REF! ->  | T157: =#REF! ->  | U157: =#REF! ->  | V157: =#REF! ->  | W157: =#REF! ->  | X157: p2f
A158: 156 | B158: =#REF! ->  | C158: =#REF! ->  | D158: =#REF! ->  | E158: =#REF! ->  | F158: =#REF! ->  | G158: =#REF! ->  | H158: =#REF! ->  | I158: =#REF! ->  | J158: =#REF! ->  | K158: =#REF! ->  | L158: =#REF! ->  | M158: =#REF! ->  | N158: =#REF! ->  | O158: =#REF! ->  | P158: =#REF! ->  | Q158: =#REF! ->  | R158: =#REF! ->  | S158: =#REF! ->  | T158: =#REF! ->  | U158: =#REF! ->  | V158: =#REF! ->  | W158: =#REF! ->  | X158: p2f
A159: 157 | B159: =#REF! ->  | C159: =#REF! ->  | D159: =#REF! ->  | E159: =#REF! ->  | F159: =#REF! ->  | G159: =#REF! ->  | H159: =#REF! ->  | I159: =#REF! ->  | J159: =#REF! ->  | K159: =#REF! ->  | L159: =#REF! ->  | M159: =#REF! ->  | N159: =#REF! ->  | O159: =#REF! ->  | P159: =#REF! ->  | Q159: =#REF! ->  | R159: =#REF! ->  | S159: =#REF! ->  | T159: =#REF! ->  | U159: =#REF! ->  | V159: =#REF! ->  | W159: =#REF! ->  | X159: p2f
A160: 158 | B160: =#REF! ->  | C160: =#REF! ->  | D160: =#REF! ->  | E160: =#REF! ->  | F160: =#REF! ->  | G160: =#REF! ->  | H160: =#REF! ->  | I160: =#REF! ->  | J160: =#REF! ->  | K160: =#REF! ->  | L160: =#REF! ->  | M160: =#REF! ->  | N160: =#REF! ->  | O160: =#REF! ->  | P160: =#REF! ->  | Q160: =#REF! ->  | R160: =#REF! ->  | S160: =#REF! ->  | T160: =#REF! ->  | U160: =#REF! ->  | V160: =#REF! ->  | W160: =#REF! ->  | X160: p2f
A161: 159 | B161: =#REF! ->  | C161: =#REF! ->  | D161: =#REF! ->  | E161: =#REF! ->  | F161: =#REF! ->  | G161: =#REF! ->  | H161: =#REF! ->  | I161: =#REF! ->  | J161: =#REF! ->  | K161: =#REF! ->  | L161: =#REF! ->  | M161: =#REF! ->  | N161: =#REF! ->  | O161: =#REF! ->  | P161: =#REF! ->  | Q161: =#REF! ->  | R161: =#REF! ->  | S161: =#REF! ->  | T161: =#REF! ->  | U161: =#REF! ->  | V161: =#REF! ->  | W161: =#REF! ->  | X161: p2f
A162: 160 | B162: =#REF! ->  | C162: =#REF! ->  | D162: =#REF! ->  | E162: =#REF! ->  | F162: =#REF! ->  | G162: =#REF! ->  | H162: =#REF! ->  | I162: =#REF! ->  | J162: =#REF! ->  | K162: =#REF! ->  | L162: =#REF! ->  | M162: =#REF! ->  | N162: =#REF! ->  | O162: =#REF! ->  | P162: =#REF! ->  | Q162: =#REF! ->  | R162: =#REF! ->  | S162: =#REF! ->  | T162: =#REF! ->  | U162: =#REF! ->  | V162: =#REF! ->  | W162: =#REF! ->  | X162: p2f
A163: 161 | B163: =#REF! ->  | C163: =#REF! ->  | D163: =#REF! ->  | E163: =#REF! ->  | F163: =#REF! ->  | G163: =#REF! ->  | H163: =#REF! ->  | I163: =#REF! ->  | J163: =#REF! ->  | K163: =#REF! ->  | L163: =#REF! ->  | M163: =#REF! ->  | N163: =#REF! ->  | O163: =#REF! ->  | P163: =#REF! ->  | Q163: =#REF! ->  | R163: =#REF! ->  | S163: =#REF! ->  | T163: =#REF! ->  | U163: =#REF! ->  | V163: =#REF! ->  | W163: =#REF! ->  | X163: p2f
A164: 162 | B164: =#REF! ->  | C164: =#REF! ->  | D164: =#REF! ->  | E164: =#REF! ->  | F164: =#REF! ->  | G164: =#REF! ->  | H164: =#REF! ->  | I164: =#REF! ->  | J164: =#REF! ->  | K164: =#REF! ->  | L164: =#REF! ->  | M164: =#REF! ->  | N164: =#REF! ->  | O164: =#REF! ->  | P164: =#REF! ->  | Q164: =#REF! ->  | R164: =#REF! ->  | S164: =#REF! ->  | T164: =#REF! ->  | U164: =#REF! ->  | V164: =#REF! ->  | W164: =#REF! ->  | X164: p2f
A165: 163 | B165: =#REF! ->  | C165: =#REF! ->  | D165: =#REF! ->  | E165: =#REF! ->  | F165: =#REF! ->  | G165: =#REF! ->  | H165: =#REF! ->  | I165: =#REF! ->  | J165: =#REF! ->  | K165: =#REF! ->  | L165: =#REF! ->  | M165: =#REF! ->  | N165: =#REF! ->  | O165: =#REF! ->  | P165: =#REF! ->  | Q165: =#REF! ->  | R165: =#REF! ->  | S165: =#REF! ->  | T165: =#REF! ->  | U165: =#REF! ->  | V165: =#REF! ->  | W165: =#REF! ->  | X165: p2f
A166: 164 | B166: =#REF! ->  | C166: =#REF! ->  | D166: =#REF! ->  | E166: =#REF! ->  | F166: =#REF! ->  | G166: =#REF! ->  | H166: =#REF! ->  | I166: =#REF! ->  | J166: =#REF! ->  | K166: =#REF! ->  | L166: =#REF! ->  | M166: =#REF! ->  | N166: =#REF! ->  | O166: =#REF! ->  | P166: =#REF! ->  | Q166: =#REF! ->  | R166: =#REF! ->  | S166: =#REF! ->  | T166: =#REF! ->  | U166: =#REF! ->  | V166: =#REF! ->  | W166: =#REF! ->  | X166: p2f
A167: 165 | B167: =#REF! ->  | C167: =#REF! ->  | D167: =#REF! ->  | E167: =#REF! ->  | F167: =#REF! ->  | G167: =#REF! ->  | H167: =#REF! ->  | I167: =#REF! ->  | J167: =#REF! ->  | K167: =#REF! ->  | L167: =#REF! ->  | M167: =#REF! ->  | N167: =#REF! ->  | O167: =#REF! ->  | P167: =#REF! ->  | Q167: =#REF! ->  | R167: =#REF! ->  | S167: =#REF! ->  | T167: =#REF! ->  | U167: =#REF! ->  | V167: =#REF! ->  | W167: =#REF! ->  | X167: p2f
A168: 166 | B168: =#REF! ->  | C168: =#REF! ->  | D168: =#REF! ->  | E168: =#REF! ->  | F168: =#REF! ->  | G168: =#REF! ->  | H168: =#REF! ->  | I168: =#REF! ->  | J168: =#REF! ->  | K168: =#REF! ->  | L168: =#REF! ->  | M168: =#REF! ->  | N168: =#REF! ->  | O168: =#REF! ->  | P168: =#REF! ->  | Q168: =#REF! ->  | R168: =#REF! ->  | S168: =#REF! ->  | T168: =#REF! ->  | U168: =#REF! ->  | V168: =#REF! ->  | W168: =#REF! ->  | X168: p2f
A169: 167 | B169: =#REF! ->  | C169: =#REF! ->  | D169: =#REF! ->  | E169: =#REF! ->  | F169: =#REF! ->  | G169: =#REF! ->  | H169: =#REF! ->  | I169: =#REF! ->  | J169: =#REF! ->  | K169: =#REF! ->  | L169: =#REF! ->  | M169: =#REF! ->  | N169: =#REF! ->  | O169: =#REF! ->  | P169: =#REF! ->  | Q169: =#REF! ->  | R169: =#REF! ->  | S169: =#REF! ->  | T169: =#REF! ->  | U169: =#REF! ->  | V169: =#REF! ->  | W169: =#REF! ->  | X169: p2f
A170: 168 | B170: =#REF! ->  | C170: =#REF! ->  | D170: =#REF! ->  | E170: =#REF! ->  | F170: =#REF! ->  | G170: =#REF! ->  | H170: =#REF! ->  | I170: =#REF! ->  | J170: =#REF! ->  | K170: =#REF! ->  | L170: =#REF! ->  | M170: =#REF! ->  | N170: =#REF! ->  | O170: =#REF! ->  | P170: =#REF! ->  | Q170: =#REF! ->  | R170: =#REF! ->  | S170: =#REF! ->  | T170: =#REF! ->  | U170: =#REF! ->  | V170: =#REF! ->  | W170: =#REF! ->  | X170: p2f
A171: 169 | B171: =#REF! ->  | C171: =#REF! ->  | D171: =#REF! ->  | E171: =#REF! ->  | F171: =#REF! ->  | G171: =#REF! ->  | H171: =#REF! ->  | I171: =#REF! ->  | J171: =#REF! ->  | K171: =#REF! ->  | L171: =#REF! ->  | M171: =#REF! ->  | N171: =#REF! ->  | O171: =#REF! ->  | P171: =#REF! ->  | Q171: =#REF! ->  | R171: =#REF! ->  | S171: =#REF! ->  | T171: =#REF! ->  | U171: =#REF! ->  | V171: =#REF! ->  | W171: =#REF! ->  | X171: p2f
A172: 170 | B172: =#REF! ->  | C172: =#REF! ->  | D172: =#REF! ->  | E172: =#REF! ->  | F172: =#REF! ->  | G172: =#REF! ->  | H172: =#REF! ->  | I172: =#REF! ->  | J172: =#REF! ->  | K172: =#REF! ->  | L172: =#REF! ->  | M172: =#REF! ->  | N172: =#REF! ->  | O172: =#REF! ->  | P172: =#REF! ->  | Q172: =#REF! ->  | R172: =#REF! ->  | S172: =#REF! ->  | T172: =#REF! ->  | U172: =#REF! ->  | V172: =#REF! ->  | W172: =#REF! ->  | X172: p2f
A173: 171 | B173: =#REF! ->  | C173: =#REF! ->  | D173: =#REF! ->  | E173: =#REF! ->  | F173: =#REF! ->  | G173: =#REF! ->  | H173: =#REF! ->  | I173: =#REF! ->  | J173: =#REF! ->  | K173: =#REF! ->  | L173: =#REF! ->  | M173: =#REF! ->  | N173: =#REF! ->  | O173: =#REF! ->  | P173: =#REF! ->  | Q173: =#REF! ->  | R173: =#REF! ->  | S173: =#REF! ->  | T173: =#REF! ->  | U173: =#REF! ->  | V173: =#REF! ->  | W173: =#REF! ->  | X173: p2f
A174: 172 | B174: =#REF! ->  | C174: =#REF! ->  | D174: =#REF! ->  | E174: =#REF! ->  | F174: =#REF! ->  | G174: =#REF! ->  | H174: =#REF! ->  | I174: =#REF! ->  | J174: =#REF! ->  | K174: =#REF! ->  | L174: =#REF! ->  | M174: =#REF! ->  | N174: =#REF! ->  | O174: =#REF! ->  | P174: =#REF! ->  | Q174: =#REF! ->  | R174: =#REF! ->  | S174: =#REF! ->  | T174: =#REF! ->  | U174: =#REF! ->  | V174: =#REF! ->  | W174: =#REF! ->  | X174: p2f
A175: 173 | B175: =#REF! ->  | C175: =#REF! ->  | D175: =#REF! ->  | E175: =#REF! ->  | F175: =#REF! ->  | G175: =#REF! ->  | H175: =#REF! ->  | I175: =#REF! ->  | J175: =#REF! ->  | K175: =#REF! ->  | L175: =#REF! ->  | M175: =#REF! ->  | N175: =#REF! ->  | O175: =#REF! ->  | P175: =#REF! ->  | Q175: =#REF! ->  | R175: =#REF! ->  | S175: =#REF! ->  | T175: =#REF! ->  | U175: =#REF! ->  | V175: =#REF! ->  | W175: =#REF! ->  | X175: p2f
A176: 174 | B176: =#REF! ->  | C176: =#REF! ->  | D176: =#REF! ->  | E176: =#REF! ->  | F176: =#REF! ->  | G176: =#REF! ->  | H176: =#REF! ->  | I176: =#REF! ->  | J176: =#REF! ->  | K176: =#REF! ->  | L176: =#REF! ->  | M176: =#REF! ->  | N176: =#REF! ->  | O176: =#REF! ->  | P176: =#REF! ->  | Q176: =#REF! ->  | R176: =#REF! ->  | S176: =#REF! ->  | T176: =#REF! ->  | U176: =#REF! ->  | V176: =#REF! ->  | W176: =#REF! ->  | X176: p2f
A177: 175 | B177: =#REF! ->  | C177: =#REF! ->  | D177: =#REF! ->  | E177: =#REF! ->  | F177: =#REF! ->  | G177: =#REF! ->  | H177: =#REF! ->  | I177: =#REF! ->  | J177: =#REF! ->  | K177: =#REF! ->  | L177: =#REF! ->  | M177: =#REF! ->  | N177: =#REF! ->  | O177: =#REF! ->  | P177: =#REF! ->  | Q177: =#REF! ->  | R177: =#REF! ->  | S177: =#REF! ->  | T177: =#REF! ->  | U177: =#REF! ->  | V177: =#REF! ->  | W177: =#REF! ->  | X177: p2f
A178: 176 | B178: =#REF! ->  | C178: =#REF! ->  | D178: =#REF! ->  | E178: =#REF! ->  | F178: =#REF! ->  | G178: =#REF! ->  | H178: =#REF! ->  | I178: =#REF! ->  | J178: =#REF! ->  | K178: =#REF! ->  | L178: =#REF! ->  | M178: =#REF! ->  | N178: =#REF! ->  | O178: =#REF! ->  | P178: =#REF! ->  | Q178: =#REF! ->  | R178: =#REF! ->  | S178: =#REF! ->  | T178: =#REF! ->  | U178: =#REF! ->  | V178: =#REF! ->  | W178: =#REF! ->  | X178: p2f
A179: 177 | B179: =#REF! ->  | C179: =#REF! ->  | D179: =#REF! ->  | E179: =#REF! ->  | F179: =#REF! ->  | G179: =#REF! ->  | H179: =#REF! ->  | I179: =#REF! ->  | J179: =#REF! ->  | K179: =#REF! ->  | L179: =#REF! ->  | M179: =#REF! ->  | N179: =#REF! ->  | O179: =#REF! ->  | P179: =#REF! ->  | Q179: =#REF! ->  | R179: =#REF! ->  | S179: =#REF! ->  | T179: =#REF! ->  | U179: =#REF! ->  | V179: =#REF! ->  | W179: =#REF! ->  | X179: p2f
A180: 178 | B180: =#REF! ->  | C180: =#REF! ->  | D180: =#REF! ->  | E180: =#REF! ->  | F180: =#REF! ->  | G180: =#REF! ->  | H180: =#REF! ->  | I180: =#REF! ->  | J180: =#REF! ->  | K180: =#REF! ->  | L180: =#REF! ->  | M180: =#REF! ->  | N180: =#REF! ->  | O180: =#REF! ->  | P180: =#REF! ->  | Q180: =#REF! ->  | R180: =#REF! ->  | S180: =#REF! ->  | T180: =#REF! ->  | U180: =#REF! ->  | V180: =#REF! ->  | W180: =#REF! ->  | X180: p2f
A181: 179 | B181: =#REF! ->  | C181: =#REF! ->  | D181: =#REF! ->  | E181: =#REF! ->  | F181: =#REF! ->  | G181: =#REF! ->  | H181: =#REF! ->  | I181: =#REF! ->  | J181: =#REF! ->  | K181: =#REF! ->  | L181: =#REF! ->  | M181: =#REF! ->  | N181: =#REF! ->  | O181: =#REF! ->  | P181: =#REF! ->  | Q181: =#REF! ->  | R181: =#REF! ->  | S181: =#REF! ->  | T181: =#REF! ->  | U181: =#REF! ->  | V181: =#REF! ->  | W181: =#REF! ->  | X181: p2f
A182: 180 | B182: =#REF! ->  | C182: =#REF! ->  | D182: =#REF! ->  | E182: =#REF! ->  | F182: =#REF! ->  | G182: =#REF! ->  | H182: =#REF! ->  | I182: =#REF! ->  | J182: =#REF! ->  | K182: =#REF! ->  | L182: =#REF! ->  | M182: =#REF! ->  | N182: =#REF! ->  | O182: =#REF! ->  | P182: =#REF! ->  | Q182: =#REF! ->  | R182: =#REF! ->  | S182: =#REF! ->  | T182: =#REF! ->  | U182: =#REF! ->  | V182: =#REF! ->  | W182: =#REF! ->  | X182: p2f
A183: 181 | B183: =#REF! ->  | C183: =#REF! ->  | D183: =#REF! ->  | E183: =#REF! ->  | F183: =#REF! ->  | G183: =#REF! ->  | H183: =#REF! ->  | I183: =#REF! ->  | J183: =#REF! ->  | K183: =#REF! ->  | L183: =#REF! ->  | M183: =#REF! ->  | N183: =#REF! ->  | O183: =#REF! ->  | P183: =#REF! ->  | Q183: =#REF! ->  | R183: =#REF! ->  | S183: =#REF! ->  | T183: =#REF! ->  | U183: =#REF! ->  | V183: =#REF! ->  | W183: =#REF! ->  | X183: p2f
A184: 182 | B184: =#REF! ->  | C184: =#REF! ->  | D184: =#REF! ->  | E184: =#REF! ->  | F184: =#REF! ->  | G184: =#REF! ->  | H184: =#REF! ->  | I184: =#REF! ->  | J184: =#REF! ->  | K184: =#REF! ->  | L184: =#REF! ->  | M184: =#REF! ->  | N184: =#REF! ->  | O184: =#REF! ->  | P184: =#REF! ->  | Q184: =#REF! ->  | R184: =#REF! ->  | S184: =#REF! ->  | T184: =#REF! ->  | U184: =#REF! ->  | V184: =#REF! ->  | W184: =#REF! ->  | X184: p2f
A185: 183 | B185: =#REF! ->  | C185: =#REF! ->  | D185: =#REF! ->  | E185: =#REF! ->  | F185: =#REF! ->  | G185: =#REF! ->  | H185: =#REF! ->  | I185: =#REF! ->  | J185: =#REF! ->  | K185: =#REF! ->  | L185: =#REF! ->  | M185: =#REF! ->  | N185: =#REF! ->  | O185: =#REF! ->  | P185: =#REF! ->  | Q185: =#REF! ->  | R185: =#REF! ->  | S185: =#REF! ->  | T185: =#REF! ->  | U185: =#REF! ->  | V185: =#REF! ->  | W185: =#REF! ->  | X185: p2f
A186: 184 | B186: =#REF! ->  | C186: =#REF! ->  | D186: =#REF! ->  | E186: =#REF! ->  | F186: =#REF! ->  | G186: =#REF! ->  | H186: =#REF! ->  | I186: =#REF! ->  | J186: =#REF! ->  | K186: =#REF! ->  | L186: =#REF! ->  | M186: =#REF! ->  | N186: =#REF! ->  | O186: =#REF! ->  | P186: =#REF! ->  | Q186: =#REF! ->  | R186: =#REF! ->  | S186: =#REF! ->  | T186: =#REF! ->  | U186: =#REF! ->  | V186: =#REF! ->  | W186: =#REF! ->  | X186: p2f
A187: 185 | B187: =#REF! ->  | C187: =#REF! ->  | D187: =#REF! ->  | E187: =#REF! ->  | F187: =#REF! ->  | G187: =#REF! ->  | H187: =#REF! ->  | I187: =#REF! ->  | J187: =#REF! ->  | K187: =#REF! ->  | L187: =#REF! ->  | M187: =#REF! ->  | N187: =#REF! ->  | O187: =#REF! ->  | P187: =#REF! ->  | Q187: =#REF! ->  | R187: =#REF! ->  | S187: =#REF! ->  | T187: =#REF! ->  | U187: =#REF! ->  | V187: =#REF! ->  | W187: =#REF! ->  | X187: p2f
A188: 186 | B188: =#REF! ->  | C188: =#REF! ->  | D188: =#REF! ->  | E188: =#REF! ->  | F188: =#REF! ->  | G188: =#REF! ->  | H188: =#REF! ->  | I188: =#REF! ->  | J188: =#REF! ->  | K188: =#REF! ->  | L188: =#REF! ->  | M188: =#REF! ->  | N188: =#REF! ->  | O188: =#REF! ->  | P188: =#REF! ->  | Q188: =#REF! ->  | R188: =#REF! ->  | S188: =#REF! ->  | T188: =#REF! ->  | U188: =#REF! ->  | V188: =#REF! ->  | W188: =#REF! ->  | X188: p2f
A189: 187 | B189: =#REF! ->  | C189: =#REF! ->  | D189: =#REF! ->  | E189: =#REF! ->  | F189: =#REF! ->  | G189: =#REF! ->  | H189: =#REF! ->  | I189: =#REF! ->  | J189: =#REF! ->  | K189: =#REF! ->  | L189: =#REF! ->  | M189: =#REF! ->  | N189: =#REF! ->  | O189: =#REF! ->  | P189: =#REF! ->  | Q189: =#REF! ->  | R189: =#REF! ->  | S189: =#REF! ->  | T189: =#REF! ->  | U189: =#REF! ->  | V189: =#REF! ->  | W189: =#REF! ->  | X189: p2f
A190: 188 | B190: =#REF! ->  | C190: =#REF! ->  | D190: =#REF! ->  | E190: =#REF! ->  | F190: =#REF! ->  | G190: =#REF! ->  | H190: =#REF! ->  | I190: =#REF! ->  | J190: =#REF! ->  | K190: =#REF! ->  | L190: =#REF! ->  | M190: =#REF! ->  | N190: =#REF! ->  | O190: =#REF! ->  | P190: =#REF! ->  | Q190: =#REF! ->  | R190: =#REF! ->  | S190: =#REF! ->  | T190: =#REF! ->  | U190: =#REF! ->  | V190: =#REF! ->  | W190: =#REF! ->  | X190: p2f
A191: 189 | B191: =#REF! ->  | C191: =#REF! ->  | D191: =#REF! ->  | E191: =#REF! ->  | F191: =#REF! ->  | G191: =#REF! ->  | H191: =#REF! ->  | I191: =#REF! ->  | J191: =#REF! ->  | K191: =#REF! ->  | L191: =#REF! ->  | M191: =#REF! ->  | N191: =#REF! ->  | O191: =#REF! ->  | P191: =#REF! ->  | Q191: =#REF! ->  | R191: =#REF! ->  | S191: =#REF! ->  | T191: =#REF! ->  | U191: =#REF! ->  | V191: =#REF! ->  | W191: =#REF! ->  | X191: p2f
A192: 190 | B192: =#REF! ->  | C192: =#REF! ->  | D192: =#REF! ->  | E192: =#REF! ->  | F192: =#REF! ->  | G192: =#REF! ->  | H192: =#REF! ->  | I192: =#REF! ->  | J192: =#REF! ->  | K192: =#REF! ->  | L192: =#REF! ->  | M192: =#REF! ->  | N192: =#REF! ->  | O192: =#REF! ->  | P192: =#REF! ->  | Q192: =#REF! ->  | R192: =#REF! ->  | S192: =#REF! ->  | T192: =#REF! ->  | U192: =#REF! ->  | V192: =#REF! ->  | W192: =#REF! ->  | X192: p2f
A193: 191 | B193: =#REF! ->  | C193: =#REF! ->  | D193: =#REF! ->  | E193: =#REF! ->  | F193: =#REF! ->  | G193: =#REF! ->  | H193: =#REF! ->  | I193: =#REF! ->  | J193: =#REF! ->  | K193: =#REF! ->  | L193: =#REF! ->  | M193: =#REF! ->  | N193: =#REF! ->  | O193: =#REF! ->  | P193: =#REF! ->  | Q193: =#REF! ->  | R193: =#REF! ->  | S193: =#REF! ->  | T193: =#REF! ->  | U193: =#REF! ->  | V193: =#REF! ->  | W193: =#REF! ->  | X193: p2f
A194: 192 | B194: =#REF! ->  | C194: =#REF! ->  | D194: =#REF! ->  | E194: =#REF! ->  | F194: =#REF! ->  | G194: =#REF! ->  | H194: =#REF! ->  | I194: =#REF! ->  | J194: =#REF! ->  | K194: =#REF! ->  | L194: =#REF! ->  | M194: =#REF! ->  | N194: =#REF! ->  | O194: =#REF! ->  | P194: =#REF! ->  | Q194: =#REF! ->  | R194: =#REF! ->  | S194: =#REF! ->  | T194: =#REF! ->  | U194: =#REF! ->  | V194: =#REF! ->  | W194: =#REF! ->  | X194: p2f
A195: 193 | B195: =#REF! ->  | C195: =#REF! ->  | D195: =#REF! ->  | E195: =#REF! ->  | F195: =#REF! ->  | G195: =#REF! ->  | H195: =#REF! ->  | I195: =#REF! ->  | J195: =#REF! ->  | K195: =#REF! ->  | L195: =#REF! ->  | M195: =#REF! ->  | N195: =#REF! ->  | O195: =#REF! ->  | P195: =#REF! ->  | Q195: =#REF! ->  | R195: =#REF! ->  | S195: =#REF! ->  | T195: =#REF! ->  | U195: =#REF! ->  | V195: =#REF! ->  | W195: =#REF! ->  | X195: p2f
A196: 194 | B196: =#REF! ->  | C196: =#REF! ->  | D196: =#REF! ->  | E196: =#REF! ->  | F196: =#REF! ->  | G196: =#REF! ->  | H196: =#REF! ->  | I196: =#REF! ->  | J196: =#REF! ->  | K196: =#REF! ->  | L196: =#REF! ->  | M196: =#REF! ->  | N196: =#REF! ->  | O196: =#REF! ->  | P196: =#REF! ->  | Q196: =#REF! ->  | R196: =#REF! ->  | S196: =#REF! ->  | T196: =#REF! ->  | U196: =#REF! ->  | V196: =#REF! ->  | W196: =#REF! ->  | X196: p2f
A197: 195 | B197: =#REF! ->  | C197: =#REF! ->  | D197: =#REF! ->  | E197: =#REF! ->  | F197: =#REF! ->  | G197: =#REF! ->  | H197: =#REF! ->  | I197: =#REF! ->  | J197: =#REF! ->  | K197: =#REF! ->  | L197: =#REF! ->  | M197: =#REF! ->  | N197: =#REF! ->  | O197: =#REF! ->  | P197: =#REF! ->  | Q197: =#REF! ->  | R197: =#REF! ->  | S197: =#REF! ->  | T197: =#REF! ->  | U197: =#REF! ->  | V197: =#REF! ->  | W197: =#REF! ->  | X197: p2f
A198: 196 | B198: =#REF! ->  | C198: =#REF! ->  | D198: =#REF! ->  | E198: =#REF! ->  | F198: =#REF! ->  | G198: =#REF! ->  | H198: =#REF! ->  | I198: =#REF! ->  | J198: =#REF! ->  | K198: =#REF! ->  | L198: =#REF! ->  | M198: =#REF! ->  | N198: =#REF! ->  | O198: =#REF! ->  | P198: =#REF! ->  | Q198: =#REF! ->  | R198: =#REF! ->  | S198: =#REF! ->  | T198: =#REF! ->  | U198: =#REF! ->  | V198: =#REF! ->  | W198: =#REF! ->  | X198: p2f
A199: 197 | B199: =#REF! ->  | C199: =#REF! ->  | D199: =#REF! ->  | E199: =#REF! ->  | F199: =#REF! ->  | G199: =#REF! ->  | H199: =#REF! ->  | I199: =#REF! ->  | J199: =#REF! ->  | K199: =#REF! ->  | L199: =#REF! ->  | M199: =#REF! ->  | N199: =#REF! ->  | O199: =#REF! ->  | P199: =#REF! ->  | Q199: =#REF! ->  | R199: =#REF! ->  | S199: =#REF! ->  | T199: =#REF! ->  | U199: =#REF! ->  | V199: =#REF! ->  | W199: =#REF! ->  | X199: p2f
A200: 198 | B200: =#REF! ->  | C200: =#REF! ->  | D200: =#REF! ->  | E200: =#REF! ->  | F200: =#REF! ->  | G200: =#REF! ->  | H200: =#REF! ->  | I200: =#REF! ->  | J200: =#REF! ->  | K200: =#REF! ->  | L200: =#REF! ->  | M200: =#REF! ->  | N200: =#REF! ->  | O200: =#REF! ->  | P200: =#REF! ->  | Q200: =#REF! ->  | R200: =#REF! ->  | S200: =#REF! ->  | T200: =#REF! ->  | U200: =#REF! ->  | V200: =#REF! ->  | W200: =#REF! ->  | X200: p2f
... 301 more rows
